Workbook

Sheet District
D2: 2022-23 | E2: 2022-23 | F2: 2021-22 | G2: 2021-22 | H2: 2020-21 | I2: 2020-21 | J2: 2019-20 | K2: 2019-20 | L2: 2018-19 | M2: 2017-18 | N2: 2016-17 | O2: 2015-16 | P2: 2014-15
D3: Final | E3: Preliminary | F3: Final | G3: Preliminary | H3: Final | I3: Preliminary | J3: Final | K3: Preliminary | L3: Final | M3: 2nd Revised | N3: Revised
C4: Select District Name | D4: ABERDEEN
C5: District Code (CCDDD) | D5: =VLOOKUP(D4,CCDDD!D:F,3,FALSE) -> 14005
C7: Eisenhower 2001-02 Allocations | D7: =VLOOKUP($D$5,'Allocation 2022-23 F'!$A$7:$M$321,3,FALSE) -> 0 | E7: =VLOOKUP($D$5,'[1]Allocation 2022-23 P'!$A$7:$M$321,3,FALSE) -> 0 | F7: =VLOOKUP($D$5,'Allocation 2021-22 Final'!$A$7:$M$321,3,FALSE) -> 0 | G7: =VLOOKUP($D$5,'[1]Allocation 2021-22 Preliminary'!$A$7:$M$321,3,FALSE) -> 0 | H7: =IFERROR(VLOOKUP($D$5,'[1]Allocation 2020-21 Final'!$A$7:$M$317,3,FALSE),0) -> 0 | I7: =IFERROR(VLOOKUP($D$5,'[1]Allocation 2020-21 Preliminary'!$A$7:$M$318,3,FALSE),0) -> 0 | J7: =IFERROR(VLOOKUP($D$5,'[1]Allocation 2019-20 Final'!$A$7:$M$314,3,FALSE),0) -> 0 | K7: =IFERROR(VLOOKUP($D$5,'[1]Allocation 2019-20 Preliminary'!$A$7:$M$316,3,FALSE),0) -> 0 | L7: =IFERROR(VLOOKUP($D$5,'[1]Allocation 2018-19 Final'!$A$7:$M$316,3,FALSE),0) -> 0 | M7: =VLOOKUP($D$5,'[1]Allocation 2017-18 2ndRev_Final'!$A$7:$M$315,3,FALSE) -> 0 | N7: =VLOOKUP($D$5,'[1]Allocation 2016-17 rev_Final'!$A$7:$M$314,3,FALSE) -> 24422 | O7: =VLOOKUP($D$5,'[1]Allocation 2015-16 Final'!$A$7:$M$313,3,FALSE) -> 24422 | P7: =VLOOKUP($D$5,'[1]Allocation 2014-15 Final'!$A$7:$M$304,3,FALSE) -> 24422
C8: Class Size Reduction allocations 2001-02 | D8: =VLOOKUP($D$5,'Allocation 2022-23 F'!$A$7:$M$321,4,FALSE) -> 0 | E8: =VLOOKUP($D$5,'[1]Allocation 2022-23 P'!$A$7:$M$321,4,FALSE) -> 0 | F8: =VLOOKUP($D$5,'Allocation 2021-22 Final'!$A$7:$M$321,4,FALSE) -> 0 | G8: =VLOOKUP($D$5,'[1]Allocation 2021-22 Preliminary'!$A$7:$M$321,4,FALSE) -> 0 | H8: =IFERROR(VLOOKUP($D$5,'[1]Allocation 2020-21 Final'!$A$7:$M$317,4,FALSE),0) -> 0 | I8: =IFERROR(VLOOKUP($D$5,'[1]Allocation 2020-21 Preliminary'!$A$7:$M$318,4,FALSE),0) -> 0 | J8: =IFERROR(VLOOKUP($D$5,'[1]Allocation 2019-20 Final'!$A$7:$M$314,4,FALSE),0) -> 0 | K8: =IFERROR(VLOOKUP($D$5,'[1]Allocation 2019-20 Preliminary'!$A$7:$M$316,4,FALSE),0) -> 0 | L8: =IFERROR(VLOOKUP($D$5,'[1]Allocation 2018-19 Final'!$A$7:$M$316,4,FALSE),0) -> 0 | M8: =VLOOKUP($D$5,'[1]Allocation 2017-18 2ndRev_Final'!$A$7:$M$315,4,FALSE) -> 0 | N8: =VLOOKUP($D$5,'[1]Allocation 2016-17 rev_Final'!$A$7:$M$314,4,FALSE) -> 128290 | O8: =VLOOKUP($D$5,'[1]Allocation 2015-16 Final'!$A$7:$M$313,4,FALSE) -> 128290 | P8: =VLOOKUP($D$5,'[1]Allocation 2014-15 Final'!$A$7:$M$304,4,FALSE) -> 128290
C10: Census Population Ages 5-17 | D10: =VLOOKUP($D$5,'Allocation 2022-23 F'!$A$7:$M$321,5,FALSE) -> 3445 | E10: =VLOOKUP($D$5,'[1]Allocation 2022-23 P'!$A$7:$M$321,5,FALSE) -> 3433 | F10: =VLOOKUP($D$5,'Allocation 2021-22 Final'!$A$7:$M$321,5,FALSE) -> 3402 | G10: =VLOOKUP($D$5,'[1]Allocation 2021-22 Preliminary'!$A$7:$M$321,5,FALSE) -> 3384 | H10: =IFERROR(VLOOKUP($D$5,'[1]Allocation 2020-21 Final'!$A$7:$M$317,5,FALSE),0) -> 3343 | I10: =IFERROR(VLOOKUP($D$5,'[1]Allocation 2020-21 Preliminary'!$A$7:$M$318,5,FALSE),0) -> 3341 | J10: =IFERROR(VLOOKUP($D$5,'[1]Allocation 2019-20 Final'!$A$7:$M$314,5,FALSE),0) -> 3269 | K10: =IFERROR(VLOOKUP($D$5,'[1]Allocation 2019-20 Preliminary'!$A$7:$M$316,5,FALSE),0) -> 3269 | L10: =IFERROR(VLOOKUP($D$5,'[1]Allocation 2018-19 Final'!$A$7:$M$315,5,FALSE),0) -> 3257 | M10: =VLOOKUP($D$5,'[1]Allocation 2017-18 2ndRev_Final'!$A$7:$M$315,5,FALSE) -> 3229 | N10: =VLOOKUP($D$5,'[1]Allocation 2016-17 rev_Final'!$A$7:$M$314,5,FALSE) -> 3239 | O10: =VLOOKUP($D$5,'[1]Allocation 2015-16 Final'!$A$7:$M$313,5,FALSE) -> 3253 | P10: =VLOOKUP($D$5,'[1]Allocation 2014-15 Final'!$A$7:$M$304,5,FALSE) -> 3252
C11: 20% based on Total Pop | D11: =VLOOKUP($D$5,'Allocation 2022-23 F'!$A$7:$M$321,6,FALSE) -> 18373 | E11: =VLOOKUP($D$5,'[1]Allocation 2022-23 P'!$A$7:$M$321,6,FALSE) -> 18229 | F11: =VLOOKUP($D$5,'Allocation 2021-22 Final'!$A$7:$M$321,6,FALSE) -> 18525 | G11: =VLOOKUP($D$5,'[1]Allocation 2021-22 Preliminary'!$A$7:$M$321,6,FALSE) -> 18415 | H11: =IFERROR(VLOOKUP($D$5,'[1]Allocation 2020-21 Final'!$A$7:$M$317,6,FALSE),0) -> 17964 | I11: =IFERROR(VLOOKUP($D$5,'[1]Allocation 2020-21 Preliminary'!$A$7:$M$318,6,FALSE),0) -> 17933 | J11: =IFERROR(VLOOKUP($D$5,'[1]Allocation 2019-20 Final'!$A$7:$M$314,6,FALSE),0) -> 17854 | K11: =IFERROR(VLOOKUP($D$5,'[1]Allocation 2019-20 Preliminary'!$A$7:$M$316,6,FALSE),0) -> 17810 | L11: =IFERROR(VLOOKUP($D$5,'[1]Allocation 2018-19 Final'!$A$7:$M$315,6,FALSE),0) -> 17567 | M11: =VLOOKUP($D$5,'[1]Allocation 2017-18 Rev_Final'!$A$7:$M$315,6,FALSE) -> 17590 | N11: =VLOOKUP($D$5,'[1]Allocation 2016-17 rev_Final'!$A$7:$M$314,6,FALSE) -> 1386 | O11: =VLOOKUP($D$5,'[1]Allocation 2015-16 Final'!$A$7:$M$313,6,FALSE) -> 1880 | P11: =VLOOKUP($D$5,'[1]Allocation 2014-15 Final'!$A$7:$M$304,6,FALSE) -> 1883
C12: Census Poverty Ages 5-17 | D12: =VLOOKUP($D$5,'Allocation 2022-23 F'!$A$7:$M$321,7,FALSE) -> 663 | E12: =VLOOKUP($D$5,'[1]Allocation 2022-23 P'!$A$7:$M$321,7,FALSE) -> 663 | F12: =VLOOKUP($D$5,'Allocation 2021-22 Final'!$A$7:$M$321,7,FALSE) -> 736 | G12: =VLOOKUP($D$5,'[1]Allocation 2021-22 Preliminary'!$A$7:$M$321,7,FALSE) -> 736 | H12: =IFERROR(VLOOKUP($D$5,'[1]Allocation 2020-21 Final'!$A$7:$M$317,7,FALSE),0) -> 871 | I12: =IFERROR(VLOOKUP($D$5,'[1]Allocation 2020-21 Preliminary'!$A$7:$M$318,7,FALSE),0) -> 871 | J12: =IFERROR(VLOOKUP($D$5,'[1]Allocation 2019-20 Final'!$A$7:$M$314,7,FALSE),0) -> 996 | K12: =IFERROR(VLOOKUP($D$5,'[1]Allocation 2019-20 Preliminary'!$A$7:$M$316,7,FALSE),0) -> 996 | L12: =IFERROR(VLOOKUP($D$5,'[1]Allocation 2018-19 Final'!$A$7:$M$316,7,FALSE),0) -> 835 | M12: =VLOOKUP($D$5,'[1]Allocation 2017-18 2ndRev_Final'!$A$7:$M$315,7,FALSE) -> 859 | N12: =VLOOKUP($D$5,'[1]Allocation 2016-17 rev_Final'!$A$7:$M$314,7,FALSE) -> 941 | O12: =VLOOKUP($D$5,'[1]Allocation 2015-16 Final'!$A$7:$M$313,7,FALSE) -> 964 | P12: =VLOOKUP($D$5,'[1]Allocation 2014-15 Final'!$A$7:$M$304,7,FALSE) -> 1012
C13: 80% based on Low Inc Pop | D13: =VLOOKUP($D$5,'Allocation 2022-23 F'!$A$7:$M$321,8,FALSE) -> 143970 | E13: =VLOOKUP($D$5,'[1]Allocation 2022-23 P'!$A$7:$M$321,8,FALSE) -> 148102 | F13: =VLOOKUP($D$5,'Allocation 2021-22 Final'!$A$7:$M$321,8,FALSE) -> 146202 | G13: =VLOOKUP($D$5,'[1]Allocation 2021-22 Preliminary'!$A$7:$M$321,8,FALSE) -> 146008 | H13: =IFERROR(VLOOKUP($D$5,'[1]Allocation 2020-21 Final'!$A$7:$M$317,8,FALSE),0) -> 162759 | I13: =IFERROR(VLOOKUP($D$5,'[1]Allocation 2020-21 Preliminary'!$A$7:$M$318,8,FALSE),0) -> 162570 | J13: =IFERROR(VLOOKUP($D$5,'[1]Allocation 2019-20 Final'!$A$7:$M$314,8,FALSE),0) -> 165895 | K13: =IFERROR(VLOOKUP($D$5,'[1]Allocation 2019-20 Preliminary'!$A$7:$M$316,8,FALSE),0) -> 165487 | L13: =IFERROR(VLOOKUP($D$5,'[1]Allocation 2018-19 Final'!$A$7:$M$316,8,FALSE),0) -> 143714 | M13: =VLOOKUP($D$5,'[1]Allocation 2017-18 2ndRev_Final'!$A$7:$M$315,8,FALSE) -> 132230 | N13: =VLOOKUP($D$5,'[1]Allocation 2016-17 rev_Final'!$A$7:$M$314,8,FALSE) -> 10197 | O13: =VLOOKUP($D$5,'[1]Allocation 2015-16 Final'!$A$7:$M$313,8,FALSE) -> 13166 | P13: =VLOOKUP($D$5,'[1]Allocation 2014-15 Final'!$A$7:$M$304,8,FALSE) -> 13862
C15: Total Allocation | D15: =VLOOKUP($D$5,'Allocation 2022-23 F'!$A$7:$R$321,18,FALSE) -> 162343 | E15: =VLOOKUP($D$5,'[1]Allocation 2022-23 P'!$A$7:$R$321,18,FALSE) -> 166331 | F15: =VLOOKUP($D$5,'Allocation 2021-22 Final'!$A$7:$R$321,18,FALSE) -> 164727 | G15: =VLOOKUP($D$5,'[1]Allocation 2021-22 Preliminary'!$A$7:$R$321,18,FALSE) -> 164423 | H15: =IFERROR(VLOOKUP($D$5,'[1]Allocation 2020-21 Final'!$A$7:$R$317,18,FALSE),0) -> 180723 | I15: =IFERROR(VLOOKUP($D$5,'[1]Allocation 2020-21 Preliminary'!$A$7:$R$318,18,FALSE),0) -> 180503 | J15: =IFERROR(VLOOKUP($D$5,'[1]Allocation 2019-20 Final'!$A$7:$R$314,18,FALSE),0) -> 183749 | K15: =IFERROR(VLOOKUP($D$5,'[1]Allocation 2019-20 Preliminary'!$A$7:$R$316,18,FALSE),0) -> 183297 | L15: =IFERROR(VLOOKUP($D$5,'[1]Allocation 2018-19 Final'!$A$7:$R$316,18,FALSE),0) -> 161281 | M15: =VLOOKUP($D$5,'[1]Allocation 2017-18 2ndRev_Final'!$A$7:$R$315,18,FALSE) -> 149921 | N15: =VLOOKUP($D$5,'[1]Allocation 2016-17 rev_Final'!$A$7:$R$314,18,FALSE)-IF(D4="Seattle",11,0) -> 164277 | O15: =VLOOKUP($D$5,'[1]Allocation 2015-16 Final'!$A$7:$R$313,18,FALSE)-IF(D4="Seattle",6,0) -> 167716 | P15: =VLOOKUP($D$5,'[1]Allocation 2014-15 Final'!$A$7:$R$304,18,FALSE) -> 168415
C16: Per Student Allocation | D16: =VLOOKUP($D$5,'Allocation 2022-23 F'!$A$7:$M$321,12,FALSE) -> 0 | E16: =VLOOKUP($D$5,'[1]Allocation 2022-23 P'!$A$7:$M$321,12,FALSE) -> 0 | F16: =VLOOKUP($D$5,'Allocation 2021-22 Final'!$A$7:$M$321,12,FALSE) -> 0 | G16: =VLOOKUP($D$5,'[1]Allocation 2021-22 Preliminary'!$A$7:$M$321,12,FALSE) -> 0 | H16: =IFERROR(VLOOKUP($D$5,'[1]Allocation 2020-21 Final'!$A$7:$M$317,12,FALSE),0) -> 53.61888854 | I16: =IF(VLOOKUP($D$5,'[1]Allocation 2020-21 Preliminary'!$A$7:$M$318,12,FALSE),0) -> 0 | J16: =IFERROR(VLOOKUP($D$5,'[1]Allocation 2019-20 Final'!$A$7:$M$314,12,FALSE),0) -> 54.40884285 | K16: =IFERROR(VLOOKUP($D$5,'[1]Allocation 2019-20 Preliminary'!$A$7:$M$316,12,FALSE),0) -> 54.27500378 | L16: =IFERROR(VLOOKUP($D$5,'[1]Allocation 2018-19 Final'!$A$7:$M$316,12,FALSE),0) -> 47.06941587 | M16: =VLOOKUP($D$5,'[1]Allocation 2017-18 2ndRev_Final'!$A$7:$M$315,12,FALSE) -> 43.26724387 | N16: =VLOOKUP($D$5,'[1]Allocation 2016-17 rev_Final'!$A$7:$M$314,12,FALSE) -> 50.10827132 | O16: =VLOOKUP($D$5,'[1]Allocation 2015-16 Final'!$A$7:$M$313,12,FALSE) -> 50.39291078 | P16: =VLOOKUP($D$5,'[1]Allocation 2014-15 Final'!$A$7:$M$304,12,FALSE) -> 49.83934911
C17: P-105 District Enrollment | D17: =VLOOKUP($D$5,'Allocation 2022-23 F'!$A$7:$M$321,13,FALSE) -> 0 | E17: =VLOOKUP($D$5,'[1]Allocation 2022-23 P'!$A$7:$M$321,13,FALSE) -> 0 | F17: =VLOOKUP($D$5,'Allocation 2021-22 Final'!$A$7:$M$321,13,FALSE) -> 0 | G17: =VLOOKUP($D$5,'[1]Allocation 2021-22 Preliminary'!$A$7:$M$321,13,FALSE) -> 0 | H17: =IFERROR(VLOOKUP($D$5,'[1]Allocation 2020-21 Final'!$A$7:$M$317,13,FALSE),0) -> 3231.51 | I17: =IFERROR(VLOOKUP($D$5,'[1]Allocation 2020-21 Preliminary'!$A$7:$M$318,13,FALSE),0) -> 3239.58 | J17: =IFERROR(VLOOKUP($D$5,'[1]Allocation 2019-20 Final'!$A$7:$M$314,13,FALSE),0) -> 3252.19 | K17: =IFERROR(VLOOKUP($D$5,'[1]Allocation 2019-20 Preliminary'!$A$7:$M$316,13,FALSE),0) -> 3252.19 | L17: =IFERROR(VLOOKUP($D$5,'[1]Allocation 2018-19 Final'!$A$7:$M$316,13,FALSE),0) -> 3301.45 | M17: =VLOOKUP($D$5,'[1]Allocation 2017-18 2ndRev_Final'!$A$7:$M$315,13,FALSE) -> 3340 | N17: =VLOOKUP($D$5,'[1]Allocation 2016-17 rev_Final'!$A$7:$M$314,13,FALSE) -> 3154.8 | O17: =VLOOKUP($D$5,'[1]Allocation 2015-16 Final'!$A$7:$M$313,13,FALSE) -> 3221 | P17: =VLOOKUP($D$5,'[1]Allocation 2014-15 Final'!$A$7:$M$304,13,FALSE) -> 3224
C18: Poverty Percentage | D18: =IF(D10=0,0,D12/D10) -> 0.1924528302 | E18: 0.1931255462 | F18: 0.2163433275 | G18: 0.2174940898 | H18: 0.2605444212 | I18: 0.2607003891 | J18: 0.3046803304 | K18: 0.3046803304 | L18: 0.2563708935 | M18: 0.2660266336 | N18: 0.290521766 | O18: 0.2963418383 | P18: 0.3111931119
C19: Private Participation Enrollment | D19: =VLOOKUP($D$5,'Allocation 2022-23 F'!$A$7:$N$321,14,FALSE) -> 0 | E19: =VLOOKUP($D$5,'[1]Allocation 2022-23 P'!$A$7:$N$321,14,FALSE) -> 0 | F19: =VLOOKUP($D$5,'Allocation 2021-22 Final'!$A$7:$N$321,14,FALSE) -> 0 | G19: =VLOOKUP($D$5,'[1]Allocation 2021-22 Preliminary'!$A$7:$N$321,14,FALSE) -> 0 | H19: =IFERROR(VLOOKUP($D$5,'[1]Allocation 2020-21 Final'!$A$7:$N$317,14,FALSE),0) -> 139 | I19: =VLOOKUP($D$5,'[1]Allocation 2020-21 Preliminary'!$A$7:$N$318,14,FALSE) -> 125 | J19: =IFERROR(VLOOKUP($D$5,'[1]Allocation 2019-20 Final'!$A$7:$N$314,14,FALSE),0) -> 125 | K19: =IFERROR(VLOOKUP($D$5,'[1]Allocation 2019-20 Preliminary'!$A$7:$N$316,14,FALSE),0) -> 125 | L19: =IFERROR(VLOOKUP($D$5,'[1]Allocation 2018-19 Final'!$A$7:$N$316,14,FALSE),0) -> 125 | M19: =VLOOKUP($D$5,'[1]Allocation 2017-18 2ndRev_Final'!$A$7:$N$315,14,FALSE) -> 125 | N19: =VLOOKUP($D$5,'[1]Allocation 2016-17 rev_Final'!$A$7:$N$314,14,FALSE) -> 124 | O19: =VLOOKUP($D$5,'[1]Allocation 2015-16 Final'!$A$7:$N$313,14,FALSE) -> 108 | P19: =VLOOKUP($D$5,'[1]Allocation 2014-15 Final'!$A$7:$N$304,14,FALSE) -> 156
C21: MOE Reduction Percentage | D21: =IF(VLOOKUP($D$5,'Allocation 2021-22 Final'!$A$7:$T$321,19,FALSE)=0,0,VLOOKUP($D$5,'Allocation 2021-22 Final'!$A$7:$T$321,19,FALSE)-0.9) -> 0 | E21: =IF(VLOOKUP($D$5,'Allocation 2021-22 Final'!$A$7:$T$321,19,FALSE)=0,0,VLOOKUP($D$5,'Allocation 2021-22 Final'!$A$7:$T$321,19,FALSE)-0.9) -> 0 | F21: =IF(VLOOKUP($D$5,'Allocation 2021-22 Final'!$A$7:$T$321,19,FALSE)=0,0,VLOOKUP($D$5,'Allocation 2021-22 Final'!$A$7:$T$321,19,FALSE)-0.9) -> 0 | G21: =IF(VLOOKUP($D$5,'[1]Allocation 2021-22 Preliminary'!$A$7:$T$321,19,FALSE)=0,0,VLOOKUP($D$5,'[1]Allocation 2021-22 Preliminary'!$A$7:$T$321,19,FALSE)-0.9) -> 0 | H21: =IFERROR(IF(VLOOKUP($D$5,'[1]Allocation 2020-21 Final'!$A$7:$T$317,19,FALSE)=0,0,VLOOKUP($D$5,'[1]Allocation 2020-21 Final'!$A$7:$T$317,19,FALSE)-0.9),0) -> 0 | I21: =IFERROR(IF(VLOOKUP($D$5,'[1]Allocation 2020-21 Preliminary'!$A$7:$T$318,19,FALSE)=0,0,VLOOKUP($D$5,'[1]Allocation 2020-21 Preliminary'!$A$7:$T$318,19,FALSE)-0.9),0) -> 0 | J21: =IFERROR(IF(VLOOKUP($D$5,'[1]Allocation 2019-20 Final'!$A$7:$T$314,19,FALSE)=0,0,VLOOKUP($I$5,'[1]Allocation 2019-20 Final'!$A$7:$T$314,19,FALSE)-0.9),0) -> 0 | K21: =IFERROR(IF(VLOOKUP($D$5,'[1]Allocation 2019-20 Preliminary'!$A$7:$T$316,19,FALSE)=0,0,VLOOKUP($D$5,'[1]Allocation 2019-20 Preliminary'!$A$7:$T$316,19,FALSE)-0.9),0) -> 0 | L21: =IFERROR(IF(VLOOKUP($D$5,'[1]Allocation 2018-19 Final'!$A$7:$T$316,19,FALSE)=0,0,VLOOKUP($D$5,'[1]Allocation 2018-19 Final'!$A$7:$T$316,19,FALSE)-0.9),0) -> 0 | M21: =IF(VLOOKUP($D$5,'[1]Allocation 2017-18 2ndRev_Final'!$A$7:$T$315,19,FALSE)=0,0,VLOOKUP($D$5,'[1]Allocation 2017-18 2ndRev_Final'!$A$7:$T$315,19,FALSE)-0.9) -> 0 | N21: =IF(VLOOKUP($D$5,'[1]Allocation 2016-17 rev_Final'!$A$7:$T$314,19,FALSE)=0,0,VLOOKUP($D$5,'[1]Allocation 2016-17 rev_Final'!$A$7:$T$314,19,FALSE)-0.9) -> 0 | O21: =IF(VLOOKUP($D$5,'[1]Allocation 2015-16 Final'!$A$7:$T$313,19,FALSE)=0,0,VLOOKUP($D$5,'[1]Allocation 2015-16 Final'!$A$7:$T$313,19,FALSE)-0.9) -> 0 | P21: =IF(VLOOKUP($D$5,'[1]Allocation 2014-15 Final'!$A$7:$T$304,19,FALSE)=0,0,VLOOKUP($D$5,'[1]Allocation 2014-15 Final'!$A$7:$T$304,19,FALSE)-0.9) -> 0
C22: MOE Reduction Amount | D22: =VLOOKUP($D$5,'Allocation 2022-23 F'!$A$7:$T$321,20,FALSE) -> 0 | E22: =VLOOKUP($D$5,'[1]Allocation 2022-23 P'!$A$7:$T$321,20,FALSE) -> 0 | F22: =VLOOKUP($D$5,'Allocation 2021-22 Final'!$A$7:$T$321,20,FALSE) -> 0 | G22: =VLOOKUP($D$5,'[1]Allocation 2021-22 Preliminary'!$A$7:$T$321,20,FALSE) -> 0 | H22: =IFERROR(VLOOKUP($D$5,'[1]Allocation 2020-21 Final'!$A$7:$T$317,20,FALSE),0) -> 0 | I22: =IFERROR(VLOOKUP($D$5,'[1]Allocation 2020-21 Preliminary'!$A$7:$T$318,20,FALSE),0) -> 0 | J22: =IFERROR(VLOOKUP($D$5,'[1]Allocation 2019-20 Final'!$A$7:$T$314,20,FALSE),0) -> 0 | K22: =IFERROR(VLOOKUP($D$5,'[1]Allocation 2019-20 Preliminary'!$A$7:$T$316,20,FALSE),0) -> 0 | L22: =IFERROR(VLOOKUP($D$5,'[1]Allocation 2018-19 Preliminary'!$A$7:$T$316,20,FALSE),0) -> 0 | M22: =VLOOKUP($D$5,'[1]Allocation 2017-18 2ndRev_Final'!$A$7:$T$315,20,FALSE) -> 0 | N22: =VLOOKUP($D$5,'[1]Allocation 2016-17 rev_Final'!$A$7:$T$314,20,FALSE) -> 0 | O22: =VLOOKUP($D$5,'[1]Allocation 2015-16 Final'!$A$7:$T$313,20,FALSE) -> 0 | P22: =VLOOKUP($D$5,'[1]Allocation 2014-15 Final'!$A$7:$T$304,20,FALSE) -> 0
C23: Prior Year Adjustment (reallocation)
C24: Final Allocation | D24: =+D15+D22+D23 -> 162343 | E24: 166331 | F24: 164727 | G24: 164423 | H24: 180723 | I24: 180503 | J24: 183749 | K24: 183297 | L24: 161281 | M24: 149921 | N24: =+N15+N22 -> 164277 | O24: =+O15+O22 -> 167716 | P24: =+P15+P22 -> 168415
C26: Increase (Decrease) from Prior Year | D26: =D24-F15 -> -2384 | E26: =E24-F15 -> 1604 | F26: =F24-H15 -> -15996 | G26: =G24-H15 -> -16300 | H26: =H24-J15 -> -3026 | I26: =I24-J15 -> -3246 | J26: =J24-K15 -> 452 | K26: =K24-L15 -> 22016 | L26: =IFERROR(L24-M15,0) -> 11360 | M26: =M24-N15 -> -14356 | N26: =N15-O15 -> -3439 | O26: =O15-P15 -> -699
C27: % Change from Prior Year | D27: =IFERROR(D26/F15,"") -> -0.01447243014 | E27: =IFERROR(E26/F15,"") -> 0.009737322965 | F27: =IFERROR(F26/H15,"") -> -0.08851114689 | G27: =IFERROR(G26/H15,"") -> -0.09019327922 | H27: =IFERROR(H26/J15,"") -> -0.01646811683 | I27: =IFERROR(I26/J15,"") -> -0.01766540226 | J27: =IFERROR(J26/K15,"") -> 0.002465943251 | K27: =IFERROR(K26/L15,"") -> 0.1365070901 | L27: =IFERROR(L26/M15,"") -> 0.07577324057 | M27: =M26/N15 -> -0.08738898324 | N27: =N26/O15 -> -0.02050490114 | O27: =O26/P15 -> -0.004150461657

Sheet Allocation 2022-23 F (hidden)
A1: 2021-22 | J1: =IF(J5=Assumptions!$C14+I5,"Rounding OK","Rounding Error = "&FIXED(J5-Assumptions!$C14-I5,TRUE)) -> Rounding OK | T1: =T5 -> 0 | U1: =IF(U5=Assumptions!$E14+T5,"Rounding OK","Rounding Error = "&FIXED(U5-(Assumptions!$C14+T5),TRUE)) -> Rounding Error = 0.0
A2: ESEA -- Title 2 Distributions | J2: Allocation including private participation | U2: \
A3: 1 | B3: 2 | C3: 3 | D3: 4 | E3: 5 | F3: 6 | G3: 7 | H3: 8 | I3: 9 | J3: 10 | K3: 11 | L3: 12 | M3: 13 | N3: 14 | U3: \ | W3: 18
A4: ccddd | B4: District Name | C4: Eisenhower 2001-02 Allocations | D4: Class Size Reduction Allocations 2001-02 | E4: Population Ages 5-17 | F4: 20% based on Total Pop | G4: Poverty Ages 5-17 | H4: 80% based on Low Inc Pop | I4: MOE | J4: Total Final Allocation | L4: Per Student Allocation | M4: P-105A District Enrollment WO PK | N4: Private School Partcipation Enroll | O4: Alloc to non-DOE Counts 22-23 P LEA | P4: Realloc Pool | Q4: Realloc | R4: Final Alloc Before MOE | S4: MOE | T4: MOE Reduction | U4: Final Alloc | W4: Prior Year Allocation | Y4: Change | AA4: Rank Order | AD4: do not delete Y & Z
B5: State Totals | C5: =SUM(C7:C312) -> 0 | D5: =SUM(D7:D312) -> 0 | E5: =SUM(E7:E321) -> 1215314 | F5: =SUM(F7:F321) -> 6481701 | G5: =SUM(G7:G321) -> 119396 | H5: =SUM(H7:H321) -> 25926836 | J5: =SUM(J7:J321) -> 32408547 | L5: =IFERROR(+J5/(+M5+N5),0) -> 0 | M5: =SUM(M7:M321) -> 0 | N5: 0 | O5: 0 | P5: 32408547 | Q5: 0 | R5: 32408547 | T5: =SUM(T7:T321) -> 0 | U5: =SUM(U7:U321) -> 32408547 | W5: =SUM(W7:W321) -> 31553609 | Y5: =SUM(Y7:Y321) -> 854938 | Z5: =MIN(Z7:Z321) -> -0.5444666857 | AA5: ="Lose = "& PROPER(VLOOKUP(Z5,$Z$7:$AE$321,6,FALSE)) -> Lose = Creston | AD5: =+A5 -> 0 | AE5: =+B5 -> State Totals
Z6: =MAX(Z7:Z313) -> 2.688449848 | AA6: ="Win = "&PROPER(VLOOKUP(Z6,$Z$7:$AE$313,6,FALSE)) -> Win = Steptoe
A7: 14005 | B7: ABERDEEN | C7: 0 | D7: 0 | E7: =IFERROR(VLOOKUP(A7,'DOE Formula counts'!$D$8:$T$325,10,FALSE),0) -> 3445 | F7: =ROUND(E7/$E$5*Assumptions!$C$14*Assumptions!$C$29,0) -> 18373 | G7: =IFERROR(VLOOKUP(A7,'DOE Formula counts'!$D$8:$T$325,4,FALSE),0) -> 663 | H7: =ROUND(G7/$G$5*+Assumptions!$C$14*Assumptions!$C$30,0) -> 143970 | J7: =ROUNDDOWN(+H7+F7+D7+C7+I7,0) -> 162343 | L7: =IF((M7+N7=0),0,+J7/(+M7+N7)) -> 0 | M7: =IFERROR(VLOOKUP(A7,[1]ENROLLMENT!$A$5:$B$349,2,FALSE),0)*0 -> 0 | N7: =IFERROR(GETPIVOTDATA("Total W/O Preschool",'[1]Private 19-20'!$O$3,"District Code",A7),0)*0 -> 0 | P7: =J7 -> 162343 | Q7: =-ROUND(P7/$P$5*$O$5,0) -> 0 | R7: =+J7+Q7+O7 -> 162343 | T7: =IF(S7>0,-ROUND((R7*(0.9-S7)),0),0) -> 0 | U7: =+R7+T7 -> 162343 | W7: =IFERROR(VLOOKUP($A7,'Allocation 2021-22 Final'!$A$7:$U$317,18,FALSE),0) -> 164727 | Y7: =+U7-W7 -> -2384 | Z7: =IF(W7>0,Y7/W7,0) -> -0.01447243014 | AA7: =RANK(Y7,$Y$7:$Y$321,0) -> 240 | AB7: =(SUM(C7:D7)/U7) -> 0 | AD7: =+A7 -> 14005 | AE7: =+B7 -> ABERDEEN
A8: 21226 | B8: ADNA | C8: 0 | D8: 0 | E8: =IFERROR(VLOOKUP(A8,'DOE Formula counts'!$D$8:$T$325,10,FALSE),0) -> 791 | F8: =ROUND(E8/$E$5*Assumptions!$C$14*Assumptions!$C$29,0) -> 4219 | G8: =IFERROR(VLOOKUP(A8,'DOE Formula counts'!$D$8:$T$325,4,FALSE),0) -> 43 | H8: =ROUND(G8/$G$5*+Assumptions!$C$14*Assumptions!$C$30,0) -> 9337 | J8: 13556 | L8: 0 | M8: =IFERROR(VLOOKUP(A8,[1]ENROLLMENT!$A$5:$B$349,2,FALSE),0)*0 -> 0 | N8: =IFERROR(GETPIVOTDATA("Total W/O Preschool",'[1]Private 19-20'!$O$3,"District Code",A8),0)*0 -> 0 | P8: 13556 | Q8: 0 | R8: 13556 | T8: 0 | U8: 13556 | W8: =IFERROR(VLOOKUP($A8,'Allocation 2021-22 Final'!$A$7:$U$317,18,FALSE),0) -> 11752 | Y8: 1804 | Z8: 0.1535057862 | AA8: 122 | AB8: 0 | AD8: 21226 | AE8: ADNA
A9: 22017 | B9: ALMIRA | C9: 0 | D9: 0 | E9: =IFERROR(VLOOKUP(A9,'DOE Formula counts'!$D$8:$T$325,10,FALSE),0) -> 90 | F9: =ROUND(E9/$E$5*Assumptions!$C$14*Assumptions!$C$29,0) -> 480 | G9: =IFERROR(VLOOKUP(A9,'DOE Formula counts'!$D$8:$T$325,4,FALSE),0) -> 10 | H9: =ROUND(G9/$G$5*+Assumptions!$C$14*Assumptions!$C$30,0) -> 2171 | J9: 2651 | L9: 0 | M9: =IFERROR(VLOOKUP(A9,[1]ENROLLMENT!$A$5:$B$349,2,FALSE),0)*0 -> 0 | N9: =IFERROR(GETPIVOTDATA("Total W/O Preschool",'[1]Private 19-20'!$O$3,"District Code",A9),0)*0 -> 0 | P9: 2651 | Q9: 0 | R9: 2651 | T9: 0 | U9: 2651 | W9: =IFERROR(VLOOKUP($A9,'Allocation 2021-22 Final'!$A$7:$U$317,18,FALSE),0) -> 2278 | Y9: 373 | Z9: 0.1637401229 | AA9: 163 | AB9: 0 | AD9: 22017 | AE9: ALMIRA
A10: 29103 | B10: ANACORTES | C10: 0 | D10: 0 | E10: =IFERROR(VLOOKUP(A10,'DOE Formula counts'!$D$8:$T$325,10,FALSE),0) -> 2805 | F10: =ROUND(E10/$E$5*Assumptions!$C$14*Assumptions!$C$29,0) -> 14960 | G10: =IFERROR(VLOOKUP(A10,'DOE Formula counts'!$D$8:$T$325,4,FALSE),0) -> 217 | H10: =ROUND(G10/$G$5*+Assumptions!$C$14*Assumptions!$C$30,0) -> 47122 | J10: 62082 | L10: 0 | M10: =IFERROR(VLOOKUP(A10,[1]ENROLLMENT!$A$5:$B$349,2,FALSE),0)*0 -> 0 | N10: =IFERROR(GETPIVOTDATA("Total W/O Preschool",'[1]Private 19-20'!$O$3,"District Code",A10),0)*0 -> 0 | P10: 62082 | Q10: 0 | R10: 62082 | T10: 0 | U10: 62082 | W10: =IFERROR(VLOOKUP($A10,'Allocation 2021-22 Final'!$A$7:$U$317,18,FALSE),0) -> 76111 | Y10: -14029 | Z10: -0.1843228968 | AA10: 285 | AB10: 0 | AD10: 29103 | AE10: ANACORTES
A11: 31016 | B11: ARLINGTON | C11: 0 | D11: 0 | E11: =IFERROR(VLOOKUP(A11,'DOE Formula counts'!$D$8:$T$325,10,FALSE),0) -> 6040 | F11: =ROUND(E11/$E$5*Assumptions!$C$14*Assumptions!$C$29,0) -> 32214 | G11: =IFERROR(VLOOKUP(A11,'DOE Formula counts'!$D$8:$T$325,4,FALSE),0) -> 369 | H11: =ROUND(G11/$G$5*+Assumptions!$C$14*Assumptions!$C$30,0) -> 80128 | J11: 112342 | L11: 0 | M11: =IFERROR(VLOOKUP(A11,[1]ENROLLMENT!$A$5:$B$349,2,FALSE),0)*0 -> 0 | N11: =IFERROR(GETPIVOTDATA("Total W/O Preschool",'[1]Private 19-20'!$O$3,"District Code",A11),0)*0 -> 0 | P11: 112342 | Q11: 0 | R11: 112342 | T11: 0 | U11: 112342 | W11: =IFERROR(VLOOKUP($A11,'Allocation 2021-22 Final'!$A$7:$U$317,18,FALSE),0) -> 105785 | Y11: 6557 | Z11: 0.06198421326 | AA11: 69 | AB11: 0 | AD11: 31016 | AE11: ARLINGTON
A12: 02420 | B12: ASOTIN-ANATONE | C12: 0 | D12: 0 | E12: =IFERROR(VLOOKUP(A12,'DOE Formula counts'!$D$8:$T$325,10,FALSE),0) -> 567 | F12: =ROUND(E12/$E$5*Assumptions!$C$14*Assumptions!$C$29,0) -> 3024 | G12: =IFERROR(VLOOKUP(A12,'DOE Formula counts'!$D$8:$T$325,4,FALSE),0) -> 51 | H12: =ROUND(G12/$G$5*+Assumptions!$C$14*Assumptions!$C$30,0) -> 11075 | J12: 14099 | L12: 0 | M12: =IFERROR(VLOOKUP(A12,[1]ENROLLMENT!$A$5:$B$349,2,FALSE),0)*0 -> 0 | N12: =IFERROR(GETPIVOTDATA("Total W/O Preschool",'[1]Private 19-20'!$O$3,"District Code",A12),0)*0 -> 0 | P12: 14099 | Q12: 0 | R12: 14099 | T12: 0 | U12: 14099 | W12: =IFERROR(VLOOKUP($A12,'Allocation 2021-22 Final'!$A$7:$U$317,18,FALSE),0) -> 13963 | Y12: 136 | Z12: 0.009740027215 | AA12: 170 | AB12: 0 | AD12: 02420 | AE12: ASOTIN-ANATONE
A13: 17408 | B13: AUBURN | C13: 0 | D13: 0 | E13: =IFERROR(VLOOKUP(A13,'DOE Formula counts'!$D$8:$T$325,10,FALSE),0) -> 17331 | F13: =ROUND(E13/$E$5*Assumptions!$C$14*Assumptions!$C$29,0) -> 92432 | G13: =IFERROR(VLOOKUP(A13,'DOE Formula counts'!$D$8:$T$325,4,FALSE),0) -> 1919 | H13: =ROUND(G13/$G$5*+Assumptions!$C$14*Assumptions!$C$30,0) -> 416711 | J13: 509143 | L13: 0 | M13: =IFERROR(VLOOKUP(A13,[1]ENROLLMENT!$A$5:$B$349,2,FALSE),0)*0 -> 0 | N13: =IFERROR(GETPIVOTDATA("Total W/O Preschool",'[1]Private 19-20'!$O$3,"District Code",A13),0)*0 -> 0 | P13: 509143 | Q13: 0 | R13: 509143 | T13: 0 | U13: 509143 | W13: =IFERROR(VLOOKUP($A13,'Allocation 2021-22 Final'!$A$7:$U$317,18,FALSE),0) -> 481800 | Y13: 27343 | Z13: 0.05675176422 | AA13: 19 | AB13: 0 | AD13: 17408 | AE13: AUBURN
A14: 18303 | B14: BAINBRIDGE ISLAND | C14: 0 | D14: 0 | E14: =IFERROR(VLOOKUP(A14,'DOE Formula counts'!$D$8:$T$325,10,FALSE),0) -> 4285 | F14: =ROUND(E14/$E$5*Assumptions!$C$14*Assumptions!$C$29,0) -> 22853 | G14: =IFERROR(VLOOKUP(A14,'DOE Formula counts'!$D$8:$T$325,4,FALSE),0) -> 147 | H14: =ROUND(G14/$G$5*+Assumptions!$C$14*Assumptions!$C$30,0) -> 31921 | J14: 54774 | L14: 0 | M14: =IFERROR(VLOOKUP(A14,[1]ENROLLMENT!$A$5:$B$349,2,FALSE),0)*0 -> 0 | N14: =IFERROR(GETPIVOTDATA("Total W/O Preschool",'[1]Private 19-20'!$O$3,"District Code",A14),0)*0 -> 0 | P14: 54774 | Q14: 0 | R14: 54774 | T14: 0 | U14: 54774 | W14: =IFERROR(VLOOKUP($A14,'Allocation 2021-22 Final'!$A$7:$U$317,18,FALSE),0) -> 48764 | Y14: 6010 | Z14: 0.1232466574 | AA14: 70 | AB14: 0 | AD14: 18303 | AE14: BAINBRIDGE ISLAND
A15: 06119 | B15: BATTLE GROUND | C15: 0 | D15: 0 | E15: =IFERROR(VLOOKUP(A15,'DOE Formula counts'!$D$8:$T$325,10,FALSE),0) -> 15222 | F15: =ROUND(E15/$E$5*Assumptions!$C$14*Assumptions!$C$29,0) -> 81184 | G15: =IFERROR(VLOOKUP(A15,'DOE Formula counts'!$D$8:$T$325,4,FALSE),0) -> 936 | H15: =ROUND(G15/$G$5*+Assumptions!$C$14*Assumptions!$C$30,0) -> 203252 | J15: 284436 | L15: 0 | M15: =IFERROR(VLOOKUP(A15,[1]ENROLLMENT!$A$5:$B$349,2,FALSE),0)*0 -> 0 | N15: =IFERROR(GETPIVOTDATA("Total W/O Preschool",'[1]Private 19-20'!$O$3,"District Code",A15),0)*0 -> 0 | P15: 284436 | Q15: 0 | R15: 284436 | T15: 0 | U15: 284436 | W15: =IFERROR(VLOOKUP($A15,'Allocation 2021-22 Final'!$A$7:$U$317,18,FALSE),0) -> 298828 | Y15: -14392 | Z15: -0.0481614842 | AA15: 287 | AB15: 0 | AD15: 06119 | AE15: BATTLE GROUND
A16: 17405 | B16: BELLEVUE | C16: 0 | D16: 0 | E16: =IFERROR(VLOOKUP(A16,'DOE Formula counts'!$D$8:$T$325,10,FALSE),0) -> 21607 | F16: =ROUND(E16/$E$5*Assumptions!$C$14*Assumptions!$C$29,0) -> 115238 | G16: =IFERROR(VLOOKUP(A16,'DOE Formula counts'!$D$8:$T$325,4,FALSE),0) -> 1067 | H16: =ROUND(G16/$G$5*+Assumptions!$C$14*Assumptions!$C$30,0) -> 231699 | J16: 346937 | L16: 0 | M16: =IFERROR(VLOOKUP(A16,[1]ENROLLMENT!$A$5:$B$349,2,FALSE),0)*0 -> 0 | N16: =IFERROR(GETPIVOTDATA("Total W/O Preschool",'[1]Private 19-20'!$O$3,"District Code",A16),0)*0 -> 0 | P16: 346937 | Q16: 0 | R16: 346937 | T16: 0 | U16: 346937 | W16: =IFERROR(VLOOKUP($A16,'Allocation 2021-22 Final'!$A$7:$U$317,18,FALSE),0) -> 324598 | Y16: 22339 | Z16: 0.06882051029 | AA16: 23 | AB16: 0 | AD16: 17405 | AE16: BELLEVUE
A17: 37501 | B17: BELLINGHAM | C17: 0 | D17: 0 | E17: =IFERROR(VLOOKUP(A17,'DOE Formula counts'!$D$8:$T$325,10,FALSE),0) -> 13046.66573 | F17: =ROUND(E17/$E$5*Assumptions!$C$14*Assumptions!$C$29,0) -> 69583 | G17: =IFERROR(VLOOKUP(A17,'DOE Formula counts'!$D$8:$T$325,4,FALSE),0) -> 1209.05318 | H17: =ROUND(G17/$G$5*+Assumptions!$C$14*Assumptions!$C$30,0) -> 262546 | J17: 332129 | L17: 0 | M17: =IFERROR(VLOOKUP(A17,[1]ENROLLMENT!$A$5:$B$349,2,FALSE),0)*0 -> 0 | N17: =IFERROR(GETPIVOTDATA("Total W/O Preschool",'[1]Private 19-20'!$O$3,"District Code",A17),0)*0 -> 0 | P17: 332129 | Q17: 0 | R17: 332129 | T17: 0 | U17: 332129 | W17: =IFERROR(VLOOKUP($A17,'Allocation 2021-22 Final'!$A$7:$U$317,18,FALSE),0) -> 326874 | Y17: 5255 | Z17: 0.01607653102 | AA17: 80 | AB17: 0 | AD17: 37501 | AE17: BELLINGHAM
A18: 01122 | B18: BENGE | C18: 0 | D18: 0 | E18: =IFERROR(VLOOKUP(A18,'DOE Formula counts'!$D$8:$T$325,10,FALSE),0) -> 6 | F18: =ROUND(E18/$E$5*Assumptions!$C$14*Assumptions!$C$29,0) -> 32 | G18: =IFERROR(VLOOKUP(A18,'DOE Formula counts'!$D$8:$T$325,4,FALSE),0) -> 1 | H18: =ROUND(G18/$G$5*+Assumptions!$C$14*Assumptions!$C$30,0) -> 217 | J18: 249 | L18: 0 | M18: =IFERROR(VLOOKUP(A18,[1]ENROLLMENT!$A$5:$B$349,2,FALSE),0)*0 -> 0 | N18: =IFERROR(GETPIVOTDATA("Total W/O Preschool",'[1]Private 19-20'!$O$3,"District Code",A18),0)*0 -> 0 | P18: 249 | Q18: 0 | R18: 249 | T18: 0 | U18: 249 | W18: =IFERROR(VLOOKUP($A18,'Allocation 2021-22 Final'!$A$7:$U$317,18,FALSE),0) -> 232 | Y18: 17 | Z18: 0.07327586207 | AA18: 173 | AB18: 0 | AD18: 01122 | AE18: BENGE
A19: 27403 | B19: BETHEL | C19: 0 | D19: 0 | E19: =IFERROR(VLOOKUP(A19,'DOE Formula counts'!$D$8:$T$325,10,FALSE),0) -> 21599 | F19: =ROUND(E19/$E$5*Assumptions!$C$14*Assumptions!$C$29,0) -> 115195 | G19: =IFERROR(VLOOKUP(A19,'DOE Formula counts'!$D$8:$T$325,4,FALSE),0) -> 1719 | H19: =ROUND(G19/$G$5*+Assumptions!$C$14*Assumptions!$C$30,0) -> 373281 | J19: 488476 | L19: 0 | M19: =IFERROR(VLOOKUP(A19,[1]ENROLLMENT!$A$5:$B$349,2,FALSE),0)*0 -> 0 | N19: =IFERROR(GETPIVOTDATA("Total W/O Preschool",'[1]Private 19-20'!$O$3,"District Code",A19),0)*0 -> 0 | P19: 488476 | Q19: 0 | R19: 488476 | T19: 0 | U19: 488476 | W19: =IFERROR(VLOOKUP($A19,'Allocation 2021-22 Final'!$A$7:$U$317,18,FALSE),0) -> 568129 | Y19: -79653 | Z19: -0.1402023132 | AA19: 310 | AB19: 0 | AD19: 27403 | AE19: BETHEL
A20: 20203 | B20: BICKLETON | C20: 0 | D20: 0 | E20: =IFERROR(VLOOKUP(A20,'DOE Formula counts'!$D$8:$T$325,10,FALSE),0) -> 63 | F20: =ROUND(E20/$E$5*Assumptions!$C$14*Assumptions!$C$29,0) -> 336 | G20: =IFERROR(VLOOKUP(A20,'DOE Formula counts'!$D$8:$T$325,4,FALSE),0) -> 6 | H20: =ROUND(G20/$G$5*+Assumptions!$C$14*Assumptions!$C$30,0) -> 1303 | J20: 1639 | L20: 0 | M20: =IFERROR(VLOOKUP(A20,[1]ENROLLMENT!$A$5:$B$349,2,FALSE),0)*0 -> 0 | N20: =IFERROR(GETPIVOTDATA("Total W/O Preschool",'[1]Private 19-20'!$O$3,"District Code",A20),0)*0 -> 0 | P20: 1639 | Q20: 0 | R20: 1639 | T20: 0 | U20: 1639 | W20: =IFERROR(VLOOKUP($A20,'Allocation 2021-22 Final'!$A$7:$U$317,18,FALSE),0) -> 1729 | Y20: -90 | Z20: -0.05205320995 | AA20: 179 | AB20: 0 | AD20: 20203 | AE20: BICKLETON
A21: 37503 | B21: BLAINE | C21: 0 | D21: 0 | E21: =IFERROR(VLOOKUP(A21,'DOE Formula counts'!$D$8:$T$325,10,FALSE),0) -> 2538 | F21: =ROUND(E21/$E$5*Assumptions!$C$14*Assumptions!$C$29,0) -> 13536 | G21: =IFERROR(VLOOKUP(A21,'DOE Formula counts'!$D$8:$T$325,4,FALSE),0) -> 260 | H21: =ROUND(G21/$G$5*+Assumptions!$C$14*Assumptions!$C$30,0) -> 56459 | J21: 69995 | L21: 0 | M21: =IFERROR(VLOOKUP(A21,[1]ENROLLMENT!$A$5:$B$349,2,FALSE),0)*0 -> 0 | N21: =IFERROR(GETPIVOTDATA("Total W/O Preschool",'[1]Private 19-20'!$O$3,"District Code",A21),0)*0 -> 0 | P21: 69995 | Q21: 0 | R21: 69995 | T21: 0 | U21: 69995 | W21: =IFERROR(VLOOKUP($A21,'Allocation 2021-22 Final'!$A$7:$U$317,18,FALSE),0) -> 88600 | Y21: -18605 | Z21: -0.2099887133 | AA21: 291 | AB21: 0 | AD21: 37503 | AE21: BLAINE
A22: 21234 | B22: BOISTFORT | C22: 0 | D22: 0 | E22: =IFERROR(VLOOKUP(A22,'DOE Formula counts'!$D$8:$T$325,10,FALSE),0) -> 155 | F22: =ROUND(E22/$E$5*Assumptions!$C$14*Assumptions!$C$29,0) -> 827 | G22: =IFERROR(VLOOKUP(A22,'DOE Formula counts'!$D$8:$T$325,4,FALSE),0) -> 16 | H22: =ROUND(G22/$G$5*+Assumptions!$C$14*Assumptions!$C$30,0) -> 3474 | J22: 4301 | L22: 0 | M22: =IFERROR(VLOOKUP(A22,[1]ENROLLMENT!$A$5:$B$349,2,FALSE),0)*0 -> 0 | N22: =IFERROR(GETPIVOTDATA("Total W/O Preschool",'[1]Private 19-20'!$O$3,"District Code",A22),0)*0 -> 0 | P22: 4301 | Q22: 0 | R22: 4301 | T22: 0 | U22: 4301 | W22: =IFERROR(VLOOKUP($A22,'Allocation 2021-22 Final'!$A$7:$U$317,18,FALSE),0) -> 5788 | Y22: -1487 | Z22: -0.25691085 | AA22: 228 | AB22: 0 | AD22: 21234 | AE22: BOISTFORT
A23: 18100 | B23: BREMERTON | C23: 0 | D23: 0 | E23: =IFERROR(VLOOKUP(A23,'DOE Formula counts'!$D$8:$T$325,10,FALSE),0) -> 4979.064166 | F23: =ROUND(E23/$E$5*Assumptions!$C$14*Assumptions!$C$29,0) -> 26555 | G23: =IFERROR(VLOOKUP(A23,'DOE Formula counts'!$D$8:$T$325,4,FALSE),0) -> 795.8302073 | H23: =ROUND(G23/$G$5*+Assumptions!$C$14*Assumptions!$C$30,0) -> 172815 | J23: 199370 | L23: 0 | M23: =IFERROR(VLOOKUP(A23,[1]ENROLLMENT!$A$5:$B$349,2,FALSE),0)*0 -> 0 | N23: =IFERROR(GETPIVOTDATA("Total W/O Preschool",'[1]Private 19-20'!$O$3,"District Code",A23),0)*0 -> 0 | P23: 199370 | Q23: 0 | R23: 199370 | T23: 0 | U23: 199370 | W23: =IFERROR(VLOOKUP($A23,'Allocation 2021-22 Final'!$A$7:$U$317,18,FALSE),0) -> 178442 | Y23: 20928 | Z23: 0.1172818059 | AA23: 24 | AB23: 0 | AD23: 18100 | AE23: BREMERTON
A24: 24111 | B24: BREWSTER | C24: 0 | D24: 0 | E24: =IFERROR(VLOOKUP(A24,'DOE Formula counts'!$D$8:$T$325,10,FALSE),0) -> 1068 | F24: =ROUND(E24/$E$5*Assumptions!$C$14*Assumptions!$C$29,0) -> 5696 | G24: =IFERROR(VLOOKUP(A24,'DOE Formula counts'!$D$8:$T$325,4,FALSE),0) -> 276 | H24: =ROUND(G24/$G$5*+Assumptions!$C$14*Assumptions!$C$30,0) -> 59933 | J24: 65629 | L24: 0 | M24: =IFERROR(VLOOKUP(A24,[1]ENROLLMENT!$A$5:$B$349,2,FALSE),0)*0 -> 0 | N24: =IFERROR(GETPIVOTDATA("Total W/O Preschool",'[1]Private 19-20'!$O$3,"District Code",A24),0)*0 -> 0 | P24: 65629 | Q24: 0 | R24: 65629 | T24: 0 | U24: 65629 | W24: =IFERROR(VLOOKUP($A24,'Allocation 2021-22 Final'!$A$7:$U$317,18,FALSE),0) -> 37068 | Y24: 28561 | Z24: 0.7705028596 | AA24: 18 | AB24: 0 | AD24: 24111 | AE24: BREWSTER
A25: 09075 | B25: BRIDGEPORT | C25: 0 | D25: 0 | E25: =IFERROR(VLOOKUP(A25,'DOE Formula counts'!$D$8:$T$325,10,FALSE),0) -> 868 | F25: =ROUND(E25/$E$5*Assumptions!$C$14*Assumptions!$C$29,0) -> 4629 | G25: =IFERROR(VLOOKUP(A25,'DOE Formula counts'!$D$8:$T$325,4,FALSE),0) -> 205 | H25: =ROUND(G25/$G$5*+Assumptions!$C$14*Assumptions!$C$30,0) -> 44516 | J25: 49145 | L25: 0 | M25: =IFERROR(VLOOKUP(A25,[1]ENROLLMENT!$A$5:$B$349,2,FALSE),0)*0 -> 0 | N25: =IFERROR(GETPIVOTDATA("Total W/O Preschool",'[1]Private 19-20'!$O$3,"District Code",A25),0)*0 -> 0 | P25: 49145 | Q25: 0 | R25: 49145 | T25: 0 | U25: 49145 | W25: =IFERROR(VLOOKUP($A25,'Allocation 2021-22 Final'!$A$7:$U$317,18,FALSE),0) -> 44510 | Y25: 4635 | Z25: 0.1041339025 | AA25: 84 | AB25: 0 | AD25: 09075 | AE25: BRIDGEPORT
A26: 16046 | B26: BRINNON | C26: 0 | D26: 0 | E26: =IFERROR(VLOOKUP(A26,'DOE Formula counts'!$D$8:$T$325,10,FALSE),0) -> 86 | F26: =ROUND(E26/$E$5*Assumptions!$C$14*Assumptions!$C$29,0) -> 459 | G26: =IFERROR(VLOOKUP(A26,'DOE Formula counts'!$D$8:$T$325,4,FALSE),0) -> 24 | H26: =ROUND(G26/$G$5*+Assumptions!$C$14*Assumptions!$C$30,0) -> 5212 | J26: 5671 | L26: 0 | M26: =IFERROR(VLOOKUP(A26,[1]ENROLLMENT!$A$5:$B$349,2,FALSE),0)*0 -> 0 | N26: =IFERROR(GETPIVOTDATA("Total W/O Preschool",'[1]Private 19-20'!$O$3,"District Code",A26),0)*0 -> 0 | P26: 5671 | Q26: 0 | R26: 5671 | T26: 0 | U26: 5671 | W26: =IFERROR(VLOOKUP($A26,'Allocation 2021-22 Final'!$A$7:$U$317,18,FALSE),0) -> 5831 | Y26: -160 | Z26: -0.02743954725 | AA26: 185 | AB26: 0 | AD26: 16046 | AE26: BRINNON
A27: 29100 | B27: BURLINGTON-EDISON | C27: 0 | D27: 0 | E27: =IFERROR(VLOOKUP(A27,'DOE Formula counts'!$D$8:$T$325,10,FALSE),0) -> 3892 | F27: =ROUND(E27/$E$5*Assumptions!$C$14*Assumptions!$C$29,0) -> 20757 | G27: =IFERROR(VLOOKUP(A27,'DOE Formula counts'!$D$8:$T$325,4,FALSE),0) -> 461 | H27: =ROUND(G27/$G$5*+Assumptions!$C$14*Assumptions!$C$30,0) -> 100106 | J27: 120863 | L27: 0 | M27: =IFERROR(VLOOKUP(A27,[1]ENROLLMENT!$A$5:$B$349,2,FALSE),0)*0 -> 0 | N27: =IFERROR(GETPIVOTDATA("Total W/O Preschool",'[1]Private 19-20'!$O$3,"District Code",A27),0)*0 -> 0 | P27: 120863 | Q27: 0 | R27: 120863 | T27: 0 | U27: 120863 | W27: =IFERROR(VLOOKUP($A27,'Allocation 2021-22 Final'!$A$7:$U$317,18,FALSE),0) -> 165405 | Y27: -44542 | Z27: -0.2692905293 | AA27: 302 | AB27: 0 | AD27: 29100 | AE27: BURLINGTON-EDISON
A28: 06117 | B28: CAMAS | C28: 0 | D28: 0 | E28: =IFERROR(VLOOKUP(A28,'DOE Formula counts'!$D$8:$T$325,10,FALSE),0) -> 6776 | F28: =ROUND(E28/$E$5*Assumptions!$C$14*Assumptions!$C$29,0) -> 36139 | G28: =IFERROR(VLOOKUP(A28,'DOE Formula counts'!$D$8:$T$325,4,FALSE),0) -> 265 | H28: =ROUND(G28/$G$5*+Assumptions!$C$14*Assumptions!$C$30,0) -> 57545 | J28: 93684 | L28: 0 | M28: =IFERROR(VLOOKUP(A28,[1]ENROLLMENT!$A$5:$B$349,2,FALSE),0)*0 -> 0 | N28: =IFERROR(GETPIVOTDATA("Total W/O Preschool",'[1]Private 19-20'!$O$3,"District Code",A28),0)*0 -> 0 | P28: 93684 | Q28: 0 | R28: 93684 | T28: 0 | U28: 93684 | W28: =IFERROR(VLOOKUP($A28,'Allocation 2021-22 Final'!$A$7:$U$317,18,FALSE),0) -> 93565 | Y28: 119 | Z28: 0.001271843104 | AA28: 171 | AB28: 0 | AD28: 06117 | AE28: CAMAS
A29: 05401 | B29: CAPE FLATTERY | C29: 0 | D29: 0 | E29: =IFERROR(VLOOKUP(A29,'DOE Formula counts'!$D$8:$T$325,10,FALSE),0) -> 455 | F29: =ROUND(E29/$E$5*Assumptions!$C$14*Assumptions!$C$29,0) -> 2427 | G29: =IFERROR(VLOOKUP(A29,'DOE Formula counts'!$D$8:$T$325,4,FALSE),0) -> 80 | H29: =ROUND(G29/$G$5*+Assumptions!$C$14*Assumptions!$C$30,0) -> 17372 | J29: 19799 | L29: 0 | M29: =IFERROR(VLOOKUP(A29,[1]ENROLLMENT!$A$5:$B$349,2,FALSE),0)*0 -> 0 | N29: =IFERROR(GETPIVOTDATA("Total W/O Preschool",'[1]Private 19-20'!$O$3,"District Code",A29),0)*0 -> 0 | P29: 19799 | Q29: 0 | R29: 19799 | T29: 0 | U29: 19799 | W29: =IFERROR(VLOOKUP($A29,'Allocation 2021-22 Final'!$A$7:$U$317,18,FALSE),0) -> 14375 | Y29: 5424 | Z29: 0.3773217391 | AA29: 77 | AB29: 0 | AD29: 05401 | AE29: CAPE FLATTERY
A30: 27019 | B30: CARBONADO | C30: 0 | D30: 0 | E30: =IFERROR(VLOOKUP(A30,'DOE Formula counts'!$D$8:$T$325,10,FALSE),0) -> 195 | F30: =ROUND(E30/$E$5*Assumptions!$C$14*Assumptions!$C$29,0) -> 1040 | G30: =IFERROR(VLOOKUP(A30,'DOE Formula counts'!$D$8:$T$325,4,FALSE),0) -> 10 | H30: =ROUND(G30/$G$5*+Assumptions!$C$14*Assumptions!$C$30,0) -> 2171 | J30: 3211 | L30: 0 | M30: =IFERROR(VLOOKUP(A30,[1]ENROLLMENT!$A$5:$B$349,2,FALSE),0)*0 -> 0 | N30: =IFERROR(GETPIVOTDATA("Total W/O Preschool",'[1]Private 19-20'!$O$3,"District Code",A30),0)*0 -> 0 | P30: 3211 | Q30: 0 | R30: 3211 | T30: 0 | U30: 3211 | W30: =IFERROR(VLOOKUP($A30,'Allocation 2021-22 Final'!$A$7:$U$317,18,FALSE),0) -> 3627 | Y30: -416 | Z30: -0.1146953405 | AA30: 195 | AB30: 0 | AD30: 27019 | AE30: CARBONADO
A31: 04228 | B31: CASCADE | C31: 0 | D31: 0 | E31: =IFERROR(VLOOKUP(A31,'DOE Formula counts'!$D$8:$T$325,10,FALSE),0) -> 1519 | F31: =ROUND(E31/$E$5*Assumptions!$C$14*Assumptions!$C$29,0) -> 8101 | G31: =IFERROR(VLOOKUP(A31,'DOE Formula counts'!$D$8:$T$325,4,FALSE),0) -> 157 | H31: =ROUND(G31/$G$5*+Assumptions!$C$14*Assumptions!$C$30,0) -> 34093 | J31: 42194 | L31: 0 | M31: =IFERROR(VLOOKUP(A31,[1]ENROLLMENT!$A$5:$B$349,2,FALSE),0)*0 -> 0 | N31: =IFERROR(GETPIVOTDATA("Total W/O Preschool",'[1]Private 19-20'!$O$3,"District Code",A31),0)*0 -> 0 | P31: 42194 | Q31: 0 | R31: 42194 | T31: 0 | U31: 42194 | W31: =IFERROR(VLOOKUP($A31,'Allocation 2021-22 Final'!$A$7:$U$317,18,FALSE),0) -> 47482 | Y31: -5288 | Z31: -0.1113685186 | AA31: 256 | AB31: 0 | AD31: 04228 | AE31: CASCADE
A32: 04222 | B32: CASHMERE | C32: 0 | D32: 0 | E32: =IFERROR(VLOOKUP(A32,'DOE Formula counts'!$D$8:$T$325,10,FALSE),0) -> 1400 | F32: =ROUND(E32/$E$5*Assumptions!$C$14*Assumptions!$C$29,0) -> 7467 | G32: =IFERROR(VLOOKUP(A32,'DOE Formula counts'!$D$8:$T$325,4,FALSE),0) -> 140 | H32: =ROUND(G32/$G$5*+Assumptions!$C$14*Assumptions!$C$30,0) -> 30401 | J32: 37868 | L32: 0 | M32: =IFERROR(VLOOKUP(A32,[1]ENROLLMENT!$A$5:$B$349,2,FALSE),0)*0 -> 0 | N32: =IFERROR(GETPIVOTDATA("Total W/O Preschool",'[1]Private 19-20'!$O$3,"District Code",A32),0)*0 -> 0 | P32: 37868 | Q32: 0 | R32: 37868 | T32: 0 | U32: 37868 | W32: =IFERROR(VLOOKUP($A32,'Allocation 2021-22 Final'!$A$7:$U$317,18,FALSE),0) -> 53610 | Y32: -15742 | Z32: -0.2936392464 | AA32: 288 | AB32: 0 | AD32: 04222 | AE32: CASHMERE
A33: 08401 | B33: CASTLE ROCK | C33: 0 | D33: 0 | E33: =IFERROR(VLOOKUP(A33,'DOE Formula counts'!$D$8:$T$325,10,FALSE),0) -> 1568 | F33: =ROUND(E33/$E$5*Assumptions!$C$14*Assumptions!$C$29,0) -> 8363 | G33: =IFERROR(VLOOKUP(A33,'DOE Formula counts'!$D$8:$T$325,4,FALSE),0) -> 207 | H33: =ROUND(G33/$G$5*+Assumptions!$C$14*Assumptions!$C$30,0) -> 44950 | J33: 53313 | L33: 0 | M33: =IFERROR(VLOOKUP(A33,[1]ENROLLMENT!$A$5:$B$349,2,FALSE),0)*0 -> 0 | N33: =IFERROR(GETPIVOTDATA("Total W/O Preschool",'[1]Private 19-20'!$O$3,"District Code",A33),0)*0 -> 0 | P33: 53313 | Q33: 0 | R33: 53313 | T33: 0 | U33: 53313 | W33: =IFERROR(VLOOKUP($A33,'Allocation 2021-22 Final'!$A$7:$U$317,18,FALSE),0) -> 40895 | Y33: 12418 | Z33: 0.3036557036 | AA33: 38 | AB33: 0 | AD33: 08401 | AE33: CASTLE ROCK
A34: 18901 | B34: CATALYST BREMERTON CHARTER | C34: 0 | D34: 0 | E34: =IFERROR(VLOOKUP(A34,'DOE Formula counts'!$D$8:$T$325,10,FALSE),0) -> 268.9960513 | F34: =ROUND(E34/$E$5*Assumptions!$C$14*Assumptions!$C$29,0) -> 1435 | G34: =IFERROR(VLOOKUP(A34,'DOE Formula counts'!$D$8:$T$325,4,FALSE),0) -> 42.99506417 | H34: =ROUND(G34/$G$5*+Assumptions!$C$14*Assumptions!$C$30,0) -> 9336 | J34: 10771 | L34: 0 | M34: =IFERROR(VLOOKUP(A34,[1]ENROLLMENT!$A$5:$B$349,2,FALSE),0)*0 -> 0 | N34: =IFERROR(GETPIVOTDATA("Total W/O Preschool",'[1]Private 19-20'!$O$3,"District Code",A34),0)*0 -> 0 | P34: 10771 | Q34: 0 | R34: 10771 | T34: 0 | U34: 10771 | W34: =IFERROR(VLOOKUP($A34,'Allocation 2021-22 Final'!$A$7:$U$317,18,FALSE),0) -> 3382 | Y34: 7389 | Z34: 2.184801892 | AA34: 62 | AB34: 0 | AD34: 18901 | AE34: CATALYST BREMERTON CHARTER
A35: 20215 | B35: CENTERVILLE | C35: 0 | D35: 0 | E35: =IFERROR(VLOOKUP(A35,'DOE Formula counts'!$D$8:$T$325,10,FALSE),0) -> 78 | F35: =ROUND(E35/$E$5*Assumptions!$C$14*Assumptions!$C$29,0) -> 416 | G35: =IFERROR(VLOOKUP(A35,'DOE Formula counts'!$D$8:$T$325,4,FALSE),0) -> 11 | H35: =ROUND(G35/$G$5*+Assumptions!$C$14*Assumptions!$C$30,0) -> 2389 | J35: 2805 | L35: 0 | M35: =IFERROR(VLOOKUP(A35,[1]ENROLLMENT!$A$5:$B$349,2,FALSE),0)*0 -> 0 | N35: =IFERROR(GETPIVOTDATA("Total W/O Preschool",'[1]Private 19-20'!$O$3,"District Code",A35),0)*0 -> 0 | P35: 2805 | Q35: 0 | R35: 2805 | T35: 0 | U35: 2805 | W35: =IFERROR(VLOOKUP($A35,'Allocation 2021-22 Final'!$A$7:$U$317,18,FALSE),0) -> 2803 | Y35: 2 | Z35: 0.0007135212273 | AA35: 175 | AB35: 0 | AD35: 20215 | AE35: CENTERVILLE
A36: 18401 | B36: CENTRAL KITSAP | C36: 0 | D36: 0 | E36: =IFERROR(VLOOKUP(A36,'DOE Formula counts'!$D$8:$T$325,10,FALSE),0) -> 11145 | F36: =ROUND(E36/$E$5*Assumptions!$C$14*Assumptions!$C$29,0) -> 59440 | G36: =IFERROR(VLOOKUP(A36,'DOE Formula counts'!$D$8:$T$325,4,FALSE),0) -> 817 | H36: =ROUND(G36/$G$5*+Assumptions!$C$14*Assumptions!$C$30,0) -> 177412 | J36: 236852 | L36: 0 | M36: =IFERROR(VLOOKUP(A36,[1]ENROLLMENT!$A$5:$B$349,2,FALSE),0)*0 -> 0 | N36: =IFERROR(GETPIVOTDATA("Total W/O Preschool",'[1]Private 19-20'!$O$3,"District Code",A36),0)*0 -> 0 | P36: 236852 | Q36: 0 | R36: 236852 | T36: 0 | U36: 236852 | W36: =IFERROR(VLOOKUP($A36,'Allocation 2021-22 Final'!$A$7:$U$317,18,FALSE),0) -> 203732 | Y36: 33120 | Z36: 0.1625665089 | AA36: 17 | AB36: 0 | AD36: 18401 | AE36: CENTRAL KITSAP
A37: 32356 | B37: CENTRAL VALLEY | C37: 0 | D37: 0 | E37: =IFERROR(VLOOKUP(A37,'DOE Formula counts'!$D$8:$T$325,10,FALSE),0) -> 15190 | F37: =ROUND(E37/$E$5*Assumptions!$C$14*Assumptions!$C$29,0) -> 81014 | G37: =IFERROR(VLOOKUP(A37,'DOE Formula counts'!$D$8:$T$325,4,FALSE),0) -> 1451 | H37: =ROUND(G37/$G$5*+Assumptions!$C$14*Assumptions!$C$30,0) -> 315085 | J37: 396099 | L37: 0 | M37: =IFERROR(VLOOKUP(A37,[1]ENROLLMENT!$A$5:$B$349,2,FALSE),0)*0 -> 0 | N37: =IFERROR(GETPIVOTDATA("Total W/O Preschool",'[1]Private 19-20'!$O$3,"District Code",A37),0)*0 -> 0 | P37: 396099 | Q37: 0 | R37: 396099 | T37: 0 | U37: 396099 | W37: =IFERROR(VLOOKUP($A37,'Allocation 2021-22 Final'!$A$7:$U$317,18,FALSE),0) -> 353175 | Y37: 42924 | Z37: 0.1215374814 | AA37: 10 | AB37: 0 | AD37: 32356 | AE37: CENTRAL VALLEY
A38: 21401 | B38: CENTRALIA | C38: 0 | D38: 0 | E38: =IFERROR(VLOOKUP(A38,'DOE Formula counts'!$D$8:$T$325,10,FALSE),0) -> 3821 | F38: =ROUND(E38/$E$5*Assumptions!$C$14*Assumptions!$C$29,0) -> 20379 | G38: =IFERROR(VLOOKUP(A38,'DOE Formula counts'!$D$8:$T$325,4,FALSE),0) -> 710 | H38: =ROUND(G38/$G$5*+Assumptions!$C$14*Assumptions!$C$30,0) -> 154176 | J38: 174555 | L38: 0 | M38: =IFERROR(VLOOKUP(A38,[1]ENROLLMENT!$A$5:$B$349,2,FALSE),0)*0 -> 0 | N38: =IFERROR(GETPIVOTDATA("Total W/O Preschool",'[1]Private 19-20'!$O$3,"District Code",A38),0)*0 -> 0 | P38: 174555 | Q38: 0 | R38: 174555 | T38: 0 | U38: 174555 | W38: =IFERROR(VLOOKUP($A38,'Allocation 2021-22 Final'!$A$7:$U$317,18,FALSE),0) -> 140860 | Y38: 33695 | Z38: 0.2392091438 | AA38: 16 | AB38: 0 | AD38: 21401 | AE38: CENTRALIA
A39: 21302 | B39: CHEHALIS | C39: 0 | D39: 0 | E39: =IFERROR(VLOOKUP(A39,'DOE Formula counts'!$D$8:$T$325,10,FALSE),0) -> 2654 | F39: =ROUND(E39/$E$5*Assumptions!$C$14*Assumptions!$C$29,0) -> 14155 | G39: =IFERROR(VLOOKUP(A39,'DOE Formula counts'!$D$8:$T$325,4,FALSE),0) -> 286 | H39: =ROUND(G39/$G$5*+Assumptions!$C$14*Assumptions!$C$30,0) -> 62105 | J39: 76260 | L39: 0 | M39: =IFERROR(VLOOKUP(A39,[1]ENROLLMENT!$A$5:$B$349,2,FALSE),0)*0 -> 0 | N39: =IFERROR(GETPIVOTDATA("Total W/O Preschool",'[1]Private 19-20'!$O$3,"District Code",A39),0)*0 -> 0 | P39: 76260 | Q39: 0 | R39: 76260 | T39: 0 | U39: 76260 | W39: =IFERROR(VLOOKUP($A39,'Allocation 2021-22 Final'!$A$7:$U$317,18,FALSE),0) -> 59323 | Y39: 16937 | Z39: 0.2855047789 | AA39: 28 | AB39: 0 | AD39: 21302 | AE39: CHEHALIS
A40: 32360 | B40: CHENEY | C40: 0 | D40: 0 | E40: =IFERROR(VLOOKUP(A40,'DOE Formula counts'!$D$8:$T$325,10,FALSE),0) -> 4725 | F40: =ROUND(E40/$E$5*Assumptions!$C$14*Assumptions!$C$29,0) -> 25200 | G40: =IFERROR(VLOOKUP(A40,'DOE Formula counts'!$D$8:$T$325,4,FALSE),0) -> 616 | H40: =ROUND(G40/$G$5*+Assumptions!$C$14*Assumptions!$C$30,0) -> 133764 | J40: 158964 | L40: 0 | M40: =IFERROR(VLOOKUP(A40,[1]ENROLLMENT!$A$5:$B$349,2,FALSE),0)*0 -> 0 | N40: =IFERROR(GETPIVOTDATA("Total W/O Preschool",'[1]Private 19-20'!$O$3,"District Code",A40),0)*0 -> 0 | P40: 158964 | Q40: 0 | R40: 158964 | T40: 0 | U40: 158964 | W40: =IFERROR(VLOOKUP($A40,'Allocation 2021-22 Final'!$A$7:$U$317,18,FALSE),0) -> 139537 | Y40: 19427 | Z40: 0.1392247218 | AA40: 26 | AB40: 0 | AD40: 32360 | AE40: CHENEY
A41: 33036 | B41: CHEWELAH | C41: 0 | D41: 0 | E41: =IFERROR(VLOOKUP(A41,'DOE Formula counts'!$D$8:$T$325,10,FALSE),0) -> 980 | F41: =ROUND(E41/$E$5*Assumptions!$C$14*Assumptions!$C$29,0) -> 5227 | G41: =IFERROR(VLOOKUP(A41,'DOE Formula counts'!$D$8:$T$325,4,FALSE),0) -> 190 | H41: =ROUND(G41/$G$5*+Assumptions!$C$14*Assumptions!$C$30,0) -> 41258 | J41: 46485 | L41: 0 | M41: =IFERROR(VLOOKUP(A41,[1]ENROLLMENT!$A$5:$B$349,2,FALSE),0)*0 -> 0 | N41: =IFERROR(GETPIVOTDATA("Total W/O Preschool",'[1]Private 19-20'!$O$3,"District Code",A41),0)*0 -> 0 | P41: 46485 | Q41: 0 | R41: 46485 | T41: 0 | U41: 46485 | W41: =IFERROR(VLOOKUP($A41,'Allocation 2021-22 Final'!$A$7:$U$317,18,FALSE),0) -> 54298 | Y41: -7813 | Z41: -0.1438911194 | AA41: 269 | AB41: 0 | AD41: 33036 | AE41: CHEWELAH
A42: 16049 | B42: CHIMACUM | C42: 0 | D42: 0 | E42: =IFERROR(VLOOKUP(A42,'DOE Formula counts'!$D$8:$T$325,10,FALSE),0) -> 1096 | F42: =ROUND(E42/$E$5*Assumptions!$C$14*Assumptions!$C$29,0) -> 5845 | G42: =IFERROR(VLOOKUP(A42,'DOE Formula counts'!$D$8:$T$325,4,FALSE),0) -> 151 | H42: =ROUND(G42/$G$5*+Assumptions!$C$14*Assumptions!$C$30,0) -> 32790 | J42: 38635 | L42: 0 | M42: =IFERROR(VLOOKUP(A42,[1]ENROLLMENT!$A$5:$B$349,2,FALSE),0)*0 -> 0 | N42: =IFERROR(GETPIVOTDATA("Total W/O Preschool",'[1]Private 19-20'!$O$3,"District Code",A42),0)*0 -> 0 | P42: 38635 | Q42: 0 | R42: 38635 | T42: 0 | U42: 38635 | W42: =IFERROR(VLOOKUP($A42,'Allocation 2021-22 Final'!$A$7:$U$317,18,FALSE),0) -> 36355 | Y42: 2280 | Z42: 0.06271489479 | AA42: 113 | AB42: 0 | AD42: 16049 | AE42: CHIMACUM
A43: 02250 | B43: CLARKSTON | C43: 0 | D43: 0 | E43: =IFERROR(VLOOKUP(A43,'DOE Formula counts'!$D$8:$T$325,10,FALSE),0) -> 2861 | F43: =ROUND(E43/$E$5*Assumptions!$C$14*Assumptions!$C$29,0) -> 15259 | G43: =IFERROR(VLOOKUP(A43,'DOE Formula counts'!$D$8:$T$325,4,FALSE),0) -> 490 | H43: =ROUND(G43/$G$5*+Assumptions!$C$14*Assumptions!$C$30,0) -> 106403 | J43: 121662 | L43: 0 | M43: =IFERROR(VLOOKUP(A43,[1]ENROLLMENT!$A$5:$B$349,2,FALSE),0)*0 -> 0 | N43: =IFERROR(GETPIVOTDATA("Total W/O Preschool",'[1]Private 19-20'!$O$3,"District Code",A43),0)*0 -> 0 | P43: 121662 | Q43: 0 | R43: 121662 | T43: 0 | U43: 121662 | W43: =IFERROR(VLOOKUP($A43,'Allocation 2021-22 Final'!$A$7:$U$317,18,FALSE),0) -> 114462 | Y43: 7200 | Z43: 0.06290297217 | AA43: 65 | AB43: 0 | AD43: 02250 | AE43: CLARKSTON
A44: 19404 | B44: CLE ELUM-ROSLYN | C44: 0 | D44: 0 | E44: =IFERROR(VLOOKUP(A44,'DOE Formula counts'!$D$8:$T$325,10,FALSE),0) -> 1159 | F44: =ROUND(E44/$E$5*Assumptions!$C$14*Assumptions!$C$29,0) -> 6181 | G44: =IFERROR(VLOOKUP(A44,'DOE Formula counts'!$D$8:$T$325,4,FALSE),0) -> 162 | H44: =ROUND(G44/$G$5*+Assumptions!$C$14*Assumptions!$C$30,0) -> 35178 | J44: 41359 | L44: 0 | M44: =IFERROR(VLOOKUP(A44,[1]ENROLLMENT!$A$5:$B$349,2,FALSE),0)*0 -> 0 | N44: =IFERROR(GETPIVOTDATA("Total W/O Preschool",'[1]Private 19-20'!$O$3,"District Code",A44),0)*0 -> 0 | P44: 41359 | Q44: 0 | R44: 41359 | T44: 0 | U44: 41359 | W44: =IFERROR(VLOOKUP($A44,'Allocation 2021-22 Final'!$A$7:$U$317,18,FALSE),0) -> 39895 | Y44: 1464 | Z44: 0.03669632786 | AA44: 127 | AB44: 0 | AD44: 19404 | AE44: CLE ELUM-ROSLYN
A45: 27400 | B45: CLOVER PARK | C45: 0 | D45: 0 | E45: =IFERROR(VLOOKUP(A45,'DOE Formula counts'!$D$8:$T$325,10,FALSE),0) -> 13907 | F45: =ROUND(E45/$E$5*Assumptions!$C$14*Assumptions!$C$29,0) -> 74171 | G45: =IFERROR(VLOOKUP(A45,'DOE Formula counts'!$D$8:$T$325,4,FALSE),0) -> 1772 | H45: =ROUND(G45/$G$5*+Assumptions!$C$14*Assumptions!$C$30,0) -> 384790 | J45: 458961 | L45: 0 | M45: =IFERROR(VLOOKUP(A45,[1]ENROLLMENT!$A$5:$B$349,2,FALSE),0)*0 -> 0 | N45: =IFERROR(GETPIVOTDATA("Total W/O Preschool",'[1]Private 19-20'!$O$3,"District Code",A45),0)*0 -> 0 | P45: 458961 | Q45: 0 | R45: 458961 | T45: 0 | U45: 458961 | W45: =IFERROR(VLOOKUP($A45,'Allocation 2021-22 Final'!$A$7:$U$317,18,FALSE),0) -> 547361 | Y45: -88400 | Z45: -0.1615021896 | AA45: 312 | AB45: 0 | AD45: 27400 | AE45: CLOVER PARK
A46: 38300 | B46: COLFAX | C46: 0 | D46: 0 | E46: =IFERROR(VLOOKUP(A46,'DOE Formula counts'!$D$8:$T$325,10,FALSE),0) -> 773 | F46: =ROUND(E46/$E$5*Assumptions!$C$14*Assumptions!$C$29,0) -> 4123 | G46: =IFERROR(VLOOKUP(A46,'DOE Formula counts'!$D$8:$T$325,4,FALSE),0) -> 52 | H46: =ROUND(G46/$G$5*+Assumptions!$C$14*Assumptions!$C$30,0) -> 11292 | J46: 15415 | L46: 0 | M46: =IFERROR(VLOOKUP(A46,[1]ENROLLMENT!$A$5:$B$349,2,FALSE),0)*0 -> 0 | N46: =IFERROR(GETPIVOTDATA("Total W/O Preschool",'[1]Private 19-20'!$O$3,"District Code",A46),0)*0 -> 0 | P46: 15415 | Q46: 0 | R46: 15415 | T46: 0 | U46: 15415 | W46: =IFERROR(VLOOKUP($A46,'Allocation 2021-22 Final'!$A$7:$U$317,18,FALSE),0) -> 18109 | Y46: -2694 | Z46: -0.1487658071 | AA46: 242 | AB46: 0 | AD46: 38300 | AE46: COLFAX
A47: 36250 | B47: COLLEGE PLACE | C47: 0 | D47: 0 | E47: =IFERROR(VLOOKUP(A47,'DOE Formula counts'!$D$8:$T$325,10,FALSE),0) -> 1936 | F47: =ROUND(E47/$E$5*Assumptions!$C$14*Assumptions!$C$29,0) -> 10325 | G47: =IFERROR(VLOOKUP(A47,'DOE Formula counts'!$D$8:$T$325,4,FALSE),0) -> 227 | H47: =ROUND(G47/$G$5*+Assumptions!$C$14*Assumptions!$C$30,0) -> 49293 | J47: 59618 | L47: 0 | M47: =IFERROR(VLOOKUP(A47,[1]ENROLLMENT!$A$5:$B$349,2,FALSE),0)*0 -> 0 | N47: =IFERROR(GETPIVOTDATA("Total W/O Preschool",'[1]Private 19-20'!$O$3,"District Code",A47),0)*0 -> 0 | P47: 59618 | Q47: 0 | R47: 59618 | T47: 0 | U47: 59618 | W47: =IFERROR(VLOOKUP($A47,'Allocation 2021-22 Final'!$A$7:$U$317,18,FALSE),0) -> 54262 | Y47: 5356 | Z47: 0.09870627695 | AA47: 78 | AB47: 0 | AD47: 36250 | AE47: COLLEGE PLACE
A48: 38306 | B48: COLTON | C48: 0 | D48: 0 | E48: =IFERROR(VLOOKUP(A48,'DOE Formula counts'!$D$8:$T$325,10,FALSE),0) -> 250 | F48: =ROUND(E48/$E$5*Assumptions!$C$14*Assumptions!$C$29,0) -> 1333 | G48: =IFERROR(VLOOKUP(A48,'DOE Formula counts'!$D$8:$T$325,4,FALSE),0) -> 14 | H48: =ROUND(G48/$G$5*+Assumptions!$C$14*Assumptions!$C$30,0) -> 3040 | J48: 4373 | L48: 0 | M48: =IFERROR(VLOOKUP(A48,[1]ENROLLMENT!$A$5:$B$349,2,FALSE),0)*0 -> 0 | N48: =IFERROR(GETPIVOTDATA("Total W/O Preschool",'[1]Private 19-20'!$O$3,"District Code",A48),0)*0 -> 0 | P48: 4373 | Q48: 0 | R48: 4373 | T48: 0 | U48: 4373 | W48: =IFERROR(VLOOKUP($A48,'Allocation 2021-22 Final'!$A$7:$U$317,18,FALSE),0) -> 4738 | Y48: -365 | Z48: -0.07703672436 | AA48: 194 | AB48: 0 | AD48: 38306 | AE48: COLTON
A49: 33206 | B49: COLUMBIA (STEV) | C49: 0 | D49: 0 | E49: =IFERROR(VLOOKUP(A49,'DOE Formula counts'!$D$8:$T$325,10,FALSE),0) -> 197 | F49: =ROUND(E49/$E$5*Assumptions!$C$14*Assumptions!$C$29,0) -> 1051 | G49: =IFERROR(VLOOKUP(A49,'DOE Formula counts'!$D$8:$T$325,4,FALSE),0) -> 37 | H49: =ROUND(G49/$G$5*+Assumptions!$C$14*Assumptions!$C$30,0) -> 8035 | J49: 9086 | L49: 0 | M49: =IFERROR(VLOOKUP(A49,[1]ENROLLMENT!$A$5:$B$349,2,FALSE),0)*0 -> 0 | N49: =IFERROR(GETPIVOTDATA("Total W/O Preschool",'[1]Private 19-20'!$O$3,"District Code",A49),0)*0 -> 0 | P49: 9086 | Q49: 0 | R49: 9086 | T49: 0 | U49: 9086 | W49: =IFERROR(VLOOKUP($A49,'Allocation 2021-22 Final'!$A$7:$U$317,18,FALSE),0) -> 9593 | Y49: -507 | Z49: -0.05285103721 | AA49: 205 | AB49: 0 | AD49: 33206 | AE49: COLUMBIA (STEV)
A50: 36400 | B50: COLUMBIA (WALLA) | C50: 0 | D50: 0 | E50: =IFERROR(VLOOKUP(A50,'DOE Formula counts'!$D$8:$T$325,10,FALSE),0) -> 779 | F50: =ROUND(E50/$E$5*Assumptions!$C$14*Assumptions!$C$29,0) -> 4155 | G50: =IFERROR(VLOOKUP(A50,'DOE Formula counts'!$D$8:$T$325,4,FALSE),0) -> 128 | H50: =ROUND(G50/$G$5*+Assumptions!$C$14*Assumptions!$C$30,0) -> 27795 | J50: 31950 | L50: 0 | M50: =IFERROR(VLOOKUP(A50,[1]ENROLLMENT!$A$5:$B$349,2,FALSE),0)*0 -> 0 | N50: =IFERROR(GETPIVOTDATA("Total W/O Preschool",'[1]Private 19-20'!$O$3,"District Code",A50),0)*0 -> 0 | P50: 31950 | Q50: 0 | R50: 31950 | T50: 0 | U50: 31950 | W50: =IFERROR(VLOOKUP($A50,'Allocation 2021-22 Final'!$A$7:$U$317,18,FALSE),0) -> 35755 | Y50: -3805 | Z50: -0.1064186827 | AA50: 251 | AB50: 0 | AD50: 36400 | AE50: COLUMBIA (WALLA)
A51: 33115 | B51: COLVILLE | C51: 0 | D51: 0 | E51: =IFERROR(VLOOKUP(A51,'DOE Formula counts'!$D$8:$T$325,10,FALSE),0) -> 1859 | F51: =ROUND(E51/$E$5*Assumptions!$C$14*Assumptions!$C$29,0) -> 9915 | G51: =IFERROR(VLOOKUP(A51,'DOE Formula counts'!$D$8:$T$325,4,FALSE),0) -> 324 | H51: =ROUND(G51/$G$5*+Assumptions!$C$14*Assumptions!$C$30,0) -> 70357 | J51: 80272 | L51: 0 | M51: =IFERROR(VLOOKUP(A51,[1]ENROLLMENT!$A$5:$B$349,2,FALSE),0)*0 -> 0 | N51: =IFERROR(GETPIVOTDATA("Total W/O Preschool",'[1]Private 19-20'!$O$3,"District Code",A51),0)*0 -> 0 | P51: 80272 | Q51: 0 | R51: 80272 | T51: 0 | U51: 80272 | W51: =IFERROR(VLOOKUP($A51,'Allocation 2021-22 Final'!$A$7:$U$317,18,FALSE),0) -> 85599 | Y51: -5327 | Z51: -0.06223203542 | AA51: 258 | AB51: 0 | AD51: 33115 | AE51: COLVILLE
A52: 29011 | B52: CONCRETE | C52: 0 | D52: 0 | E52: =IFERROR(VLOOKUP(A52,'DOE Formula counts'!$D$8:$T$325,10,FALSE),0) -> 751 | F52: =ROUND(E52/$E$5*Assumptions!$C$14*Assumptions!$C$29,0) -> 4005 | G52: =IFERROR(VLOOKUP(A52,'DOE Formula counts'!$D$8:$T$325,4,FALSE),0) -> 103 | H52: =ROUND(G52/$G$5*+Assumptions!$C$14*Assumptions!$C$30,0) -> 22366 | J52: 26371 | L52: 0 | M52: =IFERROR(VLOOKUP(A52,[1]ENROLLMENT!$A$5:$B$349,2,FALSE),0)*0 -> 0 | N52: =IFERROR(GETPIVOTDATA("Total W/O Preschool",'[1]Private 19-20'!$O$3,"District Code",A52),0)*0 -> 0 | P52: 26371 | Q52: 0 | R52: 26371 | T52: 0 | U52: 26371 | W52: =IFERROR(VLOOKUP($A52,'Allocation 2021-22 Final'!$A$7:$U$317,18,FALSE),0) -> 27292 | Y52: -921 | Z52: -0.03374615272 | AA52: 219 | AB52: 0 | AD52: 29011 | AE52: CONCRETE
A53: 29317 | B53: CONWAY | C53: 0 | D53: 0 | E53: =IFERROR(VLOOKUP(A53,'DOE Formula counts'!$D$8:$T$325,10,FALSE),0) -> 575 | F53: =ROUND(E53/$E$5*Assumptions!$C$14*Assumptions!$C$29,0) -> 3067 | G53: =IFERROR(VLOOKUP(A53,'DOE Formula counts'!$D$8:$T$325,4,FALSE),0) -> 31 | H53: =ROUND(G53/$G$5*+Assumptions!$C$14*Assumptions!$C$30,0) -> 6732 | J53: 9799 | L53: 0 | M53: =IFERROR(VLOOKUP(A53,[1]ENROLLMENT!$A$5:$B$349,2,FALSE),0)*0 -> 0 | N53: =IFERROR(GETPIVOTDATA("Total W/O Preschool",'[1]Private 19-20'!$O$3,"District Code",A53),0)*0 -> 0 | P53: 9799 | Q53: 0 | R53: 9799 | T53: 0 | U53: 9799 | W53: =IFERROR(VLOOKUP($A53,'Allocation 2021-22 Final'!$A$7:$U$317,18,FALSE),0) -> 11044 | Y53: -1245 | Z53: -0.1127308946 | AA53: 225 | AB53: 0 | AD53: 29317 | AE53: CONWAY
A54: 14099 | B54: COSMOPOLIS | C54: 0 | D54: 0 | E54: =IFERROR(VLOOKUP(A54,'DOE Formula counts'!$D$8:$T$325,10,FALSE),0) -> 336 | F54: =ROUND(E54/$E$5*Assumptions!$C$14*Assumptions!$C$29,0) -> 1792 | G54: =IFERROR(VLOOKUP(A54,'DOE Formula counts'!$D$8:$T$325,4,FALSE),0) -> 25 | H54: =ROUND(G54/$G$5*+Assumptions!$C$14*Assumptions!$C$30,0) -> 5429 | J54: 7221 | L54: 0 | M54: =IFERROR(VLOOKUP(A54,[1]ENROLLMENT!$A$5:$B$349,2,FALSE),0)*0 -> 0 | N54: =IFERROR(GETPIVOTDATA("Total W/O Preschool",'[1]Private 19-20'!$O$3,"District Code",A54),0)*0 -> 0 | P54: 7221 | Q54: 0 | R54: 7221 | T54: 0 | U54: 7221 | W54: =IFERROR(VLOOKUP($A54,'Allocation 2021-22 Final'!$A$7:$U$317,18,FALSE),0) -> 6189 | Y54: 1032 | Z54: 0.1667474552 | AA54: 137 | AB54: 0 | AD54: 14099 | AE54: COSMOPOLIS
A55: 13151 | B55: COULEE-HARTLINE | C55: 0 | D55: 0 | E55: =IFERROR(VLOOKUP(A55,'DOE Formula counts'!$D$8:$T$325,10,FALSE),0) -> 212 | F55: =ROUND(E55/$E$5*Assumptions!$C$14*Assumptions!$C$29,0) -> 1131 | G55: =IFERROR(VLOOKUP(A55,'DOE Formula counts'!$D$8:$T$325,4,FALSE),0) -> 40 | H55: =ROUND(G55/$G$5*+Assumptions!$C$14*Assumptions!$C$30,0) -> 8686 | J55: 9817 | L55: 0 | M55: =IFERROR(VLOOKUP(A55,[1]ENROLLMENT!$A$5:$B$349,2,FALSE),0)*0 -> 0 | N55: =IFERROR(GETPIVOTDATA("Total W/O Preschool",'[1]Private 19-20'!$O$3,"District Code",A55),0)*0 -> 0 | P55: 9817 | Q55: 0 | R55: 9817 | T55: 0 | U55: 9817 | W55: =IFERROR(VLOOKUP($A55,'Allocation 2021-22 Final'!$A$7:$U$317,18,FALSE),0) -> 5116 | Y55: 4701 | Z55: 0.918881939 | AA55: 83 | AB55: 0 | AD55: 13151 | AE55: COULEE-HARTLINE
A56: 15204 | B56: COUPEVILLE | C56: 0 | D56: 0 | E56: =IFERROR(VLOOKUP(A56,'DOE Formula counts'!$D$8:$T$325,10,FALSE),0) -> 1074 | F56: =ROUND(E56/$E$5*Assumptions!$C$14*Assumptions!$C$29,0) -> 5728 | G56: =IFERROR(VLOOKUP(A56,'DOE Formula counts'!$D$8:$T$325,4,FALSE),0) -> 107 | H56: =ROUND(G56/$G$5*+Assumptions!$C$14*Assumptions!$C$30,0) -> 23235 | J56: 28963 | L56: 0 | M56: =IFERROR(VLOOKUP(A56,[1]ENROLLMENT!$A$5:$B$349,2,FALSE),0)*0 -> 0 | N56: =IFERROR(GETPIVOTDATA("Total W/O Preschool",'[1]Private 19-20'!$O$3,"District Code",A56),0)*0 -> 0 | P56: 28963 | Q56: 0 | R56: 28963 | T56: 0 | U56: 28963 | W56: =IFERROR(VLOOKUP($A56,'Allocation 2021-22 Final'!$A$7:$U$317,18,FALSE),0) -> 32357 | Y56: -3394 | Z56: -0.1048922953 | AA56: 248 | AB56: 0 | AD56: 15204 | AE56: COUPEVILLE
A57: 05313 | B57: CRESCENT | C57: 0 | D57: 0 | E57: =IFERROR(VLOOKUP(A57,'DOE Formula counts'!$D$8:$T$325,10,FALSE),0) -> 365 | F57: =ROUND(E57/$E$5*Assumptions!$C$14*Assumptions!$C$29,0) -> 1947 | G57: =IFERROR(VLOOKUP(A57,'DOE Formula counts'!$D$8:$T$325,4,FALSE),0) -> 56 | H57: =ROUND(G57/$G$5*+Assumptions!$C$14*Assumptions!$C$30,0) -> 12160 | J57: 14107 | L57: 0 | M57: =IFERROR(VLOOKUP(A57,[1]ENROLLMENT!$A$5:$B$349,2,FALSE),0)*0 -> 0 | N57: =IFERROR(GETPIVOTDATA("Total W/O Preschool",'[1]Private 19-20'!$O$3,"District Code",A57),0)*0 -> 0 | P57: 14107 | Q57: 0 | R57: 14107 | T57: 0 | U57: 14107 | W57: =IFERROR(VLOOKUP($A57,'Allocation 2021-22 Final'!$A$7:$U$317,18,FALSE),0) -> 10513 | Y57: 3594 | Z57: 0.341862456 | AA57: 94 | AB57: 0 | AD57: 05313 | AE57: CRESCENT
A58: 22073 | B58: CRESTON | C58: 0 | D58: 0 | E58: =IFERROR(VLOOKUP(A58,'DOE Formula counts'!$D$8:$T$325,10,FALSE),0) -> 95 | F58: =ROUND(E58/$E$5*Assumptions!$C$14*Assumptions!$C$29,0) -> 507 | G58: =IFERROR(VLOOKUP(A58,'DOE Formula counts'!$D$8:$T$325,4,FALSE),0) -> 5 | H58: =ROUND(G58/$G$5*+Assumptions!$C$14*Assumptions!$C$30,0) -> 1086 | J58: 1593 | L58: 0 | M58: =IFERROR(VLOOKUP(A58,[1]ENROLLMENT!$A$5:$B$349,2,FALSE),0)*0 -> 0 | N58: =IFERROR(GETPIVOTDATA("Total W/O Preschool",'[1]Private 19-20'!$O$3,"District Code",A58),0)*0 -> 0 | P58: 1593 | Q58: 0 | R58: 1593 | T58: 0 | U58: 1593 | W58: =IFERROR(VLOOKUP($A58,'Allocation 2021-22 Final'!$A$7:$U$317,18,FALSE),0) -> 3497 | Y58: -1904 | Z58: -0.5444666857 | AA58: 237 | AB58: 0 | AD58: 22073 | AE58: CRESTON
A59: 10050 | B59: CURLEW | C59: 0 | D59: 0 | E59: =IFERROR(VLOOKUP(A59,'DOE Formula counts'!$D$8:$T$325,10,FALSE),0) -> 181 | F59: =ROUND(E59/$E$5*Assumptions!$C$14*Assumptions!$C$29,0) -> 965 | G59: =IFERROR(VLOOKUP(A59,'DOE Formula counts'!$D$8:$T$325,4,FALSE),0) -> 52 | H59: =ROUND(G59/$G$5*+Assumptions!$C$14*Assumptions!$C$30,0) -> 11292 | J59: 12257 | L59: 0 | M59: =IFERROR(VLOOKUP(A59,[1]ENROLLMENT!$A$5:$B$349,2,FALSE),0)*0 -> 0 | N59: =IFERROR(GETPIVOTDATA("Total W/O Preschool",'[1]Private 19-20'!$O$3,"District Code",A59),0)*0 -> 0 | P59: 12257 | Q59: 0 | R59: 12257 | T59: 0 | U59: 12257 | W59: =IFERROR(VLOOKUP($A59,'Allocation 2021-22 Final'!$A$7:$U$317,18,FALSE),0) -> 14085 | Y59: -1828 | Z59: -0.1297834576 | AA59: 236 | AB59: 0 | AD59: 10050 | AE59: CURLEW
A60: 26059 | B60: CUSICK | C60: 0 | D60: 0 | E60: =IFERROR(VLOOKUP(A60,'DOE Formula counts'!$D$8:$T$325,10,FALSE),0) -> 315 | F60: =ROUND(E60/$E$5*Assumptions!$C$14*Assumptions!$C$29,0) -> 1680 | G60: =IFERROR(VLOOKUP(A60,'DOE Formula counts'!$D$8:$T$325,4,FALSE),0) -> 73 | H60: =ROUND(G60/$G$5*+Assumptions!$C$14*Assumptions!$C$30,0) -> 15852 | J60: 17532 | L60: 0 | M60: =IFERROR(VLOOKUP(A60,[1]ENROLLMENT!$A$5:$B$349,2,FALSE),0)*0 -> 0 | N60: =IFERROR(GETPIVOTDATA("Total W/O Preschool",'[1]Private 19-20'!$O$3,"District Code",A60),0)*0 -> 0 | P60: 17532 | Q60: 0 | R60: 17532 | T60: 0 | U60: 17532 | W60: =IFERROR(VLOOKUP($A60,'Allocation 2021-22 Final'!$A$7:$U$317,18,FALSE),0) -> 24516 | Y60: -6984 | Z60: -0.2848751836 | AA60: 265 | AB60: 0 | AD60: 26059 | AE60: CUSICK
A61: 19007 | B61: DAMMAN | C61: 0 | D61: 0 | E61: =IFERROR(VLOOKUP(A61,'DOE Formula counts'!$D$8:$T$325,10,FALSE),0) -> 168 | F61: =ROUND(E61/$E$5*Assumptions!$C$14*Assumptions!$C$29,0) -> 896 | G61: =IFERROR(VLOOKUP(A61,'DOE Formula counts'!$D$8:$T$325,4,FALSE),0) -> 3 | H61: =ROUND(G61/$G$5*+Assumptions!$C$14*Assumptions!$C$30,0) -> 651 | J61: 1547 | L61: 0 | M61: =IFERROR(VLOOKUP(A61,[1]ENROLLMENT!$A$5:$B$349,2,FALSE),0)*0 -> 0 | N61: =IFERROR(GETPIVOTDATA("Total W/O Preschool",'[1]Private 19-20'!$O$3,"District Code",A61),0)*0 -> 0 | P61: 1547 | Q61: 0 | R61: 1547 | T61: 0 | U61: 1547 | W61: =IFERROR(VLOOKUP($A61,'Allocation 2021-22 Final'!$A$7:$U$317,18,FALSE),0) -> 1484 | Y61: 63 | Z61: 0.04245283019 | AA61: 172 | AB61: 0 | AD61: 19007 | AE61: DAMMAN
A62: 31330 | B62: DARRINGTON | C62: 0 | D62: 0 | E62: =IFERROR(VLOOKUP(A62,'DOE Formula counts'!$D$8:$T$325,10,FALSE),0) -> 595 | F62: =ROUND(E62/$E$5*Assumptions!$C$14*Assumptions!$C$29,0) -> 3173 | G62: =IFERROR(VLOOKUP(A62,'DOE Formula counts'!$D$8:$T$325,4,FALSE),0) -> 41 | H62: =ROUND(G62/$G$5*+Assumptions!$C$14*Assumptions!$C$30,0) -> 8903 | J62: 12076 | L62: 0 | M62: =IFERROR(VLOOKUP(A62,[1]ENROLLMENT!$A$5:$B$349,2,FALSE),0)*0 -> 0 | N62: =IFERROR(GETPIVOTDATA("Total W/O Preschool",'[1]Private 19-20'!$O$3,"District Code",A62),0)*0 -> 0 | P62: 12076 | Q62: 0 | R62: 12076 | T62: 0 | U62: 12076 | W62: =IFERROR(VLOOKUP($A62,'Allocation 2021-22 Final'!$A$7:$U$317,18,FALSE),0) -> 12554 | Y62: -478 | Z62: -0.03807551378 | AA62: 202 | AB62: 0 | AD62: 31330 | AE62: DARRINGTON
A63: 22207 | B63: DAVENPORT | C63: 0 | D63: 0 | E63: =IFERROR(VLOOKUP(A63,'DOE Formula counts'!$D$8:$T$325,10,FALSE),0) -> 602 | F63: =ROUND(E63/$E$5*Assumptions!$C$14*Assumptions!$C$29,0) -> 3211 | G63: =IFERROR(VLOOKUP(A63,'DOE Formula counts'!$D$8:$T$325,4,FALSE),0) -> 93 | H63: =ROUND(G63/$G$5*+Assumptions!$C$14*Assumptions!$C$30,0) -> 20195 | J63: 23406 | L63: 0 | M63: =IFERROR(VLOOKUP(A63,[1]ENROLLMENT!$A$5:$B$349,2,FALSE),0)*0 -> 0 | N63: =IFERROR(GETPIVOTDATA("Total W/O Preschool",'[1]Private 19-20'!$O$3,"District Code",A63),0)*0 -> 0 | P63: 23406 | Q63: 0 | R63: 23406 | T63: 0 | U63: 23406 | W63: =IFERROR(VLOOKUP($A63,'Allocation 2021-22 Final'!$A$7:$U$317,18,FALSE),0) -> 20952 | Y63: 2454 | Z63: 0.1171248568 | AA63: 110 | AB63: 0 | AD63: 22207 | AE63: DAVENPORT
A64: 07002 | B64: DAYTON | C64: 0 | D64: 0 | E64: =IFERROR(VLOOKUP(A64,'DOE Formula counts'!$D$8:$T$325,10,FALSE),0) -> 523 | F64: =ROUND(E64/$E$5*Assumptions!$C$14*Assumptions!$C$29,0) -> 2789 | G64: =IFERROR(VLOOKUP(A64,'DOE Formula counts'!$D$8:$T$325,4,FALSE),0) -> 84 | H64: =ROUND(G64/$G$5*+Assumptions!$C$14*Assumptions!$C$30,0) -> 18241 | J64: 21030 | L64: 0 | M64: =IFERROR(VLOOKUP(A64,[1]ENROLLMENT!$A$5:$B$349,2,FALSE),0)*0 -> 0 | N64: =IFERROR(GETPIVOTDATA("Total W/O Preschool",'[1]Private 19-20'!$O$3,"District Code",A64),0)*0 -> 0 | P64: 21030 | Q64: 0 | R64: 21030 | T64: 0 | U64: 21030 | W64: =IFERROR(VLOOKUP($A64,'Allocation 2021-22 Final'!$A$7:$U$317,18,FALSE),0) -> 16622 | Y64: 4408 | Z64: 0.2651907111 | AA64: 89 | AB64: 0 | AD64: 07002 | AE64: DAYTON
A65: 32414 | B65: DEER PARK | C65: 0 | D65: 0 | E65: =IFERROR(VLOOKUP(A65,'DOE Formula counts'!$D$8:$T$325,10,FALSE),0) -> 2249 | F65: =ROUND(E65/$E$5*Assumptions!$C$14*Assumptions!$C$29,0) -> 11995 | G65: =IFERROR(VLOOKUP(A65,'DOE Formula counts'!$D$8:$T$325,4,FALSE),0) -> 308 | H65: =ROUND(G65/$G$5*+Assumptions!$C$14*Assumptions!$C$30,0) -> 66882 | J65: 78877 | L65: 0 | M65: =IFERROR(VLOOKUP(A65,[1]ENROLLMENT!$A$5:$B$349,2,FALSE),0)*0 -> 0 | N65: =IFERROR(GETPIVOTDATA("Total W/O Preschool",'[1]Private 19-20'!$O$3,"District Code",A65),0)*0 -> 0 | P65: 78877 | Q65: 0 | R65: 78877 | T65: 0 | U65: 78877 | W65: =IFERROR(VLOOKUP($A65,'Allocation 2021-22 Final'!$A$7:$U$317,18,FALSE),0) -> 73287 | Y65: 5590 | Z65: 0.07627546495 | AA65: 73 | AB65: 0 | AD65: 32414 | AE65: DEER PARK
A66: 27343 | B66: DIERINGER | C66: 0 | D66: 0 | E66: =IFERROR(VLOOKUP(A66,'DOE Formula counts'!$D$8:$T$325,10,FALSE),0) -> 1949 | F66: =ROUND(E66/$E$5*Assumptions!$C$14*Assumptions!$C$29,0) -> 10395 | G66: =IFERROR(VLOOKUP(A66,'DOE Formula counts'!$D$8:$T$325,4,FALSE),0) -> 64 | H66: =ROUND(G66/$G$5*+Assumptions!$C$14*Assumptions!$C$30,0) -> 13898 | J66: 24293 | L66: 0 | M66: =IFERROR(VLOOKUP(A66,[1]ENROLLMENT!$A$5:$B$349,2,FALSE),0)*0 -> 0 | N66: =IFERROR(GETPIVOTDATA("Total W/O Preschool",'[1]Private 19-20'!$O$3,"District Code",A66),0)*0 -> 0 | P66: 24293 | Q66: 0 | R66: 24293 | T66: 0 | U66: 24293 | W66: =IFERROR(VLOOKUP($A66,'Allocation 2021-22 Final'!$A$7:$U$317,18,FALSE),0) -> 25943 | Y66: -1650 | Z66: -0.06360097136 | AA66: 233 | AB66: 0 | AD66: 27343 | AE66: DIERINGER
A67: 36101 | B67: DIXIE | C67: 0 | D67: 0 | E67: =IFERROR(VLOOKUP(A67,'DOE Formula counts'!$D$8:$T$325,10,FALSE),0) -> 67 | F67: =ROUND(E67/$E$5*Assumptions!$C$14*Assumptions!$C$29,0) -> 357 | G67: =IFERROR(VLOOKUP(A67,'DOE Formula counts'!$D$8:$T$325,4,FALSE),0) -> 9 | H67: =ROUND(G67/$G$5*+Assumptions!$C$14*Assumptions!$C$30,0) -> 1954 | J67: 2311 | L67: 0 | M67: =IFERROR(VLOOKUP(A67,[1]ENROLLMENT!$A$5:$B$349,2,FALSE),0)*0 -> 0 | N67: =IFERROR(GETPIVOTDATA("Total W/O Preschool",'[1]Private 19-20'!$O$3,"District Code",A67),0)*0 -> 0 | P67: 2311 | Q67: 0 | R67: 2311 | T67: 0 | U67: 2311 | W67: =IFERROR(VLOOKUP($A67,'Allocation 2021-22 Final'!$A$7:$U$317,18,FALSE),0) -> 2539 | Y67: -228 | Z67: -0.08979913352 | AA67: 191 | AB67: 0 | AD67: 36101 | AE67: DIXIE
A68: 32361 | B68: EAST VALLEY (SPK) | C68: 0 | D68: 0 | E68: =IFERROR(VLOOKUP(A68,'DOE Formula counts'!$D$8:$T$325,10,FALSE),0) -> 4981 | F68: =ROUND(E68/$E$5*Assumptions!$C$14*Assumptions!$C$29,0) -> 26565 | G68: =IFERROR(VLOOKUP(A68,'DOE Formula counts'!$D$8:$T$325,4,FALSE),0) -> 703 | H68: =ROUND(G68/$G$5*+Assumptions!$C$14*Assumptions!$C$30,0) -> 152656 | J68: 179221 | L68: 0 | M68: =IFERROR(VLOOKUP(A68,[1]ENROLLMENT!$A$5:$B$349,2,FALSE),0)*0 -> 0 | N68: =IFERROR(GETPIVOTDATA("Total W/O Preschool",'[1]Private 19-20'!$O$3,"District Code",A68),0)*0 -> 0 | P68: 179221 | Q68: 0 | R68: 179221 | T68: 0 | U68: 179221 | W68: =IFERROR(VLOOKUP($A68,'Allocation 2021-22 Final'!$A$7:$U$317,18,FALSE),0) -> 140523 | Y68: 38698 | Z68: 0.2753855241 | AA68: 13 | AB68: 0 | AD68: 32361 | AE68: EAST VALLEY (SPK)
A69: 39090 | B69: EAST VALLEY (YAK) | C69: 0 | D69: 0 | E69: =IFERROR(VLOOKUP(A69,'DOE Formula counts'!$D$8:$T$325,10,FALSE),0) -> 3138 | F69: =ROUND(E69/$E$5*Assumptions!$C$14*Assumptions!$C$29,0) -> 16736 | G69: =IFERROR(VLOOKUP(A69,'DOE Formula counts'!$D$8:$T$325,4,FALSE),0) -> 379 | H69: =ROUND(G69/$G$5*+Assumptions!$C$14*Assumptions!$C$30,0) -> 82300 | J69: 99036 | L69: 0 | M69: =IFERROR(VLOOKUP(A69,[1]ENROLLMENT!$A$5:$B$349,2,FALSE),0)*0 -> 0 | N69: =IFERROR(GETPIVOTDATA("Total W/O Preschool",'[1]Private 19-20'!$O$3,"District Code",A69),0)*0 -> 0 | P69: 99036 | Q69: 0 | R69: 99036 | T69: 0 | U69: 99036 | W69: =IFERROR(VLOOKUP($A69,'Allocation 2021-22 Final'!$A$7:$U$317,18,FALSE),0) -> 105827 | Y69: -6791 | Z69: -0.06417076927 | AA69: 263 | AB69: 0 | AD69: 39090 | AE69: EAST VALLEY (YAK)
A70: 09206 | B70: EASTMONT | C70: 0 | D70: 0 | E70: =IFERROR(VLOOKUP(A70,'DOE Formula counts'!$D$8:$T$325,10,FALSE),0) -> 6303 | F70: =ROUND(E70/$E$5*Assumptions!$C$14*Assumptions!$C$29,0) -> 33616 | G70: =IFERROR(VLOOKUP(A70,'DOE Formula counts'!$D$8:$T$325,4,FALSE),0) -> 668 | H70: =ROUND(G70/$G$5*+Assumptions!$C$14*Assumptions!$C$30,0) -> 145056 | J70: 178672 | L70: 0 | M70: =IFERROR(VLOOKUP(A70,[1]ENROLLMENT!$A$5:$B$349,2,FALSE),0)*0 -> 0 | N70: =IFERROR(GETPIVOTDATA("Total W/O Preschool",'[1]Private 19-20'!$O$3,"District Code",A70),0)*0 -> 0 | P70: 178672 | Q70: 0 | R70: 178672 | T70: 0 | U70: 178672 | W70: =IFERROR(VLOOKUP($A70,'Allocation 2021-22 Final'!$A$7:$U$317,18,FALSE),0) -> 192001 | Y70: -13329 | Z70: -0.06942151343 | AA70: 283 | AB70: 0 | AD70: 09206 | AE70: EASTMONT
A71: 19028 | B71: EASTON | C71: 0 | D71: 0 | E71: =IFERROR(VLOOKUP(A71,'DOE Formula counts'!$D$8:$T$325,10,FALSE),0) -> 154 | F71: =ROUND(E71/$E$5*Assumptions!$C$14*Assumptions!$C$29,0) -> 821 | G71: =IFERROR(VLOOKUP(A71,'DOE Formula counts'!$D$8:$T$325,4,FALSE),0) -> 11 | H71: =ROUND(G71/$G$5*+Assumptions!$C$14*Assumptions!$C$30,0) -> 2389 | J71: =ROUNDDOWN(+H71+F71+D71+C71+I71,0) -> 3210 | L71: =IF((M71+N71=0),0,+J71/(+M71+N71)) -> 0 | M71: =IFERROR(VLOOKUP(A71,[1]ENROLLMENT!$A$5:$B$349,2,FALSE),0)*0 -> 0 | N71: =IFERROR(GETPIVOTDATA("Total W/O Preschool",'[1]Private 19-20'!$O$3,"District Code",A71),0)*0 -> 0 | P71: =J71 -> 3210 | Q71: =-ROUND(P71/$P$5*$O$5,0) -> 0 | R71: =+J71+Q71+O71 -> 3210 | T71: =IF(S71>0,-ROUND((R71*(0.9-S71)),0),0) -> 0 | U71: =+R71+T71 -> 3210 | W71: =IFERROR(VLOOKUP($A71,'Allocation 2021-22 Final'!$A$7:$U$317,18,FALSE),0) -> 2605 | Y71: =+U71-W71 -> 605 | Z71: =IF(W71>0,Y71/W71,0) -> 0.2322456814 | AA71: =RANK(Y71,$Y$7:$Y$321,0) -> 150 | AB71: =(SUM(C71:D71)/U71) -> 0 | AD71: =+A71 -> 19028 | AE71: =+B71 -> EASTON
A72: 27404 | B72: EATONVILLE | C72: 0 | D72: 0 | E72: =IFERROR(VLOOKUP(A72,'DOE Formula counts'!$D$8:$T$325,10,FALSE),0) -> 2355 | F72: =ROUND(E72/$E$5*Assumptions!$C$14*Assumptions!$C$29,0) -> 12560 | G72: =IFERROR(VLOOKUP(A72,'DOE Formula counts'!$D$8:$T$325,4,FALSE),0) -> 169 | H72: =ROUND(G72/$G$5*+Assumptions!$C$14*Assumptions!$C$30,0) -> 36698 | J72: 49258 | L72: 0 | M72: =IFERROR(VLOOKUP(A72,[1]ENROLLMENT!$A$5:$B$349,2,FALSE),0)*0 -> 0 | N72: =IFERROR(GETPIVOTDATA("Total W/O Preschool",'[1]Private 19-20'!$O$3,"District Code",A72),0)*0 -> 0 | P72: 49258 | Q72: 0 | R72: 49258 | T72: 0 | U72: 49258 | W72: =IFERROR(VLOOKUP($A72,'Allocation 2021-22 Final'!$A$7:$U$317,18,FALSE),0) -> 53757 | Y72: -4499 | Z72: -0.08369142623 | AA72: 253 | AB72: 0 | AD72: 27404 | AE72: EATONVILLE
A73: 31015 | B73: EDMONDS | C73: 0 | D73: 0 | E73: =IFERROR(VLOOKUP(A73,'DOE Formula counts'!$D$8:$T$325,10,FALSE),0) -> 25255 | F73: =ROUND(E73/$E$5*Assumptions!$C$14*Assumptions!$C$29,0) -> 134694 | G73: =IFERROR(VLOOKUP(A73,'DOE Formula counts'!$D$8:$T$325,4,FALSE),0) -> 1787 | H73: =ROUND(G73/$G$5*+Assumptions!$C$14*Assumptions!$C$30,0) -> 388047 | J73: 522741 | L73: 0 | M73: =IFERROR(VLOOKUP(A73,[1]ENROLLMENT!$A$5:$B$349,2,FALSE),0)*0 -> 0 | N73: =IFERROR(GETPIVOTDATA("Total W/O Preschool",'[1]Private 19-20'!$O$3,"District Code",A73),0)*0 -> 0 | P73: 522741 | Q73: 0 | R73: 522741 | T73: 0 | U73: 522741 | W73: =IFERROR(VLOOKUP($A73,'Allocation 2021-22 Final'!$A$7:$U$317,18,FALSE),0) -> 514639 | Y73: 8102 | Z73: 0.01574307427 | AA73: 58 | AB73: 0 | AD73: 31015 | AE73: EDMONDS
A74: 19401 | B74: ELLENSBURG | C74: 0 | D74: 0 | E74: =IFERROR(VLOOKUP(A74,'DOE Formula counts'!$D$8:$T$325,10,FALSE),0) -> 3481 | F74: =ROUND(E74/$E$5*Assumptions!$C$14*Assumptions!$C$29,0) -> 18565 | G74: =IFERROR(VLOOKUP(A74,'DOE Formula counts'!$D$8:$T$325,4,FALSE),0) -> 343 | H74: =ROUND(G74/$G$5*+Assumptions!$C$14*Assumptions!$C$30,0) -> 74482 | J74: 93047 | L74: 0 | M74: =IFERROR(VLOOKUP(A74,[1]ENROLLMENT!$A$5:$B$349,2,FALSE),0)*0 -> 0 | N74: =IFERROR(GETPIVOTDATA("Total W/O Preschool",'[1]Private 19-20'!$O$3,"District Code",A74),0)*0 -> 0 | P74: 93047 | Q74: 0 | R74: 93047 | T74: 0 | U74: 93047 | W74: =IFERROR(VLOOKUP($A74,'Allocation 2021-22 Final'!$A$7:$U$317,18,FALSE),0) -> 87737 | Y74: 5310 | Z74: 0.0605217867 | AA74: 79 | AB74: 0 | AD74: 19401 | AE74: ELLENSBURG
A75: 14068 | B75: ELMA | C75: 0 | D75: 0 | E75: =IFERROR(VLOOKUP(A75,'DOE Formula counts'!$D$8:$T$325,10,FALSE),0) -> 1582 | F75: =ROUND(E75/$E$5*Assumptions!$C$14*Assumptions!$C$29,0) -> 8437 | G75: =IFERROR(VLOOKUP(A75,'DOE Formula counts'!$D$8:$T$325,4,FALSE),0) -> 224 | H75: =ROUND(G75/$G$5*+Assumptions!$C$14*Assumptions!$C$30,0) -> 48642 | J75: 57079 | L75: 0 | M75: =IFERROR(VLOOKUP(A75,[1]ENROLLMENT!$A$5:$B$349,2,FALSE),0)*0 -> 0 | N75: =IFERROR(GETPIVOTDATA("Total W/O Preschool",'[1]Private 19-20'!$O$3,"District Code",A75),0)*0 -> 0 | P75: 57079 | Q75: 0 | R75: 57079 | T75: 0 | U75: 57079 | W75: =IFERROR(VLOOKUP($A75,'Allocation 2021-22 Final'!$A$7:$U$317,18,FALSE),0) -> 54232 | Y75: 2847 | Z75: 0.05249668093 | AA75: 101 | AB75: 0 | AD75: 14068 | AE75: ELMA
A76: 38308 | B76: ENDICOTT | C76: 0 | D76: 0 | E76: =IFERROR(VLOOKUP(A76,'DOE Formula counts'!$D$8:$T$325,10,FALSE),0) -> 79 | F76: =ROUND(E76/$E$5*Assumptions!$C$14*Assumptions!$C$29,0) -> 421 | G76: =IFERROR(VLOOKUP(A76,'DOE Formula counts'!$D$8:$T$325,4,FALSE),0) -> 22 | H76: =ROUND(G76/$G$5*+Assumptions!$C$14*Assumptions!$C$30,0) -> 4777 | J76: 5198 | L76: 0 | M76: =IFERROR(VLOOKUP(A76,[1]ENROLLMENT!$A$5:$B$349,2,FALSE),0)*0 -> 0 | N76: =IFERROR(GETPIVOTDATA("Total W/O Preschool",'[1]Private 19-20'!$O$3,"District Code",A76),0)*0 -> 0 | P76: 5198 | Q76: 0 | R76: 5198 | T76: 0 | U76: 5198 | W76: =IFERROR(VLOOKUP($A76,'Allocation 2021-22 Final'!$A$7:$U$317,18,FALSE),0) -> 4800 | Y76: 398 | Z76: 0.08291666667 | AA76: 160 | AB76: 0 | AD76: 38308 | AE76: ENDICOTT
A77: 04127 | B77: ENTIAT | C77: 0 | D77: 0 | E77: =IFERROR(VLOOKUP(A77,'DOE Formula counts'!$D$8:$T$325,10,FALSE),0) -> 392 | F77: =ROUND(E77/$E$5*Assumptions!$C$14*Assumptions!$C$29,0) -> 2091 | G77: =IFERROR(VLOOKUP(A77,'DOE Formula counts'!$D$8:$T$325,4,FALSE),0) -> 46 | H77: =ROUND(G77/$G$5*+Assumptions!$C$14*Assumptions!$C$30,0) -> 9989 | J77: 12080 | L77: 0 | M77: =IFERROR(VLOOKUP(A77,[1]ENROLLMENT!$A$5:$B$349,2,FALSE),0)*0 -> 0 | N77: =IFERROR(GETPIVOTDATA("Total W/O Preschool",'[1]Private 19-20'!$O$3,"District Code",A77),0)*0 -> 0 | P77: 12080 | Q77: 0 | R77: 12080 | T77: 0 | U77: 12080 | W77: =IFERROR(VLOOKUP($A77,'Allocation 2021-22 Final'!$A$7:$U$317,18,FALSE),0) -> 17403 | Y77: -5323 | Z77: -0.3058668046 | AA77: 257 | AB77: 0 | AD77: 04127 | AE77: ENTIAT
A78: 17216 | B78: ENUMCLAW | C78: 0 | D78: 0 | E78: =IFERROR(VLOOKUP(A78,'DOE Formula counts'!$D$8:$T$325,10,FALSE),0) -> 5047 | F78: =ROUND(E78/$E$5*Assumptions!$C$14*Assumptions!$C$29,0) -> 26917 | G78: =IFERROR(VLOOKUP(A78,'DOE Formula counts'!$D$8:$T$325,4,FALSE),0) -> 246 | H78: =ROUND(G78/$G$5*+Assumptions!$C$14*Assumptions!$C$30,0) -> 53419 | J78: 80336 | L78: 0 | M78: =IFERROR(VLOOKUP(A78,[1]ENROLLMENT!$A$5:$B$349,2,FALSE),0)*0 -> 0 | N78: =IFERROR(GETPIVOTDATA("Total W/O Preschool",'[1]Private 19-20'!$O$3,"District Code",A78),0)*0 -> 0 | P78: 80336 | Q78: 0 | R78: 80336 | T78: 0 | U78: 80336 | W78: =IFERROR(VLOOKUP($A78,'Allocation 2021-22 Final'!$A$7:$U$317,18,FALSE),0) -> 77728 | Y78: 2608 | Z78: 0.03355290243 | AA78: 105 | AB78: 0 | AD78: 17216 | AE78: ENUMCLAW
A79: 13165 | B79: EPHRATA | C79: 0 | D79: 0 | E79: =IFERROR(VLOOKUP(A79,'DOE Formula counts'!$D$8:$T$325,10,FALSE),0) -> 2660 | F79: =ROUND(E79/$E$5*Assumptions!$C$14*Assumptions!$C$29,0) -> 14187 | G79: =IFERROR(VLOOKUP(A79,'DOE Formula counts'!$D$8:$T$325,4,FALSE),0) -> 357 | H79: =ROUND(G79/$G$5*+Assumptions!$C$14*Assumptions!$C$30,0) -> 77523 | J79: 91710 | L79: 0 | M79: =IFERROR(VLOOKUP(A79,[1]ENROLLMENT!$A$5:$B$349,2,FALSE),0)*0 -> 0 | N79: =IFERROR(GETPIVOTDATA("Total W/O Preschool",'[1]Private 19-20'!$O$3,"District Code",A79),0)*0 -> 0 | P79: 91710 | Q79: 0 | R79: 91710 | T79: 0 | U79: 91710 | W79: =IFERROR(VLOOKUP($A79,'Allocation 2021-22 Final'!$A$7:$U$317,18,FALSE),0) -> 79282 | Y79: 12428 | Z79: 0.1567568931 | AA79: 37 | AB79: 0 | AD79: 13165 | AE79: EPHRATA
A80: 21036 | B80: EVALINE | C80: 0 | D80: 0 | E80: =IFERROR(VLOOKUP(A80,'DOE Formula counts'!$D$8:$T$325,10,FALSE),0) -> 147 | F80: =ROUND(E80/$E$5*Assumptions!$C$14*Assumptions!$C$29,0) -> 784 | G80: =IFERROR(VLOOKUP(A80,'DOE Formula counts'!$D$8:$T$325,4,FALSE),0) -> 33 | H80: =ROUND(G80/$G$5*+Assumptions!$C$14*Assumptions!$C$30,0) -> 7166 | J80: 7950 | L80: 0 | M80: =IFERROR(VLOOKUP(A80,[1]ENROLLMENT!$A$5:$B$349,2,FALSE),0)*0 -> 0 | N80: =IFERROR(GETPIVOTDATA("Total W/O Preschool",'[1]Private 19-20'!$O$3,"District Code",A80),0)*0 -> 0 | P80: 7950 | Q80: 0 | R80: 7950 | T80: 0 | U80: 7950 | W80: =IFERROR(VLOOKUP($A80,'Allocation 2021-22 Final'!$A$7:$U$317,18,FALSE),0) -> 10115 | Y80: -2165 | Z80: -0.2140385566 | AA80: 239 | AB80: 0 | AD80: 21036 | AE80: EVALINE
A81: 31002 | B81: EVERETT | C81: 0 | D81: 0 | E81: =IFERROR(VLOOKUP(A81,'DOE Formula counts'!$D$8:$T$325,10,FALSE),0) -> 22887 | F81: =ROUND(E81/$E$5*Assumptions!$C$14*Assumptions!$C$29,0) -> 122065 | G81: =IFERROR(VLOOKUP(A81,'DOE Formula counts'!$D$8:$T$325,4,FALSE),0) -> 1734 | H81: =ROUND(G81/$G$5*+Assumptions!$C$14*Assumptions!$C$30,0) -> 376538 | J81: 498603 | L81: 0 | M81: =IFERROR(VLOOKUP(A81,[1]ENROLLMENT!$A$5:$B$349,2,FALSE),0)*0 -> 0 | N81: =IFERROR(GETPIVOTDATA("Total W/O Preschool",'[1]Private 19-20'!$O$3,"District Code",A81),0)*0 -> 0 | P81: 498603 | Q81: 0 | R81: 498603 | T81: 0 | U81: 498603 | W81: =IFERROR(VLOOKUP($A81,'Allocation 2021-22 Final'!$A$7:$U$317,18,FALSE),0) -> 483154 | Y81: 15449 | Z81: 0.03197531222 | AA81: 32 | AB81: 0 | AD81: 31002 | AE81: EVERETT
A82: 06114 | B82: EVERGREEN (CLARK) | C82: 0 | D82: 0 | E82: =IFERROR(VLOOKUP(A82,'DOE Formula counts'!$D$8:$T$325,10,FALSE),0) -> 28739 | F82: =ROUND(E82/$E$5*Assumptions!$C$14*Assumptions!$C$29,0) -> 153275 | G82: =IFERROR(VLOOKUP(A82,'DOE Formula counts'!$D$8:$T$325,4,FALSE),0) -> 2865 | H82: =ROUND(G82/$G$5*+Assumptions!$C$14*Assumptions!$C$30,0) -> 622135 | J82: 775410 | L82: 0 | M82: =IFERROR(VLOOKUP(A82,[1]ENROLLMENT!$A$5:$B$349,2,FALSE),0)*0 -> 0 | N82: =IFERROR(GETPIVOTDATA("Total W/O Preschool",'[1]Private 19-20'!$O$3,"District Code",A82),0)*0 -> 0 | P82: 775410 | Q82: 0 | R82: 775410 | T82: 0 | U82: 775410 | W82: =IFERROR(VLOOKUP($A82,'Allocation 2021-22 Final'!$A$7:$U$317,18,FALSE),0) -> 841124 | Y82: -65714 | Z82: -0.0781264118 | AA82: 308 | AB82: 0 | AD82: 06114 | AE82: EVERGREEN (CLARK)
A83: 33205 | B83: EVERGREEN (STEV) | C83: 0 | D83: 0 | E83: =IFERROR(VLOOKUP(A83,'DOE Formula counts'!$D$8:$T$325,10,FALSE),0) -> 74 | F83: =ROUND(E83/$E$5*Assumptions!$C$14*Assumptions!$C$29,0) -> 395 | G83: =IFERROR(VLOOKUP(A83,'DOE Formula counts'!$D$8:$T$325,4,FALSE),0) -> 18 | H83: =ROUND(G83/$G$5*+Assumptions!$C$14*Assumptions!$C$30,0) -> 3909 | J83: 4304 | L83: 0 | M83: =IFERROR(VLOOKUP(A83,[1]ENROLLMENT!$A$5:$B$349,2,FALSE),0)*0 -> 0 | N83: =IFERROR(GETPIVOTDATA("Total W/O Preschool",'[1]Private 19-20'!$O$3,"District Code",A83),0)*0 -> 0 | P83: 4304 | Q83: 0 | R83: 4304 | T83: 0 | U83: 4304 | W83: =IFERROR(VLOOKUP($A83,'Allocation 2021-22 Final'!$A$7:$U$317,18,FALSE),0) -> 2974 | Y83: 1330 | Z83: 0.4472091459 | AA83: 130 | AB83: 0 | AD83: 33205 | AE83: EVERGREEN (STEV)
A84: 17210 | B84: FEDERAL WAY | C84: 0 | D84: 0 | E84: =IFERROR(VLOOKUP(A84,'DOE Formula counts'!$D$8:$T$325,10,FALSE),0) -> 26685 | F84: =ROUND(E84/$E$5*Assumptions!$C$14*Assumptions!$C$29,0) -> 142321 | G84: =IFERROR(VLOOKUP(A84,'DOE Formula counts'!$D$8:$T$325,4,FALSE),0) -> 2965 | H84: =ROUND(G84/$G$5*+Assumptions!$C$14*Assumptions!$C$30,0) -> 643850 | J84: 786171 | L84: 0 | M84: =IFERROR(VLOOKUP(A84,[1]ENROLLMENT!$A$5:$B$349,2,FALSE),0)*0 -> 0 | N84: =IFERROR(GETPIVOTDATA("Total W/O Preschool",'[1]Private 19-20'!$O$3,"District Code",A84),0)*0 -> 0 | P84: 786171 | Q84: 0 | R84: 786171 | T84: 0 | U84: 786171 | W84: =IFERROR(VLOOKUP($A84,'Allocation 2021-22 Final'!$A$7:$U$317,18,FALSE),0) -> 737612 | Y84: 48559 | Z84: 0.06583271422 | AA84: 8 | AB84: 0 | AD84: 17210 | AE84: FEDERAL WAY
A85: 37502 | B85: FERNDALE | C85: 0 | D85: 0 | E85: =IFERROR(VLOOKUP(A85,'DOE Formula counts'!$D$8:$T$325,10,FALSE),0) -> 6274 | F85: =ROUND(E85/$E$5*Assumptions!$C$14*Assumptions!$C$29,0) -> 33462 | G85: =IFERROR(VLOOKUP(A85,'DOE Formula counts'!$D$8:$T$325,4,FALSE),0) -> 698 | H85: =ROUND(G85/$G$5*+Assumptions!$C$14*Assumptions!$C$30,0) -> 151571 | J85: 185033 | L85: 0 | M85: =IFERROR(VLOOKUP(A85,[1]ENROLLMENT!$A$5:$B$349,2,FALSE),0)*0 -> 0 | N85: =IFERROR(GETPIVOTDATA("Total W/O Preschool",'[1]Private 19-20'!$O$3,"District Code",A85),0)*0 -> 0 | P85: 185033 | Q85: 0 | R85: 185033 | T85: 0 | U85: 185033 | W85: =IFERROR(VLOOKUP($A85,'Allocation 2021-22 Final'!$A$7:$U$317,18,FALSE),0) -> 169973 | Y85: 15060 | Z85: 0.08860230743 | AA85: 33 | AB85: 0 | AD85: 37502 | AE85: FERNDALE
A86: 27417 | B86: FIFE | C86: 0 | D86: 0 | E86: =IFERROR(VLOOKUP(A86,'DOE Formula counts'!$D$8:$T$325,10,FALSE),0) -> 3921 | F86: =ROUND(E86/$E$5*Assumptions!$C$14*Assumptions!$C$29,0) -> 20912 | G86: =IFERROR(VLOOKUP(A86,'DOE Formula counts'!$D$8:$T$325,4,FALSE),0) -> 317 | H86: =ROUND(G86/$G$5*+Assumptions!$C$14*Assumptions!$C$30,0) -> 68837 | J86: 89749 | L86: 0 | M86: =IFERROR(VLOOKUP(A86,[1]ENROLLMENT!$A$5:$B$349,2,FALSE),0)*0 -> 0 | N86: =IFERROR(GETPIVOTDATA("Total W/O Preschool",'[1]Private 19-20'!$O$3,"District Code",A86),0)*0 -> 0 | P86: 89749 | Q86: 0 | R86: 89749 | T86: 0 | U86: 89749 | W86: =IFERROR(VLOOKUP($A86,'Allocation 2021-22 Final'!$A$7:$U$317,18,FALSE),0) -> 99372 | Y86: -9623 | Z86: -0.09683814354 | AA86: 271 | AB86: 0 | AD86: 27417 | AE86: FIFE
A87: 03053 | B87: FINLEY | C87: 0 | D87: 0 | E87: =IFERROR(VLOOKUP(A87,'DOE Formula counts'!$D$8:$T$325,10,FALSE),0) -> 1189 | F87: =ROUND(E87/$E$5*Assumptions!$C$14*Assumptions!$C$29,0) -> 6341 | G87: =IFERROR(VLOOKUP(A87,'DOE Formula counts'!$D$8:$T$325,4,FALSE),0) -> 148 | H87: =ROUND(G87/$G$5*+Assumptions!$C$14*Assumptions!$C$30,0) -> 32138 | J87: 38479 | L87: 0 | M87: =IFERROR(VLOOKUP(A87,[1]ENROLLMENT!$A$5:$B$349,2,FALSE),0)*0 -> 0 | N87: =IFERROR(GETPIVOTDATA("Total W/O Preschool",'[1]Private 19-20'!$O$3,"District Code",A87),0)*0 -> 0 | P87: 38479 | Q87: 0 | R87: 38479 | T87: 0 | U87: 38479 | W87: =IFERROR(VLOOKUP($A87,'Allocation 2021-22 Final'!$A$7:$U$317,18,FALSE),0) -> 49321 | Y87: -10842 | Z87: -0.2198252266 | AA87: 274 | AB87: 0 | AD87: 03053 | AE87: FINLEY
A88: 27402 | B88: FRANKLIN PIERCE | C88: 0 | D88: 0 | E88: =IFERROR(VLOOKUP(A88,'DOE Formula counts'!$D$8:$T$325,10,FALSE),0) -> 9052 | F88: =ROUND(E88/$E$5*Assumptions!$C$14*Assumptions!$C$29,0) -> 48278 | G88: =IFERROR(VLOOKUP(A88,'DOE Formula counts'!$D$8:$T$325,4,FALSE),0) -> 1094 | H88: =ROUND(G88/$G$5*+Assumptions!$C$14*Assumptions!$C$30,0) -> 237562 | J88: 285840 | L88: 0 | M88: =IFERROR(VLOOKUP(A88,[1]ENROLLMENT!$A$5:$B$349,2,FALSE),0)*0 -> 0 | N88: =IFERROR(GETPIVOTDATA("Total W/O Preschool",'[1]Private 19-20'!$O$3,"District Code",A88),0)*0 -> 0 | P88: 285840 | Q88: 0 | R88: 285840 | T88: 0 | U88: 285840 | W88: =IFERROR(VLOOKUP($A88,'Allocation 2021-22 Final'!$A$7:$U$317,18,FALSE),0) -> 349495 | Y88: -63655 | Z88: -0.1821342222 | AA88: 307 | AB88: 0 | AD88: 27402 | AE88: FRANKLIN PIERCE
A89: 32358 | B89: FREEMAN | C89: 0 | D89: 0 | E89: =IFERROR(VLOOKUP(A89,'DOE Formula counts'!$D$8:$T$325,10,FALSE),0) -> 910 | F89: =ROUND(E89/$E$5*Assumptions!$C$14*Assumptions!$C$29,0) -> 4853 | G89: =IFERROR(VLOOKUP(A89,'DOE Formula counts'!$D$8:$T$325,4,FALSE),0) -> 49 | H89: =ROUND(G89/$G$5*+Assumptions!$C$14*Assumptions!$C$30,0) -> 10640 | J89: 15493 | L89: 0 | M89: =IFERROR(VLOOKUP(A89,[1]ENROLLMENT!$A$5:$B$349,2,FALSE),0)*0 -> 0 | N89: =IFERROR(GETPIVOTDATA("Total W/O Preschool",'[1]Private 19-20'!$O$3,"District Code",A89),0)*0 -> 0 | P89: 15493 | Q89: 0 | R89: 15493 | T89: 0 | U89: 15493 | W89: =IFERROR(VLOOKUP($A89,'Allocation 2021-22 Final'!$A$7:$U$317,18,FALSE),0) -> 14050 | Y89: 1443 | Z89: 0.1027046263 | AA89: 128 | AB89: 0 | AD89: 32358 | AE89: FREEMAN
A90: 38302 | B90: GARFIELD | C90: 0 | D90: 0 | E90: =IFERROR(VLOOKUP(A90,'DOE Formula counts'!$D$8:$T$325,10,FALSE),0) -> 133 | F90: =ROUND(E90/$E$5*Assumptions!$C$14*Assumptions!$C$29,0) -> 709 | G90: =IFERROR(VLOOKUP(A90,'DOE Formula counts'!$D$8:$T$325,4,FALSE),0) -> 27 | H90: =ROUND(G90/$G$5*+Assumptions!$C$14*Assumptions!$C$30,0) -> 5863 | J90: 6572 | L90: 0 | M90: =IFERROR(VLOOKUP(A90,[1]ENROLLMENT!$A$5:$B$349,2,FALSE),0)*0 -> 0 | N90: =IFERROR(GETPIVOTDATA("Total W/O Preschool",'[1]Private 19-20'!$O$3,"District Code",A90),0)*0 -> 0 | P90: 6572 | Q90: 0 | R90: 6572 | T90: 0 | U90: 6572 | W90: =IFERROR(VLOOKUP($A90,'Allocation 2021-22 Final'!$A$7:$U$317,18,FALSE),0) -> 7076 | Y90: -504 | Z90: -0.07122668174 | AA90: 204 | AB90: 0 | AD90: 38302 | AE90: GARFIELD
A91: 20401 | B91: GLENWOOD | C91: 0 | D91: 0 | E91: =IFERROR(VLOOKUP(A91,'DOE Formula counts'!$D$8:$T$325,10,FALSE),0) -> 61 | F91: =ROUND(E91/$E$5*Assumptions!$C$14*Assumptions!$C$29,0) -> 325 | G91: =IFERROR(VLOOKUP(A91,'DOE Formula counts'!$D$8:$T$325,4,FALSE),0) -> 9 | H91: =ROUND(G91/$G$5*+Assumptions!$C$14*Assumptions!$C$30,0) -> 1954 | J91: 2279 | L91: 0 | M91: =IFERROR(VLOOKUP(A91,[1]ENROLLMENT!$A$5:$B$349,2,FALSE),0)*0 -> 0 | N91: =IFERROR(GETPIVOTDATA("Total W/O Preschool",'[1]Private 19-20'!$O$3,"District Code",A91),0)*0 -> 0 | P91: 2279 | Q91: 0 | R91: 2279 | T91: 0 | U91: 2279 | W91: =IFERROR(VLOOKUP($A91,'Allocation 2021-22 Final'!$A$7:$U$317,18,FALSE),0) -> 1519 | Y91: 760 | Z91: 0.5003291639 | AA91: 145 | AB91: 0 | AD91: 20401 | AE91: GLENWOOD
A92: 20404 | B92: GOLDENDALE | C92: 0 | D92: 0 | E92: =IFERROR(VLOOKUP(A92,'DOE Formula counts'!$D$8:$T$325,10,FALSE),0) -> 1074 | F92: =ROUND(E92/$E$5*Assumptions!$C$14*Assumptions!$C$29,0) -> 5728 | G92: =IFERROR(VLOOKUP(A92,'DOE Formula counts'!$D$8:$T$325,4,FALSE),0) -> 209 | H92: =ROUND(G92/$G$5*+Assumptions!$C$14*Assumptions!$C$30,0) -> 45384 | J92: 51112 | L92: 0 | M92: =IFERROR(VLOOKUP(A92,[1]ENROLLMENT!$A$5:$B$349,2,FALSE),0)*0 -> 0 | N92: =IFERROR(GETPIVOTDATA("Total W/O Preschool",'[1]Private 19-20'!$O$3,"District Code",A92),0)*0 -> 0 | P92: 51112 | Q92: 0 | R92: 51112 | T92: 0 | U92: 51112 | W92: =IFERROR(VLOOKUP($A92,'Allocation 2021-22 Final'!$A$7:$U$317,18,FALSE),0) -> 46510 | Y92: 4602 | Z92: 0.09894646313 | AA92: 85 | AB92: 0 | AD92: 20404 | AE92: GOLDENDALE
A93: 13301 | B93: GRAND COULEE | C93: 0 | D93: 0 | E93: =IFERROR(VLOOKUP(A93,'DOE Formula counts'!$D$8:$T$325,10,FALSE),0) -> 645 | F93: =ROUND(E93/$E$5*Assumptions!$C$14*Assumptions!$C$29,0) -> 3440 | G93: =IFERROR(VLOOKUP(A93,'DOE Formula counts'!$D$8:$T$325,4,FALSE),0) -> 100 | H93: =ROUND(G93/$G$5*+Assumptions!$C$14*Assumptions!$C$30,0) -> 21715 | J93: 25155 | L93: 0 | M93: =IFERROR(VLOOKUP(A93,[1]ENROLLMENT!$A$5:$B$349,2,FALSE),0)*0 -> 0 | N93: =IFERROR(GETPIVOTDATA("Total W/O Preschool",'[1]Private 19-20'!$O$3,"District Code",A93),0)*0 -> 0 | P93: 25155 | Q93: 0 | R93: 25155 | T93: 0 | U93: 25155 | W93: =IFERROR(VLOOKUP($A93,'Allocation 2021-22 Final'!$A$7:$U$317,18,FALSE),0) -> 25369 | Y93: -214 | Z93: -0.008435492136 | AA93: 190 | AB93: 0 | AD93: 13301 | AE93: GRAND COULEE
A94: 39200 | B94: GRANDVIEW | C94: 0 | D94: 0 | E94: =IFERROR(VLOOKUP(A94,'DOE Formula counts'!$D$8:$T$325,10,FALSE),0) -> 3825 | F94: =ROUND(E94/$E$5*Assumptions!$C$14*Assumptions!$C$29,0) -> 20400 | G94: =IFERROR(VLOOKUP(A94,'DOE Formula counts'!$D$8:$T$325,4,FALSE),0) -> 570 | H94: =ROUND(G94/$G$5*+Assumptions!$C$14*Assumptions!$C$30,0) -> 123775 | J94: 144175 | L94: 0 | M94: =IFERROR(VLOOKUP(A94,[1]ENROLLMENT!$A$5:$B$349,2,FALSE),0)*0 -> 0 | N94: =IFERROR(GETPIVOTDATA("Total W/O Preschool",'[1]Private 19-20'!$O$3,"District Code",A94),0)*0 -> 0 | P94: 144175 | Q94: 0 | R94: 144175 | T94: 0 | U94: 144175 | W94: =IFERROR(VLOOKUP($A94,'Allocation 2021-22 Final'!$A$7:$U$317,18,FALSE),0) -> 168746 | Y94: -24571 | Z94: -0.1456093774 | AA94: 295 | AB94: 0 | AD94: 39200 | AE94: GRANDVIEW
A95: 39204 | B95: GRANGER | C95: 0 | D95: 0 | E95: =IFERROR(VLOOKUP(A95,'DOE Formula counts'!$D$8:$T$325,10,FALSE),0) -> 1630 | F95: =ROUND(E95/$E$5*Assumptions!$C$14*Assumptions!$C$29,0) -> 8693 | G95: =IFERROR(VLOOKUP(A95,'DOE Formula counts'!$D$8:$T$325,4,FALSE),0) -> 369 | H95: =ROUND(G95/$G$5*+Assumptions!$C$14*Assumptions!$C$30,0) -> 80128 | J95: 88821 | L95: 0 | M95: =IFERROR(VLOOKUP(A95,[1]ENROLLMENT!$A$5:$B$349,2,FALSE),0)*0 -> 0 | N95: =IFERROR(GETPIVOTDATA("Total W/O Preschool",'[1]Private 19-20'!$O$3,"District Code",A95),0)*0 -> 0 | P95: 88821 | Q95: 0 | R95: 88821 | T95: 0 | U95: 88821 | W95: =IFERROR(VLOOKUP($A95,'Allocation 2021-22 Final'!$A$7:$U$317,18,FALSE),0) -> 103204 | Y95: -14383 | Z95: -0.1393647533 | AA95: 286 | AB95: 0 | AD95: 39204 | AE95: GRANGER
A96: 31332 | B96: GRANITE FALLS | C96: 0 | D96: 0 | E96: =IFERROR(VLOOKUP(A96,'DOE Formula counts'!$D$8:$T$325,10,FALSE),0) -> 2711 | F96: =ROUND(E96/$E$5*Assumptions!$C$14*Assumptions!$C$29,0) -> 14459 | G96: =IFERROR(VLOOKUP(A96,'DOE Formula counts'!$D$8:$T$325,4,FALSE),0) -> 190 | H96: =ROUND(G96/$G$5*+Assumptions!$C$14*Assumptions!$C$30,0) -> 41258 | J96: 55717 | L96: 0 | M96: =IFERROR(VLOOKUP(A96,[1]ENROLLMENT!$A$5:$B$349,2,FALSE),0)*0 -> 0 | N96: =IFERROR(GETPIVOTDATA("Total W/O Preschool",'[1]Private 19-20'!$O$3,"District Code",A96),0)*0 -> 0 | P96: 55717 | Q96: 0 | R96: 55717 | T96: 0 | U96: 55717 | W96: =IFERROR(VLOOKUP($A96,'Allocation 2021-22 Final'!$A$7:$U$317,18,FALSE),0) -> 48749 | Y96: 6968 | Z96: 0.1429362654 | AA96: 67 | AB96: 0 | AD96: 31332 | AE96: GRANITE FALLS
A97: 23054 | B97: GRAPEVIEW | C97: 0 | D97: 0 | E97: =IFERROR(VLOOKUP(A97,'DOE Formula counts'!$D$8:$T$325,10,FALSE),0) -> 316 | F97: =ROUND(E97/$E$5*Assumptions!$C$14*Assumptions!$C$29,0) -> 1685 | G97: =IFERROR(VLOOKUP(A97,'DOE Formula counts'!$D$8:$T$325,4,FALSE),0) -> 31 | H97: =ROUND(G97/$G$5*+Assumptions!$C$14*Assumptions!$C$30,0) -> 6732 | J97: 8417 | L97: 0 | M97: =IFERROR(VLOOKUP(A97,[1]ENROLLMENT!$A$5:$B$349,2,FALSE),0)*0 -> 0 | N97: =IFERROR(GETPIVOTDATA("Total W/O Preschool",'[1]Private 19-20'!$O$3,"District Code",A97),0)*0 -> 0 | P97: 8417 | Q97: 0 | R97: 8417 | T97: 0 | U97: 8417 | W97: =IFERROR(VLOOKUP($A97,'Allocation 2021-22 Final'!$A$7:$U$317,18,FALSE),0) -> 11615 | Y97: -3198 | Z97: -0.2753336203 | AA97: 244 | AB97: 0 | AD97: 23054 | AE97: GRAPEVIEW
A98: 32312 | B98: GREAT NORTHERN | C98: 0 | D98: 0 | E98: =IFERROR(VLOOKUP(A98,'DOE Formula counts'!$D$8:$T$325,10,FALSE),0) -> 136 | F98: =ROUND(E98/$E$5*Assumptions!$C$14*Assumptions!$C$29,0) -> 725 | G98: =IFERROR(VLOOKUP(A98,'DOE Formula counts'!$D$8:$T$325,4,FALSE),0) -> 30 | H98: =ROUND(G98/$G$5*+Assumptions!$C$14*Assumptions!$C$30,0) -> 6514 | J98: 7239 | L98: 0 | M98: =IFERROR(VLOOKUP(A98,[1]ENROLLMENT!$A$5:$B$349,2,FALSE),0)*0 -> 0 | N98: =IFERROR(GETPIVOTDATA("Total W/O Preschool",'[1]Private 19-20'!$O$3,"District Code",A98),0)*0 -> 0 | P98: 7239 | Q98: 0 | R98: 7239 | T98: 0 | U98: 7239 | W98: =IFERROR(VLOOKUP($A98,'Allocation 2021-22 Final'!$A$7:$U$317,18,FALSE),0) -> 3913 | Y98: 3326 | Z98: 0.8499872221 | AA98: 97 | AB98: 0 | AD98: 32312 | AE98: GREAT NORTHERN
A99: 17910 | B99: RAINIER VALLEY CHARTER | C99: 0 | D99: 0 | E99: =IFERROR(VLOOKUP(A99,'DOE Formula counts'!$D$8:$T$325,10,FALSE),0) -> 534.9325541 | F99: =ROUND(E99/$E$5*Assumptions!$C$14*Assumptions!$C$29,0) -> 2853 | G99: =IFERROR(VLOOKUP(A99,'DOE Formula counts'!$D$8:$T$325,4,FALSE),0) -> 38.43111707 | H99: =ROUND(G99/$G$5*+Assumptions!$C$14*Assumptions!$C$30,0) -> 8345 | J99: 11198 | L99: 0 | M99: =IFERROR(VLOOKUP(A99,[1]ENROLLMENT!$A$5:$B$349,2,FALSE),0)*0 -> 0 | N99: =IFERROR(GETPIVOTDATA("Total W/O Preschool",'[1]Private 19-20'!$O$3,"District Code",A99),0)*0 -> 0 | P99: 11198 | Q99: 0 | R99: 11198 | T99: 0 | U99: 11198 | W99: =IFERROR(VLOOKUP($A99,'Allocation 2021-22 Final'!$A$7:$U$317,18,FALSE),0) -> 8527 | Y99: 2671 | Z99: 0.3132402955 | AA99: 104 | AB99: 0 | AD99: 17910 | AE99: RAINIER VALLEY CHARTER
A100: 06103 | B100: GREEN MOUNTAIN | C100: 0 | D100: 0 | E100: =IFERROR(VLOOKUP(A100,'DOE Formula counts'!$D$8:$T$325,10,FALSE),0) -> 180 | F100: =ROUND(E100/$E$5*Assumptions!$C$14*Assumptions!$C$29,0) -> 960 | G100: =IFERROR(VLOOKUP(A100,'DOE Formula counts'!$D$8:$T$325,4,FALSE),0) -> 12 | H100: =ROUND(G100/$G$5*+Assumptions!$C$14*Assumptions!$C$30,0) -> 2606 | J100: 3566 | L100: 0 | M100: =IFERROR(VLOOKUP(A100,[1]ENROLLMENT!$A$5:$B$349,2,FALSE),0)*0 -> 0 | N100: =IFERROR(GETPIVOTDATA("Total W/O Preschool",'[1]Private 19-20'!$O$3,"District Code",A100),0)*0 -> 0 | P100: 3566 | Q100: 0 | R100: 3566 | T100: 0 | U100: 3566 | W100: =IFERROR(VLOOKUP($A100,'Allocation 2021-22 Final'!$A$7:$U$317,18,FALSE),0) -> 3756 | Y100: -190 | Z100: -0.0505857295 | AA100: 189 | AB100: 0 | AD100: 06103 | AE100: GREEN MOUNTAIN
A101: 34324 | B101: GRIFFIN | C101: 0 | D101: 0 | E101: =IFERROR(VLOOKUP(A101,'DOE Formula counts'!$D$8:$T$325,10,FALSE),0) -> 953 | F101: =ROUND(E101/$E$5*Assumptions!$C$14*Assumptions!$C$29,0) -> 5083 | G101: =IFERROR(VLOOKUP(A101,'DOE Formula counts'!$D$8:$T$325,4,FALSE),0) -> 47 | H101: =ROUND(G101/$G$5*+Assumptions!$C$14*Assumptions!$C$30,0) -> 10206 | J101: 15289 | L101: 0 | M101: =IFERROR(VLOOKUP(A101,[1]ENROLLMENT!$A$5:$B$349,2,FALSE),0)*0 -> 0 | N101: =IFERROR(GETPIVOTDATA("Total W/O Preschool",'[1]Private 19-20'!$O$3,"District Code",A101),0)*0 -> 0 | P101: 15289 | Q101: 0 | R101: 15289 | T101: 0 | U101: 15289 | W101: =IFERROR(VLOOKUP($A101,'Allocation 2021-22 Final'!$A$7:$U$317,18,FALSE),0) -> 13875 | Y101: 1414 | Z101: 0.1019099099 | AA101: 129 | AB101: 0 | AD101: 34324 | AE101: GRIFFIN
A102: 22204 | B102: HARRINGTON | C102: 0 | D102: 0 | E102: =IFERROR(VLOOKUP(A102,'DOE Formula counts'!$D$8:$T$325,10,FALSE),0) -> 128 | F102: =ROUND(E102/$E$5*Assumptions!$C$14*Assumptions!$C$29,0) -> 683 | G102: =IFERROR(VLOOKUP(A102,'DOE Formula counts'!$D$8:$T$325,4,FALSE),0) -> 31 | H102: =ROUND(G102/$G$5*+Assumptions!$C$14*Assumptions!$C$30,0) -> 6732 | J102: 7415 | L102: 0 | M102: =IFERROR(VLOOKUP(A102,[1]ENROLLMENT!$A$5:$B$349,2,FALSE),0)*0 -> 0 | N102: =IFERROR(GETPIVOTDATA("Total W/O Preschool",'[1]Private 19-20'!$O$3,"District Code",A102),0)*0 -> 0 | P102: 7415 | Q102: 0 | R102: 7415 | T102: 0 | U102: 7415 | W102: =IFERROR(VLOOKUP($A102,'Allocation 2021-22 Final'!$A$7:$U$317,18,FALSE),0) -> 6651 | Y102: 764 | Z102: 0.1148699444 | AA102: 144 | AB102: 0 | AD102: 22204 | AE102: HARRINGTON
A103: 39203 | B103: HIGHLAND | C103: 0 | D103: 0 | E103: =IFERROR(VLOOKUP(A103,'DOE Formula counts'!$D$8:$T$325,10,FALSE),0) -> 1331 | F103: =ROUND(E103/$E$5*Assumptions!$C$14*Assumptions!$C$29,0) -> 7099 | G103: =IFERROR(VLOOKUP(A103,'DOE Formula counts'!$D$8:$T$325,4,FALSE),0) -> 146 | H103: =ROUND(G103/$G$5*+Assumptions!$C$14*Assumptions!$C$30,0) -> 31704 | J103: 38803 | L103: 0 | M103: =IFERROR(VLOOKUP(A103,[1]ENROLLMENT!$A$5:$B$349,2,FALSE),0)*0 -> 0 | N103: =IFERROR(GETPIVOTDATA("Total W/O Preschool",'[1]Private 19-20'!$O$3,"District Code",A103),0)*0 -> 0 | P103: 38803 | Q103: 0 | R103: 38803 | T103: 0 | U103: 38803 | W103: =IFERROR(VLOOKUP($A103,'Allocation 2021-22 Final'!$A$7:$U$317,18,FALSE),0) -> 45366 | Y103: -6563 | Z103: -0.1446678129 | AA103: 262 | AB103: 0 | AD103: 39203 | AE103: HIGHLAND
A104: 17401 | B104: HIGHLINE | C104: 0 | D104: 0 | E104: =IFERROR(VLOOKUP(A104,'DOE Formula counts'!$D$8:$T$325,10,FALSE),0) -> 21530.28626 | F104: =ROUND(E104/$E$5*Assumptions!$C$14*Assumptions!$C$29,0) -> 114829 | G104: =IFERROR(VLOOKUP(A104,'DOE Formula counts'!$D$8:$T$325,4,FALSE),0) -> 2863.235806 | H104: =ROUND(G104/$G$5*+Assumptions!$C$14*Assumptions!$C$30,0) -> 621752 | J104: 736581 | L104: 0 | M104: =IFERROR(VLOOKUP(A104,[1]ENROLLMENT!$A$5:$B$349,2,FALSE),0)*0 -> 0 | N104: =IFERROR(GETPIVOTDATA("Total W/O Preschool",'[1]Private 19-20'!$O$3,"District Code",A104),0)*0 -> 0 | P104: 736581 | Q104: 0 | R104: 736581 | T104: 0 | U104: 736581 | W104: =IFERROR(VLOOKUP($A104,'Allocation 2021-22 Final'!$A$7:$U$317,18,FALSE),0) -> 693326 | Y104: 43255 | Z104: 0.0623876791 | AA104: 9 | AB104: 0 | AD104: 17401 | AE104: HIGHLINE
A105: 06098 | B105: HOCKINSON | C105: 0 | D105: 0 | E105: =IFERROR(VLOOKUP(A105,'DOE Formula counts'!$D$8:$T$325,10,FALSE),0) -> 2101 | F105: =ROUND(E105/$E$5*Assumptions!$C$14*Assumptions!$C$29,0) -> 11205 | G105: =IFERROR(VLOOKUP(A105,'DOE Formula counts'!$D$8:$T$325,4,FALSE),0) -> 108 | H105: =ROUND(G105/$G$5*+Assumptions!$C$14*Assumptions!$C$30,0) -> 23452 | J105: 34657 | L105: 0 | M105: =IFERROR(VLOOKUP(A105,[1]ENROLLMENT!$A$5:$B$349,2,FALSE),0)*0 -> 0 | N105: =IFERROR(GETPIVOTDATA("Total W/O Preschool",'[1]Private 19-20'!$O$3,"District Code",A105),0)*0 -> 0 | P105: 34657 | Q105: 0 | R105: 34657 | T105: 0 | U105: 34657 | W105: =IFERROR(VLOOKUP($A105,'Allocation 2021-22 Final'!$A$7:$U$317,18,FALSE),0) -> 34777 | Y105: -120 | Z105: -0.003450556402 | AA105: 181 | AB105: 0 | AD105: 06098 | AE105: HOCKINSON
A106: 23404 | B106: HOOD CANAL | C106: 0 | D106: 0 | E106: =IFERROR(VLOOKUP(A106,'DOE Formula counts'!$D$8:$T$325,10,FALSE),0) -> 722 | F106: =ROUND(E106/$E$5*Assumptions!$C$14*Assumptions!$C$29,0) -> 3851 | G106: =IFERROR(VLOOKUP(A106,'DOE Formula counts'!$D$8:$T$325,4,FALSE),0) -> 112 | H106: =ROUND(G106/$G$5*+Assumptions!$C$14*Assumptions!$C$30,0) -> 24321 | J106: 28172 | L106: 0 | M106: =IFERROR(VLOOKUP(A106,[1]ENROLLMENT!$A$5:$B$349,2,FALSE),0)*0 -> 0 | N106: =IFERROR(GETPIVOTDATA("Total W/O Preschool",'[1]Private 19-20'!$O$3,"District Code",A106),0)*0 -> 0 | P106: 28172 | Q106: 0 | R106: 28172 | T106: 0 | U106: 28172 | W106: =IFERROR(VLOOKUP($A106,'Allocation 2021-22 Final'!$A$7:$U$317,18,FALSE),0) -> 28674 | Y106: -502 | Z106: -0.01750714933 | AA106: 203 | AB106: 0 | AD106: 23404 | AE106: HOOD CANAL
A107: 14028 | B107: HOQUIAM | C107: 0 | D107: 0 | E107: =IFERROR(VLOOKUP(A107,'DOE Formula counts'!$D$8:$T$325,10,FALSE),0) -> 1841 | F107: =ROUND(E107/$E$5*Assumptions!$C$14*Assumptions!$C$29,0) -> 9819 | G107: =IFERROR(VLOOKUP(A107,'DOE Formula counts'!$D$8:$T$325,4,FALSE),0) -> 325 | H107: =ROUND(G107/$G$5*+Assumptions!$C$14*Assumptions!$C$30,0) -> 70574 | J107: 80393 | L107: 0 | M107: =IFERROR(VLOOKUP(A107,[1]ENROLLMENT!$A$5:$B$349,2,FALSE),0)*0 -> 0 | N107: =IFERROR(GETPIVOTDATA("Total W/O Preschool",'[1]Private 19-20'!$O$3,"District Code",A107),0)*0 -> 0 | P107: 80393 | Q107: 0 | R107: 80393 | T107: 0 | U107: 80393 | W107: =IFERROR(VLOOKUP($A107,'Allocation 2021-22 Final'!$A$7:$U$317,18,FALSE),0) -> 79275 | Y107: 1118 | Z107: 0.01410280669 | AA107: 133 | AB107: 0 | AD107: 14028 | AE107: HOQUIAM
A108: 27902 | B108: IMPACT COMMENCEMENT BAY CHARTER | C108: 0 | D108: 0 | E108: =IFERROR(VLOOKUP(A108,'DOE Formula counts'!$D$8:$T$325,10,FALSE),0) -> 338.5527671 | F108: =ROUND(E108/$E$5*Assumptions!$C$14*Assumptions!$C$29,0) -> 1806 | G108: =IFERROR(VLOOKUP(A108,'DOE Formula counts'!$D$8:$T$325,4,FALSE),0) -> 36.64092664 | H108: =ROUND(G108/$G$5*+Assumptions!$C$14*Assumptions!$C$30,0) -> 7957 | J108: 9763 | L108: 0 | M108: =IFERROR(VLOOKUP(A108,[1]ENROLLMENT!$A$5:$B$349,2,FALSE),0)*0 -> 0 | N108: =IFERROR(GETPIVOTDATA("Total W/O Preschool",'[1]Private 19-20'!$O$3,"District Code",A108),0)*0 -> 0 | P108: 9763 | Q108: 0 | R108: 9763 | T108: 0 | U108: 9763 | W108: =IFERROR(VLOOKUP($A108,'Allocation 2021-22 Final'!$A$7:$U$317,18,FALSE),0) -> 10818 | Y108: -1055 | Z108: -0.09752264744 | AA108: 221 | AB108: 0 | AD108: 27902 | AE108: IMPACT COMMENCEMENT BAY CHARTER
A109: 17911 | B109: IMPACT PUGET SOUND CHARTER | C109: 0 | D109: 0 | E109: =IFERROR(VLOOKUP(A109,'DOE Formula counts'!$D$8:$T$325,10,FALSE),0) -> 490.179935 | F109: =ROUND(E109/$E$5*Assumptions!$C$14*Assumptions!$C$29,0) -> 2614 | G109: =IFERROR(VLOOKUP(A109,'DOE Formula counts'!$D$8:$T$325,4,FALSE),0) -> 101.3204712 | H109: =ROUND(G109/$G$5*+Assumptions!$C$14*Assumptions!$C$30,0) -> 22002 | J109: 24616 | L109: 0 | M109: =IFERROR(VLOOKUP(A109,[1]ENROLLMENT!$A$5:$B$349,2,FALSE),0)*0 -> 0 | N109: =IFERROR(GETPIVOTDATA("Total W/O Preschool",'[1]Private 19-20'!$O$3,"District Code",A109),0)*0 -> 0 | P109: 24616 | Q109: 0 | R109: 24616 | T109: 0 | U109: 24616 | W109: =IFERROR(VLOOKUP($A109,'Allocation 2021-22 Final'!$A$7:$U$317,18,FALSE),0) -> 18055 | Y109: 6561 | Z109: 0.3633896428 | AA109: 68 | AB109: 0 | AD109: 17911 | AE109: IMPACT PUGET SOUND CHARTER
A110: 17916 | B110: IMPACT SALISH SEA CHARTER | C110: 0 | D110: 0 | E110: =IFERROR(VLOOKUP(A110,'DOE Formula counts'!$D$8:$T$325,10,FALSE),0) -> 240.3375305 | F110: =ROUND(E110/$E$5*Assumptions!$C$14*Assumptions!$C$29,0) -> 1282 | G110: =IFERROR(VLOOKUP(A110,'DOE Formula counts'!$D$8:$T$325,4,FALSE),0) -> 49.67790414 | H110: =ROUND(G110/$G$5*+Assumptions!$C$14*Assumptions!$C$30,0) -> 10788 | J110: 12070 | L110: 0 | M110: =IFERROR(VLOOKUP(A110,[1]ENROLLMENT!$A$5:$B$349,2,FALSE),0)*0 -> 0 | N110: =IFERROR(GETPIVOTDATA("Total W/O Preschool",'[1]Private 19-20'!$O$3,"District Code",A110),0)*0 -> 0 | P110: 12070 | Q110: 0 | R110: 12070 | T110: 0 | U110: 12070 | W110: =IFERROR(VLOOKUP($A110,'Allocation 2021-22 Final'!$A$7:$U$317,18,FALSE),0) -> 3611 | Y110: 8459 | Z110: 2.342564387 | AA110: 56 | AB110: 0 | AD110: 17916 | AE110: IMPACT SALISH SEA CHARTER
A111: 10070 | B111: INCHELIUM | C111: 0 | D111: 0 | E111: =IFERROR(VLOOKUP(A111,'DOE Formula counts'!$D$8:$T$325,10,FALSE),0) -> 190 | F111: =ROUND(E111/$E$5*Assumptions!$C$14*Assumptions!$C$29,0) -> 1013 | G111: =IFERROR(VLOOKUP(A111,'DOE Formula counts'!$D$8:$T$325,4,FALSE),0) -> 47 | H111: =ROUND(G111/$G$5*+Assumptions!$C$14*Assumptions!$C$30,0) -> 10206 | J111: 11219 | L111: 0 | M111: =IFERROR(VLOOKUP(A111,[1]ENROLLMENT!$A$5:$B$349,2,FALSE),0)*0 -> 0 | N111: =IFERROR(GETPIVOTDATA("Total W/O Preschool",'[1]Private 19-20'!$O$3,"District Code",A111),0)*0 -> 0 | P111: 11219 | Q111: 0 | R111: 11219 | T111: 0 | U111: 11219 | W111: =IFERROR(VLOOKUP($A111,'Allocation 2021-22 Final'!$A$7:$U$317,18,FALSE),0) -> 12744 | Y111: -1525 | Z111: -0.1196641557 | AA111: 229 | AB111: 0 | AD111: 10070 | AE111: INCHELIUM
A112: 31063 | B112: INDEX | C112: 0 | D112: 0 | E112: =IFERROR(VLOOKUP(A112,'DOE Formula counts'!$D$8:$T$325,10,FALSE),0) -> 43 | F112: =ROUND(E112/$E$5*Assumptions!$C$14*Assumptions!$C$29,0) -> 229 | G112: =IFERROR(VLOOKUP(A112,'DOE Formula counts'!$D$8:$T$325,4,FALSE),0) -> 12 | H112: =ROUND(G112/$G$5*+Assumptions!$C$14*Assumptions!$C$30,0) -> 2606 | J112: 2835 | L112: 0 | M112: =IFERROR(VLOOKUP(A112,[1]ENROLLMENT!$A$5:$B$349,2,FALSE),0)*0 -> 0 | N112: =IFERROR(GETPIVOTDATA("Total W/O Preschool",'[1]Private 19-20'!$O$3,"District Code",A112),0)*0 -> 0 | P112: 2835 | Q112: 0 | R112: 2835 | T112: 0 | U112: 2835 | W112: =IFERROR(VLOOKUP($A112,'Allocation 2021-22 Final'!$A$7:$U$317,18,FALSE),0) -> 2618 | Y112: 217 | Z112: 0.08288770053 | AA112: 167 | AB112: 0 | AD112: 31063 | AE112: INDEX
A113: 17411 | B113: ISSAQUAH | C113: 0 | D113: 0 | E113: =IFERROR(VLOOKUP(A113,'DOE Formula counts'!$D$8:$T$325,10,FALSE),0) -> 22118 | F113: =ROUND(E113/$E$5*Assumptions!$C$14*Assumptions!$C$29,0) -> 117963 | G113: =IFERROR(VLOOKUP(A113,'DOE Formula counts'!$D$8:$T$325,4,FALSE),0) -> 728 | H113: =ROUND(G113/$G$5*+Assumptions!$C$14*Assumptions!$C$30,0) -> 158085 | J113: 276048 | L113: 0 | M113: =IFERROR(VLOOKUP(A113,[1]ENROLLMENT!$A$5:$B$349,2,FALSE),0)*0 -> 0 | N113: =IFERROR(GETPIVOTDATA("Total W/O Preschool",'[1]Private 19-20'!$O$3,"District Code",A113),0)*0 -> 0 | P113: 276048 | Q113: 0 | R113: 276048 | T113: 0 | U113: 276048 | W113: =IFERROR(VLOOKUP($A113,'Allocation 2021-22 Final'!$A$7:$U$317,18,FALSE),0) -> 266993 | Y113: 9055 | Z113: 0.03391474683 | AA113: 52 | AB113: 0 | AD113: 17411 | AE113: ISSAQUAH
A114: 11056 | B114: KAHLOTUS | C114: 0 | D114: 0 | E114: =IFERROR(VLOOKUP(A114,'DOE Formula counts'!$D$8:$T$325,10,FALSE),0) -> 90 | F114: =ROUND(E114/$E$5*Assumptions!$C$14*Assumptions!$C$29,0) -> 480 | G114: =IFERROR(VLOOKUP(A114,'DOE Formula counts'!$D$8:$T$325,4,FALSE),0) -> 10 | H114: =ROUND(G114/$G$5*+Assumptions!$C$14*Assumptions!$C$30,0) -> 2171 | J114: 2651 | L114: 0 | M114: =IFERROR(VLOOKUP(A114,[1]ENROLLMENT!$A$5:$B$349,2,FALSE),0)*0 -> 0 | N114: =IFERROR(GETPIVOTDATA("Total W/O Preschool",'[1]Private 19-20'!$O$3,"District Code",A114),0)*0 -> 0 | P114: 2651 | Q114: 0 | R114: 2651 | T114: 0 | U114: 2651 | W114: =IFERROR(VLOOKUP($A114,'Allocation 2021-22 Final'!$A$7:$U$317,18,FALSE),0) -> 2267 | Y114: 384 | Z114: 0.1693868549 | AA114: 161 | AB114: 0 | AD114: 11056 | AE114: KAHLOTUS
A115: 08402 | B115: KALAMA | C115: 0 | D115: 0 | E115: =IFERROR(VLOOKUP(A115,'DOE Formula counts'!$D$8:$T$325,10,FALSE),0) -> 1155 | F115: =ROUND(E115/$E$5*Assumptions!$C$14*Assumptions!$C$29,0) -> 6160 | G115: =IFERROR(VLOOKUP(A115,'DOE Formula counts'!$D$8:$T$325,4,FALSE),0) -> 95 | H115: =ROUND(G115/$G$5*+Assumptions!$C$14*Assumptions!$C$30,0) -> 20629 | J115: 26789 | L115: 0 | M115: =IFERROR(VLOOKUP(A115,[1]ENROLLMENT!$A$5:$B$349,2,FALSE),0)*0 -> 0 | N115: =IFERROR(GETPIVOTDATA("Total W/O Preschool",'[1]Private 19-20'!$O$3,"District Code",A115),0)*0 -> 0 | P115: 26789 | Q115: 0 | R115: 26789 | T115: 0 | U115: 26789 | W115: =IFERROR(VLOOKUP($A115,'Allocation 2021-22 Final'!$A$7:$U$317,18,FALSE),0) -> 21999 | Y115: 4790 | Z115: 0.2177371699 | AA115: 81 | AB115: 0 | AD115: 08402 | AE115: KALAMA
A116: 10003 | B116: KELLER | C116: 0 | D116: 0 | E116: =IFERROR(VLOOKUP(A116,'DOE Formula counts'!$D$8:$T$325,10,FALSE),0) -> 73 | F116: =ROUND(E116/$E$5*Assumptions!$C$14*Assumptions!$C$29,0) -> 389 | G116: =IFERROR(VLOOKUP(A116,'DOE Formula counts'!$D$8:$T$325,4,FALSE),0) -> 24 | H116: =ROUND(G116/$G$5*+Assumptions!$C$14*Assumptions!$C$30,0) -> 5212 | J116: 5601 | L116: 0 | M116: =IFERROR(VLOOKUP(A116,[1]ENROLLMENT!$A$5:$B$349,2,FALSE),0)*0 -> 0 | N116: =IFERROR(GETPIVOTDATA("Total W/O Preschool",'[1]Private 19-20'!$O$3,"District Code",A116),0)*0 -> 0 | P116: 5601 | Q116: 0 | R116: 5601 | T116: 0 | U116: 5601 | W116: =IFERROR(VLOOKUP($A116,'Allocation 2021-22 Final'!$A$7:$U$317,18,FALSE),0) -> 6351 | Y116: -750 | Z116: -0.1180916391 | AA116: 213 | AB116: 0 | AD116: 10003 | AE116: KELLER
A117: 08458 | B117: KELSO | C117: 0 | D117: 0 | E117: =IFERROR(VLOOKUP(A117,'DOE Formula counts'!$D$8:$T$325,10,FALSE),0) -> 5505 | F117: =ROUND(E117/$E$5*Assumptions!$C$14*Assumptions!$C$29,0) -> 29360 | G117: =IFERROR(VLOOKUP(A117,'DOE Formula counts'!$D$8:$T$325,4,FALSE),0) -> 747 | H117: =ROUND(G117/$G$5*+Assumptions!$C$14*Assumptions!$C$30,0) -> 162211 | J117: 191571 | L117: 0 | M117: =IFERROR(VLOOKUP(A117,[1]ENROLLMENT!$A$5:$B$349,2,FALSE),0)*0 -> 0 | N117: =IFERROR(GETPIVOTDATA("Total W/O Preschool",'[1]Private 19-20'!$O$3,"District Code",A117),0)*0 -> 0 | P117: 191571 | Q117: 0 | R117: 191571 | T117: 0 | U117: 191571 | W117: =IFERROR(VLOOKUP($A117,'Allocation 2021-22 Final'!$A$7:$U$317,18,FALSE),0) -> 198426 | Y117: -6855 | Z117: -0.03454688398 | AA117: 264 | AB117: 0 | AD117: 08458 | AE117: KELSO
A118: 03017 | B118: KENNEWICK | C118: 0 | D118: 0 | E118: =IFERROR(VLOOKUP(A118,'DOE Formula counts'!$D$8:$T$325,10,FALSE),0) -> 19859 | F118: =ROUND(E118/$E$5*Assumptions!$C$14*Assumptions!$C$29,0) -> 105915 | G118: =IFERROR(VLOOKUP(A118,'DOE Formula counts'!$D$8:$T$325,4,FALSE),0) -> 2238 | H118: =ROUND(G118/$G$5*+Assumptions!$C$14*Assumptions!$C$30,0) -> 485982 | J118: 591897 | L118: 0 | M118: =IFERROR(VLOOKUP(A118,[1]ENROLLMENT!$A$5:$B$349,2,FALSE),0)*0 -> 0 | N118: =IFERROR(GETPIVOTDATA("Total W/O Preschool",'[1]Private 19-20'!$O$3,"District Code",A118),0)*0 -> 0 | P118: 591897 | Q118: 0 | R118: 591897 | T118: 0 | U118: 591897 | W118: =IFERROR(VLOOKUP($A118,'Allocation 2021-22 Final'!$A$7:$U$317,18,FALSE),0) -> 792733 | Y118: -200836 | Z118: -0.2533463348 | AA118: 315 | AB118: 0 | AD118: 03017 | AE118: KENNEWICK
A119: 17415 | B119: KENT | C119: 0 | D119: 0 | E119: =IFERROR(VLOOKUP(A119,'DOE Formula counts'!$D$8:$T$325,10,FALSE),0) -> 32968 | F119: =ROUND(E119/$E$5*Assumptions!$C$14*Assumptions!$C$29,0) -> 175830 | G119: =IFERROR(VLOOKUP(A119,'DOE Formula counts'!$D$8:$T$325,4,FALSE),0) -> 3555 | H119: =ROUND(G119/$G$5*+Assumptions!$C$14*Assumptions!$C$30,0) -> 771968 | J119: 947798 | L119: 0 | M119: =IFERROR(VLOOKUP(A119,[1]ENROLLMENT!$A$5:$B$349,2,FALSE),0)*0 -> 0 | N119: =IFERROR(GETPIVOTDATA("Total W/O Preschool",'[1]Private 19-20'!$O$3,"District Code",A119),0)*0 -> 0 | P119: 947798 | Q119: 0 | R119: 947798 | T119: 0 | U119: 947798 | W119: =IFERROR(VLOOKUP($A119,'Allocation 2021-22 Final'!$A$7:$U$317,18,FALSE),0) -> 891193 | Y119: 56605 | Z119: 0.06351598363 | AA119: 5 | AB119: 0 | AD119: 17415 | AE119: KENT
A120: 33212 | B120: KETTLE FALLS | C120: 0 | D120: 0 | E120: =IFERROR(VLOOKUP(A120,'DOE Formula counts'!$D$8:$T$325,10,FALSE),0) -> 790 | F120: =ROUND(E120/$E$5*Assumptions!$C$14*Assumptions!$C$29,0) -> 4213 | G120: =IFERROR(VLOOKUP(A120,'DOE Formula counts'!$D$8:$T$325,4,FALSE),0) -> 155 | H120: =ROUND(G120/$G$5*+Assumptions!$C$14*Assumptions!$C$30,0) -> 33658 | J120: 37871 | L120: 0 | M120: =IFERROR(VLOOKUP(A120,[1]ENROLLMENT!$A$5:$B$349,2,FALSE),0)*0 -> 0 | N120: =IFERROR(GETPIVOTDATA("Total W/O Preschool",'[1]Private 19-20'!$O$3,"District Code",A120),0)*0 -> 0 | P120: 37871 | Q120: 0 | R120: 37871 | T120: 0 | U120: 37871 | W120: =IFERROR(VLOOKUP($A120,'Allocation 2021-22 Final'!$A$7:$U$317,18,FALSE),0) -> 29850 | Y120: 8021 | Z120: 0.2687102178 | AA120: 59 | AB120: 0 | AD120: 33212 | AE120: KETTLE FALLS
A121: 03052 | B121: KIONA-BENTON | C121: 0 | D121: 0 | E121: =IFERROR(VLOOKUP(A121,'DOE Formula counts'!$D$8:$T$325,10,FALSE),0) -> 1956 | F121: =ROUND(E121/$E$5*Assumptions!$C$14*Assumptions!$C$29,0) -> 10432 | G121: =IFERROR(VLOOKUP(A121,'DOE Formula counts'!$D$8:$T$325,4,FALSE),0) -> 216 | H121: =ROUND(G121/$G$5*+Assumptions!$C$14*Assumptions!$C$30,0) -> 46904 | J121: 57336 | L121: 0 | M121: =IFERROR(VLOOKUP(A121,[1]ENROLLMENT!$A$5:$B$349,2,FALSE),0)*0 -> 0 | N121: =IFERROR(GETPIVOTDATA("Total W/O Preschool",'[1]Private 19-20'!$O$3,"District Code",A121),0)*0 -> 0 | P121: 57336 | Q121: 0 | R121: 57336 | T121: 0 | U121: 57336 | W121: =IFERROR(VLOOKUP($A121,'Allocation 2021-22 Final'!$A$7:$U$317,18,FALSE),0) -> 56042 | Y121: 1294 | Z121: 0.02308982549 | AA121: 132 | AB121: 0 | AD121: 03052 | AE121: KIONA-BENTON
A122: 19403 | B122: KITTITAS | C122: 0 | D122: 0 | E122: =IFERROR(VLOOKUP(A122,'DOE Formula counts'!$D$8:$T$325,10,FALSE),0) -> 806 | F122: =ROUND(E122/$E$5*Assumptions!$C$14*Assumptions!$C$29,0) -> 4299 | G122: =IFERROR(VLOOKUP(A122,'DOE Formula counts'!$D$8:$T$325,4,FALSE),0) -> 59 | H122: =ROUND(G122/$G$5*+Assumptions!$C$14*Assumptions!$C$30,0) -> 12812 | J122: 17111 | L122: 0 | M122: =IFERROR(VLOOKUP(A122,[1]ENROLLMENT!$A$5:$B$349,2,FALSE),0)*0 -> 0 | N122: =IFERROR(GETPIVOTDATA("Total W/O Preschool",'[1]Private 19-20'!$O$3,"District Code",A122),0)*0 -> 0 | P122: 17111 | Q122: 0 | R122: 17111 | T122: 0 | U122: 17111 | W122: =IFERROR(VLOOKUP($A122,'Allocation 2021-22 Final'!$A$7:$U$317,18,FALSE),0) -> 16183 | Y122: 928 | Z122: 0.05734412655 | AA122: 140 | AB122: 0 | AD122: 19403 | AE122: KITTITAS
A123: 20402 | B123: KLICKITAT | C123: 0 | D123: 0 | E123: =IFERROR(VLOOKUP(A123,'DOE Formula counts'!$D$8:$T$325,10,FALSE),0) -> 79 | F123: =ROUND(E123/$E$5*Assumptions!$C$14*Assumptions!$C$29,0) -> 421 | G123: =IFERROR(VLOOKUP(A123,'DOE Formula counts'!$D$8:$T$325,4,FALSE),0) -> 10 | H123: =ROUND(G123/$G$5*+Assumptions!$C$14*Assumptions!$C$30,0) -> 2171 | J123: 2592 | L123: 0 | M123: =IFERROR(VLOOKUP(A123,[1]ENROLLMENT!$A$5:$B$349,2,FALSE),0)*0 -> 0 | N123: =IFERROR(GETPIVOTDATA("Total W/O Preschool",'[1]Private 19-20'!$O$3,"District Code",A123),0)*0 -> 0 | P123: 2592 | Q123: 0 | R123: 2592 | T123: 0 | U123: 2592 | W123: =IFERROR(VLOOKUP($A123,'Allocation 2021-22 Final'!$A$7:$U$317,18,FALSE),0) -> 3603 | Y123: -1011 | Z123: -0.2805995004 | AA123: 220 | AB123: 0 | AD123: 20402 | AE123: KLICKITAT
A124: 06101 | B124: LA CENTER | C124: 0 | D124: 0 | E124: =IFERROR(VLOOKUP(A124,'DOE Formula counts'!$D$8:$T$325,10,FALSE),0) -> 1851 | F124: =ROUND(E124/$E$5*Assumptions!$C$14*Assumptions!$C$29,0) -> 9872 | G124: =IFERROR(VLOOKUP(A124,'DOE Formula counts'!$D$8:$T$325,4,FALSE),0) -> 87 | H124: =ROUND(G124/$G$5*+Assumptions!$C$14*Assumptions!$C$30,0) -> 18892 | J124: 28764 | L124: 0 | M124: =IFERROR(VLOOKUP(A124,[1]ENROLLMENT!$A$5:$B$349,2,FALSE),0)*0 -> 0 | N124: =IFERROR(GETPIVOTDATA("Total W/O Preschool",'[1]Private 19-20'!$O$3,"District Code",A124),0)*0 -> 0 | P124: 28764 | Q124: 0 | R124: 28764 | T124: 0 | U124: 28764 | W124: =IFERROR(VLOOKUP($A124,'Allocation 2021-22 Final'!$A$7:$U$317,18,FALSE),0) -> 26276 | Y124: 2488 | Z124: 0.094687167 | AA124: 109 | AB124: 0 | AD124: 06101 | AE124: LA CENTER
A125: 29311 | B125: LA CONNER | C125: 0 | D125: 0 | E125: =IFERROR(VLOOKUP(A125,'DOE Formula counts'!$D$8:$T$325,10,FALSE),0) -> 621 | F125: =ROUND(E125/$E$5*Assumptions!$C$14*Assumptions!$C$29,0) -> 3312 | G125: =IFERROR(VLOOKUP(A125,'DOE Formula counts'!$D$8:$T$325,4,FALSE),0) -> 64 | H125: =ROUND(G125/$G$5*+Assumptions!$C$14*Assumptions!$C$30,0) -> 13898 | J125: 17210 | L125: 0 | M125: =IFERROR(VLOOKUP(A125,[1]ENROLLMENT!$A$5:$B$349,2,FALSE),0)*0 -> 0 | N125: =IFERROR(GETPIVOTDATA("Total W/O Preschool",'[1]Private 19-20'!$O$3,"District Code",A125),0)*0 -> 0 | P125: 17210 | Q125: 0 | R125: 17210 | T125: 0 | U125: 17210 | W125: =IFERROR(VLOOKUP($A125,'Allocation 2021-22 Final'!$A$7:$U$317,18,FALSE),0) -> 20432 | Y125: -3222 | Z125: -0.1576938136 | AA125: 245 | AB125: 0 | AD125: 29311 | AE125: LA CONNER
A126: 38126 | B126: LACROSSE | C126: 0 | D126: 0 | E126: =IFERROR(VLOOKUP(A126,'DOE Formula counts'!$D$8:$T$325,10,FALSE),0) -> 113 | F126: =ROUND(E126/$E$5*Assumptions!$C$14*Assumptions!$C$29,0) -> 603 | G126: =IFERROR(VLOOKUP(A126,'DOE Formula counts'!$D$8:$T$325,4,FALSE),0) -> 21 | H126: =ROUND(G126/$G$5*+Assumptions!$C$14*Assumptions!$C$30,0) -> 4560 | J126: 5163 | L126: 0 | M126: =IFERROR(VLOOKUP(A126,[1]ENROLLMENT!$A$5:$B$349,2,FALSE),0)*0 -> 0 | N126: =IFERROR(GETPIVOTDATA("Total W/O Preschool",'[1]Private 19-20'!$O$3,"District Code",A126),0)*0 -> 0 | P126: 5163 | Q126: 0 | R126: 5163 | T126: 0 | U126: 5163 | W126: =IFERROR(VLOOKUP($A126,'Allocation 2021-22 Final'!$A$7:$U$317,18,FALSE),0) -> 5780 | Y126: -617 | Z126: -0.1067474048 | AA126: 207 | AB126: 0 | AD126: 38126 | AE126: LACROSSE
A127: 04129 | B127: LAKE CHELAN | C127: 0 | D127: 0 | E127: =IFERROR(VLOOKUP(A127,'DOE Formula counts'!$D$8:$T$325,10,FALSE),0) -> 1258 | F127: =ROUND(E127/$E$5*Assumptions!$C$14*Assumptions!$C$29,0) -> 6709 | G127: =IFERROR(VLOOKUP(A127,'DOE Formula counts'!$D$8:$T$325,4,FALSE),0) -> 137 | H127: =ROUND(G127/$G$5*+Assumptions!$C$14*Assumptions!$C$30,0) -> 29750 | J127: 36459 | L127: 0 | M127: =IFERROR(VLOOKUP(A127,[1]ENROLLMENT!$A$5:$B$349,2,FALSE),0)*0 -> 0 | N127: =IFERROR(GETPIVOTDATA("Total W/O Preschool",'[1]Private 19-20'!$O$3,"District Code",A127),0)*0 -> 0 | P127: 36459 | Q127: 0 | R127: 36459 | T127: 0 | U127: 36459 | W127: =IFERROR(VLOOKUP($A127,'Allocation 2021-22 Final'!$A$7:$U$317,18,FALSE),0) -> 32002 | Y127: 4457 | Z127: 0.1392725455 | AA127: 88 | AB127: 0 | AD127: 04129 | AE127: LAKE CHELAN
A128: 14097 | B128: QUINAULT | C128: 0 | D128: 0 | E128: =IFERROR(VLOOKUP(A128,'DOE Formula counts'!$D$8:$T$325,10,FALSE),0) -> 204 | F128: =ROUND(E128/$E$5*Assumptions!$C$14*Assumptions!$C$29,0) -> 1088 | G128: =IFERROR(VLOOKUP(A128,'DOE Formula counts'!$D$8:$T$325,4,FALSE),0) -> 33 | H128: =ROUND(G128/$G$5*+Assumptions!$C$14*Assumptions!$C$30,0) -> 7166 | J128: 8254 | L128: 0 | M128: =IFERROR(VLOOKUP(A128,[1]ENROLLMENT!$A$5:$B$349,2,FALSE),0)*0 -> 0 | N128: =IFERROR(GETPIVOTDATA("Total W/O Preschool",'[1]Private 19-20'!$O$3,"District Code",A128),0)*0 -> 0 | P128: 8254 | Q128: 0 | R128: 8254 | T128: 0 | U128: 8254 | W128: =IFERROR(VLOOKUP($A128,'Allocation 2021-22 Final'!$A$7:$U$317,18,FALSE),0) -> 8058 | Y128: 196 | Z128: 0.02432365351 | AA128: 169 | AB128: 0 | AD128: 14097 | AE128: QUINAULT
A129: 31004 | B129: LAKE STEVENS | C129: 0 | D129: 0 | E129: =IFERROR(VLOOKUP(A129,'DOE Formula counts'!$D$8:$T$325,10,FALSE),0) -> 9156 | F129: =ROUND(E129/$E$5*Assumptions!$C$14*Assumptions!$C$29,0) -> 48832 | G129: =IFERROR(VLOOKUP(A129,'DOE Formula counts'!$D$8:$T$325,4,FALSE),0) -> 431 | H129: =ROUND(G129/$G$5*+Assumptions!$C$14*Assumptions!$C$30,0) -> 93592 | J129: 142424 | L129: 0 | M129: =IFERROR(VLOOKUP(A129,[1]ENROLLMENT!$A$5:$B$349,2,FALSE),0)*0 -> 0 | N129: =IFERROR(GETPIVOTDATA("Total W/O Preschool",'[1]Private 19-20'!$O$3,"District Code",A129),0)*0 -> 0 | P129: 142424 | Q129: 0 | R129: 142424 | T129: 0 | U129: 142424 | W129: =IFERROR(VLOOKUP($A129,'Allocation 2021-22 Final'!$A$7:$U$317,18,FALSE),0) -> 147576 | Y129: -5152 | Z129: -0.03491082561 | AA129: 255 | AB129: 0 | AD129: 31004 | AE129: LAKE STEVENS
A130: 17414 | B130: LAKE WASHINGTON | C130: 0 | D130: 0 | E130: =IFERROR(VLOOKUP(A130,'DOE Formula counts'!$D$8:$T$325,10,FALSE),0) -> 32329 | F130: =ROUND(E130/$E$5*Assumptions!$C$14*Assumptions!$C$29,0) -> 172422 | G130: =IFERROR(VLOOKUP(A130,'DOE Formula counts'!$D$8:$T$325,4,FALSE),0) -> 1046 | H130: =ROUND(G130/$G$5*+Assumptions!$C$14*Assumptions!$C$30,0) -> 227139 | J130: 399561 | L130: 0 | M130: =IFERROR(VLOOKUP(A130,[1]ENROLLMENT!$A$5:$B$349,2,FALSE),0)*0 -> 0 | N130: =IFERROR(GETPIVOTDATA("Total W/O Preschool",'[1]Private 19-20'!$O$3,"District Code",A130),0)*0 -> 0 | P130: 399561 | Q130: 0 | R130: 399561 | T130: 0 | U130: 399561 | W130: =IFERROR(VLOOKUP($A130,'Allocation 2021-22 Final'!$A$7:$U$317,18,FALSE),0) -> 383158 | Y130: 16403 | Z130: 0.04281001571 | AA130: 30 | AB130: 0 | AD130: 17414 | AE130: LAKE WASHINGTON
A131: 31306 | B131: LAKEWOOD | C131: 0 | D131: 0 | E131: =IFERROR(VLOOKUP(A131,'DOE Formula counts'!$D$8:$T$325,10,FALSE),0) -> 2741 | F131: =ROUND(E131/$E$5*Assumptions!$C$14*Assumptions!$C$29,0) -> 14619 | G131: =IFERROR(VLOOKUP(A131,'DOE Formula counts'!$D$8:$T$325,4,FALSE),0) -> 238 | H131: =ROUND(G131/$G$5*+Assumptions!$C$14*Assumptions!$C$30,0) -> 51682 | J131: 66301 | L131: 0 | M131: =IFERROR(VLOOKUP(A131,[1]ENROLLMENT!$A$5:$B$349,2,FALSE),0)*0 -> 0 | N131: =IFERROR(GETPIVOTDATA("Total W/O Preschool",'[1]Private 19-20'!$O$3,"District Code",A131),0)*0 -> 0 | P131: 66301 | Q131: 0 | R131: 66301 | T131: 0 | U131: 66301 | W131: =IFERROR(VLOOKUP($A131,'Allocation 2021-22 Final'!$A$7:$U$317,18,FALSE),0) -> 58640 | Y131: 7661 | Z131: 0.1306446112 | AA131: 61 | AB131: 0 | AD131: 31306 | AE131: LAKEWOOD
A132: 38264 | B132: LAMONT | C132: 0 | D132: 0 | E132: =IFERROR(VLOOKUP(A132,'DOE Formula counts'!$D$8:$T$325,10,FALSE),0) -> 32 | F132: =ROUND(E132/$E$5*Assumptions!$C$14*Assumptions!$C$29,0) -> 171 | G132: =IFERROR(VLOOKUP(A132,'DOE Formula counts'!$D$8:$T$325,4,FALSE),0) -> 6 | H132: =ROUND(G132/$G$5*+Assumptions!$C$14*Assumptions!$C$30,0) -> 1303 | J132: 1474 | L132: 0 | M132: =IFERROR(VLOOKUP(A132,[1]ENROLLMENT!$A$5:$B$349,2,FALSE),0)*0 -> 0 | N132: =IFERROR(GETPIVOTDATA("Total W/O Preschool",'[1]Private 19-20'!$O$3,"District Code",A132),0)*0 -> 0 | P132: 1474 | Q132: 0 | R132: 1474 | T132: 0 | U132: 1474 | W132: =IFERROR(VLOOKUP($A132,'Allocation 2021-22 Final'!$A$7:$U$317,18,FALSE),0) -> 1763 | Y132: -289 | Z132: -0.1639251276 | AA132: 192 | AB132: 0 | AD132: 38264 | AE132: LAMONT
A133: 32362 | B133: LIBERTY | C133: 0 | D133: 0 | E133: =IFERROR(VLOOKUP(A133,'DOE Formula counts'!$D$8:$T$325,10,FALSE),0) -> 812 | F133: =ROUND(E133/$E$5*Assumptions!$C$14*Assumptions!$C$29,0) -> 4331 | G133: =IFERROR(VLOOKUP(A133,'DOE Formula counts'!$D$8:$T$325,4,FALSE),0) -> 62 | H133: =ROUND(G133/$G$5*+Assumptions!$C$14*Assumptions!$C$30,0) -> 13463 | J133: 17794 | L133: 0 | M133: =IFERROR(VLOOKUP(A133,[1]ENROLLMENT!$A$5:$B$349,2,FALSE),0)*0 -> 0 | N133: =IFERROR(GETPIVOTDATA("Total W/O Preschool",'[1]Private 19-20'!$O$3,"District Code",A133),0)*0 -> 0 | P133: 17794 | Q133: 0 | R133: 17794 | T133: 0 | U133: 17794 | W133: =IFERROR(VLOOKUP($A133,'Allocation 2021-22 Final'!$A$7:$U$317,18,FALSE),0) -> 15507 | Y133: 2287 | Z133: 0.1474817824 | AA133: 112 | AB133: 0 | AD133: 32362 | AE133: LIBERTY
A134: 01158 | B134: LIND | C134: 0 | D134: 0 | E134: =IFERROR(VLOOKUP(A134,'DOE Formula counts'!$D$8:$T$325,10,FALSE),0) -> 293 | F134: =ROUND(E134/$E$5*Assumptions!$C$14*Assumptions!$C$29,0) -> 1563 | G134: =IFERROR(VLOOKUP(A134,'DOE Formula counts'!$D$8:$T$325,4,FALSE),0) -> 28 | H134: =ROUND(G134/$G$5*+Assumptions!$C$14*Assumptions!$C$30,0) -> 6080 | J134: 7643 | L134: 0 | M134: =IFERROR(VLOOKUP(A134,[1]ENROLLMENT!$A$5:$B$349,2,FALSE),0)*0 -> 0 | N134: =IFERROR(GETPIVOTDATA("Total W/O Preschool",'[1]Private 19-20'!$O$3,"District Code",A134),0)*0 -> 0 | P134: 7643 | Q134: 0 | R134: 7643 | T134: 0 | U134: 7643 | W134: =IFERROR(VLOOKUP($A134,'Allocation 2021-22 Final'!$A$7:$U$317,18,FALSE),0) -> 9739 | Y134: -2096 | Z134: -0.2152171681 | AA134: 238 | AB134: 0 | AD134: 01158 | AE134: LIND
A135: 08122 | B135: LONGVIEW | C135: 0 | D135: 0 | E135: =IFERROR(VLOOKUP(A135,'DOE Formula counts'!$D$8:$T$325,10,FALSE),0) -> 7634 | F135: =ROUND(E135/$E$5*Assumptions!$C$14*Assumptions!$C$29,0) -> 40715 | G135: =IFERROR(VLOOKUP(A135,'DOE Formula counts'!$D$8:$T$325,4,FALSE),0) -> 1213 | H135: =ROUND(G135/$G$5*+Assumptions!$C$14*Assumptions!$C$30,0) -> 263403 | J135: =ROUNDDOWN(+H135+F135+D135+C135+I135,0) -> 304118 | L135: =IF((M135+N135=0),0,+J135/(+M135+N135)) -> 0 | M135: =IFERROR(VLOOKUP(A135,[1]ENROLLMENT!$A$5:$B$349,2,FALSE),0)*0 -> 0 | N135: =IFERROR(GETPIVOTDATA("Total W/O Preschool",'[1]Private 19-20'!$O$3,"District Code",A135),0)*0 -> 0 | P135: =J135 -> 304118 | Q135: =-ROUND(P135/$P$5*$O$5,0) -> 0 | R135: =+J135+Q135+O135 -> 304118 | T135: =IF(S135>0,-ROUND((R135*(0.9-S135)),0),0) -> 0 | U135: =+R135+T135 -> 304118 | W135: =IFERROR(VLOOKUP($A135,'Allocation 2021-22 Final'!$A$7:$U$317,18,FALSE),0) -> 304649 | Y135: =+U135-W135 -> -531 | Z135: =IF(W135>0,Y135/W135,0) -> -0.001742989473 | AA135: =RANK(Y135,$Y$7:$Y$321,0) -> 206 | AB135: =(SUM(C135:D135)/U135) -> 0 | AD135: =+A135 -> 08122 | AE135: =+B135 -> LONGVIEW
A136: 33183 | B136: LOON LAKE | C136: 0 | D136: 0 | E136: =IFERROR(VLOOKUP(A136,'DOE Formula counts'!$D$8:$T$325,10,FALSE),0) -> 245 | F136: =ROUND(E136/$E$5*Assumptions!$C$14*Assumptions!$C$29,0) -> 1307 | G136: =IFERROR(VLOOKUP(A136,'DOE Formula counts'!$D$8:$T$325,4,FALSE),0) -> 54 | H136: =ROUND(G136/$G$5*+Assumptions!$C$14*Assumptions!$C$30,0) -> 11726 | J136: 13033 | L136: 0 | M136: =IFERROR(VLOOKUP(A136,[1]ENROLLMENT!$A$5:$B$349,2,FALSE),0)*0 -> 0 | N136: =IFERROR(GETPIVOTDATA("Total W/O Preschool",'[1]Private 19-20'!$O$3,"District Code",A136),0)*0 -> 0 | P136: 13033 | Q136: 0 | R136: 13033 | T136: 0 | U136: 13033 | W136: =IFERROR(VLOOKUP($A136,'Allocation 2021-22 Final'!$A$7:$U$317,18,FALSE),0) -> 10251 | Y136: 2782 | Z136: 0.2713881573 | AA136: 102 | AB136: 0 | AD136: 33183 | AE136: LOON LAKE
A137: 28144 | B137: LOPEZ | C137: 0 | D137: 0 | E137: =IFERROR(VLOOKUP(A137,'DOE Formula counts'!$D$8:$T$325,10,FALSE),0) -> 212 | F137: =ROUND(E137/$E$5*Assumptions!$C$14*Assumptions!$C$29,0) -> 1131 | G137: =IFERROR(VLOOKUP(A137,'DOE Formula counts'!$D$8:$T$325,4,FALSE),0) -> 32 | H137: =ROUND(G137/$G$5*+Assumptions!$C$14*Assumptions!$C$30,0) -> 6949 | J137: 8080 | L137: 0 | M137: =IFERROR(VLOOKUP(A137,[1]ENROLLMENT!$A$5:$B$349,2,FALSE),0)*0 -> 0 | N137: =IFERROR(GETPIVOTDATA("Total W/O Preschool",'[1]Private 19-20'!$O$3,"District Code",A137),0)*0 -> 0 | P137: 8080 | Q137: 0 | R137: 8080 | T137: 0 | U137: 8080 | W137: =IFERROR(VLOOKUP($A137,'Allocation 2021-22 Final'!$A$7:$U$317,18,FALSE),0) -> 8934 | Y137: -854 | Z137: -0.09558988135 | AA137: 217 | AB137: 0 | AD137: 28144 | AE137: LOPEZ
A138: 32903 | B138: LUMEN CHARTER | C138: 0 | D138: 0 | E138: =IFERROR(VLOOKUP(A138,'DOE Formula counts'!$D$8:$T$325,10,FALSE),0) -> 69.63175253 | F138: =ROUND(E138/$E$5*Assumptions!$C$14*Assumptions!$C$29,0) -> 371 | G138: =IFERROR(VLOOKUP(A138,'DOE Formula counts'!$D$8:$T$325,4,FALSE),0) -> 11.26566587 | H138: =ROUND(G138/$G$5*+Assumptions!$C$14*Assumptions!$C$30,0) -> 2446 | J138: 2817 | L138: 0 | M138: =IFERROR(VLOOKUP(A138,[1]ENROLLMENT!$A$5:$B$349,2,FALSE),0)*0 -> 0 | N138: =IFERROR(GETPIVOTDATA("Total W/O Preschool",'[1]Private 19-20'!$O$3,"District Code",A138),0)*0 -> 0 | P138: 2817 | Q138: 0 | R138: 2817 | T138: 0 | U138: 2817 | W138: =IFERROR(VLOOKUP($A138,'Allocation 2021-22 Final'!$A$7:$U$317,18,FALSE),0) -> 1996 | Y138: 821 | Z138: 0.4113226453 | AA138: 142 | AB138: 0 | AD138: 32903 | AE138: LUMEN CHARTER
A139: 20406 | B139: LYLE | C139: 0 | D139: 0 | E139: =IFERROR(VLOOKUP(A139,'DOE Formula counts'!$D$8:$T$325,10,FALSE),0) -> 401 | F139: =ROUND(E139/$E$5*Assumptions!$C$14*Assumptions!$C$29,0) -> 2139 | G139: =IFERROR(VLOOKUP(A139,'DOE Formula counts'!$D$8:$T$325,4,FALSE),0) -> 73 | H139: =ROUND(G139/$G$5*+Assumptions!$C$14*Assumptions!$C$30,0) -> 15852 | J139: 17991 | L139: 0 | M139: =IFERROR(VLOOKUP(A139,[1]ENROLLMENT!$A$5:$B$349,2,FALSE),0)*0 -> 0 | N139: =IFERROR(GETPIVOTDATA("Total W/O Preschool",'[1]Private 19-20'!$O$3,"District Code",A139),0)*0 -> 0 | P139: 17991 | Q139: 0 | R139: 17991 | T139: 0 | U139: 17991 | W139: =IFERROR(VLOOKUP($A139,'Allocation 2021-22 Final'!$A$7:$U$317,18,FALSE),0) -> 25006 | Y139: -7015 | Z139: -0.2805326722 | AA139: 266 | AB139: 0 | AD139: 20406 | AE139: LYLE
A140: 37504 | B140: LYNDEN | C140: 0 | D140: 0 | E140: =IFERROR(VLOOKUP(A140,'DOE Formula counts'!$D$8:$T$325,10,FALSE),0) -> 3851 | F140: =ROUND(E140/$E$5*Assumptions!$C$14*Assumptions!$C$29,0) -> 20539 | G140: =IFERROR(VLOOKUP(A140,'DOE Formula counts'!$D$8:$T$325,4,FALSE),0) -> 232 | H140: =ROUND(G140/$G$5*+Assumptions!$C$14*Assumptions!$C$30,0) -> 50379 | J140: 70918 | L140: 0 | M140: =IFERROR(VLOOKUP(A140,[1]ENROLLMENT!$A$5:$B$349,2,FALSE),0)*0 -> 0 | N140: =IFERROR(GETPIVOTDATA("Total W/O Preschool",'[1]Private 19-20'!$O$3,"District Code",A140),0)*0 -> 0 | P140: 70918 | Q140: 0 | R140: 70918 | T140: 0 | U140: 70918 | W140: =IFERROR(VLOOKUP($A140,'Allocation 2021-22 Final'!$A$7:$U$317,18,FALSE),0) -> 73844 | Y140: -2926 | Z140: -0.03962407237 | AA140: 243 | AB140: 0 | AD140: 37504 | AE140: LYNDEN
A141: 39120 | B141: MABTON | C141: 0 | D141: 0 | E141: =IFERROR(VLOOKUP(A141,'DOE Formula counts'!$D$8:$T$325,10,FALSE),0) -> 979 | F141: =ROUND(E141/$E$5*Assumptions!$C$14*Assumptions!$C$29,0) -> 5221 | G141: =IFERROR(VLOOKUP(A141,'DOE Formula counts'!$D$8:$T$325,4,FALSE),0) -> 153 | H141: =ROUND(G141/$G$5*+Assumptions!$C$14*Assumptions!$C$30,0) -> 33224 | J141: 38445 | L141: 0 | M141: =IFERROR(VLOOKUP(A141,[1]ENROLLMENT!$A$5:$B$349,2,FALSE),0)*0 -> 0 | N141: =IFERROR(GETPIVOTDATA("Total W/O Preschool",'[1]Private 19-20'!$O$3,"District Code",A141),0)*0 -> 0 | P141: 38445 | Q141: 0 | R141: 38445 | T141: 0 | U141: 38445 | W141: =IFERROR(VLOOKUP($A141,'Allocation 2021-22 Final'!$A$7:$U$317,18,FALSE),0) -> 44845 | Y141: -6400 | Z141: -0.142713792 | AA141: 261 | AB141: 0 | AD141: 39120 | AE141: MABTON
A142: 09207 | B142: MANSFIELD | C142: 0 | D142: 0 | E142: =IFERROR(VLOOKUP(A142,'DOE Formula counts'!$D$8:$T$325,10,FALSE),0) -> 76 | F142: =ROUND(E142/$E$5*Assumptions!$C$14*Assumptions!$C$29,0) -> 405 | G142: =IFERROR(VLOOKUP(A142,'DOE Formula counts'!$D$8:$T$325,4,FALSE),0) -> 17 | H142: =ROUND(G142/$G$5*+Assumptions!$C$14*Assumptions!$C$30,0) -> 3692 | J142: 4097 | L142: 0 | M142: =IFERROR(VLOOKUP(A142,[1]ENROLLMENT!$A$5:$B$349,2,FALSE),0)*0 -> 0 | N142: =IFERROR(GETPIVOTDATA("Total W/O Preschool",'[1]Private 19-20'!$O$3,"District Code",A142),0)*0 -> 0 | P142: 4097 | Q142: 0 | R142: 4097 | T142: 0 | U142: 4097 | W142: =IFERROR(VLOOKUP($A142,'Allocation 2021-22 Final'!$A$7:$U$317,18,FALSE),0) -> 4988 | Y142: -891 | Z142: -0.1786287089 | AA142: 218 | AB142: 0 | AD142: 09207 | AE142: MANSFIELD
A143: 04019 | B143: MANSON | C143: 0 | D143: 0 | E143: =IFERROR(VLOOKUP(A143,'DOE Formula counts'!$D$8:$T$325,10,FALSE),0) -> 740 | F143: =ROUND(E143/$E$5*Assumptions!$C$14*Assumptions!$C$29,0) -> 3947 | G143: =IFERROR(VLOOKUP(A143,'DOE Formula counts'!$D$8:$T$325,4,FALSE),0) -> 96 | H143: =ROUND(G143/$G$5*+Assumptions!$C$14*Assumptions!$C$30,0) -> 20846 | J143: 24793 | L143: 0 | M143: =IFERROR(VLOOKUP(A143,[1]ENROLLMENT!$A$5:$B$349,2,FALSE),0)*0 -> 0 | N143: =IFERROR(GETPIVOTDATA("Total W/O Preschool",'[1]Private 19-20'!$O$3,"District Code",A143),0)*0 -> 0 | P143: 24793 | Q143: 0 | R143: 24793 | T143: 0 | U143: 24793 | W143: =IFERROR(VLOOKUP($A143,'Allocation 2021-22 Final'!$A$7:$U$317,18,FALSE),0) -> 13113 | Y143: 11680 | Z143: 0.8907191337 | AA143: 43 | AB143: 0 | AD143: 04019 | AE143: MANSON
A144: 23311 | B144: MARY M KNIGHT | C144: 0 | D144: 0 | E144: =IFERROR(VLOOKUP(A144,'DOE Formula counts'!$D$8:$T$325,10,FALSE),0) -> 271 | F144: =ROUND(E144/$E$5*Assumptions!$C$14*Assumptions!$C$29,0) -> 1445 | G144: =IFERROR(VLOOKUP(A144,'DOE Formula counts'!$D$8:$T$325,4,FALSE),0) -> 45 | H144: =ROUND(G144/$G$5*+Assumptions!$C$14*Assumptions!$C$30,0) -> 9772 | J144: 11217 | L144: 0 | M144: =IFERROR(VLOOKUP(A144,[1]ENROLLMENT!$A$5:$B$349,2,FALSE),0)*0 -> 0 | N144: =IFERROR(GETPIVOTDATA("Total W/O Preschool",'[1]Private 19-20'!$O$3,"District Code",A144),0)*0 -> 0 | P144: 11217 | Q144: 0 | R144: 11217 | T144: 0 | U144: 11217 | W144: =IFERROR(VLOOKUP($A144,'Allocation 2021-22 Final'!$A$7:$U$317,18,FALSE),0) -> 14757 | Y144: -3540 | Z144: -0.2398861557 | AA144: 249 | AB144: 0 | AD144: 23311 | AE144: MARY M KNIGHT
A145: 33207 | B145: MARY WALKER | C145: 0 | D145: 0 | E145: =IFERROR(VLOOKUP(A145,'DOE Formula counts'!$D$8:$T$325,10,FALSE),0) -> 590 | F145: =ROUND(E145/$E$5*Assumptions!$C$14*Assumptions!$C$29,0) -> 3147 | G145: =IFERROR(VLOOKUP(A145,'DOE Formula counts'!$D$8:$T$325,4,FALSE),0) -> 143 | H145: =ROUND(G145/$G$5*+Assumptions!$C$14*Assumptions!$C$30,0) -> 31052 | J145: 34199 | L145: 0 | M145: =IFERROR(VLOOKUP(A145,[1]ENROLLMENT!$A$5:$B$349,2,FALSE),0)*0 -> 0 | N145: =IFERROR(GETPIVOTDATA("Total W/O Preschool",'[1]Private 19-20'!$O$3,"District Code",A145),0)*0 -> 0 | P145: 34199 | Q145: 0 | R145: 34199 | T145: 0 | U145: 34199 | W145: =IFERROR(VLOOKUP($A145,'Allocation 2021-22 Final'!$A$7:$U$317,18,FALSE),0) -> 33148 | Y145: 1051 | Z145: 0.03170628696 | AA145: 136 | AB145: 0 | AD145: 33207 | AE145: MARY WALKER
A146: 31025 | B146: MARYSVILLE | C146: 0 | D146: 0 | E146: =IFERROR(VLOOKUP(A146,'DOE Formula counts'!$D$8:$T$325,10,FALSE),0) -> 14004 | F146: =ROUND(E146/$E$5*Assumptions!$C$14*Assumptions!$C$29,0) -> 74688 | G146: =IFERROR(VLOOKUP(A146,'DOE Formula counts'!$D$8:$T$325,4,FALSE),0) -> 1098 | H146: =ROUND(G146/$G$5*+Assumptions!$C$14*Assumptions!$C$30,0) -> 238431 | J146: 313119 | L146: 0 | M146: =IFERROR(VLOOKUP(A146,[1]ENROLLMENT!$A$5:$B$349,2,FALSE),0)*0 -> 0 | N146: =IFERROR(GETPIVOTDATA("Total W/O Preschool",'[1]Private 19-20'!$O$3,"District Code",A146),0)*0 -> 0 | P146: 313119 | Q146: 0 | R146: 313119 | T146: 0 | U146: 313119 | W146: =IFERROR(VLOOKUP($A146,'Allocation 2021-22 Final'!$A$7:$U$317,18,FALSE),0) -> 310512 | Y146: 2607 | Z146: 0.00839581079 | AA146: 106 | AB146: 0 | AD146: 31025 | AE146: MARYSVILLE
A147: 14065 | B147: MCCLEARY | C147: 0 | D147: 0 | E147: =IFERROR(VLOOKUP(A147,'DOE Formula counts'!$D$8:$T$325,10,FALSE),0) -> 518 | F147: =ROUND(E147/$E$5*Assumptions!$C$14*Assumptions!$C$29,0) -> 2763 | G147: =IFERROR(VLOOKUP(A147,'DOE Formula counts'!$D$8:$T$325,4,FALSE),0) -> 48 | H147: =ROUND(G147/$G$5*+Assumptions!$C$14*Assumptions!$C$30,0) -> 10423 | J147: 13186 | L147: 0 | M147: =IFERROR(VLOOKUP(A147,[1]ENROLLMENT!$A$5:$B$349,2,FALSE),0)*0 -> 0 | N147: =IFERROR(GETPIVOTDATA("Total W/O Preschool",'[1]Private 19-20'!$O$3,"District Code",A147),0)*0 -> 0 | P147: 13186 | Q147: 0 | R147: 13186 | T147: 0 | U147: 13186 | W147: =IFERROR(VLOOKUP($A147,'Allocation 2021-22 Final'!$A$7:$U$317,18,FALSE),0) -> 12725 | Y147: 461 | Z147: 0.03622789784 | AA147: 156 | AB147: 0 | AD147: 14065 | AE147: MCCLEARY
A148: 32354 | B148: MEAD | C148: 0 | D148: 0 | E148: =IFERROR(VLOOKUP(A148,'DOE Formula counts'!$D$8:$T$325,10,FALSE),0) -> 11133 | F148: =ROUND(E148/$E$5*Assumptions!$C$14*Assumptions!$C$29,0) -> 59376 | G148: =IFERROR(VLOOKUP(A148,'DOE Formula counts'!$D$8:$T$325,4,FALSE),0) -> 959 | H148: =ROUND(G148/$G$5*+Assumptions!$C$14*Assumptions!$C$30,0) -> 208247 | J148: 267623 | L148: 0 | M148: =IFERROR(VLOOKUP(A148,[1]ENROLLMENT!$A$5:$B$349,2,FALSE),0)*0 -> 0 | N148: =IFERROR(GETPIVOTDATA("Total W/O Preschool",'[1]Private 19-20'!$O$3,"District Code",A148),0)*0 -> 0 | P148: 267623 | Q148: 0 | R148: 267623 | T148: 0 | U148: 267623 | W148: =IFERROR(VLOOKUP($A148,'Allocation 2021-22 Final'!$A$7:$U$317,18,FALSE),0) -> 228576 | Y148: 39047 | Z148: 0.1708272085 | AA148: 12 | AB148: 0 | AD148: 32354 | AE148: MEAD
A149: 32326 | B149: MEDICAL LAKE | C149: 0 | D149: 0 | E149: =IFERROR(VLOOKUP(A149,'DOE Formula counts'!$D$8:$T$325,10,FALSE),0) -> 2117 | F149: =ROUND(E149/$E$5*Assumptions!$C$14*Assumptions!$C$29,0) -> 11291 | G149: =IFERROR(VLOOKUP(A149,'DOE Formula counts'!$D$8:$T$325,4,FALSE),0) -> 198 | H149: =ROUND(G149/$G$5*+Assumptions!$C$14*Assumptions!$C$30,0) -> 42996 | J149: 54287 | L149: 0 | M149: =IFERROR(VLOOKUP(A149,[1]ENROLLMENT!$A$5:$B$349,2,FALSE),0)*0 -> 0 | N149: =IFERROR(GETPIVOTDATA("Total W/O Preschool",'[1]Private 19-20'!$O$3,"District Code",A149),0)*0 -> 0 | P149: 54287 | Q149: 0 | R149: 54287 | T149: 0 | U149: 54287 | W149: =IFERROR(VLOOKUP($A149,'Allocation 2021-22 Final'!$A$7:$U$317,18,FALSE),0) -> 47186 | Y149: 7101 | Z149: 0.150489552 | AA149: 66 | AB149: 0 | AD149: 32326 | AE149: MEDICAL LAKE
A150: 17400 | B150: MERCER ISLAND | C150: 0 | D150: 0 | E150: =IFERROR(VLOOKUP(A150,'DOE Formula counts'!$D$8:$T$325,10,FALSE),0) -> 5048 | F150: =ROUND(E150/$E$5*Assumptions!$C$14*Assumptions!$C$29,0) -> 26923 | G150: =IFERROR(VLOOKUP(A150,'DOE Formula counts'!$D$8:$T$325,4,FALSE),0) -> 151 | H150: =ROUND(G150/$G$5*+Assumptions!$C$14*Assumptions!$C$30,0) -> 32790 | J150: 59713 | L150: 0 | M150: =IFERROR(VLOOKUP(A150,[1]ENROLLMENT!$A$5:$B$349,2,FALSE),0)*0 -> 0 | N150: =IFERROR(GETPIVOTDATA("Total W/O Preschool",'[1]Private 19-20'!$O$3,"District Code",A150),0)*0 -> 0 | P150: 59713 | Q150: 0 | R150: 59713 | T150: 0 | U150: 59713 | W150: =IFERROR(VLOOKUP($A150,'Allocation 2021-22 Final'!$A$7:$U$317,18,FALSE),0) -> 57874 | Y150: 1839 | Z150: 0.03177592701 | AA150: 120 | AB150: 0 | AD150: 17400 | AE150: MERCER ISLAND
A151: 37505 | B151: MERIDIAN | C151: 0 | D151: 0 | E151: =IFERROR(VLOOKUP(A151,'DOE Formula counts'!$D$8:$T$325,10,FALSE),0) -> 1738 | F151: =ROUND(E151/$E$5*Assumptions!$C$14*Assumptions!$C$29,0) -> 9269 | G151: =IFERROR(VLOOKUP(A151,'DOE Formula counts'!$D$8:$T$325,4,FALSE),0) -> 167 | H151: =ROUND(G151/$G$5*+Assumptions!$C$14*Assumptions!$C$30,0) -> 36264 | J151: 45533 | L151: 0 | M151: =IFERROR(VLOOKUP(A151,[1]ENROLLMENT!$A$5:$B$349,2,FALSE),0)*0 -> 0 | N151: =IFERROR(GETPIVOTDATA("Total W/O Preschool",'[1]Private 19-20'!$O$3,"District Code",A151),0)*0 -> 0 | P151: 45533 | Q151: 0 | R151: 45533 | T151: 0 | U151: 45533 | W151: =IFERROR(VLOOKUP($A151,'Allocation 2021-22 Final'!$A$7:$U$317,18,FALSE),0) -> 47334 | Y151: -1801 | Z151: -0.03804875988 | AA151: 235 | AB151: 0 | AD151: 37505 | AE151: MERIDIAN
A152: 24350 | B152: METHOW VALLEY | C152: 0 | D152: 0 | E152: =IFERROR(VLOOKUP(A152,'DOE Formula counts'!$D$8:$T$325,10,FALSE),0) -> 648 | F152: =ROUND(E152/$E$5*Assumptions!$C$14*Assumptions!$C$29,0) -> 3456 | G152: =IFERROR(VLOOKUP(A152,'DOE Formula counts'!$D$8:$T$325,4,FALSE),0) -> 106 | H152: =ROUND(G152/$G$5*+Assumptions!$C$14*Assumptions!$C$30,0) -> 23018 | J152: 26474 | L152: 0 | M152: =IFERROR(VLOOKUP(A152,[1]ENROLLMENT!$A$5:$B$349,2,FALSE),0)*0 -> 0 | N152: =IFERROR(GETPIVOTDATA("Total W/O Preschool",'[1]Private 19-20'!$O$3,"District Code",A152),0)*0 -> 0 | P152: 26474 | Q152: 0 | R152: 26474 | T152: 0 | U152: 26474 | W152: =IFERROR(VLOOKUP($A152,'Allocation 2021-22 Final'!$A$7:$U$317,18,FALSE),0) -> 24231 | Y152: 2243 | Z152: 0.09256737237 | AA152: 115 | AB152: 0 | AD152: 24350 | AE152: METHOW VALLEY
A153: 30031 | B153: MILL A | C153: 0 | D153: 0 | E153: =IFERROR(VLOOKUP(A153,'DOE Formula counts'!$D$8:$T$325,10,FALSE),0) -> 58 | F153: =ROUND(E153/$E$5*Assumptions!$C$14*Assumptions!$C$29,0) -> 309 | G153: =IFERROR(VLOOKUP(A153,'DOE Formula counts'!$D$8:$T$325,4,FALSE),0) -> 10 | H153: =ROUND(G153/$G$5*+Assumptions!$C$14*Assumptions!$C$30,0) -> 2171 | J153: 2480 | L153: 0 | M153: =IFERROR(VLOOKUP(A153,[1]ENROLLMENT!$A$5:$B$349,2,FALSE),0)*0 -> 0 | N153: =IFERROR(GETPIVOTDATA("Total W/O Preschool",'[1]Private 19-20'!$O$3,"District Code",A153),0)*0 -> 0 | P153: 2480 | Q153: 0 | R153: 2480 | T153: 0 | U153: 2480 | W153: =IFERROR(VLOOKUP($A153,'Allocation 2021-22 Final'!$A$7:$U$317,18,FALSE),0) -> 1712 | Y153: 768 | Z153: 0.4485981308 | AA153: 143 | AB153: 0 | AD153: 30031 | AE153: MILL A
A154: 31103 | B154: MONROE | C154: 0 | D154: 0 | E154: =IFERROR(VLOOKUP(A154,'DOE Formula counts'!$D$8:$T$325,10,FALSE),0) -> 7538 | F154: =ROUND(E154/$E$5*Assumptions!$C$14*Assumptions!$C$29,0) -> 40203 | G154: =IFERROR(VLOOKUP(A154,'DOE Formula counts'!$D$8:$T$325,4,FALSE),0) -> 329 | H154: =ROUND(G154/$G$5*+Assumptions!$C$14*Assumptions!$C$30,0) -> 71442 | J154: 111645 | L154: 0 | M154: =IFERROR(VLOOKUP(A154,[1]ENROLLMENT!$A$5:$B$349,2,FALSE),0)*0 -> 0 | N154: =IFERROR(GETPIVOTDATA("Total W/O Preschool",'[1]Private 19-20'!$O$3,"District Code",A154),0)*0 -> 0 | P154: 111645 | Q154: 0 | R154: 111645 | T154: 0 | U154: 111645 | W154: =IFERROR(VLOOKUP($A154,'Allocation 2021-22 Final'!$A$7:$U$317,18,FALSE),0) -> 112449 | Y154: -804 | Z154: -0.007149907958 | AA154: 214 | AB154: 0 | AD154: 31103 | AE154: MONROE
A155: 14066 | B155: MONTESANO | C155: 0 | D155: 0 | E155: =IFERROR(VLOOKUP(A155,'DOE Formula counts'!$D$8:$T$325,10,FALSE),0) -> 1316 | F155: =ROUND(E155/$E$5*Assumptions!$C$14*Assumptions!$C$29,0) -> 7019 | G155: =IFERROR(VLOOKUP(A155,'DOE Formula counts'!$D$8:$T$325,4,FALSE),0) -> 139 | H155: =ROUND(G155/$G$5*+Assumptions!$C$14*Assumptions!$C$30,0) -> 30184 | J155: 37203 | L155: 0 | M155: =IFERROR(VLOOKUP(A155,[1]ENROLLMENT!$A$5:$B$349,2,FALSE),0)*0 -> 0 | N155: =IFERROR(GETPIVOTDATA("Total W/O Preschool",'[1]Private 19-20'!$O$3,"District Code",A155),0)*0 -> 0 | P155: 37203 | Q155: 0 | R155: 37203 | T155: 0 | U155: 37203 | W155: =IFERROR(VLOOKUP($A155,'Allocation 2021-22 Final'!$A$7:$U$317,18,FALSE),0) -> 45444 | Y155: -8241 | Z155: -0.1813440718 | AA155: 270 | AB155: 0 | AD155: 14066 | AE155: MONTESANO
A156: 21214 | B156: MORTON | C156: 0 | D156: 0 | E156: =IFERROR(VLOOKUP(A156,'DOE Formula counts'!$D$8:$T$325,10,FALSE),0) -> 341 | F156: =ROUND(E156/$E$5*Assumptions!$C$14*Assumptions!$C$29,0) -> 1819 | G156: =IFERROR(VLOOKUP(A156,'DOE Formula counts'!$D$8:$T$325,4,FALSE),0) -> 59 | H156: =ROUND(G156/$G$5*+Assumptions!$C$14*Assumptions!$C$30,0) -> 12812 | J156: 14631 | L156: 0 | M156: =IFERROR(VLOOKUP(A156,[1]ENROLLMENT!$A$5:$B$349,2,FALSE),0)*0 -> 0 | N156: =IFERROR(GETPIVOTDATA("Total W/O Preschool",'[1]Private 19-20'!$O$3,"District Code",A156),0)*0 -> 0 | P156: 14631 | Q156: 0 | R156: 14631 | T156: 0 | U156: 14631 | W156: =IFERROR(VLOOKUP($A156,'Allocation 2021-22 Final'!$A$7:$U$317,18,FALSE),0) -> 11149 | Y156: 3482 | Z156: 0.3123150058 | AA156: 95 | AB156: 0 | AD156: 21214 | AE156: MORTON
A157: 13161 | B157: MOSES LAKE | C157: 0 | D157: 0 | E157: =IFERROR(VLOOKUP(A157,'DOE Formula counts'!$D$8:$T$325,10,FALSE),0) -> 9246 | F157: =ROUND(E157/$E$5*Assumptions!$C$14*Assumptions!$C$29,0) -> 49312 | G157: =IFERROR(VLOOKUP(A157,'DOE Formula counts'!$D$8:$T$325,4,FALSE),0) -> 1501 | H157: =ROUND(G157/$G$5*+Assumptions!$C$14*Assumptions!$C$30,0) -> 325942 | J157: 375254 | L157: 0 | M157: =IFERROR(VLOOKUP(A157,[1]ENROLLMENT!$A$5:$B$349,2,FALSE),0)*0 -> 0 | N157: =IFERROR(GETPIVOTDATA("Total W/O Preschool",'[1]Private 19-20'!$O$3,"District Code",A157),0)*0 -> 0 | P157: 375254 | Q157: 0 | R157: 375254 | T157: 0 | U157: 375254 | W157: =IFERROR(VLOOKUP($A157,'Allocation 2021-22 Final'!$A$7:$U$317,18,FALSE),0) -> 324703 | Y157: 50551 | Z157: 0.1556838095 | AA157: 7 | AB157: 0 | AD157: 13161 | AE157: MOSES LAKE
A158: 21206 | B158: MOSSYROCK | C158: 0 | D158: 0 | E158: =IFERROR(VLOOKUP(A158,'DOE Formula counts'!$D$8:$T$325,10,FALSE),0) -> 633 | F158: =ROUND(E158/$E$5*Assumptions!$C$14*Assumptions!$C$29,0) -> 3376 | G158: =IFERROR(VLOOKUP(A158,'DOE Formula counts'!$D$8:$T$325,4,FALSE),0) -> 82 | H158: =ROUND(G158/$G$5*+Assumptions!$C$14*Assumptions!$C$30,0) -> 17806 | J158: 21182 | L158: 0 | M158: =IFERROR(VLOOKUP(A158,[1]ENROLLMENT!$A$5:$B$349,2,FALSE),0)*0 -> 0 | N158: =IFERROR(GETPIVOTDATA("Total W/O Preschool",'[1]Private 19-20'!$O$3,"District Code",A158),0)*0 -> 0 | P158: 21182 | Q158: 0 | R158: 21182 | T158: 0 | U158: 21182 | W158: =IFERROR(VLOOKUP($A158,'Allocation 2021-22 Final'!$A$7:$U$317,18,FALSE),0) -> 23820 | Y158: -2638 | Z158: -0.1107472712 | AA158: 241 | AB158: 0 | AD158: 21206 | AE158: MOSSYROCK
A159: 39209 | B159: MOUNT ADAMS | C159: 0 | D159: 0 | E159: =IFERROR(VLOOKUP(A159,'DOE Formula counts'!$D$8:$T$325,10,FALSE),0) -> 1159 | F159: =ROUND(E159/$E$5*Assumptions!$C$14*Assumptions!$C$29,0) -> 6181 | G159: =IFERROR(VLOOKUP(A159,'DOE Formula counts'!$D$8:$T$325,4,FALSE),0) -> 171 | H159: =ROUND(G159/$G$5*+Assumptions!$C$14*Assumptions!$C$30,0) -> 37133 | J159: 43314 | L159: 0 | M159: =IFERROR(VLOOKUP(A159,[1]ENROLLMENT!$A$5:$B$349,2,FALSE),0)*0 -> 0 | N159: =IFERROR(GETPIVOTDATA("Total W/O Preschool",'[1]Private 19-20'!$O$3,"District Code",A159),0)*0 -> 0 | P159: 43314 | Q159: 0 | R159: 43314 | T159: 0 | U159: 43314 | W159: =IFERROR(VLOOKUP($A159,'Allocation 2021-22 Final'!$A$7:$U$317,18,FALSE),0) -> 50587 | Y159: -7273 | Z159: -0.1437721154 | AA159: 268 | AB159: 0 | AD159: 39209 | AE159: MOUNT ADAMS
A160: 37507 | B160: MOUNT BAKER | C160: 0 | D160: 0 | E160: =IFERROR(VLOOKUP(A160,'DOE Formula counts'!$D$8:$T$325,10,FALSE),0) -> 2742 | F160: =ROUND(E160/$E$5*Assumptions!$C$14*Assumptions!$C$29,0) -> 14624 | G160: =IFERROR(VLOOKUP(A160,'DOE Formula counts'!$D$8:$T$325,4,FALSE),0) -> 323 | H160: =ROUND(G160/$G$5*+Assumptions!$C$14*Assumptions!$C$30,0) -> 70139 | J160: 84763 | L160: 0 | M160: =IFERROR(VLOOKUP(A160,[1]ENROLLMENT!$A$5:$B$349,2,FALSE),0)*0 -> 0 | N160: =IFERROR(GETPIVOTDATA("Total W/O Preschool",'[1]Private 19-20'!$O$3,"District Code",A160),0)*0 -> 0 | P160: 84763 | Q160: 0 | R160: 84763 | T160: 0 | U160: 84763 | W160: =IFERROR(VLOOKUP($A160,'Allocation 2021-22 Final'!$A$7:$U$317,18,FALSE),0) -> 91890 | Y160: -7127 | Z160: -0.07756012624 | AA160: 267 | AB160: 0 | AD160: 37507 | AE160: MOUNT BAKER
A161: 30029 | B161: MOUNT PLEASANT | C161: 0 | D161: 0 | E161: =IFERROR(VLOOKUP(A161,'DOE Formula counts'!$D$8:$T$325,10,FALSE),0) -> 48 | F161: =ROUND(E161/$E$5*Assumptions!$C$14*Assumptions!$C$29,0) -> 256 | G161: =IFERROR(VLOOKUP(A161,'DOE Formula counts'!$D$8:$T$325,4,FALSE),0) -> 4 | H161: =ROUND(G161/$G$5*+Assumptions!$C$14*Assumptions!$C$30,0) -> 869 | J161: 1125 | L161: 0 | M161: =IFERROR(VLOOKUP(A161,[1]ENROLLMENT!$A$5:$B$349,2,FALSE),0)*0 -> 0 | N161: =IFERROR(GETPIVOTDATA("Total W/O Preschool",'[1]Private 19-20'!$O$3,"District Code",A161),0)*0 -> 0 | P161: 1125 | Q161: 0 | R161: 1125 | T161: 0 | U161: 1125 | W161: =IFERROR(VLOOKUP($A161,'Allocation 2021-22 Final'!$A$7:$U$317,18,FALSE),0) -> 1464 | Y161: -339 | Z161: -0.231557377 | AA161: 193 | AB161: 0 | AD161: 30029 | AE161: MOUNT PLEASANT
A162: 29320 | B162: MOUNT VERNON | C162: 0 | D162: 0 | E162: =IFERROR(VLOOKUP(A162,'DOE Formula counts'!$D$8:$T$325,10,FALSE),0) -> 7043 | F162: =ROUND(E162/$E$5*Assumptions!$C$14*Assumptions!$C$29,0) -> 37563 | G162: =IFERROR(VLOOKUP(A162,'DOE Formula counts'!$D$8:$T$325,4,FALSE),0) -> 736 | H162: =ROUND(G162/$G$5*+Assumptions!$C$14*Assumptions!$C$30,0) -> 159822 | J162: 197385 | L162: 0 | M162: =IFERROR(VLOOKUP(A162,[1]ENROLLMENT!$A$5:$B$349,2,FALSE),0)*0 -> 0 | N162: =IFERROR(GETPIVOTDATA("Total W/O Preschool",'[1]Private 19-20'!$O$3,"District Code",A162),0)*0 -> 0 | P162: 197385 | Q162: 0 | R162: 197385 | T162: 0 | U162: 197385 | W162: =IFERROR(VLOOKUP($A162,'Allocation 2021-22 Final'!$A$7:$U$317,18,FALSE),0) -> 267955 | Y162: -70570 | Z162: -0.2633651173 | AA162: 309 | AB162: 0 | AD162: 29320 | AE162: MOUNT VERNON
A163: 31006 | B163: MUKILTEO | C163: 0 | D163: 0 | E163: =IFERROR(VLOOKUP(A163,'DOE Formula counts'!$D$8:$T$325,10,FALSE),0) -> 16861 | F163: =ROUND(E163/$E$5*Assumptions!$C$14*Assumptions!$C$29,0) -> 89926 | G163: =IFERROR(VLOOKUP(A163,'DOE Formula counts'!$D$8:$T$325,4,FALSE),0) -> 1707 | H163: =ROUND(G163/$G$5*+Assumptions!$C$14*Assumptions!$C$30,0) -> 370675 | J163: 460601 | L163: 0 | M163: =IFERROR(VLOOKUP(A163,[1]ENROLLMENT!$A$5:$B$349,2,FALSE),0)*0 -> 0 | N163: =IFERROR(GETPIVOTDATA("Total W/O Preschool",'[1]Private 19-20'!$O$3,"District Code",A163),0)*0 -> 0 | P163: 460601 | Q163: 0 | R163: 460601 | T163: 0 | U163: 460601 | W163: =IFERROR(VLOOKUP($A163,'Allocation 2021-22 Final'!$A$7:$U$317,18,FALSE),0) -> 472081 | Y163: -11480 | Z163: -0.02431786071 | AA163: 278 | AB163: 0 | AD163: 31006 | AE163: MUKILTEO
A164: 39003 | B164: NACHES VALLEY | C164: 0 | D164: 0 | E164: =IFERROR(VLOOKUP(A164,'DOE Formula counts'!$D$8:$T$325,10,FALSE),0) -> 1519 | F164: =ROUND(E164/$E$5*Assumptions!$C$14*Assumptions!$C$29,0) -> 8101 | G164: =IFERROR(VLOOKUP(A164,'DOE Formula counts'!$D$8:$T$325,4,FALSE),0) -> 177 | H164: =ROUND(G164/$G$5*+Assumptions!$C$14*Assumptions!$C$30,0) -> 38436 | J164: 46537 | L164: 0 | M164: =IFERROR(VLOOKUP(A164,[1]ENROLLMENT!$A$5:$B$349,2,FALSE),0)*0 -> 0 | N164: =IFERROR(GETPIVOTDATA("Total W/O Preschool",'[1]Private 19-20'!$O$3,"District Code",A164),0)*0 -> 0 | P164: 46537 | Q164: 0 | R164: 46537 | T164: 0 | U164: 46537 | W164: =IFERROR(VLOOKUP($A164,'Allocation 2021-22 Final'!$A$7:$U$317,18,FALSE),0) -> 44993 | Y164: 1544 | Z164: 0.03431644923 | AA164: 126 | AB164: 0 | AD164: 39003 | AE164: NACHES VALLEY
A165: 21014 | B165: NAPAVINE | C165: 0 | D165: 0 | E165: =IFERROR(VLOOKUP(A165,'DOE Formula counts'!$D$8:$T$325,10,FALSE),0) -> 761 | F165: =ROUND(E165/$E$5*Assumptions!$C$14*Assumptions!$C$29,0) -> 4059 | G165: =IFERROR(VLOOKUP(A165,'DOE Formula counts'!$D$8:$T$325,4,FALSE),0) -> 97 | H165: =ROUND(G165/$G$5*+Assumptions!$C$14*Assumptions!$C$30,0) -> 21064 | J165: 25123 | L165: 0 | M165: =IFERROR(VLOOKUP(A165,[1]ENROLLMENT!$A$5:$B$349,2,FALSE),0)*0 -> 0 | N165: =IFERROR(GETPIVOTDATA("Total W/O Preschool",'[1]Private 19-20'!$O$3,"District Code",A165),0)*0 -> 0 | P165: 25123 | Q165: 0 | R165: 25123 | T165: 0 | U165: 25123 | W165: =IFERROR(VLOOKUP($A165,'Allocation 2021-22 Final'!$A$7:$U$317,18,FALSE),0) -> 29069 | Y165: -3946 | Z165: -0.1357459837 | AA165: 252 | AB165: 0 | AD165: 21014 | AE165: NAPAVINE
A166: 25155 | B166: NASELLE-GRAYS | C166: 0 | D166: 0 | E166: =IFERROR(VLOOKUP(A166,'DOE Formula counts'!$D$8:$T$325,10,FALSE),0) -> 376 | F166: =ROUND(E166/$E$5*Assumptions!$C$14*Assumptions!$C$29,0) -> 2005 | G166: =IFERROR(VLOOKUP(A166,'DOE Formula counts'!$D$8:$T$325,4,FALSE),0) -> 48 | H166: =ROUND(G166/$G$5*+Assumptions!$C$14*Assumptions!$C$30,0) -> 10423 | J166: 12428 | L166: 0 | M166: =IFERROR(VLOOKUP(A166,[1]ENROLLMENT!$A$5:$B$349,2,FALSE),0)*0 -> 0 | N166: =IFERROR(GETPIVOTDATA("Total W/O Preschool",'[1]Private 19-20'!$O$3,"District Code",A166),0)*0 -> 0 | P166: 12428 | Q166: 0 | R166: 12428 | T166: 0 | U166: 12428 | W166: =IFERROR(VLOOKUP($A166,'Allocation 2021-22 Final'!$A$7:$U$317,18,FALSE),0) -> 11544 | Y166: 884 | Z166: 0.07657657658 | AA166: 141 | AB166: 0 | AD166: 25155 | AE166: NASELLE-GRAYS
A167: 24014 | B167: NESPELEM | C167: 0 | D167: 0 | E167: =IFERROR(VLOOKUP(A167,'DOE Formula counts'!$D$8:$T$325,10,FALSE),0) -> 298 | F167: =ROUND(E167/$E$5*Assumptions!$C$14*Assumptions!$C$29,0) -> 1589 | G167: =IFERROR(VLOOKUP(A167,'DOE Formula counts'!$D$8:$T$325,4,FALSE),0) -> 79 | H167: =ROUND(G167/$G$5*+Assumptions!$C$14*Assumptions!$C$30,0) -> 17155 | J167: 18744 | L167: 0 | M167: =IFERROR(VLOOKUP(A167,[1]ENROLLMENT!$A$5:$B$349,2,FALSE),0)*0 -> 0 | N167: =IFERROR(GETPIVOTDATA("Total W/O Preschool",'[1]Private 19-20'!$O$3,"District Code",A167),0)*0 -> 0 | P167: 18744 | Q167: 0 | R167: 18744 | T167: 0 | U167: 18744 | W167: =IFERROR(VLOOKUP($A167,'Allocation 2021-22 Final'!$A$7:$U$317,18,FALSE),0) -> 14159 | Y167: 4585 | Z167: 0.3238223038 | AA167: 86 | AB167: 0 | AD167: 24014 | AE167: NESPELEM
A168: 26056 | B168: NEWPORT | C168: 0 | D168: 0 | E168: =IFERROR(VLOOKUP(A168,'DOE Formula counts'!$D$8:$T$325,10,FALSE),0) -> 1277 | F168: =ROUND(E168/$E$5*Assumptions!$C$14*Assumptions!$C$29,0) -> 6811 | G168: =IFERROR(VLOOKUP(A168,'DOE Formula counts'!$D$8:$T$325,4,FALSE),0) -> 277 | H168: =ROUND(G168/$G$5*+Assumptions!$C$14*Assumptions!$C$30,0) -> 60151 | J168: 66962 | L168: 0 | M168: =IFERROR(VLOOKUP(A168,[1]ENROLLMENT!$A$5:$B$349,2,FALSE),0)*0 -> 0 | N168: =IFERROR(GETPIVOTDATA("Total W/O Preschool",'[1]Private 19-20'!$O$3,"District Code",A168),0)*0 -> 0 | P168: 66962 | Q168: 0 | R168: 66962 | T168: 0 | U168: 66962 | W168: =IFERROR(VLOOKUP($A168,'Allocation 2021-22 Final'!$A$7:$U$317,18,FALSE),0) -> 59618 | Y168: 7344 | Z168: 0.1231842732 | AA168: 63 | AB168: 0 | AD168: 26056 | AE168: NEWPORT
A169: 32325 | B169: NINE MILE FALLS | C169: 0 | D169: 0 | E169: =IFERROR(VLOOKUP(A169,'DOE Formula counts'!$D$8:$T$325,10,FALSE),0) -> 1745 | F169: =ROUND(E169/$E$5*Assumptions!$C$14*Assumptions!$C$29,0) -> 9307 | G169: =IFERROR(VLOOKUP(A169,'DOE Formula counts'!$D$8:$T$325,4,FALSE),0) -> 278 | H169: =ROUND(G169/$G$5*+Assumptions!$C$14*Assumptions!$C$30,0) -> 60368 | J169: 69675 | L169: 0 | M169: =IFERROR(VLOOKUP(A169,[1]ENROLLMENT!$A$5:$B$349,2,FALSE),0)*0 -> 0 | N169: =IFERROR(GETPIVOTDATA("Total W/O Preschool",'[1]Private 19-20'!$O$3,"District Code",A169),0)*0 -> 0 | P169: 69675 | Q169: 0 | R169: 69675 | T169: 0 | U169: 69675 | W169: =IFERROR(VLOOKUP($A169,'Allocation 2021-22 Final'!$A$7:$U$317,18,FALSE),0) -> 64159 | Y169: 5516 | Z169: 0.08597390857 | AA169: 75 | AB169: 0 | AD169: 32325 | AE169: NINE MILE FALLS
A170: 37506 | B170: NOOKSACK VALLEY | C170: 0 | D170: 0 | E170: =IFERROR(VLOOKUP(A170,'DOE Formula counts'!$D$8:$T$325,10,FALSE),0) -> 2128 | F170: =ROUND(E170/$E$5*Assumptions!$C$14*Assumptions!$C$29,0) -> 11349 | G170: =IFERROR(VLOOKUP(A170,'DOE Formula counts'!$D$8:$T$325,4,FALSE),0) -> 188 | H170: =ROUND(G170/$G$5*+Assumptions!$C$14*Assumptions!$C$30,0) -> 40824 | J170: 52173 | L170: 0 | M170: =IFERROR(VLOOKUP(A170,[1]ENROLLMENT!$A$5:$B$349,2,FALSE),0)*0 -> 0 | N170: =IFERROR(GETPIVOTDATA("Total W/O Preschool",'[1]Private 19-20'!$O$3,"District Code",A170),0)*0 -> 0 | P170: 52173 | Q170: 0 | R170: 52173 | T170: 0 | U170: 52173 | W170: =IFERROR(VLOOKUP($A170,'Allocation 2021-22 Final'!$A$7:$U$317,18,FALSE),0) -> 52614 | Y170: -441 | Z170: -0.008381799521 | AA170: 198 | AB170: 0 | AD170: 37506 | AE170: NOOKSACK VALLEY
A171: 14064 | B171: NORTH BEACH | C171: 0 | D171: 0 | E171: =IFERROR(VLOOKUP(A171,'DOE Formula counts'!$D$8:$T$325,10,FALSE),0) -> 771 | F171: =ROUND(E171/$E$5*Assumptions!$C$14*Assumptions!$C$29,0) -> 4112 | G171: =IFERROR(VLOOKUP(A171,'DOE Formula counts'!$D$8:$T$325,4,FALSE),0) -> 131 | H171: =ROUND(G171/$G$5*+Assumptions!$C$14*Assumptions!$C$30,0) -> 28447 | J171: 32559 | L171: 0 | M171: =IFERROR(VLOOKUP(A171,[1]ENROLLMENT!$A$5:$B$349,2,FALSE),0)*0 -> 0 | N171: =IFERROR(GETPIVOTDATA("Total W/O Preschool",'[1]Private 19-20'!$O$3,"District Code",A171),0)*0 -> 0 | P171: 32559 | Q171: 0 | R171: 32559 | T171: 0 | U171: 32559 | W171: =IFERROR(VLOOKUP($A171,'Allocation 2021-22 Final'!$A$7:$U$317,18,FALSE),0) -> 22243 | Y171: 10316 | Z171: 0.4637863598 | AA171: 46 | AB171: 0 | AD171: 14064 | AE171: NORTH BEACH
A172: 11051 | B172: NORTH FRANKLIN | C172: 0 | D172: 0 | E172: =IFERROR(VLOOKUP(A172,'DOE Formula counts'!$D$8:$T$325,10,FALSE),0) -> 2534 | F172: =ROUND(E172/$E$5*Assumptions!$C$14*Assumptions!$C$29,0) -> 13515 | G172: =IFERROR(VLOOKUP(A172,'DOE Formula counts'!$D$8:$T$325,4,FALSE),0) -> 365 | H172: =ROUND(G172/$G$5*+Assumptions!$C$14*Assumptions!$C$30,0) -> 79260 | J172: 92775 | L172: 0 | M172: =IFERROR(VLOOKUP(A172,[1]ENROLLMENT!$A$5:$B$349,2,FALSE),0)*0 -> 0 | N172: =IFERROR(GETPIVOTDATA("Total W/O Preschool",'[1]Private 19-20'!$O$3,"District Code",A172),0)*0 -> 0 | P172: 92775 | Q172: 0 | R172: 92775 | T172: 0 | U172: 92775 | W172: =IFERROR(VLOOKUP($A172,'Allocation 2021-22 Final'!$A$7:$U$317,18,FALSE),0) -> 109846 | Y172: -17071 | Z172: -0.155408481 | AA172: 290 | AB172: 0 | AD172: 11051 | AE172: NORTH FRANKLIN
A173: 18400 | B173: NORTH KITSAP | C173: 0 | D173: 0 | E173: =IFERROR(VLOOKUP(A173,'DOE Formula counts'!$D$8:$T$325,10,FALSE),0) -> 7539 | F173: =ROUND(E173/$E$5*Assumptions!$C$14*Assumptions!$C$29,0) -> 40208 | G173: =IFERROR(VLOOKUP(A173,'DOE Formula counts'!$D$8:$T$325,4,FALSE),0) -> 556 | H173: =ROUND(G173/$G$5*+Assumptions!$C$14*Assumptions!$C$30,0) -> 120735 | J173: 160943 | L173: 0 | M173: =IFERROR(VLOOKUP(A173,[1]ENROLLMENT!$A$5:$B$349,2,FALSE),0)*0 -> 0 | N173: =IFERROR(GETPIVOTDATA("Total W/O Preschool",'[1]Private 19-20'!$O$3,"District Code",A173),0)*0 -> 0 | P173: 160943 | Q173: 0 | R173: 160943 | T173: 0 | U173: 160943 | W173: =IFERROR(VLOOKUP($A173,'Allocation 2021-22 Final'!$A$7:$U$317,18,FALSE),0) -> 140787 | Y173: 20156 | Z173: 0.1431666276 | AA173: 25 | AB173: 0 | AD173: 18400 | AE173: NORTH KITSAP
A174: 23403 | B174: NORTH MASON | C174: 0 | D174: 0 | E174: =IFERROR(VLOOKUP(A174,'DOE Formula counts'!$D$8:$T$325,10,FALSE),0) -> 2402 | F174: =ROUND(E174/$E$5*Assumptions!$C$14*Assumptions!$C$29,0) -> 12811 | G174: =IFERROR(VLOOKUP(A174,'DOE Formula counts'!$D$8:$T$325,4,FALSE),0) -> 316 | H174: =ROUND(G174/$G$5*+Assumptions!$C$14*Assumptions!$C$30,0) -> 68619 | J174: 81430 | L174: 0 | M174: =IFERROR(VLOOKUP(A174,[1]ENROLLMENT!$A$5:$B$349,2,FALSE),0)*0 -> 0 | N174: =IFERROR(GETPIVOTDATA("Total W/O Preschool",'[1]Private 19-20'!$O$3,"District Code",A174),0)*0 -> 0 | P174: 81430 | Q174: 0 | R174: 81430 | T174: 0 | U174: 81430 | W174: =IFERROR(VLOOKUP($A174,'Allocation 2021-22 Final'!$A$7:$U$317,18,FALSE),0) -> 77752 | Y174: 3678 | Z174: 0.04730424941 | AA174: 93 | AB174: 0 | AD174: 23403 | AE174: NORTH MASON
A175: 25200 | B175: NORTH RIVER | C175: 0 | D175: 0 | E175: =IFERROR(VLOOKUP(A175,'DOE Formula counts'!$D$8:$T$325,10,FALSE),0) -> 35 | F175: =ROUND(E175/$E$5*Assumptions!$C$14*Assumptions!$C$29,0) -> 187 | G175: =IFERROR(VLOOKUP(A175,'DOE Formula counts'!$D$8:$T$325,4,FALSE),0) -> 8 | H175: =ROUND(G175/$G$5*+Assumptions!$C$14*Assumptions!$C$30,0) -> 1737 | J175: 1924 | L175: 0 | M175: =IFERROR(VLOOKUP(A175,[1]ENROLLMENT!$A$5:$B$349,2,FALSE),0)*0 -> 0 | N175: =IFERROR(GETPIVOTDATA("Total W/O Preschool",'[1]Private 19-20'!$O$3,"District Code",A175),0)*0 -> 0 | P175: 1924 | Q175: 0 | R175: 1924 | T175: 0 | U175: 1924 | W175: =IFERROR(VLOOKUP($A175,'Allocation 2021-22 Final'!$A$7:$U$317,18,FALSE),0) -> 1979 | Y175: -55 | Z175: -0.02779181405 | AA175: 177 | AB175: 0 | AD175: 25200 | AE175: NORTH RIVER
A176: 34003 | B176: NORTH THURSTON | C176: 0 | D176: 0 | E176: =IFERROR(VLOOKUP(A176,'DOE Formula counts'!$D$8:$T$325,10,FALSE),0) -> 16850 | F176: =ROUND(E176/$E$5*Assumptions!$C$14*Assumptions!$C$29,0) -> 89867 | G176: =IFERROR(VLOOKUP(A176,'DOE Formula counts'!$D$8:$T$325,4,FALSE),0) -> 1528 | H176: =ROUND(G176/$G$5*+Assumptions!$C$14*Assumptions!$C$30,0) -> 331805 | J176: 421672 | L176: 0 | M176: =IFERROR(VLOOKUP(A176,[1]ENROLLMENT!$A$5:$B$349,2,FALSE),0)*0 -> 0 | N176: =IFERROR(GETPIVOTDATA("Total W/O Preschool",'[1]Private 19-20'!$O$3,"District Code",A176),0)*0 -> 0 | P176: 421672 | Q176: 0 | R176: 421672 | T176: 0 | U176: 421672 | W176: =IFERROR(VLOOKUP($A176,'Allocation 2021-22 Final'!$A$7:$U$317,18,FALSE),0) -> 406879 | Y176: 14793 | Z176: 0.03635724626 | AA176: 34 | AB176: 0 | AD176: 34003 | AE176: NORTH THURSTON
A177: 33211 | B177: NORTHPORT | C177: 0 | D177: 0 | E177: =IFERROR(VLOOKUP(A177,'DOE Formula counts'!$D$8:$T$325,10,FALSE),0) -> 198 | F177: =ROUND(E177/$E$5*Assumptions!$C$14*Assumptions!$C$29,0) -> 1056 | G177: =IFERROR(VLOOKUP(A177,'DOE Formula counts'!$D$8:$T$325,4,FALSE),0) -> 48 | H177: =ROUND(G177/$G$5*+Assumptions!$C$14*Assumptions!$C$30,0) -> 10423 | J177: 11479 | L177: 0 | M177: =IFERROR(VLOOKUP(A177,[1]ENROLLMENT!$A$5:$B$349,2,FALSE),0)*0 -> 0 | N177: =IFERROR(GETPIVOTDATA("Total W/O Preschool",'[1]Private 19-20'!$O$3,"District Code",A177),0)*0 -> 0 | P177: 11479 | Q177: 0 | R177: 11479 | T177: 0 | U177: 11479 | W177: =IFERROR(VLOOKUP($A177,'Allocation 2021-22 Final'!$A$7:$U$317,18,FALSE),0) -> 10988 | Y177: 491 | Z177: 0.04468511103 | AA177: 154 | AB177: 0 | AD177: 33211 | AE177: NORTHPORT
A178: 17417 | B178: NORTHSHORE | C178: 0 | D178: 0 | E178: =IFERROR(VLOOKUP(A178,'DOE Formula counts'!$D$8:$T$325,10,FALSE),0) -> 23688 | F178: =ROUND(E178/$E$5*Assumptions!$C$14*Assumptions!$C$29,0) -> 126337 | G178: =IFERROR(VLOOKUP(A178,'DOE Formula counts'!$D$8:$T$325,4,FALSE),0) -> 762 | H178: =ROUND(G178/$G$5*+Assumptions!$C$14*Assumptions!$C$30,0) -> 165468 | J178: 291805 | L178: 0 | M178: =IFERROR(VLOOKUP(A178,[1]ENROLLMENT!$A$5:$B$349,2,FALSE),0)*0 -> 0 | N178: =IFERROR(GETPIVOTDATA("Total W/O Preschool",'[1]Private 19-20'!$O$3,"District Code",A178),0)*0 -> 0 | P178: 291805 | Q178: 0 | R178: 291805 | T178: 0 | U178: 291805 | W178: =IFERROR(VLOOKUP($A178,'Allocation 2021-22 Final'!$A$7:$U$317,18,FALSE),0) -> 282722 | Y178: 9083 | Z178: 0.03212696571 | AA178: 51 | AB178: 0 | AD178: 17417 | AE178: NORTHSHORE
A179: 15201 | B179: OAK HARBOR | C179: 0 | D179: 0 | E179: =IFERROR(VLOOKUP(A179,'DOE Formula counts'!$D$8:$T$325,10,FALSE),0) -> 5693 | F179: =ROUND(E179/$E$5*Assumptions!$C$14*Assumptions!$C$29,0) -> 30363 | G179: =IFERROR(VLOOKUP(A179,'DOE Formula counts'!$D$8:$T$325,4,FALSE),0) -> 447 | H179: =ROUND(G179/$G$5*+Assumptions!$C$14*Assumptions!$C$30,0) -> 97066 | J179: 127429 | L179: 0 | M179: =IFERROR(VLOOKUP(A179,[1]ENROLLMENT!$A$5:$B$349,2,FALSE),0)*0 -> 0 | N179: =IFERROR(GETPIVOTDATA("Total W/O Preschool",'[1]Private 19-20'!$O$3,"District Code",A179),0)*0 -> 0 | P179: 127429 | Q179: 0 | R179: 127429 | T179: 0 | U179: 127429 | W179: =IFERROR(VLOOKUP($A179,'Allocation 2021-22 Final'!$A$7:$U$317,18,FALSE),0) -> 138787 | Y179: -11358 | Z179: -0.08183763609 | AA179: 277 | AB179: 0 | AD179: 15201 | AE179: OAK HARBOR
A180: 38324 | B180: OAKESDALE | C180: 0 | D180: 0 | E180: =IFERROR(VLOOKUP(A180,'DOE Formula counts'!$D$8:$T$325,10,FALSE),0) -> 171 | F180: =ROUND(E180/$E$5*Assumptions!$C$14*Assumptions!$C$29,0) -> 912 | G180: =IFERROR(VLOOKUP(A180,'DOE Formula counts'!$D$8:$T$325,4,FALSE),0) -> 9 | H180: =ROUND(G180/$G$5*+Assumptions!$C$14*Assumptions!$C$30,0) -> 1954 | J180: 2866 | L180: 0 | M180: =IFERROR(VLOOKUP(A180,[1]ENROLLMENT!$A$5:$B$349,2,FALSE),0)*0 -> 0 | N180: =IFERROR(GETPIVOTDATA("Total W/O Preschool",'[1]Private 19-20'!$O$3,"District Code",A180),0)*0 -> 0 | P180: 2866 | Q180: 0 | R180: 2866 | T180: 0 | U180: 2866 | W180: =IFERROR(VLOOKUP($A180,'Allocation 2021-22 Final'!$A$7:$U$317,18,FALSE),0) -> 2917 | Y180: -51 | Z180: -0.01748371615 | AA180: 176 | AB180: 0 | AD180: 38324 | AE180: OAKESDALE
A181: 14400 | B181: OAKVILLE | C181: 0 | D181: 0 | E181: =IFERROR(VLOOKUP(A181,'DOE Formula counts'!$D$8:$T$325,10,FALSE),0) -> 387 | F181: =ROUND(E181/$E$5*Assumptions!$C$14*Assumptions!$C$29,0) -> 2064 | G181: =IFERROR(VLOOKUP(A181,'DOE Formula counts'!$D$8:$T$325,4,FALSE),0) -> 74 | H181: =ROUND(G181/$G$5*+Assumptions!$C$14*Assumptions!$C$30,0) -> 16069 | J181: 18133 | L181: 0 | M181: =IFERROR(VLOOKUP(A181,[1]ENROLLMENT!$A$5:$B$349,2,FALSE),0)*0 -> 0 | N181: =IFERROR(GETPIVOTDATA("Total W/O Preschool",'[1]Private 19-20'!$O$3,"District Code",A181),0)*0 -> 0 | P181: 18133 | Q181: 0 | R181: 18133 | T181: 0 | U181: 18133 | W181: =IFERROR(VLOOKUP($A181,'Allocation 2021-22 Final'!$A$7:$U$317,18,FALSE),0) -> 19770 | Y181: -1637 | Z181: -0.08280222559 | AA181: 232 | AB181: 0 | AD181: 14400 | AE181: OAKVILLE
A182: 25101 | B182: OCEAN BEACH | C182: 0 | D182: 0 | E182: =IFERROR(VLOOKUP(A182,'DOE Formula counts'!$D$8:$T$325,10,FALSE),0) -> 921 | F182: =ROUND(E182/$E$5*Assumptions!$C$14*Assumptions!$C$29,0) -> 4912 | G182: =IFERROR(VLOOKUP(A182,'DOE Formula counts'!$D$8:$T$325,4,FALSE),0) -> 184 | H182: =ROUND(G182/$G$5*+Assumptions!$C$14*Assumptions!$C$30,0) -> 39956 | J182: 44868 | L182: 0 | M182: =IFERROR(VLOOKUP(A182,[1]ENROLLMENT!$A$5:$B$349,2,FALSE),0)*0 -> 0 | N182: =IFERROR(GETPIVOTDATA("Total W/O Preschool",'[1]Private 19-20'!$O$3,"District Code",A182),0)*0 -> 0 | P182: 44868 | Q182: 0 | R182: 44868 | T182: 0 | U182: 44868 | W182: =IFERROR(VLOOKUP($A182,'Allocation 2021-22 Final'!$A$7:$U$317,18,FALSE),0) -> 41762 | Y182: 3106 | Z182: 0.07437383267 | AA182: 100 | AB182: 0 | AD182: 25101 | AE182: OCEAN BEACH
A183: 14172 | B183: OCOSTA | C183: 0 | D183: 0 | E183: =IFERROR(VLOOKUP(A183,'DOE Formula counts'!$D$8:$T$325,10,FALSE),0) -> 716 | F183: =ROUND(E183/$E$5*Assumptions!$C$14*Assumptions!$C$29,0) -> 3819 | G183: =IFERROR(VLOOKUP(A183,'DOE Formula counts'!$D$8:$T$325,4,FALSE),0) -> 152 | H183: =ROUND(G183/$G$5*+Assumptions!$C$14*Assumptions!$C$30,0) -> 33007 | J183: 36826 | L183: 0 | M183: =IFERROR(VLOOKUP(A183,[1]ENROLLMENT!$A$5:$B$349,2,FALSE),0)*0 -> 0 | N183: =IFERROR(GETPIVOTDATA("Total W/O Preschool",'[1]Private 19-20'!$O$3,"District Code",A183),0)*0 -> 0 | P183: 36826 | Q183: 0 | R183: 36826 | T183: 0 | U183: 36826 | W183: =IFERROR(VLOOKUP($A183,'Allocation 2021-22 Final'!$A$7:$U$317,18,FALSE),0) -> 28283 | Y183: 8543 | Z183: 0.3020542375 | AA183: 55 | AB183: 0 | AD183: 14172 | AE183: OCOSTA
A184: 22105 | B184: ODESSA | C184: 0 | D184: 0 | E184: =IFERROR(VLOOKUP(A184,'DOE Formula counts'!$D$8:$T$325,10,FALSE),0) -> 279 | F184: =ROUND(E184/$E$5*Assumptions!$C$14*Assumptions!$C$29,0) -> 1488 | G184: =IFERROR(VLOOKUP(A184,'DOE Formula counts'!$D$8:$T$325,4,FALSE),0) -> 40 | H184: =ROUND(G184/$G$5*+Assumptions!$C$14*Assumptions!$C$30,0) -> 8686 | J184: 10174 | L184: 0 | M184: =IFERROR(VLOOKUP(A184,[1]ENROLLMENT!$A$5:$B$349,2,FALSE),0)*0 -> 0 | N184: =IFERROR(GETPIVOTDATA("Total W/O Preschool",'[1]Private 19-20'!$O$3,"District Code",A184),0)*0 -> 0 | P184: 10174 | Q184: 0 | R184: 10174 | T184: 0 | U184: 10174 | W184: =IFERROR(VLOOKUP($A184,'Allocation 2021-22 Final'!$A$7:$U$317,18,FALSE),0) -> 9067 | Y184: 1107 | Z184: 0.1220910996 | AA184: 134 | AB184: 0 | AD184: 22105 | AE184: ODESSA
A185: 24105 | B185: OKANOGAN | C185: 0 | D185: 0 | E185: =IFERROR(VLOOKUP(A185,'DOE Formula counts'!$D$8:$T$325,10,FALSE),0) -> 1018 | F185: =ROUND(E185/$E$5*Assumptions!$C$14*Assumptions!$C$29,0) -> 5429 | G185: =IFERROR(VLOOKUP(A185,'DOE Formula counts'!$D$8:$T$325,4,FALSE),0) -> 258 | H185: =ROUND(G185/$G$5*+Assumptions!$C$14*Assumptions!$C$30,0) -> 56025 | J185: 61454 | L185: 0 | M185: =IFERROR(VLOOKUP(A185,[1]ENROLLMENT!$A$5:$B$349,2,FALSE),0)*0 -> 0 | N185: =IFERROR(GETPIVOTDATA("Total W/O Preschool",'[1]Private 19-20'!$O$3,"District Code",A185),0)*0 -> 0 | P185: 61454 | Q185: 0 | R185: 61454 | T185: 0 | U185: 61454 | W185: =IFERROR(VLOOKUP($A185,'Allocation 2021-22 Final'!$A$7:$U$317,18,FALSE),0) -> 49117 | Y185: 12337 | Z185: 0.251175764 | AA185: 39 | AB185: 0 | AD185: 24105 | AE185: OKANOGAN
A186: 34111 | B186: OLYMPIA | C186: 0 | D186: 0 | E186: =IFERROR(VLOOKUP(A186,'DOE Formula counts'!$D$8:$T$325,10,FALSE),0) -> 10204 | F186: =ROUND(E186/$E$5*Assumptions!$C$14*Assumptions!$C$29,0) -> 54422 | G186: =IFERROR(VLOOKUP(A186,'DOE Formula counts'!$D$8:$T$325,4,FALSE),0) -> 884 | H186: =ROUND(G186/$G$5*+Assumptions!$C$14*Assumptions!$C$30,0) -> 191961 | J186: 246383 | L186: 0 | M186: =IFERROR(VLOOKUP(A186,[1]ENROLLMENT!$A$5:$B$349,2,FALSE),0)*0 -> 0 | N186: =IFERROR(GETPIVOTDATA("Total W/O Preschool",'[1]Private 19-20'!$O$3,"District Code",A186),0)*0 -> 0 | P186: 246383 | Q186: 0 | R186: 246383 | T186: 0 | U186: 246383 | W186: =IFERROR(VLOOKUP($A186,'Allocation 2021-22 Final'!$A$7:$U$317,18,FALSE),0) -> 258022 | Y186: -11639 | Z186: -0.04510855663 | AA186: 279 | AB186: 0 | AD186: 34111 | AE186: OLYMPIA
A187: 24019 | B187: OMAK | C187: 0 | D187: 0 | E187: =IFERROR(VLOOKUP(A187,'DOE Formula counts'!$D$8:$T$325,10,FALSE),0) -> 1880 | F187: =ROUND(E187/$E$5*Assumptions!$C$14*Assumptions!$C$29,0) -> 10027 | G187: =IFERROR(VLOOKUP(A187,'DOE Formula counts'!$D$8:$T$325,4,FALSE),0) -> 490 | H187: =ROUND(G187/$G$5*+Assumptions!$C$14*Assumptions!$C$30,0) -> 106403 | J187: 116430 | L187: 0 | M187: =IFERROR(VLOOKUP(A187,[1]ENROLLMENT!$A$5:$B$349,2,FALSE),0)*0 -> 0 | N187: =IFERROR(GETPIVOTDATA("Total W/O Preschool",'[1]Private 19-20'!$O$3,"District Code",A187),0)*0 -> 0 | P187: 116430 | Q187: 0 | R187: 116430 | T187: 0 | U187: 116430 | W187: =IFERROR(VLOOKUP($A187,'Allocation 2021-22 Final'!$A$7:$U$317,18,FALSE),0) -> 82277 | Y187: 34153 | Z187: 0.4150977795 | AA187: 15 | AB187: 0 | AD187: 24019 | AE187: OMAK
A188: 21300 | B188: ONALASKA | C188: 0 | D188: 0 | E188: =IFERROR(VLOOKUP(A188,'DOE Formula counts'!$D$8:$T$325,10,FALSE),0) -> 887 | F188: =ROUND(E188/$E$5*Assumptions!$C$14*Assumptions!$C$29,0) -> 4731 | G188: =IFERROR(VLOOKUP(A188,'DOE Formula counts'!$D$8:$T$325,4,FALSE),0) -> 131 | H188: =ROUND(G188/$G$5*+Assumptions!$C$14*Assumptions!$C$30,0) -> 28447 | J188: 33178 | L188: 0 | M188: =IFERROR(VLOOKUP(A188,[1]ENROLLMENT!$A$5:$B$349,2,FALSE),0)*0 -> 0 | N188: =IFERROR(GETPIVOTDATA("Total W/O Preschool",'[1]Private 19-20'!$O$3,"District Code",A188),0)*0 -> 0 | P188: 33178 | Q188: 0 | R188: 33178 | T188: 0 | U188: 33178 | W188: =IFERROR(VLOOKUP($A188,'Allocation 2021-22 Final'!$A$7:$U$317,18,FALSE),0) -> 21192 | Y188: 11986 | Z188: 0.565590789 | AA188: 41 | AB188: 0 | AD188: 21300 | AE188: ONALASKA
A189: 33030 | B189: ONION CREEK | C189: 0 | D189: 0 | E189: =IFERROR(VLOOKUP(A189,'DOE Formula counts'!$D$8:$T$325,10,FALSE),0) -> 53 | F189: =ROUND(E189/$E$5*Assumptions!$C$14*Assumptions!$C$29,0) -> 283 | G189: =IFERROR(VLOOKUP(A189,'DOE Formula counts'!$D$8:$T$325,4,FALSE),0) -> 18 | H189: =ROUND(G189/$G$5*+Assumptions!$C$14*Assumptions!$C$30,0) -> 3909 | J189: 4192 | L189: 0 | M189: =IFERROR(VLOOKUP(A189,[1]ENROLLMENT!$A$5:$B$349,2,FALSE),0)*0 -> 0 | N189: =IFERROR(GETPIVOTDATA("Total W/O Preschool",'[1]Private 19-20'!$O$3,"District Code",A189),0)*0 -> 0 | P189: 4192 | Q189: 0 | R189: 4192 | T189: 0 | U189: 4192 | W189: =IFERROR(VLOOKUP($A189,'Allocation 2021-22 Final'!$A$7:$U$317,18,FALSE),0) -> 3660 | Y189: 532 | Z189: 0.1453551913 | AA189: 151 | AB189: 0 | AD189: 33030 | AE189: ONION CREEK
A190: 28137 | B190: ORCAS ISLAND | C190: 0 | D190: 0 | E190: =IFERROR(VLOOKUP(A190,'DOE Formula counts'!$D$8:$T$325,10,FALSE),0) -> 559 | F190: =ROUND(E190/$E$5*Assumptions!$C$14*Assumptions!$C$29,0) -> 2981 | G190: =IFERROR(VLOOKUP(A190,'DOE Formula counts'!$D$8:$T$325,4,FALSE),0) -> 50 | H190: =ROUND(G190/$G$5*+Assumptions!$C$14*Assumptions!$C$30,0) -> 10857 | J190: 13838 | L190: 0 | M190: =IFERROR(VLOOKUP(A190,[1]ENROLLMENT!$A$5:$B$349,2,FALSE),0)*0 -> 0 | N190: =IFERROR(GETPIVOTDATA("Total W/O Preschool",'[1]Private 19-20'!$O$3,"District Code",A190),0)*0 -> 0 | P190: 13838 | Q190: 0 | R190: 13838 | T190: 0 | U190: 13838 | W190: =IFERROR(VLOOKUP($A190,'Allocation 2021-22 Final'!$A$7:$U$317,18,FALSE),0) -> 14657 | Y190: -819 | Z190: -0.0558777376 | AA190: 215 | AB190: 0 | AD190: 28137 | AE190: ORCAS ISLAND
A191: 32123 | B191: ORCHARD PRAIRIE | C191: 0 | D191: 0 | E191: =IFERROR(VLOOKUP(A191,'DOE Formula counts'!$D$8:$T$325,10,FALSE),0) -> 139 | F191: =ROUND(E191/$E$5*Assumptions!$C$14*Assumptions!$C$29,0) -> 741 | G191: =IFERROR(VLOOKUP(A191,'DOE Formula counts'!$D$8:$T$325,4,FALSE),0) -> 13 | H191: =ROUND(G191/$G$5*+Assumptions!$C$14*Assumptions!$C$30,0) -> 2823 | J191: 3564 | L191: 0 | M191: =IFERROR(VLOOKUP(A191,[1]ENROLLMENT!$A$5:$B$349,2,FALSE),0)*0 -> 0 | N191: =IFERROR(GETPIVOTDATA("Total W/O Preschool",'[1]Private 19-20'!$O$3,"District Code",A191),0)*0 -> 0 | P191: 3564 | Q191: 0 | R191: 3564 | T191: 0 | U191: 3564 | W191: =IFERROR(VLOOKUP($A191,'Allocation 2021-22 Final'!$A$7:$U$317,18,FALSE),0) -> 3333 | Y191: 231 | Z191: 0.06930693069 | AA191: 166 | AB191: 0 | AD191: 32123 | AE191: ORCHARD PRAIRIE
A192: 10065 | B192: ORIENT | C192: 0 | D192: 0 | E192: =IFERROR(VLOOKUP(A192,'DOE Formula counts'!$D$8:$T$325,10,FALSE),0) -> 96 | F192: =ROUND(E192/$E$5*Assumptions!$C$14*Assumptions!$C$29,0) -> 512 | G192: =IFERROR(VLOOKUP(A192,'DOE Formula counts'!$D$8:$T$325,4,FALSE),0) -> 25 | H192: =ROUND(G192/$G$5*+Assumptions!$C$14*Assumptions!$C$30,0) -> 5429 | J192: 5941 | L192: 0 | M192: =IFERROR(VLOOKUP(A192,[1]ENROLLMENT!$A$5:$B$349,2,FALSE),0)*0 -> 0 | N192: =IFERROR(GETPIVOTDATA("Total W/O Preschool",'[1]Private 19-20'!$O$3,"District Code",A192),0)*0 -> 0 | P192: 5941 | Q192: 0 | R192: 5941 | T192: 0 | U192: 5941 | W192: =IFERROR(VLOOKUP($A192,'Allocation 2021-22 Final'!$A$7:$U$317,18,FALSE),0) -> 3695 | Y192: 2246 | Z192: 0.6078484438 | AA192: 114 | AB192: 0 | AD192: 10065 | AE192: ORIENT
A193: 09013 | B193: ORONDO | C193: 0 | D193: 0 | E193: =IFERROR(VLOOKUP(A193,'DOE Formula counts'!$D$8:$T$325,10,FALSE),0) -> 407 | F193: =ROUND(E193/$E$5*Assumptions!$C$14*Assumptions!$C$29,0) -> 2171 | G193: =IFERROR(VLOOKUP(A193,'DOE Formula counts'!$D$8:$T$325,4,FALSE),0) -> 74 | H193: =ROUND(G193/$G$5*+Assumptions!$C$14*Assumptions!$C$30,0) -> 16069 | J193: 18240 | L193: 0 | M193: =IFERROR(VLOOKUP(A193,[1]ENROLLMENT!$A$5:$B$349,2,FALSE),0)*0 -> 0 | N193: =IFERROR(GETPIVOTDATA("Total W/O Preschool",'[1]Private 19-20'!$O$3,"District Code",A193),0)*0 -> 0 | P193: 18240 | Q193: 0 | R193: 18240 | T193: 0 | U193: 18240 | W193: =IFERROR(VLOOKUP($A193,'Allocation 2021-22 Final'!$A$7:$U$317,18,FALSE),0) -> 17534 | Y193: 706 | Z193: 0.04026462872 | AA193: 146 | AB193: 0 | AD193: 09013 | AE193: ORONDO
A194: 24410 | B194: OROVILLE | C194: 0 | D194: 0 | E194: =IFERROR(VLOOKUP(A194,'DOE Formula counts'!$D$8:$T$325,10,FALSE),0) -> 744 | F194: =ROUND(E194/$E$5*Assumptions!$C$14*Assumptions!$C$29,0) -> 3968 | G194: =IFERROR(VLOOKUP(A194,'DOE Formula counts'!$D$8:$T$325,4,FALSE),0) -> 285 | H194: =ROUND(G194/$G$5*+Assumptions!$C$14*Assumptions!$C$30,0) -> 61888 | J194: 65856 | L194: 0 | M194: =IFERROR(VLOOKUP(A194,[1]ENROLLMENT!$A$5:$B$349,2,FALSE),0)*0 -> 0 | N194: =IFERROR(GETPIVOTDATA("Total W/O Preschool",'[1]Private 19-20'!$O$3,"District Code",A194),0)*0 -> 0 | P194: 65856 | Q194: 0 | R194: 65856 | T194: 0 | U194: 65856 | W194: =IFERROR(VLOOKUP($A194,'Allocation 2021-22 Final'!$A$7:$U$317,18,FALSE),0) -> 51973 | Y194: 13883 | Z194: 0.2671194659 | AA194: 35 | AB194: 0 | AD194: 24410 | AE194: OROVILLE
A195: 27344 | B195: ORTING | C195: 0 | D195: 0 | E195: =IFERROR(VLOOKUP(A195,'DOE Formula counts'!$D$8:$T$325,10,FALSE),0) -> 2884 | F195: =ROUND(E195/$E$5*Assumptions!$C$14*Assumptions!$C$29,0) -> 15381 | G195: =IFERROR(VLOOKUP(A195,'DOE Formula counts'!$D$8:$T$325,4,FALSE),0) -> 143 | H195: =ROUND(G195/$G$5*+Assumptions!$C$14*Assumptions!$C$30,0) -> 31052 | J195: 46433 | L195: 0 | M195: =IFERROR(VLOOKUP(A195,[1]ENROLLMENT!$A$5:$B$349,2,FALSE),0)*0 -> 0 | N195: =IFERROR(GETPIVOTDATA("Total W/O Preschool",'[1]Private 19-20'!$O$3,"District Code",A195),0)*0 -> 0 | P195: 46433 | Q195: 0 | R195: 46433 | T195: 0 | U195: 46433 | W195: =IFERROR(VLOOKUP($A195,'Allocation 2021-22 Final'!$A$7:$U$317,18,FALSE),0) -> 56600 | Y195: -10167 | Z195: -0.1796289753 | AA195: 272 | AB195: 0 | AD195: 27344 | AE195: ORTING
A196: 01147 | B196: OTHELLO | C196: 0 | D196: 0 | E196: =IFERROR(VLOOKUP(A196,'DOE Formula counts'!$D$8:$T$325,10,FALSE),0) -> 4494 | F196: =ROUND(E196/$E$5*Assumptions!$C$14*Assumptions!$C$29,0) -> 23968 | G196: =IFERROR(VLOOKUP(A196,'DOE Formula counts'!$D$8:$T$325,4,FALSE),0) -> 714 | H196: =ROUND(G196/$G$5*+Assumptions!$C$14*Assumptions!$C$30,0) -> 155045 | J196: 179013 | L196: 0 | M196: =IFERROR(VLOOKUP(A196,[1]ENROLLMENT!$A$5:$B$349,2,FALSE),0)*0 -> 0 | N196: =IFERROR(GETPIVOTDATA("Total W/O Preschool",'[1]Private 19-20'!$O$3,"District Code",A196),0)*0 -> 0 | P196: 179013 | Q196: 0 | R196: 179013 | T196: 0 | U196: 179013 | W196: =IFERROR(VLOOKUP($A196,'Allocation 2021-22 Final'!$A$7:$U$317,18,FALSE),0) -> 227098 | Y196: -48085 | Z196: -0.2117367832 | AA196: 304 | AB196: 0 | AD196: 01147 | AE196: OTHELLO
A197: 09102 | B197: PALISADES | C197: 0 | D197: 0 | E197: =IFERROR(VLOOKUP(A197,'DOE Formula counts'!$D$8:$T$325,10,FALSE),0) -> 64 | F197: =ROUND(E197/$E$5*Assumptions!$C$14*Assumptions!$C$29,0) -> 341 | G197: =IFERROR(VLOOKUP(A197,'DOE Formula counts'!$D$8:$T$325,4,FALSE),0) -> 13 | H197: =ROUND(G197/$G$5*+Assumptions!$C$14*Assumptions!$C$30,0) -> 2823 | J197: 3164 | L197: 0 | M197: =IFERROR(VLOOKUP(A197,[1]ENROLLMENT!$A$5:$B$349,2,FALSE),0)*0 -> 0 | N197: =IFERROR(GETPIVOTDATA("Total W/O Preschool",'[1]Private 19-20'!$O$3,"District Code",A197),0)*0 -> 0 | P197: 3164 | Q197: 0 | R197: 3164 | T197: 0 | U197: 3164 | W197: =IFERROR(VLOOKUP($A197,'Allocation 2021-22 Final'!$A$7:$U$317,18,FALSE),0) -> 2533 | Y197: 631 | Z197: 0.2491117252 | AA197: 148 | AB197: 0 | AD197: 09102 | AE197: PALISADES
A198: 38301 | B198: PALOUSE | C198: 0 | D198: 0 | E198: =IFERROR(VLOOKUP(A198,'DOE Formula counts'!$D$8:$T$325,10,FALSE),0) -> 265 | F198: =ROUND(E198/$E$5*Assumptions!$C$14*Assumptions!$C$29,0) -> 1413 | G198: =IFERROR(VLOOKUP(A198,'DOE Formula counts'!$D$8:$T$325,4,FALSE),0) -> 21 | H198: =ROUND(G198/$G$5*+Assumptions!$C$14*Assumptions!$C$30,0) -> 4560 | J198: 5973 | L198: 0 | M198: =IFERROR(VLOOKUP(A198,[1]ENROLLMENT!$A$5:$B$349,2,FALSE),0)*0 -> 0 | N198: =IFERROR(GETPIVOTDATA("Total W/O Preschool",'[1]Private 19-20'!$O$3,"District Code",A198),0)*0 -> 0 | P198: 5973 | Q198: 0 | R198: 5973 | T198: 0 | U198: 5973 | W198: =IFERROR(VLOOKUP($A198,'Allocation 2021-22 Final'!$A$7:$U$317,18,FALSE),0) -> 3827 | Y198: 2146 | Z198: 0.5607525477 | AA198: 116 | AB198: 0 | AD198: 38301 | AE198: PALOUSE
A199: 11001 | B199: PASCO | C199: 0 | D199: 0 | E199: =IFERROR(VLOOKUP(A199,'DOE Formula counts'!$D$8:$T$325,10,FALSE),0) -> 19940 | F199: =ROUND(E199/$E$5*Assumptions!$C$14*Assumptions!$C$29,0) -> 106347 | G199: =IFERROR(VLOOKUP(A199,'DOE Formula counts'!$D$8:$T$325,4,FALSE),0) -> 2792 | H199: =ROUND(G199/$G$5*+Assumptions!$C$14*Assumptions!$C$30,0) -> 606283 | J199: =ROUNDDOWN(+H199+F199+D199+C199+I199,0) -> 712630 | L199: =IF((M199+N199=0),0,+J199/(+M199+N199)) -> 0 | M199: =IFERROR(VLOOKUP(A199,[1]ENROLLMENT!$A$5:$B$349,2,FALSE),0)*0 -> 0 | N199: =IFERROR(GETPIVOTDATA("Total W/O Preschool",'[1]Private 19-20'!$O$3,"District Code",A199),0)*0 -> 0 | P199: =J199 -> 712630 | Q199: =-ROUND(P199/$P$5*$O$5,0) -> 0 | R199: =+J199+Q199+O199 -> 712630 | T199: =IF(S199>0,-ROUND((R199*(0.9-S199)),0),0) -> 0 | U199: =+R199+T199 -> 712630 | W199: =IFERROR(VLOOKUP($A199,'Allocation 2021-22 Final'!$A$7:$U$317,18,FALSE),0) -> 747028 | Y199: =+U199-W199 -> -34398 | Z199: =IF(W199>0,Y199/W199,0) -> -0.0460464668 | AA199: =RANK(Y199,$Y$7:$Y$321,0) -> 301 | AB199: =(SUM(C199:D199)/U199) -> 0 | AD199: =+A199 -> 11001 | AE199: =+B199 -> PASCO
A200: 24122 | B200: PATEROS | C200: 0 | D200: 0 | E200: =IFERROR(VLOOKUP(A200,'DOE Formula counts'!$D$8:$T$325,10,FALSE),0) -> 268 | F200: =ROUND(E200/$E$5*Assumptions!$C$14*Assumptions!$C$29,0) -> 1429 | G200: =IFERROR(VLOOKUP(A200,'DOE Formula counts'!$D$8:$T$325,4,FALSE),0) -> 64 | H200: =ROUND(G200/$G$5*+Assumptions!$C$14*Assumptions!$C$30,0) -> 13898 | J200: 15327 | L200: 0 | M200: =IFERROR(VLOOKUP(A200,[1]ENROLLMENT!$A$5:$B$349,2,FALSE),0)*0 -> 0 | N200: =IFERROR(GETPIVOTDATA("Total W/O Preschool",'[1]Private 19-20'!$O$3,"District Code",A200),0)*0 -> 0 | P200: 15327 | Q200: 0 | R200: 15327 | T200: 0 | U200: 15327 | W200: =IFERROR(VLOOKUP($A200,'Allocation 2021-22 Final'!$A$7:$U$317,18,FALSE),0) -> 8031 | Y200: 7296 | Z200: 0.9084796414 | AA200: 64 | AB200: 0 | AD200: 24122 | AE200: PATEROS
... 122 more rows

Sheet Allocation 2021-22 Final (hidden)
A1: 2021-22 | J1: =IF(J5=[1]Assumptions!$E14+I5,"Rounding OK","Rounding Error = "&FIXED(J5-[1]Assumptions!$D14-I5,TRUE)) -> Rounding Error = 0.0 | T1: =T5 -> 0 | U1: =IF(U5=[1]Assumptions!$E14+T5,"Rounding OK","Rounding Error = "&FIXED(U5-([1]Assumptions!$D14+T5),TRUE)) -> Rounding Error = 0.0
A2: ESEA -- Title 2 Distributions | J2: Allocation including private participation | U2: \
A3: 1 | B3: 2 | C3: 3 | D3: 4 | E3: 5 | F3: 6 | G3: 7 | H3: 8 | I3: 9 | J3: 10 | K3: 11 | L3: 12 | M3: 13 | N3: 14 | U3: \ | W3: 18
A4: ccddd | B4: District Name | C4: Eisenhower 2001-02 Allocations | D4: Class Size Reduction Allocations 2001-02 | E4: Census Population Ages 5-17 | F4: 20% based on Total Pop | G4: Census Poverty Ages 5-17 | H4: 80% based on Low Inc Pop | I4: MOE | J4: Total Final Allocation | L4: Per Student Allocation | M4: P-105A District Enrollment WO PK | N4: Private School Partcipation Enroll | O4: Alloc to non-Census LEA | P4: Realloc Pool | Q4: Realloc | R4: Final Alloc Before MOE | S4: MOE | T4: MOE Reduction | U4: Final Alloc | W4: Prior Year Allocation | Y4: Change | AA4: Rank Order | AD4: do not delete Y & Z
B5: State Totals | C5: =SUM(C7:C312) -> 0 | D5: =SUM(D7:D312) -> 0 | E5: =SUM(E7:E321) -> 1205968 | F5: =SUM(F7:F321) -> 6566757 | G5: =SUM(G7:G321) -> 132232 | H5: =SUM(H7:H321) -> 26267038 | J5: =SUM(J7:J321) -> 32833796 | L5: =IFERROR(+J5/(+M5+N5),0) -> 0 | M5: =SUM(M7:M321) -> 0 | N5: 0 | O5: 0 | P5: 32833796 | Q5: 0 | R5: 32833796 | T5: =SUM(T7:T321) -> 0 | U5: =SUM(U7:U321) -> 32833796 | W5: =SUM(W7:W321) -> 32219625 | Y5: =SUM(Y7:Y321) -> 614171 | Z5: =MIN(Z7:Z321) -> -1 | AA5: ="Lose = "& PROPER(VLOOKUP(Z5,$Z$7:$AE$321,6,FALSE)) -> Lose = Willow Charter | AD5: =+A5 -> 0 | AE5: =+B5 -> State Totals
Z6: =MAX(Z7:Z313) -> 5.263157895 | AA6: ="Win = "&PROPER(VLOOKUP(Z6,$Z$7:$AE$313,6,FALSE)) -> Win = Index
A7: 14005 | B7: ABERDEEN | C7: 0 | D7: 0 | E7: =IFERROR(VLOOKUP($A7,[1]Census!$A$11:$I$346,7,FALSE),0) -> 3402 | F7: =ROUND(E7/$E$5*[1]Assumptions!$D$14*[1]Assumptions!$D$29,0) -> 18525 | G7: =IFERROR(VLOOKUP($A7,[1]Census!$A$11:$I$495,8,FALSE),0) -> 736 | H7: =ROUND(G7/$G$5*+[1]Assumptions!$D$14*[1]Assumptions!$D$30,0) -> 146202 | J7: =ROUNDDOWN(+H7+F7+D7+C7+I7,0) -> 164727 | L7: =IF((M7+N7=0),0,+J7/(+M7+N7)) -> 0 | M7: =IFERROR(VLOOKUP(A7,[1]ENROLLMENT!$A$5:$B$349,2,FALSE),0)*0 -> 0 | N7: =IFERROR(GETPIVOTDATA("Total W/O Preschool",'[1]Private 19-20'!$O$3,"District Code",A7),0)*0 -> 0 | P7: =J7 -> 164727 | Q7: =-ROUND(P7/$P$5*$O$5,0) -> 0 | R7: =+J7+Q7+O7 -> 164727 | T7: =IF(S7>0,-ROUND((R7*(0.9-S7)),0),0) -> 0 | U7: =+R7+T7 -> 164727 | W7: =IFERROR(VLOOKUP($A7,'[1]Allocation 2020-21 Final'!$A$7:$U$317,18,FALSE),0) -> 180723 | Y7: =+U7-W7 -> -15996 | Z7: =IF(W7>0,Y7/W7,0) -> -0.08851114689 | AA7: =RANK(Y7,$Y$7:$Y$321,0) -> 289 | AB7: =(SUM(C7:D7)/U7) -> 0 | AD7: =+A7 -> 14005 | AE7: =+B7 -> ABERDEEN
A8: 21226 | B8: ADNA | C8: 0 | D8: 0 | E8: =IFERROR(VLOOKUP($A8,[1]Census!$A$11:$I$344,7,FALSE),0) -> 772 | F8: =ROUND(E8/$E$5*[1]Assumptions!$D$14*[1]Assumptions!$D$29,0) -> 4204 | G8: =IFERROR(VLOOKUP($A8,[1]Census!$A$11:$I$495,8,FALSE),0) -> 38 | H8: =ROUND(G8/$G$5*+[1]Assumptions!$D$14*[1]Assumptions!$D$30,0) -> 7548 | J8: 11752 | L8: 0 | M8: =IFERROR(VLOOKUP(A8,[1]ENROLLMENT!$A$5:$B$349,2,FALSE),0)*0 -> 0 | N8: =IFERROR(GETPIVOTDATA("Total W/O Preschool",'[1]Private 19-20'!$O$3,"District Code",A8),0)*0 -> 0 | P8: 11752 | Q8: 0 | R8: 11752 | T8: 0 | U8: 11752 | W8: =IFERROR(VLOOKUP($A8,'[1]Allocation 2020-21 Final'!$A$7:$U$317,18,FALSE),0) -> 16433 | Y8: -4681 | Z8: -0.2848536481 | AA8: 261 | AB8: 0 | AD8: 21226 | AE8: ADNA
A9: 22017 | B9: ALMIRA | C9: 0 | D9: 0 | E9: =IFERROR(VLOOKUP($A9,[1]Census!$A$11:$I$344,7,FALSE),0) -> 90 | F9: =ROUND(E9/$E$5*[1]Assumptions!$D$14*[1]Assumptions!$D$29,0) -> 490 | G9: =IFERROR(VLOOKUP($A9,[1]Census!$A$11:$I$344,8,FALSE),0) -> 9 | H9: =ROUND(G9/$G$5*+[1]Assumptions!$D$14*[1]Assumptions!$D$30,0) -> 1788 | J9: 2278 | L9: 0 | M9: =IFERROR(VLOOKUP(A9,[1]ENROLLMENT!$A$5:$B$349,2,FALSE),0)*0 -> 0 | N9: =IFERROR(GETPIVOTDATA("Total W/O Preschool",'[1]Private 19-20'!$O$3,"District Code",A9),0)*0 -> 0 | P9: 2278 | Q9: 0 | R9: 2278 | T9: 0 | U9: 2278 | W9: =IFERROR(VLOOKUP($A9,'[1]Allocation 2020-21 Final'!$A$7:$U$317,18,FALSE),0) -> 2166 | Y9: 112 | Z9: 0.05170821791 | AA9: 170 | AB9: 0 | AD9: 22017 | AE9: ALMIRA
A10: 29103 | B10: ANACORTES | C10: 0 | D10: 0 | E10: =IFERROR(VLOOKUP($A10,[1]Census!$A$11:$I$344,7,FALSE),0) -> 2778 | F10: =ROUND(E10/$E$5*[1]Assumptions!$D$14*[1]Assumptions!$D$29,0) -> 15127 | G10: =IFERROR(VLOOKUP($A10,[1]Census!$A$11:$I$344,8,FALSE),0) -> 307 | H10: =ROUND(G10/$G$5*+[1]Assumptions!$D$14*[1]Assumptions!$D$30,0) -> 60984 | J10: 76111 | L10: 0 | M10: =IFERROR(VLOOKUP(A10,[1]ENROLLMENT!$A$5:$B$349,2,FALSE),0)*0 -> 0 | N10: =IFERROR(GETPIVOTDATA("Total W/O Preschool",'[1]Private 19-20'!$O$3,"District Code",A10),0)*0 -> 0 | P10: 76111 | Q10: 0 | R10: 76111 | T10: 0 | U10: 76111 | W10: =IFERROR(VLOOKUP($A10,'[1]Allocation 2020-21 Final'!$A$7:$U$317,18,FALSE),0) -> 56722 | Y10: 19389 | Z10: 0.3418250414 | AA10: 30 | AB10: 0 | AD10: 29103 | AE10: ANACORTES
A11: 31016 | B11: ARLINGTON | C11: 0 | D11: 0 | E11: =IFERROR(VLOOKUP($A11,[1]Census!$A$11:$I$344,7,FALSE),0) -> 5966 | F11: =ROUND(E11/$E$5*[1]Assumptions!$D$14*[1]Assumptions!$D$29,0) -> 32486 | G11: =IFERROR(VLOOKUP($A11,[1]Census!$A$11:$I$344,8,FALSE),0) -> 369 | H11: =ROUND(G11/$G$5*+[1]Assumptions!$D$14*[1]Assumptions!$D$30,0) -> 73299 | J11: 105785 | L11: 0 | M11: =IFERROR(VLOOKUP(A11,[1]ENROLLMENT!$A$5:$B$349,2,FALSE),0)*0 -> 0 | N11: =IFERROR(GETPIVOTDATA("Total W/O Preschool",'[1]Private 19-20'!$O$3,"District Code",A11),0)*0 -> 0 | P11: 105785 | Q11: 0 | R11: 105785 | T11: 0 | U11: 105785 | W11: =IFERROR(VLOOKUP($A11,'[1]Allocation 2020-21 Final'!$A$7:$U$317,18,FALSE),0) -> 96619 | Y11: 9166 | Z11: 0.09486746913 | AA11: 51 | AB11: 0 | AD11: 31016 | AE11: ARLINGTON
A12: 02420 | B12: ASOTIN-ANATONE | C12: 0 | D12: 0 | E12: =IFERROR(VLOOKUP($A12,[1]Census!$A$11:$I$344,7,FALSE),0) -> 558 | F12: =ROUND(E12/$E$5*[1]Assumptions!$D$14*[1]Assumptions!$D$29,0) -> 3038 | G12: =IFERROR(VLOOKUP($A12,[1]Census!$A$11:$I$344,8,FALSE),0) -> 55 | H12: =ROUND(G12/$G$5*+[1]Assumptions!$D$14*[1]Assumptions!$D$30,0) -> 10925 | J12: 13963 | L12: 0 | M12: =IFERROR(VLOOKUP(A12,[1]ENROLLMENT!$A$5:$B$349,2,FALSE),0)*0 -> 0 | N12: =IFERROR(GETPIVOTDATA("Total W/O Preschool",'[1]Private 19-20'!$O$3,"District Code",A12),0)*0 -> 0 | P12: 13963 | Q12: 0 | R12: 13963 | T12: 0 | U12: 13963 | W12: =IFERROR(VLOOKUP($A12,'[1]Allocation 2020-21 Final'!$A$7:$U$317,18,FALSE),0) -> 15572 | Y12: -1609 | Z12: -0.1033264834 | AA12: 228 | AB12: 0 | AD12: 02420 | AE12: ASOTIN-ANATONE
A13: 17408 | B13: AUBURN | C13: 0 | D13: 0 | E13: =IFERROR(VLOOKUP($A13,[1]Census!$A$11:$I$344,7,FALSE),0) -> 17308 | F13: =ROUND(E13/$E$5*[1]Assumptions!$D$14*[1]Assumptions!$D$29,0) -> 94246 | G13: =IFERROR(VLOOKUP($A13,[1]Census!$A$11:$I$344,8,FALSE),0) -> 1951 | H13: =ROUND(G13/$G$5*+[1]Assumptions!$D$14*[1]Assumptions!$D$30,0) -> 387554 | J13: 481800 | L13: 0 | M13: =IFERROR(VLOOKUP(A13,[1]ENROLLMENT!$A$5:$B$349,2,FALSE),0)*0 -> 0 | N13: =IFERROR(GETPIVOTDATA("Total W/O Preschool",'[1]Private 19-20'!$O$3,"District Code",A13),0)*0 -> 0 | P13: 481800 | Q13: 0 | R13: 481800 | T13: 0 | U13: 481800 | W13: =IFERROR(VLOOKUP($A13,'[1]Allocation 2020-21 Final'!$A$7:$U$317,18,FALSE),0) -> 556889 | Y13: -75089 | Z13: -0.1348365653 | AA13: 310 | AB13: 0 | AD13: 17408 | AE13: AUBURN
A14: 18303 | B14: BAINBRIDGE ISLAND | C14: 0 | D14: 0 | E14: =IFERROR(VLOOKUP($A14,[1]Census!$A$11:$I$344,7,FALSE),0) -> 4286 | F14: =ROUND(E14/$E$5*[1]Assumptions!$D$14*[1]Assumptions!$D$29,0) -> 23338 | G14: =IFERROR(VLOOKUP($A14,[1]Census!$A$11:$I$344,8,FALSE),0) -> 128 | H14: =ROUND(G14/$G$5*+[1]Assumptions!$D$14*[1]Assumptions!$D$30,0) -> 25426 | J14: 48764 | L14: 0 | M14: =IFERROR(VLOOKUP(A14,[1]ENROLLMENT!$A$5:$B$349,2,FALSE),0)*0 -> 0 | N14: =IFERROR(GETPIVOTDATA("Total W/O Preschool",'[1]Private 19-20'!$O$3,"District Code",A14),0)*0 -> 0 | P14: 48764 | Q14: 0 | R14: 48764 | T14: 0 | U14: 48764 | W14: =IFERROR(VLOOKUP($A14,'[1]Allocation 2020-21 Final'!$A$7:$U$317,18,FALSE),0) -> 52951 | Y14: -4187 | Z14: -0.07907310532 | AA14: 258 | AB14: 0 | AD14: 18303 | AE14: BAINBRIDGE ISLAND
A15: 06119 | B15: BATTLE GROUND | C15: 0 | D15: 0 | E15: =IFERROR(VLOOKUP($A15,[1]Census!$A$11:$I$344,7,FALSE),0) -> 15079 | F15: =ROUND(E15/$E$5*[1]Assumptions!$D$14*[1]Assumptions!$D$29,0) -> 82108 | G15: =IFERROR(VLOOKUP($A15,[1]Census!$A$11:$I$344,8,FALSE),0) -> 1091 | H15: =ROUND(G15/$G$5*+[1]Assumptions!$D$14*[1]Assumptions!$D$30,0) -> 216720 | J15: 298828 | L15: 0 | M15: =IFERROR(VLOOKUP(A15,[1]ENROLLMENT!$A$5:$B$349,2,FALSE),0)*0 -> 0 | N15: =IFERROR(GETPIVOTDATA("Total W/O Preschool",'[1]Private 19-20'!$O$3,"District Code",A15),0)*0 -> 0 | P15: 298828 | Q15: 0 | R15: 298828 | T15: 0 | U15: 298828 | W15: =IFERROR(VLOOKUP($A15,'[1]Allocation 2020-21 Final'!$A$7:$U$317,18,FALSE),0) -> 272355 | Y15: 26473 | Z15: 0.09720034514 | AA15: 24 | AB15: 0 | AD15: 06119 | AE15: BATTLE GROUND
A16: 17405 | B16: BELLEVUE | C16: 0 | D16: 0 | E16: =IFERROR(VLOOKUP($A16,[1]Census!$A$11:$I$344,7,FALSE),0) -> 21599 | F16: =ROUND(E16/$E$5*[1]Assumptions!$D$14*[1]Assumptions!$D$29,0) -> 117611 | G16: =IFERROR(VLOOKUP($A16,[1]Census!$A$11:$I$344,8,FALSE),0) -> 1042 | H16: =ROUND(G16/$G$5*+[1]Assumptions!$D$14*[1]Assumptions!$D$30,0) -> 206987 | J16: 324598 | L16: 0 | M16: =IFERROR(VLOOKUP(A16,[1]ENROLLMENT!$A$5:$B$349,2,FALSE),0)*0 -> 0 | N16: =IFERROR(GETPIVOTDATA("Total W/O Preschool",'[1]Private 19-20'!$O$3,"District Code",A16),0)*0 -> 0 | P16: 324598 | Q16: 0 | R16: 324598 | T16: 0 | U16: 324598 | W16: =IFERROR(VLOOKUP($A16,'[1]Allocation 2020-21 Final'!$A$7:$U$317,18,FALSE),0) -> 375091 | Y16: -50493 | Z16: -0.1346153333 | AA16: 308 | AB16: 0 | AD16: 17405 | AE16: BELLEVUE
A17: 37501 | B17: BELLINGHAM | C17: 0 | D17: 0 | E17: =IFERROR(VLOOKUP($A17,[1]Census!$A$11:$I$344,7,FALSE),0) -> 12961.0134 | F17: =ROUND(E17/$E$5*[1]Assumptions!$D$14*[1]Assumptions!$D$29,0) -> 70576 | G17: =IFERROR(VLOOKUP($A17,[1]Census!$A$11:$I$344,8,FALSE),0) -> 1290.241122 | H17: =ROUND(G17/$G$5*+[1]Assumptions!$D$14*[1]Assumptions!$D$30,0) -> 256298 | J17: 326874 | L17: 0 | M17: =IFERROR(VLOOKUP(A17,[1]ENROLLMENT!$A$5:$B$349,2,FALSE),0)*0 -> 0 | N17: =IFERROR(GETPIVOTDATA("Total W/O Preschool",'[1]Private 19-20'!$O$3,"District Code",A17),0)*0 -> 0 | P17: 326874 | Q17: 0 | R17: 326874 | T17: 0 | U17: 326874 | W17: =IFERROR(VLOOKUP($A17,'[1]Allocation 2020-21 Final'!$A$7:$U$317,18,FALSE),0) -> 361689 | Y17: -34815 | Z17: -0.09625672885 | AA17: 301 | AB17: 0 | AD17: 37501 | AE17: BELLINGHAM
A18: 01122 | B18: BENGE | C18: 0 | D18: 0 | E18: =IFERROR(VLOOKUP($A18,[1]Census!$A$11:$I$344,7,FALSE),0) -> 6 | F18: =ROUND(E18/$E$5*[1]Assumptions!$D$14*[1]Assumptions!$D$29,0) -> 33 | G18: =IFERROR(VLOOKUP($A18,[1]Census!$A$11:$I$344,8,FALSE),0) -> 1 | H18: =ROUND(G18/$G$5*+[1]Assumptions!$D$14*[1]Assumptions!$D$30,0) -> 199 | J18: 232 | L18: 0 | M18: =IFERROR(VLOOKUP(A18,[1]ENROLLMENT!$A$5:$B$349,2,FALSE),0)*0 -> 0 | N18: =IFERROR(GETPIVOTDATA("Total W/O Preschool",'[1]Private 19-20'!$O$3,"District Code",A18),0)*0 -> 0 | P18: 232 | Q18: 0 | R18: 232 | T18: 0 | U18: 232 | W18: =IFERROR(VLOOKUP($A18,'[1]Allocation 2020-21 Final'!$A$7:$U$317,18,FALSE),0) -> 406 | Y18: -174 | Z18: -0.4285714286 | AA18: 190 | AB18: 0 | AD18: 01122 | AE18: BENGE
A19: 27403 | B19: BETHEL | C19: 0 | D19: 0 | E19: =IFERROR(VLOOKUP($A19,[1]Census!$A$11:$I$344,7,FALSE),0) -> 21306 | F19: =ROUND(E19/$E$5*[1]Assumptions!$D$14*[1]Assumptions!$D$29,0) -> 116016 | G19: =IFERROR(VLOOKUP($A19,[1]Census!$A$11:$I$344,8,FALSE),0) -> 2276 | H19: =ROUND(G19/$G$5*+[1]Assumptions!$D$14*[1]Assumptions!$D$30,0) -> 452113 | J19: 568129 | L19: 0 | M19: =IFERROR(VLOOKUP(A19,[1]ENROLLMENT!$A$5:$B$349,2,FALSE),0)*0 -> 0 | N19: =IFERROR(GETPIVOTDATA("Total W/O Preschool",'[1]Private 19-20'!$O$3,"District Code",A19),0)*0 -> 0 | P19: 568129 | Q19: 0 | R19: 568129 | T19: 0 | U19: 568129 | W19: =IFERROR(VLOOKUP($A19,'[1]Allocation 2020-21 Final'!$A$7:$U$317,18,FALSE),0) -> 497605 | Y19: 70524 | Z19: 0.1417268717 | AA19: 10 | AB19: 0 | AD19: 27403 | AE19: BETHEL
A20: 20203 | B20: BICKLETON | C20: 0 | D20: 0 | E20: =IFERROR(VLOOKUP($A20,[1]Census!$A$11:$I$344,7,FALSE),0) -> 62 | F20: =ROUND(E20/$E$5*[1]Assumptions!$D$14*[1]Assumptions!$D$29,0) -> 338 | G20: =IFERROR(VLOOKUP($A20,[1]Census!$A$11:$I$344,8,FALSE),0) -> 7 | H20: =ROUND(G20/$G$5*+[1]Assumptions!$D$14*[1]Assumptions!$D$30,0) -> 1391 | J20: 1729 | L20: 0 | M20: =IFERROR(VLOOKUP(A20,[1]ENROLLMENT!$A$5:$B$349,2,FALSE),0)*0 -> 0 | N20: =IFERROR(GETPIVOTDATA("Total W/O Preschool",'[1]Private 19-20'!$O$3,"District Code",A20),0)*0 -> 0 | P20: 1729 | Q20: 0 | R20: 1729 | T20: 0 | U20: 1729 | W20: =IFERROR(VLOOKUP($A20,'[1]Allocation 2020-21 Final'!$A$7:$U$317,18,FALSE),0) -> 1828 | Y20: -99 | Z20: -0.05415754923 | AA20: 184 | AB20: 0 | AD20: 20203 | AE20: BICKLETON
A21: 37503 | B21: BLAINE | C21: 0 | D21: 0 | E21: =IFERROR(VLOOKUP($A21,[1]Census!$A$11:$I$344,7,FALSE),0) -> 2518 | F21: =ROUND(E21/$E$5*[1]Assumptions!$D$14*[1]Assumptions!$D$29,0) -> 13711 | G21: =IFERROR(VLOOKUP($A21,[1]Census!$A$11:$I$344,8,FALSE),0) -> 377 | H21: =ROUND(G21/$G$5*+[1]Assumptions!$D$14*[1]Assumptions!$D$30,0) -> 74889 | J21: 88600 | L21: 0 | M21: =IFERROR(VLOOKUP(A21,[1]ENROLLMENT!$A$5:$B$349,2,FALSE),0)*0 -> 0 | N21: =IFERROR(GETPIVOTDATA("Total W/O Preschool",'[1]Private 19-20'!$O$3,"District Code",A21),0)*0 -> 0 | P21: 88600 | Q21: 0 | R21: 88600 | T21: 0 | U21: 88600 | W21: =IFERROR(VLOOKUP($A21,'[1]Allocation 2020-21 Final'!$A$7:$U$317,18,FALSE),0) -> 89440 | Y21: -840 | Z21: -0.00939177102 | AA21: 213 | AB21: 0 | AD21: 37503 | AE21: BLAINE
A22: 21234 | B22: BOISTFORT | C22: 0 | D22: 0 | E22: =IFERROR(VLOOKUP($A22,[1]Census!$A$11:$I$344,7,FALSE),0) -> 151 | F22: =ROUND(E22/$E$5*[1]Assumptions!$D$14*[1]Assumptions!$D$29,0) -> 822 | G22: =IFERROR(VLOOKUP($A22,[1]Census!$A$11:$I$344,8,FALSE),0) -> 25 | H22: =ROUND(G22/$G$5*+[1]Assumptions!$D$14*[1]Assumptions!$D$30,0) -> 4966 | J22: 5788 | L22: 0 | M22: =IFERROR(VLOOKUP(A22,[1]ENROLLMENT!$A$5:$B$349,2,FALSE),0)*0 -> 0 | N22: =IFERROR(GETPIVOTDATA("Total W/O Preschool",'[1]Private 19-20'!$O$3,"District Code",A22),0)*0 -> 0 | P22: 5788 | Q22: 0 | R22: 5788 | T22: 0 | U22: 5788 | W22: =IFERROR(VLOOKUP($A22,'[1]Allocation 2020-21 Final'!$A$7:$U$317,18,FALSE),0) -> 5286 | Y22: 502 | Z22: 0.09496783958 | AA22: 154 | AB22: 0 | AD22: 21234 | AE22: BOISTFORT
A23: 18100 | B23: BREMERTON | C23: 0 | D23: 0 | E23: =IFERROR(VLOOKUP($A23,[1]Census!$A$11:$I$344,7,FALSE),0) -> 5165.528083 | F23: =ROUND(E23/$E$5*[1]Assumptions!$D$14*[1]Assumptions!$D$29,0) -> 28127 | G23: =IFERROR(VLOOKUP($A23,[1]Census!$A$11:$I$344,8,FALSE),0) -> 756.7087912 | H23: =ROUND(G23/$G$5*+[1]Assumptions!$D$14*[1]Assumptions!$D$30,0) -> 150315 | J23: 178442 | L23: 0 | M23: =IFERROR(VLOOKUP(A23,[1]ENROLLMENT!$A$5:$B$349,2,FALSE),0)*0 -> 0 | N23: =IFERROR(GETPIVOTDATA("Total W/O Preschool",'[1]Private 19-20'!$O$3,"District Code",A23),0)*0 -> 0 | P23: 178442 | Q23: 0 | R23: 178442 | T23: 0 | U23: 178442 | W23: =IFERROR(VLOOKUP($A23,'[1]Allocation 2020-21 Final'!$A$7:$U$317,18,FALSE),0) -> 205717 | Y23: -27275 | Z23: -0.1325850562 | AA23: 299 | AB23: 0 | AD23: 18100 | AE23: BREMERTON
A24: 24111 | B24: BREWSTER | C24: 0 | D24: 0 | E24: =IFERROR(VLOOKUP($A24,[1]Census!$A$11:$I$344,7,FALSE),0) -> 1080 | F24: =ROUND(E24/$E$5*[1]Assumptions!$D$14*[1]Assumptions!$D$29,0) -> 5881 | G24: =IFERROR(VLOOKUP($A24,[1]Census!$A$11:$I$344,8,FALSE),0) -> 157 | H24: =ROUND(G24/$G$5*+[1]Assumptions!$D$14*[1]Assumptions!$D$30,0) -> 31187 | J24: 37068 | L24: 0 | M24: =IFERROR(VLOOKUP(A24,[1]ENROLLMENT!$A$5:$B$349,2,FALSE),0)*0 -> 0 | N24: =IFERROR(GETPIVOTDATA("Total W/O Preschool",'[1]Private 19-20'!$O$3,"District Code",A24),0)*0 -> 0 | P24: 37068 | Q24: 0 | R24: 37068 | T24: 0 | U24: 37068 | W24: =IFERROR(VLOOKUP($A24,'[1]Allocation 2020-21 Final'!$A$7:$U$317,18,FALSE),0) -> 40266 | Y24: -3198 | Z24: -0.07942184473 | AA24: 250 | AB24: 0 | AD24: 24111 | AE24: BREWSTER
A25: 09075 | B25: BRIDGEPORT | C25: 0 | D25: 0 | E25: =IFERROR(VLOOKUP($A25,[1]Census!$A$11:$I$344,7,FALSE),0) -> 878 | F25: =ROUND(E25/$E$5*[1]Assumptions!$D$14*[1]Assumptions!$D$29,0) -> 4781 | G25: =IFERROR(VLOOKUP($A25,[1]Census!$A$11:$I$344,8,FALSE),0) -> 200 | H25: =ROUND(G25/$G$5*+[1]Assumptions!$D$14*[1]Assumptions!$D$30,0) -> 39729 | J25: 44510 | L25: 0 | M25: =IFERROR(VLOOKUP(A25,[1]ENROLLMENT!$A$5:$B$349,2,FALSE),0)*0 -> 0 | N25: =IFERROR(GETPIVOTDATA("Total W/O Preschool",'[1]Private 19-20'!$O$3,"District Code",A25),0)*0 -> 0 | P25: 44510 | Q25: 0 | R25: 44510 | T25: 0 | U25: 44510 | W25: =IFERROR(VLOOKUP($A25,'[1]Allocation 2020-21 Final'!$A$7:$U$317,18,FALSE),0) -> 36057 | Y25: 8453 | Z25: 0.2344343678 | AA25: 57 | AB25: 0 | AD25: 09075 | AE25: BRIDGEPORT
A26: 16046 | B26: BRINNON | C26: 0 | D26: 0 | E26: =IFERROR(VLOOKUP($A26,[1]Census!$A$11:$I$344,7,FALSE),0) -> 86 | F26: =ROUND(E26/$E$5*[1]Assumptions!$D$14*[1]Assumptions!$D$29,0) -> 468 | G26: =IFERROR(VLOOKUP($A26,[1]Census!$A$11:$I$344,8,FALSE),0) -> 27 | H26: =ROUND(G26/$G$5*+[1]Assumptions!$D$14*[1]Assumptions!$D$30,0) -> 5363 | J26: 5831 | L26: 0 | M26: =IFERROR(VLOOKUP(A26,[1]ENROLLMENT!$A$5:$B$349,2,FALSE),0)*0 -> 0 | N26: =IFERROR(GETPIVOTDATA("Total W/O Preschool",'[1]Private 19-20'!$O$3,"District Code",A26),0)*0 -> 0 | P26: 5831 | Q26: 0 | R26: 5831 | T26: 0 | U26: 5831 | W26: =IFERROR(VLOOKUP($A26,'[1]Allocation 2020-21 Final'!$A$7:$U$317,18,FALSE),0) -> 5496 | Y26: 335 | Z26: 0.06095342067 | AA26: 159 | AB26: 0 | AD26: 16046 | AE26: BRINNON
A27: 29100 | B27: BURLINGTON-EDISON | C27: 0 | D27: 0 | E27: =IFERROR(VLOOKUP($A27,[1]Census!$A$11:$I$344,7,FALSE),0) -> 3855 | F27: =ROUND(E27/$E$5*[1]Assumptions!$D$14*[1]Assumptions!$D$29,0) -> 20991 | G27: =IFERROR(VLOOKUP($A27,[1]Census!$A$11:$I$344,8,FALSE),0) -> 727 | H27: =ROUND(G27/$G$5*+[1]Assumptions!$D$14*[1]Assumptions!$D$30,0) -> 144414 | J27: 165405 | L27: 0 | M27: =IFERROR(VLOOKUP(A27,[1]ENROLLMENT!$A$5:$B$349,2,FALSE),0)*0 -> 0 | N27: =IFERROR(GETPIVOTDATA("Total W/O Preschool",'[1]Private 19-20'!$O$3,"District Code",A27),0)*0 -> 0 | P27: 165405 | Q27: 0 | R27: 165405 | T27: 0 | U27: 165405 | W27: =IFERROR(VLOOKUP($A27,'[1]Allocation 2020-21 Final'!$A$7:$U$317,18,FALSE),0) -> 112935 | Y27: 52470 | Z27: 0.464603533 | AA27: 13 | AB27: 0 | AD27: 29100 | AE27: BURLINGTON-EDISON
A28: 06117 | B28: CAMAS | C28: 0 | D28: 0 | E28: =IFERROR(VLOOKUP($A28,[1]Census!$A$11:$I$344,7,FALSE),0) -> 6713 | F28: =ROUND(E28/$E$5*[1]Assumptions!$D$14*[1]Assumptions!$D$29,0) -> 36554 | G28: =IFERROR(VLOOKUP($A28,[1]Census!$A$11:$I$344,8,FALSE),0) -> 287 | H28: =ROUND(G28/$G$5*+[1]Assumptions!$D$14*[1]Assumptions!$D$30,0) -> 57011 | J28: 93565 | L28: 0 | M28: =IFERROR(VLOOKUP(A28,[1]ENROLLMENT!$A$5:$B$349,2,FALSE),0)*0 -> 0 | N28: =IFERROR(GETPIVOTDATA("Total W/O Preschool",'[1]Private 19-20'!$O$3,"District Code",A28),0)*0 -> 0 | P28: 93565 | Q28: 0 | R28: 93565 | T28: 0 | U28: 93565 | W28: =IFERROR(VLOOKUP($A28,'[1]Allocation 2020-21 Final'!$A$7:$U$317,18,FALSE),0) -> 83496 | Y28: 10069 | Z28: 0.1205926032 | AA28: 47 | AB28: 0 | AD28: 06117 | AE28: CAMAS
A29: 05401 | B29: CAPE FLATTERY | C29: 0 | D29: 0 | E29: =IFERROR(VLOOKUP($A29,[1]Census!$A$11:$I$344,7,FALSE),0) -> 451 | F29: =ROUND(E29/$E$5*[1]Assumptions!$D$14*[1]Assumptions!$D$29,0) -> 2456 | G29: =IFERROR(VLOOKUP($A29,[1]Census!$A$11:$I$344,8,FALSE),0) -> 60 | H29: =ROUND(G29/$G$5*+[1]Assumptions!$D$14*[1]Assumptions!$D$30,0) -> 11919 | J29: 14375 | L29: 0 | M29: =IFERROR(VLOOKUP(A29,[1]ENROLLMENT!$A$5:$B$349,2,FALSE),0)*0 -> 0 | N29: =IFERROR(GETPIVOTDATA("Total W/O Preschool",'[1]Private 19-20'!$O$3,"District Code",A29),0)*0 -> 0 | P29: 14375 | Q29: 0 | R29: 14375 | T29: 0 | U29: 14375 | W29: =IFERROR(VLOOKUP($A29,'[1]Allocation 2020-21 Final'!$A$7:$U$317,18,FALSE),0) -> 14179 | Y29: 196 | Z29: 0.01382325975 | AA29: 167 | AB29: 0 | AD29: 05401 | AE29: CAPE FLATTERY
A30: 27019 | B30: CARBONADO | C30: 0 | D30: 0 | E30: =IFERROR(VLOOKUP($A30,[1]Census!$A$11:$I$344,7,FALSE),0) -> 192 | F30: =ROUND(E30/$E$5*[1]Assumptions!$D$14*[1]Assumptions!$D$29,0) -> 1045 | G30: =IFERROR(VLOOKUP($A30,[1]Census!$A$11:$I$344,8,FALSE),0) -> 13 | H30: =ROUND(G30/$G$5*+[1]Assumptions!$D$14*[1]Assumptions!$D$30,0) -> 2582 | J30: 3627 | L30: 0 | M30: =IFERROR(VLOOKUP(A30,[1]ENROLLMENT!$A$5:$B$349,2,FALSE),0)*0 -> 0 | N30: =IFERROR(GETPIVOTDATA("Total W/O Preschool",'[1]Private 19-20'!$O$3,"District Code",A30),0)*0 -> 0 | P30: 3627 | Q30: 0 | R30: 3627 | T30: 0 | U30: 3627 | W30: =IFERROR(VLOOKUP($A30,'[1]Allocation 2020-21 Final'!$A$7:$U$317,18,FALSE),0) -> 3077 | Y30: 550 | Z30: 0.1787455314 | AA30: 149 | AB30: 0 | AD30: 27019 | AE30: CARBONADO
A31: 04228 | B31: CASCADE | C31: 0 | D31: 0 | E31: =IFERROR(VLOOKUP($A31,[1]Census!$A$11:$I$344,7,FALSE),0) -> 1497 | F31: =ROUND(E31/$E$5*[1]Assumptions!$D$14*[1]Assumptions!$D$29,0) -> 8151 | G31: =IFERROR(VLOOKUP($A31,[1]Census!$A$11:$I$344,8,FALSE),0) -> 198 | H31: =ROUND(G31/$G$5*+[1]Assumptions!$D$14*[1]Assumptions!$D$30,0) -> 39331 | J31: 47482 | L31: 0 | M31: =IFERROR(VLOOKUP(A31,[1]ENROLLMENT!$A$5:$B$349,2,FALSE),0)*0 -> 0 | N31: =IFERROR(GETPIVOTDATA("Total W/O Preschool",'[1]Private 19-20'!$O$3,"District Code",A31),0)*0 -> 0 | P31: 47482 | Q31: 0 | R31: 47482 | T31: 0 | U31: 47482 | W31: =IFERROR(VLOOKUP($A31,'[1]Allocation 2020-21 Final'!$A$7:$U$317,18,FALSE),0) -> 49550 | Y31: -2068 | Z31: -0.04173562059 | AA31: 234 | AB31: 0 | AD31: 04228 | AE31: CASCADE
A32: 04222 | B32: CASHMERE | C32: 0 | D32: 0 | E32: =IFERROR(VLOOKUP($A32,[1]Census!$A$11:$I$344,7,FALSE),0) -> 1382 | F32: =ROUND(E32/$E$5*[1]Assumptions!$D$14*[1]Assumptions!$D$29,0) -> 7525 | G32: =IFERROR(VLOOKUP($A32,[1]Census!$A$11:$I$344,8,FALSE),0) -> 232 | H32: =ROUND(G32/$G$5*+[1]Assumptions!$D$14*[1]Assumptions!$D$30,0) -> 46085 | J32: 53610 | L32: 0 | M32: =IFERROR(VLOOKUP(A32,[1]ENROLLMENT!$A$5:$B$349,2,FALSE),0)*0 -> 0 | N32: =IFERROR(GETPIVOTDATA("Total W/O Preschool",'[1]Private 19-20'!$O$3,"District Code",A32),0)*0 -> 0 | P32: 53610 | Q32: 0 | R32: 53610 | T32: 0 | U32: 53610 | W32: =IFERROR(VLOOKUP($A32,'[1]Allocation 2020-21 Final'!$A$7:$U$317,18,FALSE),0) -> 53599 | Y32: 11 | Z32: 0.0002052277095 | AA32: 179 | AB32: 0 | AD32: 04222 | AE32: CASHMERE
A33: 08401 | B33: CASTLE ROCK | C33: 0 | D33: 0 | E33: =IFERROR(VLOOKUP($A33,[1]Census!$A$11:$I$344,7,FALSE),0) -> 1564 | F33: =ROUND(E33/$E$5*[1]Assumptions!$D$14*[1]Assumptions!$D$29,0) -> 8516 | G33: =IFERROR(VLOOKUP($A33,[1]Census!$A$11:$I$344,8,FALSE),0) -> 163 | H33: =ROUND(G33/$G$5*+[1]Assumptions!$D$14*[1]Assumptions!$D$30,0) -> 32379 | J33: 40895 | L33: 0 | M33: =IFERROR(VLOOKUP(A33,[1]ENROLLMENT!$A$5:$B$349,2,FALSE),0)*0 -> 0 | N33: =IFERROR(GETPIVOTDATA("Total W/O Preschool",'[1]Private 19-20'!$O$3,"District Code",A33),0)*0 -> 0 | P33: 40895 | Q33: 0 | R33: 40895 | T33: 0 | U33: 40895 | W33: =IFERROR(VLOOKUP($A33,'[1]Allocation 2020-21 Final'!$A$7:$U$317,18,FALSE),0) -> 38238 | Y33: 2657 | Z33: 0.06948585177 | AA33: 103 | AB33: 0 | AD33: 08401 | AE33: CASTLE ROCK
A34: 18901 | B34: CATALYST BREMERTON CHARTER | C34: 0 | D34: 0 | E34: =IFERROR(VLOOKUP($A34,[1]Census!$A$11:$I$344,7,FALSE),0) -> 97.89377289 | F34: =ROUND(E34/$E$5*[1]Assumptions!$D$14*[1]Assumptions!$D$29,0) -> 533 | G34: =IFERROR(VLOOKUP($A34,[1]Census!$A$11:$I$344,8,FALSE),0) -> 14.34065934 | H34: =ROUND(G34/$G$5*+[1]Assumptions!$D$14*[1]Assumptions!$D$30,0) -> 2849 | J34: 3382 | L34: 0 | M34: =IFERROR(VLOOKUP(A34,[1]ENROLLMENT!$A$5:$B$349,2,FALSE),0)*0 -> 0 | N34: =IFERROR(GETPIVOTDATA("Total W/O Preschool",'[1]Private 19-20'!$O$3,"District Code",A34),0)*0 -> 0 | P34: 3382 | Q34: 0 | R34: 3382 | T34: 0 | U34: 3382 | W34: =IFERROR(VLOOKUP($A34,'[1]Allocation 2020-21 Final'!$A$7:$U$317,18,FALSE),0) -> 9174 | Y34: -5792 | Z34: -0.6313494659 | AA34: 270 | AB34: 0 | AD34: 18901 | AE34: CATALYST BREMERTON CHARTER
A35: 20215 | B35: CENTERVILLE | C35: 0 | D35: 0 | E35: =IFERROR(VLOOKUP($A35,[1]Census!$A$11:$I$344,7,FALSE),0) -> 77 | F35: =ROUND(E35/$E$5*[1]Assumptions!$D$14*[1]Assumptions!$D$29,0) -> 419 | G35: =IFERROR(VLOOKUP($A35,[1]Census!$A$11:$I$344,8,FALSE),0) -> 12 | H35: =ROUND(G35/$G$5*+[1]Assumptions!$D$14*[1]Assumptions!$D$30,0) -> 2384 | J35: 2803 | L35: 0 | M35: =IFERROR(VLOOKUP(A35,[1]ENROLLMENT!$A$5:$B$349,2,FALSE),0)*0 -> 0 | N35: =IFERROR(GETPIVOTDATA("Total W/O Preschool",'[1]Private 19-20'!$O$3,"District Code",A35),0)*0 -> 0 | P35: 2803 | Q35: 0 | R35: 2803 | T35: 0 | U35: 2803 | W35: =IFERROR(VLOOKUP($A35,'[1]Allocation 2020-21 Final'!$A$7:$U$317,18,FALSE),0) -> 3217 | Y35: -414 | Z35: -0.1286913273 | AA35: 202 | AB35: 0 | AD35: 20215 | AE35: CENTERVILLE
A36: 18401 | B36: CENTRAL KITSAP | C36: 0 | D36: 0 | E36: =IFERROR(VLOOKUP($A36,[1]Census!$A$11:$I$344,7,FALSE),0) -> 11149 | F36: =ROUND(E36/$E$5*[1]Assumptions!$D$14*[1]Assumptions!$D$29,0) -> 60709 | G36: =IFERROR(VLOOKUP($A36,[1]Census!$A$11:$I$344,8,FALSE),0) -> 720 | H36: =ROUND(G36/$G$5*+[1]Assumptions!$D$14*[1]Assumptions!$D$30,0) -> 143023 | J36: 203732 | L36: 0 | M36: =IFERROR(VLOOKUP(A36,[1]ENROLLMENT!$A$5:$B$349,2,FALSE),0)*0 -> 0 | N36: =IFERROR(GETPIVOTDATA("Total W/O Preschool",'[1]Private 19-20'!$O$3,"District Code",A36),0)*0 -> 0 | P36: 203732 | Q36: 0 | R36: 203732 | T36: 0 | U36: 203732 | W36: =IFERROR(VLOOKUP($A36,'[1]Allocation 2020-21 Final'!$A$7:$U$317,18,FALSE),0) -> 249446 | Y36: -45714 | Z36: -0.1832621088 | AA36: 305 | AB36: 0 | AD36: 18401 | AE36: CENTRAL KITSAP
A37: 32356 | B37: CENTRAL VALLEY | C37: 0 | D37: 0 | E37: =IFERROR(VLOOKUP($A37,[1]Census!$A$11:$I$344,7,FALSE),0) -> 15064 | F37: =ROUND(E37/$E$5*[1]Assumptions!$D$14*[1]Assumptions!$D$29,0) -> 82027 | G37: =IFERROR(VLOOKUP($A37,[1]Census!$A$11:$I$344,8,FALSE),0) -> 1365 | H37: =ROUND(G37/$G$5*+[1]Assumptions!$D$14*[1]Assumptions!$D$30,0) -> 271148 | J37: 353175 | L37: 0 | M37: =IFERROR(VLOOKUP(A37,[1]ENROLLMENT!$A$5:$B$349,2,FALSE),0)*0 -> 0 | N37: =IFERROR(GETPIVOTDATA("Total W/O Preschool",'[1]Private 19-20'!$O$3,"District Code",A37),0)*0 -> 0 | P37: 353175 | Q37: 0 | R37: 353175 | T37: 0 | U37: 353175 | W37: =IFERROR(VLOOKUP($A37,'[1]Allocation 2020-21 Final'!$A$7:$U$317,18,FALSE),0) -> 397850 | Y37: -44675 | Z37: -0.1122910645 | AA37: 304 | AB37: 0 | AD37: 32356 | AE37: CENTRAL VALLEY
A38: 21401 | B38: CENTRALIA | C38: 0 | D38: 0 | E38: =IFERROR(VLOOKUP($A38,[1]Census!$A$11:$I$344,7,FALSE),0) -> 3725 | F38: =ROUND(E38/$E$5*[1]Assumptions!$D$14*[1]Assumptions!$D$29,0) -> 20283 | G38: =IFERROR(VLOOKUP($A38,[1]Census!$A$11:$I$344,8,FALSE),0) -> 607 | H38: =ROUND(G38/$G$5*+[1]Assumptions!$D$14*[1]Assumptions!$D$30,0) -> 120577 | J38: 140860 | L38: 0 | M38: =IFERROR(VLOOKUP(A38,[1]ENROLLMENT!$A$5:$B$349,2,FALSE),0)*0 -> 0 | N38: =IFERROR(GETPIVOTDATA("Total W/O Preschool",'[1]Private 19-20'!$O$3,"District Code",A38),0)*0 -> 0 | P38: 140860 | Q38: 0 | R38: 140860 | T38: 0 | U38: 140860 | W38: =IFERROR(VLOOKUP($A38,'[1]Allocation 2020-21 Final'!$A$7:$U$317,18,FALSE),0) -> 142022 | Y38: -1162 | Z38: -0.008181830984 | AA38: 220 | AB38: 0 | AD38: 21401 | AE38: CENTRALIA
A39: 21302 | B39: CHEHALIS | C39: 0 | D39: 0 | E39: =IFERROR(VLOOKUP($A39,[1]Census!$A$11:$I$344,7,FALSE),0) -> 2577 | F39: =ROUND(E39/$E$5*[1]Assumptions!$D$14*[1]Assumptions!$D$29,0) -> 14032 | G39: =IFERROR(VLOOKUP($A39,[1]Census!$A$11:$I$344,8,FALSE),0) -> 228 | H39: =ROUND(G39/$G$5*+[1]Assumptions!$D$14*[1]Assumptions!$D$30,0) -> 45291 | J39: 59323 | L39: 0 | M39: =IFERROR(VLOOKUP(A39,[1]ENROLLMENT!$A$5:$B$349,2,FALSE),0)*0 -> 0 | N39: =IFERROR(GETPIVOTDATA("Total W/O Preschool",'[1]Private 19-20'!$O$3,"District Code",A39),0)*0 -> 0 | P39: 59323 | Q39: 0 | R39: 59323 | T39: 0 | U39: 59323 | W39: =IFERROR(VLOOKUP($A39,'[1]Allocation 2020-21 Final'!$A$7:$U$317,18,FALSE),0) -> 75047 | Y39: -15724 | Z39: -0.2095220329 | AA39: 288 | AB39: 0 | AD39: 21302 | AE39: CHEHALIS
A40: 32360 | B40: CHENEY | C40: 0 | D40: 0 | E40: =IFERROR(VLOOKUP($A40,[1]Census!$A$11:$I$344,7,FALSE),0) -> 4686 | F40: =ROUND(E40/$E$5*[1]Assumptions!$D$14*[1]Assumptions!$D$29,0) -> 25516 | G40: =IFERROR(VLOOKUP($A40,[1]Census!$A$11:$I$344,8,FALSE),0) -> 574 | H40: =ROUND(G40/$G$5*+[1]Assumptions!$D$14*[1]Assumptions!$D$30,0) -> 114021 | J40: 139537 | L40: 0 | M40: =IFERROR(VLOOKUP(A40,[1]ENROLLMENT!$A$5:$B$349,2,FALSE),0)*0 -> 0 | N40: =IFERROR(GETPIVOTDATA("Total W/O Preschool",'[1]Private 19-20'!$O$3,"District Code",A40),0)*0 -> 0 | P40: 139537 | Q40: 0 | R40: 139537 | T40: 0 | U40: 139537 | W40: =IFERROR(VLOOKUP($A40,'[1]Allocation 2020-21 Final'!$A$7:$U$317,18,FALSE),0) -> 131766 | Y40: 7771 | Z40: 0.05897576006 | AA40: 61 | AB40: 0 | AD40: 32360 | AE40: CHENEY
A41: 33036 | B41: CHEWELAH | C41: 0 | D41: 0 | E41: =IFERROR(VLOOKUP($A41,[1]Census!$A$11:$I$344,7,FALSE),0) -> 961 | F41: =ROUND(E41/$E$5*[1]Assumptions!$D$14*[1]Assumptions!$D$29,0) -> 5233 | G41: =IFERROR(VLOOKUP($A41,[1]Census!$A$11:$I$344,8,FALSE),0) -> 247 | H41: =ROUND(G41/$G$5*+[1]Assumptions!$D$14*[1]Assumptions!$D$30,0) -> 49065 | J41: 54298 | L41: 0 | M41: =IFERROR(VLOOKUP(A41,[1]ENROLLMENT!$A$5:$B$349,2,FALSE),0)*0 -> 0 | N41: =IFERROR(GETPIVOTDATA("Total W/O Preschool",'[1]Private 19-20'!$O$3,"District Code",A41),0)*0 -> 0 | P41: 54298 | Q41: 0 | R41: 54298 | T41: 0 | U41: 54298 | W41: =IFERROR(VLOOKUP($A41,'[1]Allocation 2020-21 Final'!$A$7:$U$317,18,FALSE),0) -> 44038 | Y41: 10260 | Z41: 0.2329806077 | AA41: 46 | AB41: 0 | AD41: 33036 | AE41: CHEWELAH
A42: 16049 | B42: CHIMACUM | C42: 0 | D42: 0 | E42: =IFERROR(VLOOKUP($A42,[1]Census!$A$11:$I$344,7,FALSE),0) -> 1095 | F42: =ROUND(E42/$E$5*[1]Assumptions!$D$14*[1]Assumptions!$D$29,0) -> 5963 | G42: =IFERROR(VLOOKUP($A42,[1]Census!$A$11:$I$344,8,FALSE),0) -> 153 | H42: =ROUND(G42/$G$5*+[1]Assumptions!$D$14*[1]Assumptions!$D$30,0) -> 30392 | J42: 36355 | L42: 0 | M42: =IFERROR(VLOOKUP(A42,[1]ENROLLMENT!$A$5:$B$349,2,FALSE),0)*0 -> 0 | N42: =IFERROR(GETPIVOTDATA("Total W/O Preschool",'[1]Private 19-20'!$O$3,"District Code",A42),0)*0 -> 0 | P42: 36355 | Q42: 0 | R42: 36355 | T42: 0 | U42: 36355 | W42: =IFERROR(VLOOKUP($A42,'[1]Allocation 2020-21 Final'!$A$7:$U$317,18,FALSE),0) -> 32312 | Y42: 4043 | Z42: 0.125123793 | AA42: 88 | AB42: 0 | AD42: 16049 | AE42: CHIMACUM
A43: 02250 | B43: CLARKSTON | C43: 0 | D43: 0 | E43: =IFERROR(VLOOKUP($A43,[1]Census!$A$11:$I$344,7,FALSE),0) -> 2817 | F43: =ROUND(E43/$E$5*[1]Assumptions!$D$14*[1]Assumptions!$D$29,0) -> 15339 | G43: =IFERROR(VLOOKUP($A43,[1]Census!$A$11:$I$344,8,FALSE),0) -> 499 | H43: =ROUND(G43/$G$5*+[1]Assumptions!$D$14*[1]Assumptions!$D$30,0) -> 99123 | J43: 114462 | L43: 0 | M43: =IFERROR(VLOOKUP(A43,[1]ENROLLMENT!$A$5:$B$349,2,FALSE),0)*0 -> 0 | N43: =IFERROR(GETPIVOTDATA("Total W/O Preschool",'[1]Private 19-20'!$O$3,"District Code",A43),0)*0 -> 0 | P43: 114462 | Q43: 0 | R43: 114462 | T43: 0 | U43: 114462 | W43: =IFERROR(VLOOKUP($A43,'[1]Allocation 2020-21 Final'!$A$7:$U$317,18,FALSE),0) -> 118182 | Y43: -3720 | Z43: -0.03147687465 | AA43: 256 | AB43: 0 | AD43: 02250 | AE43: CLARKSTON
A44: 19404 | B44: CLE ELUM-ROSLYN | C44: 0 | D44: 0 | E44: =IFERROR(VLOOKUP($A44,[1]Census!$A$11:$I$344,7,FALSE),0) -> 1125 | F44: =ROUND(E44/$E$5*[1]Assumptions!$D$14*[1]Assumptions!$D$29,0) -> 6126 | G44: =IFERROR(VLOOKUP($A44,[1]Census!$A$11:$I$344,8,FALSE),0) -> 170 | H44: =ROUND(G44/$G$5*+[1]Assumptions!$D$14*[1]Assumptions!$D$30,0) -> 33769 | J44: 39895 | L44: 0 | M44: =IFERROR(VLOOKUP(A44,[1]ENROLLMENT!$A$5:$B$349,2,FALSE),0)*0 -> 0 | N44: =IFERROR(GETPIVOTDATA("Total W/O Preschool",'[1]Private 19-20'!$O$3,"District Code",A44),0)*0 -> 0 | P44: 39895 | Q44: 0 | R44: 39895 | T44: 0 | U44: 39895 | W44: =IFERROR(VLOOKUP($A44,'[1]Allocation 2020-21 Final'!$A$7:$U$317,18,FALSE),0) -> 36547 | Y44: 3348 | Z44: 0.09160806633 | AA44: 98 | AB44: 0 | AD44: 19404 | AE44: CLE ELUM-ROSLYN
A45: 27400 | B45: CLOVER PARK | C45: 0 | D45: 0 | E45: =IFERROR(VLOOKUP($A45,[1]Census!$A$11:$I$344,7,FALSE),0) -> 13698 | F45: =ROUND(E45/$E$5*[1]Assumptions!$D$14*[1]Assumptions!$D$29,0) -> 74589 | G45: =IFERROR(VLOOKUP($A45,[1]Census!$A$11:$I$344,8,FALSE),0) -> 2380 | H45: =ROUND(G45/$G$5*+[1]Assumptions!$D$14*[1]Assumptions!$D$30,0) -> 472772 | J45: 547361 | L45: 0 | M45: =IFERROR(VLOOKUP(A45,[1]ENROLLMENT!$A$5:$B$349,2,FALSE),0)*0 -> 0 | N45: =IFERROR(GETPIVOTDATA("Total W/O Preschool",'[1]Private 19-20'!$O$3,"District Code",A45),0)*0 -> 0 | P45: 547361 | Q45: 0 | R45: 547361 | T45: 0 | U45: 547361 | W45: =IFERROR(VLOOKUP($A45,'[1]Allocation 2020-21 Final'!$A$7:$U$317,18,FALSE),0) -> 471935 | Y45: 75426 | Z45: 0.159822857 | AA45: 9 | AB45: 0 | AD45: 27400 | AE45: CLOVER PARK
A46: 38300 | B46: COLFAX | C46: 0 | D46: 0 | E46: =IFERROR(VLOOKUP($A46,[1]Census!$A$11:$I$344,7,FALSE),0) -> 772 | F46: =ROUND(E46/$E$5*[1]Assumptions!$D$14*[1]Assumptions!$D$29,0) -> 4204 | G46: =IFERROR(VLOOKUP($A46,[1]Census!$A$11:$I$344,8,FALSE),0) -> 70 | H46: =ROUND(G46/$G$5*+[1]Assumptions!$D$14*[1]Assumptions!$D$30,0) -> 13905 | J46: 18109 | L46: 0 | M46: =IFERROR(VLOOKUP(A46,[1]ENROLLMENT!$A$5:$B$349,2,FALSE),0)*0 -> 0 | N46: =IFERROR(GETPIVOTDATA("Total W/O Preschool",'[1]Private 19-20'!$O$3,"District Code",A46),0)*0 -> 0 | P46: 18109 | Q46: 0 | R46: 18109 | T46: 0 | U46: 18109 | W46: =IFERROR(VLOOKUP($A46,'[1]Allocation 2020-21 Final'!$A$7:$U$317,18,FALSE),0) -> 14346 | Y46: 3763 | Z46: 0.262303081 | AA46: 94 | AB46: 0 | AD46: 38300 | AE46: COLFAX
A47: 36250 | B47: COLLEGE PLACE | C47: 0 | D47: 0 | E47: =IFERROR(VLOOKUP($A47,[1]Census!$A$11:$I$344,7,FALSE),0) -> 1903 | F47: =ROUND(E47/$E$5*[1]Assumptions!$D$14*[1]Assumptions!$D$29,0) -> 10362 | G47: =IFERROR(VLOOKUP($A47,[1]Census!$A$11:$I$344,8,FALSE),0) -> 221 | H47: =ROUND(G47/$G$5*+[1]Assumptions!$D$14*[1]Assumptions!$D$30,0) -> 43900 | J47: 54262 | L47: 0 | M47: =IFERROR(VLOOKUP(A47,[1]ENROLLMENT!$A$5:$B$349,2,FALSE),0)*0 -> 0 | N47: =IFERROR(GETPIVOTDATA("Total W/O Preschool",'[1]Private 19-20'!$O$3,"District Code",A47),0)*0 -> 0 | P47: 54262 | Q47: 0 | R47: 54262 | T47: 0 | U47: 54262 | W47: =IFERROR(VLOOKUP($A47,'[1]Allocation 2020-21 Final'!$A$7:$U$317,18,FALSE),0) -> 54984 | Y47: -722 | Z47: -0.01313109268 | AA47: 209 | AB47: 0 | AD47: 36250 | AE47: COLLEGE PLACE
A48: 38306 | B48: COLTON | C48: 0 | D48: 0 | E48: =IFERROR(VLOOKUP($A48,[1]Census!$A$11:$I$344,7,FALSE),0) -> 250 | F48: =ROUND(E48/$E$5*[1]Assumptions!$D$14*[1]Assumptions!$D$29,0) -> 1361 | G48: =IFERROR(VLOOKUP($A48,[1]Census!$A$11:$I$344,8,FALSE),0) -> 17 | H48: =ROUND(G48/$G$5*+[1]Assumptions!$D$14*[1]Assumptions!$D$30,0) -> 3377 | J48: 4738 | L48: 0 | M48: =IFERROR(VLOOKUP(A48,[1]ENROLLMENT!$A$5:$B$349,2,FALSE),0)*0 -> 0 | N48: =IFERROR(GETPIVOTDATA("Total W/O Preschool",'[1]Private 19-20'!$O$3,"District Code",A48),0)*0 -> 0 | P48: 4738 | Q48: 0 | R48: 4738 | T48: 0 | U48: 4738 | W48: =IFERROR(VLOOKUP($A48,'[1]Allocation 2020-21 Final'!$A$7:$U$317,18,FALSE),0) -> 4867 | Y48: -129 | Z48: -0.0265050339 | AA48: 187 | AB48: 0 | AD48: 38306 | AE48: COLTON
A49: 33206 | B49: COLUMBIA (STEV) | C49: 0 | D49: 0 | E49: =IFERROR(VLOOKUP($A49,[1]Census!$A$11:$I$344,7,FALSE),0) -> 193 | F49: =ROUND(E49/$E$5*[1]Assumptions!$D$14*[1]Assumptions!$D$29,0) -> 1051 | G49: =IFERROR(VLOOKUP($A49,[1]Census!$A$11:$I$344,8,FALSE),0) -> 43 | H49: =ROUND(G49/$G$5*+[1]Assumptions!$D$14*[1]Assumptions!$D$30,0) -> 8542 | J49: 9593 | L49: 0 | M49: =IFERROR(VLOOKUP(A49,[1]ENROLLMENT!$A$5:$B$349,2,FALSE),0)*0 -> 0 | N49: =IFERROR(GETPIVOTDATA("Total W/O Preschool",'[1]Private 19-20'!$O$3,"District Code",A49),0)*0 -> 0 | P49: 9593 | Q49: 0 | R49: 9593 | T49: 0 | U49: 9593 | W49: =IFERROR(VLOOKUP($A49,'[1]Allocation 2020-21 Final'!$A$7:$U$317,18,FALSE),0) -> 7951 | Y49: 1642 | Z49: 0.2065149038 | AA49: 118 | AB49: 0 | AD49: 33206 | AE49: COLUMBIA (STEV)
A50: 36400 | B50: COLUMBIA (WALLA) | C50: 0 | D50: 0 | E50: =IFERROR(VLOOKUP($A50,[1]Census!$A$11:$I$344,7,FALSE),0) -> 766 | F50: =ROUND(E50/$E$5*[1]Assumptions!$D$14*[1]Assumptions!$D$29,0) -> 4171 | G50: =IFERROR(VLOOKUP($A50,[1]Census!$A$11:$I$344,8,FALSE),0) -> 159 | H50: =ROUND(G50/$G$5*+[1]Assumptions!$D$14*[1]Assumptions!$D$30,0) -> 31584 | J50: 35755 | L50: 0 | M50: =IFERROR(VLOOKUP(A50,[1]ENROLLMENT!$A$5:$B$349,2,FALSE),0)*0 -> 0 | N50: =IFERROR(GETPIVOTDATA("Total W/O Preschool",'[1]Private 19-20'!$O$3,"District Code",A50),0)*0 -> 0 | P50: 35755 | Q50: 0 | R50: 35755 | T50: 0 | U50: 35755 | W50: =IFERROR(VLOOKUP($A50,'[1]Allocation 2020-21 Final'!$A$7:$U$317,18,FALSE),0) -> 29754 | Y50: 6001 | Z50: 0.2016871681 | AA50: 71 | AB50: 0 | AD50: 36400 | AE50: COLUMBIA (WALLA)
A51: 33115 | B51: COLVILLE | C51: 0 | D51: 0 | E51: =IFERROR(VLOOKUP($A51,[1]Census!$A$11:$I$344,7,FALSE),0) -> 1821 | F51: =ROUND(E51/$E$5*[1]Assumptions!$D$14*[1]Assumptions!$D$29,0) -> 9916 | G51: =IFERROR(VLOOKUP($A51,[1]Census!$A$11:$I$344,8,FALSE),0) -> 381 | H51: =ROUND(G51/$G$5*+[1]Assumptions!$D$14*[1]Assumptions!$D$30,0) -> 75683 | J51: 85599 | L51: 0 | M51: =IFERROR(VLOOKUP(A51,[1]ENROLLMENT!$A$5:$B$349,2,FALSE),0)*0 -> 0 | N51: =IFERROR(GETPIVOTDATA("Total W/O Preschool",'[1]Private 19-20'!$O$3,"District Code",A51),0)*0 -> 0 | P51: 85599 | Q51: 0 | R51: 85599 | T51: 0 | U51: 85599 | W51: =IFERROR(VLOOKUP($A51,'[1]Allocation 2020-21 Final'!$A$7:$U$317,18,FALSE),0) -> 71274 | Y51: 14325 | Z51: 0.2009849314 | AA51: 37 | AB51: 0 | AD51: 33115 | AE51: COLVILLE
A52: 29011 | B52: CONCRETE | C52: 0 | D52: 0 | E52: =IFERROR(VLOOKUP($A52,[1]Census!$A$11:$I$344,7,FALSE),0) -> 744 | F52: =ROUND(E52/$E$5*[1]Assumptions!$D$14*[1]Assumptions!$D$29,0) -> 4051 | G52: =IFERROR(VLOOKUP($A52,[1]Census!$A$11:$I$344,8,FALSE),0) -> 117 | H52: =ROUND(G52/$G$5*+[1]Assumptions!$D$14*[1]Assumptions!$D$30,0) -> 23241 | J52: 27292 | L52: 0 | M52: =IFERROR(VLOOKUP(A52,[1]ENROLLMENT!$A$5:$B$349,2,FALSE),0)*0 -> 0 | N52: =IFERROR(GETPIVOTDATA("Total W/O Preschool",'[1]Private 19-20'!$O$3,"District Code",A52),0)*0 -> 0 | P52: 27292 | Q52: 0 | R52: 27292 | T52: 0 | U52: 27292 | W52: =IFERROR(VLOOKUP($A52,'[1]Allocation 2020-21 Final'!$A$7:$U$317,18,FALSE),0) -> 16876 | Y52: 10416 | Z52: 0.6172078692 | AA52: 45 | AB52: 0 | AD52: 29011 | AE52: CONCRETE
A53: 29317 | B53: CONWAY | C53: 0 | D53: 0 | E53: =IFERROR(VLOOKUP($A53,[1]Census!$A$11:$I$344,7,FALSE),0) -> 569 | F53: =ROUND(E53/$E$5*[1]Assumptions!$D$14*[1]Assumptions!$D$29,0) -> 3098 | G53: =IFERROR(VLOOKUP($A53,[1]Census!$A$11:$I$344,8,FALSE),0) -> 40 | H53: =ROUND(G53/$G$5*+[1]Assumptions!$D$14*[1]Assumptions!$D$30,0) -> 7946 | J53: 11044 | L53: 0 | M53: =IFERROR(VLOOKUP(A53,[1]ENROLLMENT!$A$5:$B$349,2,FALSE),0)*0 -> 0 | N53: =IFERROR(GETPIVOTDATA("Total W/O Preschool",'[1]Private 19-20'!$O$3,"District Code",A53),0)*0 -> 0 | P53: 11044 | Q53: 0 | R53: 11044 | T53: 0 | U53: 11044 | W53: =IFERROR(VLOOKUP($A53,'[1]Allocation 2020-21 Final'!$A$7:$U$317,18,FALSE),0) -> 8653 | Y53: 2391 | Z53: 0.2763203513 | AA53: 108 | AB53: 0 | AD53: 29317 | AE53: CONWAY
A54: 14099 | B54: COSMOPOLIS | C54: 0 | D54: 0 | E54: =IFERROR(VLOOKUP($A54,[1]Census!$A$11:$I$344,7,FALSE),0) -> 334 | F54: =ROUND(E54/$E$5*[1]Assumptions!$D$14*[1]Assumptions!$D$29,0) -> 1819 | G54: =IFERROR(VLOOKUP($A54,[1]Census!$A$11:$I$344,8,FALSE),0) -> 22 | H54: =ROUND(G54/$G$5*+[1]Assumptions!$D$14*[1]Assumptions!$D$30,0) -> 4370 | J54: 6189 | L54: 0 | M54: =IFERROR(VLOOKUP(A54,[1]ENROLLMENT!$A$5:$B$349,2,FALSE),0)*0 -> 0 | N54: =IFERROR(GETPIVOTDATA("Total W/O Preschool",'[1]Private 19-20'!$O$3,"District Code",A54),0)*0 -> 0 | P54: 6189 | Q54: 0 | R54: 6189 | T54: 0 | U54: 6189 | W54: =IFERROR(VLOOKUP($A54,'[1]Allocation 2020-21 Final'!$A$7:$U$317,18,FALSE),0) -> 7011 | Y54: -822 | Z54: -0.1172443303 | AA54: 212 | AB54: 0 | AD54: 14099 | AE54: COSMOPOLIS
A55: 13151 | B55: COULEE-HARTLINE | C55: 0 | D55: 0 | E55: =IFERROR(VLOOKUP($A55,[1]Census!$A$11:$I$344,7,FALSE),0) -> 210 | F55: =ROUND(E55/$E$5*[1]Assumptions!$D$14*[1]Assumptions!$D$29,0) -> 1143 | G55: =IFERROR(VLOOKUP($A55,[1]Census!$A$11:$I$344,8,FALSE),0) -> 20 | H55: =ROUND(G55/$G$5*+[1]Assumptions!$D$14*[1]Assumptions!$D$30,0) -> 3973 | J55: 5116 | L55: 0 | M55: =IFERROR(VLOOKUP(A55,[1]ENROLLMENT!$A$5:$B$349,2,FALSE),0)*0 -> 0 | N55: =IFERROR(GETPIVOTDATA("Total W/O Preschool",'[1]Private 19-20'!$O$3,"District Code",A55),0)*0 -> 0 | P55: 5116 | Q55: 0 | R55: 5116 | T55: 0 | U55: 5116 | W55: =IFERROR(VLOOKUP($A55,'[1]Allocation 2020-21 Final'!$A$7:$U$317,18,FALSE),0) -> 8603 | Y55: -3487 | Z55: -0.4053237243 | AA55: 255 | AB55: 0 | AD55: 13151 | AE55: COULEE-HARTLINE
A56: 15204 | B56: COUPEVILLE | C56: 0 | D56: 0 | E56: =IFERROR(VLOOKUP($A56,[1]Census!$A$11:$I$344,7,FALSE),0) -> 1054 | F56: =ROUND(E56/$E$5*[1]Assumptions!$D$14*[1]Assumptions!$D$29,0) -> 5739 | G56: =IFERROR(VLOOKUP($A56,[1]Census!$A$11:$I$344,8,FALSE),0) -> 134 | H56: =ROUND(G56/$G$5*+[1]Assumptions!$D$14*[1]Assumptions!$D$30,0) -> 26618 | J56: 32357 | L56: 0 | M56: =IFERROR(VLOOKUP(A56,[1]ENROLLMENT!$A$5:$B$349,2,FALSE),0)*0 -> 0 | N56: =IFERROR(GETPIVOTDATA("Total W/O Preschool",'[1]Private 19-20'!$O$3,"District Code",A56),0)*0 -> 0 | P56: 32357 | Q56: 0 | R56: 32357 | T56: 0 | U56: 32357 | W56: =IFERROR(VLOOKUP($A56,'[1]Allocation 2020-21 Final'!$A$7:$U$317,18,FALSE),0) -> 28184 | Y56: 4173 | Z56: 0.1480627306 | AA56: 87 | AB56: 0 | AD56: 15204 | AE56: COUPEVILLE
A57: 05313 | B57: CRESCENT | C57: 0 | D57: 0 | E57: =IFERROR(VLOOKUP($A57,[1]Census!$A$11:$I$344,7,FALSE),0) -> 362 | F57: =ROUND(E57/$E$5*[1]Assumptions!$D$14*[1]Assumptions!$D$29,0) -> 1971 | G57: =IFERROR(VLOOKUP($A57,[1]Census!$A$11:$I$344,8,FALSE),0) -> 43 | H57: =ROUND(G57/$G$5*+[1]Assumptions!$D$14*[1]Assumptions!$D$30,0) -> 8542 | J57: 10513 | L57: 0 | M57: =IFERROR(VLOOKUP(A57,[1]ENROLLMENT!$A$5:$B$349,2,FALSE),0)*0 -> 0 | N57: =IFERROR(GETPIVOTDATA("Total W/O Preschool",'[1]Private 19-20'!$O$3,"District Code",A57),0)*0 -> 0 | P57: 10513 | Q57: 0 | R57: 10513 | T57: 0 | U57: 10513 | W57: =IFERROR(VLOOKUP($A57,'[1]Allocation 2020-21 Final'!$A$7:$U$317,18,FALSE),0) -> 10338 | Y57: 175 | Z57: 0.01692783904 | AA57: 168 | AB57: 0 | AD57: 05313 | AE57: CRESCENT
A58: 22073 | B58: CRESTON | C58: 0 | D58: 0 | E58: =IFERROR(VLOOKUP($A58,[1]Census!$A$11:$I$344,7,FALSE),0) -> 95 | F58: =ROUND(E58/$E$5*[1]Assumptions!$D$14*[1]Assumptions!$D$29,0) -> 517 | G58: =IFERROR(VLOOKUP($A58,[1]Census!$A$11:$I$344,8,FALSE),0) -> 15 | H58: =ROUND(G58/$G$5*+[1]Assumptions!$D$14*[1]Assumptions!$D$30,0) -> 2980 | J58: 3497 | L58: 0 | M58: =IFERROR(VLOOKUP(A58,[1]ENROLLMENT!$A$5:$B$349,2,FALSE),0)*0 -> 0 | N58: =IFERROR(GETPIVOTDATA("Total W/O Preschool",'[1]Private 19-20'!$O$3,"District Code",A58),0)*0 -> 0 | P58: 3497 | Q58: 0 | R58: 3497 | T58: 0 | U58: 3497 | W58: =IFERROR(VLOOKUP($A58,'[1]Allocation 2020-21 Final'!$A$7:$U$317,18,FALSE),0) -> 2374 | Y58: 1123 | Z58: 0.4730412805 | AA58: 134 | AB58: 0 | AD58: 22073 | AE58: CRESTON
A59: 10050 | B59: CURLEW | C59: 0 | D59: 0 | E59: =IFERROR(VLOOKUP($A59,[1]Census!$A$11:$I$344,7,FALSE),0) -> 179 | F59: =ROUND(E59/$E$5*[1]Assumptions!$D$14*[1]Assumptions!$D$29,0) -> 975 | G59: =IFERROR(VLOOKUP($A59,[1]Census!$A$11:$I$344,8,FALSE),0) -> 66 | H59: =ROUND(G59/$G$5*+[1]Assumptions!$D$14*[1]Assumptions!$D$30,0) -> 13110 | J59: 14085 | L59: 0 | M59: =IFERROR(VLOOKUP(A59,[1]ENROLLMENT!$A$5:$B$349,2,FALSE),0)*0 -> 0 | N59: =IFERROR(GETPIVOTDATA("Total W/O Preschool",'[1]Private 19-20'!$O$3,"District Code",A59),0)*0 -> 0 | P59: 14085 | Q59: 0 | R59: 14085 | T59: 0 | U59: 14085 | W59: =IFERROR(VLOOKUP($A59,'[1]Allocation 2020-21 Final'!$A$7:$U$317,18,FALSE),0) -> 8671 | Y59: 5414 | Z59: 0.6243801176 | AA59: 78 | AB59: 0 | AD59: 10050 | AE59: CURLEW
A60: 26059 | B60: CUSICK | C60: 0 | D60: 0 | E60: =IFERROR(VLOOKUP($A60,[1]Census!$A$11:$I$344,7,FALSE),0) -> 307 | F60: =ROUND(E60/$E$5*[1]Assumptions!$D$14*[1]Assumptions!$D$29,0) -> 1672 | G60: =IFERROR(VLOOKUP($A60,[1]Census!$A$11:$I$344,8,FALSE),0) -> 115 | H60: =ROUND(G60/$G$5*+[1]Assumptions!$D$14*[1]Assumptions!$D$30,0) -> 22844 | J60: 24516 | L60: 0 | M60: =IFERROR(VLOOKUP(A60,[1]ENROLLMENT!$A$5:$B$349,2,FALSE),0)*0 -> 0 | N60: =IFERROR(GETPIVOTDATA("Total W/O Preschool",'[1]Private 19-20'!$O$3,"District Code",A60),0)*0 -> 0 | P60: 24516 | Q60: 0 | R60: 24516 | T60: 0 | U60: 24516 | W60: =IFERROR(VLOOKUP($A60,'[1]Allocation 2020-21 Final'!$A$7:$U$317,18,FALSE),0) -> 17347 | Y60: 7169 | Z60: 0.4132703061 | AA60: 64 | AB60: 0 | AD60: 26059 | AE60: CUSICK
A61: 19007 | B61: DAMMAN | C61: 0 | D61: 0 | E61: =IFERROR(VLOOKUP($A61,[1]Census!$A$11:$I$344,7,FALSE),0) -> 163 | F61: =ROUND(E61/$E$5*[1]Assumptions!$D$14*[1]Assumptions!$D$29,0) -> 888 | G61: =IFERROR(VLOOKUP($A61,[1]Census!$A$11:$I$344,8,FALSE),0) -> 3 | H61: =ROUND(G61/$G$5*+[1]Assumptions!$D$14*[1]Assumptions!$D$30,0) -> 596 | J61: 1484 | L61: 0 | M61: =IFERROR(VLOOKUP(A61,[1]ENROLLMENT!$A$5:$B$349,2,FALSE),0)*0 -> 0 | N61: =IFERROR(GETPIVOTDATA("Total W/O Preschool",'[1]Private 19-20'!$O$3,"District Code",A61),0)*0 -> 0 | P61: 1484 | Q61: 0 | R61: 1484 | T61: 0 | U61: 1484 | W61: =IFERROR(VLOOKUP($A61,'[1]Allocation 2020-21 Final'!$A$7:$U$317,18,FALSE),0) -> 2002 | Y61: -518 | Z61: -0.2587412587 | AA61: 205 | AB61: 0 | AD61: 19007 | AE61: DAMMAN
A62: 31330 | B62: DARRINGTON | C62: 0 | D62: 0 | E62: =IFERROR(VLOOKUP($A62,[1]Census!$A$11:$I$344,7,FALSE),0) -> 591 | F62: =ROUND(E62/$E$5*[1]Assumptions!$D$14*[1]Assumptions!$D$29,0) -> 3218 | G62: =IFERROR(VLOOKUP($A62,[1]Census!$A$11:$I$344,8,FALSE),0) -> 47 | H62: =ROUND(G62/$G$5*+[1]Assumptions!$D$14*[1]Assumptions!$D$30,0) -> 9336 | J62: 12554 | L62: 0 | M62: =IFERROR(VLOOKUP(A62,[1]ENROLLMENT!$A$5:$B$349,2,FALSE),0)*0 -> 0 | N62: =IFERROR(GETPIVOTDATA("Total W/O Preschool",'[1]Private 19-20'!$O$3,"District Code",A62),0)*0 -> 0 | P62: 12554 | Q62: 0 | R62: 12554 | T62: 0 | U62: 12554 | W62: =IFERROR(VLOOKUP($A62,'[1]Allocation 2020-21 Final'!$A$7:$U$317,18,FALSE),0) -> 11398 | Y62: 1156 | Z62: 0.101421302 | AA62: 131 | AB62: 0 | AD62: 31330 | AE62: DARRINGTON
A63: 22207 | B63: DAVENPORT | C63: 0 | D63: 0 | E63: =IFERROR(VLOOKUP($A63,[1]Census!$A$11:$I$344,7,FALSE),0) -> 601 | F63: =ROUND(E63/$E$5*[1]Assumptions!$D$14*[1]Assumptions!$D$29,0) -> 3273 | G63: =IFERROR(VLOOKUP($A63,[1]Census!$A$11:$I$344,8,FALSE),0) -> 89 | H63: =ROUND(G63/$G$5*+[1]Assumptions!$D$14*[1]Assumptions!$D$30,0) -> 17679 | J63: 20952 | L63: 0 | M63: =IFERROR(VLOOKUP(A63,[1]ENROLLMENT!$A$5:$B$349,2,FALSE),0)*0 -> 0 | N63: =IFERROR(GETPIVOTDATA("Total W/O Preschool",'[1]Private 19-20'!$O$3,"District Code",A63),0)*0 -> 0 | P63: 20952 | Q63: 0 | R63: 20952 | T63: 0 | U63: 20952 | W63: =IFERROR(VLOOKUP($A63,'[1]Allocation 2020-21 Final'!$A$7:$U$317,18,FALSE),0) -> 21345 | Y63: -393 | Z63: -0.01841180604 | AA63: 200 | AB63: 0 | AD63: 22207 | AE63: DAVENPORT
A64: 07002 | B64: DAYTON | C64: 0 | D64: 0 | E64: =IFERROR(VLOOKUP($A64,[1]Census!$A$11:$I$344,7,FALSE),0) -> 499 | F64: =ROUND(E64/$E$5*[1]Assumptions!$D$14*[1]Assumptions!$D$29,0) -> 2717 | G64: =IFERROR(VLOOKUP($A64,[1]Census!$A$11:$I$344,8,FALSE),0) -> 70 | H64: =ROUND(G64/$G$5*+[1]Assumptions!$D$14*[1]Assumptions!$D$30,0) -> 13905 | J64: 16622 | L64: 0 | M64: =IFERROR(VLOOKUP(A64,[1]ENROLLMENT!$A$5:$B$349,2,FALSE),0)*0 -> 0 | N64: =IFERROR(GETPIVOTDATA("Total W/O Preschool",'[1]Private 19-20'!$O$3,"District Code",A64),0)*0 -> 0 | P64: 16622 | Q64: 0 | R64: 16622 | T64: 0 | U64: 16622 | W64: =IFERROR(VLOOKUP($A64,'[1]Allocation 2020-21 Final'!$A$7:$U$317,18,FALSE),0) -> 18913 | Y64: -2291 | Z64: -0.1211336118 | AA64: 236 | AB64: 0 | AD64: 07002 | AE64: DAYTON
A65: 32414 | B65: DEER PARK | C65: 0 | D65: 0 | E65: =IFERROR(VLOOKUP($A65,[1]Census!$A$11:$I$344,7,FALSE),0) -> 2223 | F65: =ROUND(E65/$E$5*[1]Assumptions!$D$14*[1]Assumptions!$D$29,0) -> 12105 | G65: =IFERROR(VLOOKUP($A65,[1]Census!$A$11:$I$344,8,FALSE),0) -> 308 | H65: =ROUND(G65/$G$5*+[1]Assumptions!$D$14*[1]Assumptions!$D$30,0) -> 61182 | J65: 73287 | L65: 0 | M65: =IFERROR(VLOOKUP(A65,[1]ENROLLMENT!$A$5:$B$349,2,FALSE),0)*0 -> 0 | N65: =IFERROR(GETPIVOTDATA("Total W/O Preschool",'[1]Private 19-20'!$O$3,"District Code",A65),0)*0 -> 0 | P65: 73287 | Q65: 0 | R65: 73287 | T65: 0 | U65: 73287 | W65: =IFERROR(VLOOKUP($A65,'[1]Allocation 2020-21 Final'!$A$7:$U$317,18,FALSE),0) -> 68282 | Y65: 5005 | Z65: 0.07329896605 | AA65: 82 | AB65: 0 | AD65: 32414 | AE65: DEER PARK
A66: 27343 | B66: DIERINGER | C66: 0 | D66: 0 | E66: =IFERROR(VLOOKUP($A66,[1]Census!$A$11:$I$344,7,FALSE),0) -> 1919 | F66: =ROUND(E66/$E$5*[1]Assumptions!$D$14*[1]Assumptions!$D$29,0) -> 10449 | G66: =IFERROR(VLOOKUP($A66,[1]Census!$A$11:$I$344,8,FALSE),0) -> 78 | H66: =ROUND(G66/$G$5*+[1]Assumptions!$D$14*[1]Assumptions!$D$30,0) -> 15494 | J66: 25943 | L66: 0 | M66: =IFERROR(VLOOKUP(A66,[1]ENROLLMENT!$A$5:$B$349,2,FALSE),0)*0 -> 0 | N66: =IFERROR(GETPIVOTDATA("Total W/O Preschool",'[1]Private 19-20'!$O$3,"District Code",A66),0)*0 -> 0 | P66: 25943 | Q66: 0 | R66: 25943 | T66: 0 | U66: 25943 | W66: =IFERROR(VLOOKUP($A66,'[1]Allocation 2020-21 Final'!$A$7:$U$317,18,FALSE),0) -> 27017 | Y66: -1074 | Z66: -0.03975274827 | AA66: 217 | AB66: 0 | AD66: 27343 | AE66: DIERINGER
A67: 36101 | B67: DIXIE | C67: 0 | D67: 0 | E67: =IFERROR(VLOOKUP($A67,[1]Census!$A$11:$I$344,7,FALSE),0) -> 65 | F67: =ROUND(E67/$E$5*[1]Assumptions!$D$14*[1]Assumptions!$D$29,0) -> 354 | G67: =IFERROR(VLOOKUP($A67,[1]Census!$A$11:$I$344,8,FALSE),0) -> 11 | H67: =ROUND(G67/$G$5*+[1]Assumptions!$D$14*[1]Assumptions!$D$30,0) -> 2185 | J67: 2539 | L67: 0 | M67: =IFERROR(VLOOKUP(A67,[1]ENROLLMENT!$A$5:$B$349,2,FALSE),0)*0 -> 0 | N67: =IFERROR(GETPIVOTDATA("Total W/O Preschool",'[1]Private 19-20'!$O$3,"District Code",A67),0)*0 -> 0 | P67: 2539 | Q67: 0 | R67: 2539 | T67: 0 | U67: 2539 | W67: =IFERROR(VLOOKUP($A67,'[1]Allocation 2020-21 Final'!$A$7:$U$317,18,FALSE),0) -> 2597 | Y67: -58 | Z67: -0.02233346169 | AA67: 182 | AB67: 0 | AD67: 36101 | AE67: DIXIE
A68: 32361 | B68: EAST VALLEY (SPK) | C68: 0 | D68: 0 | E68: =IFERROR(VLOOKUP($A68,[1]Census!$A$11:$I$344,7,FALSE),0) -> 4940 | F68: =ROUND(E68/$E$5*[1]Assumptions!$D$14*[1]Assumptions!$D$29,0) -> 26899 | G68: =IFERROR(VLOOKUP($A68,[1]Census!$A$11:$I$344,8,FALSE),0) -> 572 | H68: =ROUND(G68/$G$5*+[1]Assumptions!$D$14*[1]Assumptions!$D$30,0) -> 113624 | J68: 140523 | L68: 0 | M68: =IFERROR(VLOOKUP(A68,[1]ENROLLMENT!$A$5:$B$349,2,FALSE),0)*0 -> 0 | N68: =IFERROR(GETPIVOTDATA("Total W/O Preschool",'[1]Private 19-20'!$O$3,"District Code",A68),0)*0 -> 0 | P68: 140523 | Q68: 0 | R68: 140523 | T68: 0 | U68: 140523 | W68: =IFERROR(VLOOKUP($A68,'[1]Allocation 2020-21 Final'!$A$7:$U$317,18,FALSE),0) -> 149939 | Y68: -9416 | Z68: -0.06279887154 | AA68: 278 | AB68: 0 | AD68: 32361 | AE68: EAST VALLEY (SPK)
A69: 39090 | B69: EAST VALLEY (YAK) | C69: 0 | D69: 0 | E69: =IFERROR(VLOOKUP($A69,[1]Census!$A$11:$I$344,7,FALSE),0) -> 3128 | F69: =ROUND(E69/$E$5*[1]Assumptions!$D$14*[1]Assumptions!$D$29,0) -> 17033 | G69: =IFERROR(VLOOKUP($A69,[1]Census!$A$11:$I$344,8,FALSE),0) -> 447 | H69: =ROUND(G69/$G$5*+[1]Assumptions!$D$14*[1]Assumptions!$D$30,0) -> 88794 | J69: 105827 | L69: 0 | M69: =IFERROR(VLOOKUP(A69,[1]ENROLLMENT!$A$5:$B$349,2,FALSE),0)*0 -> 0 | N69: =IFERROR(GETPIVOTDATA("Total W/O Preschool",'[1]Private 19-20'!$O$3,"District Code",A69),0)*0 -> 0 | P69: 105827 | Q69: 0 | R69: 105827 | T69: 0 | U69: 105827 | W69: =IFERROR(VLOOKUP($A69,'[1]Allocation 2020-21 Final'!$A$7:$U$317,18,FALSE),0) -> 98804 | Y69: 7023 | Z69: 0.07108011821 | AA69: 66 | AB69: 0 | AD69: 39090 | AE69: EAST VALLEY (YAK)
A70: 09206 | B70: EASTMONT | C70: 0 | D70: 0 | E70: =IFERROR(VLOOKUP($A70,[1]Census!$A$11:$I$344,7,FALSE),0) -> 6368 | F70: =ROUND(E70/$E$5*[1]Assumptions!$D$14*[1]Assumptions!$D$29,0) -> 34675 | G70: =IFERROR(VLOOKUP($A70,[1]Census!$A$11:$I$344,8,FALSE),0) -> 792 | H70: =ROUND(G70/$G$5*+[1]Assumptions!$D$14*[1]Assumptions!$D$30,0) -> 157326 | J70: 192001 | L70: 0 | M70: =IFERROR(VLOOKUP(A70,[1]ENROLLMENT!$A$5:$B$349,2,FALSE),0)*0 -> 0 | N70: =IFERROR(GETPIVOTDATA("Total W/O Preschool",'[1]Private 19-20'!$O$3,"District Code",A70),0)*0 -> 0 | P70: 192001 | Q70: 0 | R70: 192001 | T70: 0 | U70: 192001 | W70: =IFERROR(VLOOKUP($A70,'[1]Allocation 2020-21 Final'!$A$7:$U$317,18,FALSE),0) -> 186330 | Y70: 5671 | Z70: 0.03043524929 | AA70: 77 | AB70: 0 | AD70: 09206 | AE70: EASTMONT
A71: 19028 | B71: EASTON | C71: 0 | D71: 0 | E71: =IFERROR(VLOOKUP($A71,[1]Census!$A$11:$I$344,7,FALSE),0) -> 150 | F71: =ROUND(E71/$E$5*[1]Assumptions!$D$14*[1]Assumptions!$D$29,0) -> 817 | G71: =IFERROR(VLOOKUP($A71,[1]Census!$A$11:$I$344,8,FALSE),0) -> 9 | H71: =ROUND(G71/$G$5*+[1]Assumptions!$D$14*[1]Assumptions!$D$30,0) -> 1788 | J71: =ROUNDDOWN(+H71+F71+D71+C71+I71,0) -> 2605 | L71: =IF((M71+N71=0),0,+J71/(+M71+N71)) -> 0 | M71: =IFERROR(VLOOKUP(A71,[1]ENROLLMENT!$A$5:$B$349,2,FALSE),0)*0 -> 0 | N71: =IFERROR(GETPIVOTDATA("Total W/O Preschool",'[1]Private 19-20'!$O$3,"District Code",A71),0)*0 -> 0 | P71: =J71 -> 2605 | Q71: =-ROUND(P71/$P$5*$O$5,0) -> 0 | R71: =+J71+Q71+O71 -> 2605 | T71: =IF(S71>0,-ROUND((R71*(0.9-S71)),0),0) -> 0 | U71: =+R71+T71 -> 2605 | W71: =IFERROR(VLOOKUP($A71,'[1]Allocation 2020-21 Final'!$A$7:$U$317,18,FALSE),0) -> 3614 | Y71: =+U71-W71 -> -1009 | Z71: =IF(W71>0,Y71/W71,0) -> -0.279192031 | AA71: =RANK(Y71,$Y$7:$Y$321,0) -> 215 | AB71: =(SUM(C71:D71)/U71) -> 0 | AD71: =+A71 -> 19028 | AE71: =+B71 -> EASTON
A72: 27404 | B72: EATONVILLE | C72: 0 | D72: 0 | E72: =IFERROR(VLOOKUP($A72,[1]Census!$A$11:$I$344,7,FALSE),0) -> 2321 | F72: =ROUND(E72/$E$5*[1]Assumptions!$D$14*[1]Assumptions!$D$29,0) -> 12638 | G72: =IFERROR(VLOOKUP($A72,[1]Census!$A$11:$I$344,8,FALSE),0) -> 207 | H72: =ROUND(G72/$G$5*+[1]Assumptions!$D$14*[1]Assumptions!$D$30,0) -> 41119 | J72: 53757 | L72: 0 | M72: =IFERROR(VLOOKUP(A72,[1]ENROLLMENT!$A$5:$B$349,2,FALSE),0)*0 -> 0 | N72: =IFERROR(GETPIVOTDATA("Total W/O Preschool",'[1]Private 19-20'!$O$3,"District Code",A72),0)*0 -> 0 | P72: 53757 | Q72: 0 | R72: 53757 | T72: 0 | U72: 53757 | W72: =IFERROR(VLOOKUP($A72,'[1]Allocation 2020-21 Final'!$A$7:$U$317,18,FALSE),0) -> 36246 | Y72: 17511 | Z72: 0.4831153782 | AA72: 31 | AB72: 0 | AD72: 27404 | AE72: EATONVILLE
A73: 31015 | B73: EDMONDS | C73: 0 | D73: 0 | E73: =IFERROR(VLOOKUP($A73,[1]Census!$A$11:$I$344,7,FALSE),0) -> 24944 | F73: =ROUND(E73/$E$5*[1]Assumptions!$D$14*[1]Assumptions!$D$29,0) -> 135826 | G73: =IFERROR(VLOOKUP($A73,[1]Census!$A$11:$I$344,8,FALSE),0) -> 1907 | H73: =ROUND(G73/$G$5*+[1]Assumptions!$D$14*[1]Assumptions!$D$30,0) -> 378813 | J73: 514639 | L73: 0 | M73: =IFERROR(VLOOKUP(A73,[1]ENROLLMENT!$A$5:$B$349,2,FALSE),0)*0 -> 0 | N73: =IFERROR(GETPIVOTDATA("Total W/O Preschool",'[1]Private 19-20'!$O$3,"District Code",A73),0)*0 -> 0 | P73: 514639 | Q73: 0 | R73: 514639 | T73: 0 | U73: 514639 | W73: =IFERROR(VLOOKUP($A73,'[1]Allocation 2020-21 Final'!$A$7:$U$317,18,FALSE),0) -> 500513 | Y73: 14126 | Z73: 0.02822304316 | AA73: 38 | AB73: 0 | AD73: 31015 | AE73: EDMONDS
A74: 19401 | B74: ELLENSBURG | C74: 0 | D74: 0 | E74: =IFERROR(VLOOKUP($A74,[1]Census!$A$11:$I$344,7,FALSE),0) -> 3381 | F74: =ROUND(E74/$E$5*[1]Assumptions!$D$14*[1]Assumptions!$D$29,0) -> 18410 | G74: =IFERROR(VLOOKUP($A74,[1]Census!$A$11:$I$344,8,FALSE),0) -> 349 | H74: =ROUND(G74/$G$5*+[1]Assumptions!$D$14*[1]Assumptions!$D$30,0) -> 69327 | J74: 87737 | L74: 0 | M74: =IFERROR(VLOOKUP(A74,[1]ENROLLMENT!$A$5:$B$349,2,FALSE),0)*0 -> 0 | N74: =IFERROR(GETPIVOTDATA("Total W/O Preschool",'[1]Private 19-20'!$O$3,"District Code",A74),0)*0 -> 0 | P74: 87737 | Q74: 0 | R74: 87737 | T74: 0 | U74: 87737 | W74: =IFERROR(VLOOKUP($A74,'[1]Allocation 2020-21 Final'!$A$7:$U$317,18,FALSE),0) -> 92670 | Y74: -4933 | Z74: -0.05323189813 | AA74: 263 | AB74: 0 | AD74: 19401 | AE74: ELLENSBURG
A75: 14068 | B75: ELMA | C75: 0 | D75: 0 | E75: =IFERROR(VLOOKUP($A75,[1]Census!$A$11:$I$344,7,FALSE),0) -> 1569 | F75: =ROUND(E75/$E$5*[1]Assumptions!$D$14*[1]Assumptions!$D$29,0) -> 8544 | G75: =IFERROR(VLOOKUP($A75,[1]Census!$A$11:$I$344,8,FALSE),0) -> 230 | H75: =ROUND(G75/$G$5*+[1]Assumptions!$D$14*[1]Assumptions!$D$30,0) -> 45688 | J75: 54232 | L75: 0 | M75: =IFERROR(VLOOKUP(A75,[1]ENROLLMENT!$A$5:$B$349,2,FALSE),0)*0 -> 0 | N75: =IFERROR(GETPIVOTDATA("Total W/O Preschool",'[1]Private 19-20'!$O$3,"District Code",A75),0)*0 -> 0 | P75: 54232 | Q75: 0 | R75: 54232 | T75: 0 | U75: 54232 | W75: =IFERROR(VLOOKUP($A75,'[1]Allocation 2020-21 Final'!$A$7:$U$317,18,FALSE),0) -> 53353 | Y75: 879 | Z75: 0.01647517478 | AA75: 140 | AB75: 0 | AD75: 14068 | AE75: ELMA
A76: 38308 | B76: ENDICOTT | C76: 0 | D76: 0 | E76: =IFERROR(VLOOKUP($A76,[1]Census!$A$11:$I$344,7,FALSE),0) -> 79 | F76: =ROUND(E76/$E$5*[1]Assumptions!$D$14*[1]Assumptions!$D$29,0) -> 430 | G76: =IFERROR(VLOOKUP($A76,[1]Census!$A$11:$I$344,8,FALSE),0) -> 22 | H76: =ROUND(G76/$G$5*+[1]Assumptions!$D$14*[1]Assumptions!$D$30,0) -> 4370 | J76: 4800 | L76: 0 | M76: =IFERROR(VLOOKUP(A76,[1]ENROLLMENT!$A$5:$B$349,2,FALSE),0)*0 -> 0 | N76: =IFERROR(GETPIVOTDATA("Total W/O Preschool",'[1]Private 19-20'!$O$3,"District Code",A76),0)*0 -> 0 | P76: 4800 | Q76: 0 | R76: 4800 | T76: 0 | U76: 4800 | W76: =IFERROR(VLOOKUP($A76,'[1]Allocation 2020-21 Final'!$A$7:$U$317,18,FALSE),0) -> 3404 | Y76: 1396 | Z76: 0.4101057579 | AA76: 126 | AB76: 0 | AD76: 38308 | AE76: ENDICOTT
A77: 04127 | B77: ENTIAT | C77: 0 | D77: 0 | E77: =IFERROR(VLOOKUP($A77,[1]Census!$A$11:$I$344,7,FALSE),0) -> 387 | F77: =ROUND(E77/$E$5*[1]Assumptions!$D$14*[1]Assumptions!$D$29,0) -> 2107 | G77: =IFERROR(VLOOKUP($A77,[1]Census!$A$11:$I$344,8,FALSE),0) -> 77 | H77: =ROUND(G77/$G$5*+[1]Assumptions!$D$14*[1]Assumptions!$D$30,0) -> 15296 | J77: 17403 | L77: 0 | M77: =IFERROR(VLOOKUP(A77,[1]ENROLLMENT!$A$5:$B$349,2,FALSE),0)*0 -> 0 | N77: =IFERROR(GETPIVOTDATA("Total W/O Preschool",'[1]Private 19-20'!$O$3,"District Code",A77),0)*0 -> 0 | P77: 17403 | Q77: 0 | R77: 17403 | T77: 0 | U77: 17403 | W77: =IFERROR(VLOOKUP($A77,'[1]Allocation 2020-21 Final'!$A$7:$U$317,18,FALSE),0) -> 18155 | Y77: -752 | Z77: -0.04142109612 | AA77: 210 | AB77: 0 | AD77: 04127 | AE77: ENTIAT
A78: 17216 | B78: ENUMCLAW | C78: 0 | D78: 0 | E78: =IFERROR(VLOOKUP($A78,[1]Census!$A$11:$I$344,7,FALSE),0) -> 5045 | F78: =ROUND(E78/$E$5*[1]Assumptions!$D$14*[1]Assumptions!$D$29,0) -> 27471 | G78: =IFERROR(VLOOKUP($A78,[1]Census!$A$11:$I$344,8,FALSE),0) -> 253 | H78: =ROUND(G78/$G$5*+[1]Assumptions!$D$14*[1]Assumptions!$D$30,0) -> 50257 | J78: 77728 | L78: 0 | M78: =IFERROR(VLOOKUP(A78,[1]ENROLLMENT!$A$5:$B$349,2,FALSE),0)*0 -> 0 | N78: =IFERROR(GETPIVOTDATA("Total W/O Preschool",'[1]Private 19-20'!$O$3,"District Code",A78),0)*0 -> 0 | P78: 77728 | Q78: 0 | R78: 77728 | T78: 0 | U78: 77728 | W78: =IFERROR(VLOOKUP($A78,'[1]Allocation 2020-21 Final'!$A$7:$U$317,18,FALSE),0) -> 89400 | Y78: -11672 | Z78: -0.1305592841 | AA78: 283 | AB78: 0 | AD78: 17216 | AE78: ENUMCLAW
A79: 13165 | B79: EPHRATA | C79: 0 | D79: 0 | E79: =IFERROR(VLOOKUP($A79,[1]Census!$A$11:$I$344,7,FALSE),0) -> 2631 | F79: =ROUND(E79/$E$5*[1]Assumptions!$D$14*[1]Assumptions!$D$29,0) -> 14326 | G79: =IFERROR(VLOOKUP($A79,[1]Census!$A$11:$I$344,8,FALSE),0) -> 327 | H79: =ROUND(G79/$G$5*+[1]Assumptions!$D$14*[1]Assumptions!$D$30,0) -> 64956 | J79: 79282 | L79: 0 | M79: =IFERROR(VLOOKUP(A79,[1]ENROLLMENT!$A$5:$B$349,2,FALSE),0)*0 -> 0 | N79: =IFERROR(GETPIVOTDATA("Total W/O Preschool",'[1]Private 19-20'!$O$3,"District Code",A79),0)*0 -> 0 | P79: 79282 | Q79: 0 | R79: 79282 | T79: 0 | U79: 79282 | W79: =IFERROR(VLOOKUP($A79,'[1]Allocation 2020-21 Final'!$A$7:$U$317,18,FALSE),0) -> 84586 | Y79: -5304 | Z79: -0.06270541224 | AA79: 265 | AB79: 0 | AD79: 13165 | AE79: EPHRATA
A80: 21036 | B80: EVALINE | C80: 0 | D80: 0 | E80: =IFERROR(VLOOKUP($A80,[1]Census!$A$11:$I$344,7,FALSE),0) -> 143 | F80: =ROUND(E80/$E$5*[1]Assumptions!$D$14*[1]Assumptions!$D$29,0) -> 779 | G80: =IFERROR(VLOOKUP($A80,[1]Census!$A$11:$I$344,8,FALSE),0) -> 47 | H80: =ROUND(G80/$G$5*+[1]Assumptions!$D$14*[1]Assumptions!$D$30,0) -> 9336 | J80: 10115 | L80: 0 | M80: =IFERROR(VLOOKUP(A80,[1]ENROLLMENT!$A$5:$B$349,2,FALSE),0)*0 -> 0 | N80: =IFERROR(GETPIVOTDATA("Total W/O Preschool",'[1]Private 19-20'!$O$3,"District Code",A80),0)*0 -> 0 | P80: 10115 | Q80: 0 | R80: 10115 | T80: 0 | U80: 10115 | W80: =IFERROR(VLOOKUP($A80,'[1]Allocation 2020-21 Final'!$A$7:$U$317,18,FALSE),0) -> 9172 | Y80: 943 | Z80: 0.1028129089 | AA80: 139 | AB80: 0 | AD80: 21036 | AE80: EVALINE
A81: 31002 | B81: EVERETT | C81: 0 | D81: 0 | E81: =IFERROR(VLOOKUP($A81,[1]Census!$A$11:$I$344,7,FALSE),0) -> 22591 | F81: =ROUND(E81/$E$5*[1]Assumptions!$D$14*[1]Assumptions!$D$29,0) -> 123013 | G81: =IFERROR(VLOOKUP($A81,[1]Census!$A$11:$I$344,8,FALSE),0) -> 1813 | H81: =ROUND(G81/$G$5*+[1]Assumptions!$D$14*[1]Assumptions!$D$30,0) -> 360141 | J81: 483154 | L81: 0 | M81: =IFERROR(VLOOKUP(A81,[1]ENROLLMENT!$A$5:$B$349,2,FALSE),0)*0 -> 0 | N81: =IFERROR(GETPIVOTDATA("Total W/O Preschool",'[1]Private 19-20'!$O$3,"District Code",A81),0)*0 -> 0 | P81: 483154 | Q81: 0 | R81: 483154 | T81: 0 | U81: 483154 | W81: =IFERROR(VLOOKUP($A81,'[1]Allocation 2020-21 Final'!$A$7:$U$317,18,FALSE),0) -> 538038 | Y81: -54884 | Z81: -0.1020076649 | AA81: 309 | AB81: 0 | AD81: 31002 | AE81: EVERETT
A82: 06114 | B82: EVERGREEN (CLARK) | C82: 0 | D82: 0 | E82: =IFERROR(VLOOKUP($A82,[1]Census!$A$11:$I$344,7,FALSE),0) -> 28467 | F82: =ROUND(E82/$E$5*[1]Assumptions!$D$14*[1]Assumptions!$D$29,0) -> 155009 | G82: =IFERROR(VLOOKUP($A82,[1]Census!$A$11:$I$344,8,FALSE),0) -> 3454 | H82: =ROUND(G82/$G$5*+[1]Assumptions!$D$14*[1]Assumptions!$D$30,0) -> 686115 | J82: 841124 | L82: 0 | M82: =IFERROR(VLOOKUP(A82,[1]ENROLLMENT!$A$5:$B$349,2,FALSE),0)*0 -> 0 | N82: =IFERROR(GETPIVOTDATA("Total W/O Preschool",'[1]Private 19-20'!$O$3,"District Code",A82),0)*0 -> 0 | P82: 841124 | Q82: 0 | R82: 841124 | T82: 0 | U82: 841124 | W82: =IFERROR(VLOOKUP($A82,'[1]Allocation 2020-21 Final'!$A$7:$U$317,18,FALSE),0) -> 698906 | Y82: 142218 | Z82: 0.2034865919 | AA82: 2 | AB82: 0 | AD82: 06114 | AE82: EVERGREEN (CLARK)
A83: 33205 | B83: EVERGREEN (STEV) | C83: 0 | D83: 0 | E83: =IFERROR(VLOOKUP($A83,[1]Census!$A$11:$I$344,7,FALSE),0) -> 72 | F83: =ROUND(E83/$E$5*[1]Assumptions!$D$14*[1]Assumptions!$D$29,0) -> 392 | G83: =IFERROR(VLOOKUP($A83,[1]Census!$A$11:$I$344,8,FALSE),0) -> 13 | H83: =ROUND(G83/$G$5*+[1]Assumptions!$D$14*[1]Assumptions!$D$30,0) -> 2582 | J83: 2974 | L83: 0 | M83: =IFERROR(VLOOKUP(A83,[1]ENROLLMENT!$A$5:$B$349,2,FALSE),0)*0 -> 0 | N83: =IFERROR(GETPIVOTDATA("Total W/O Preschool",'[1]Private 19-20'!$O$3,"District Code",A83),0)*0 -> 0 | P83: 2974 | Q83: 0 | R83: 2974 | T83: 0 | U83: 2974 | W83: =IFERROR(VLOOKUP($A83,'[1]Allocation 2020-21 Final'!$A$7:$U$317,18,FALSE),0) -> 1887 | Y83: 1087 | Z83: 0.5760466349 | AA83: 136 | AB83: 0 | AD83: 33205 | AE83: EVERGREEN (STEV)
A84: 17210 | B84: FEDERAL WAY | C84: 0 | D84: 0 | E84: =IFERROR(VLOOKUP($A84,[1]Census!$A$11:$I$344,7,FALSE),0) -> 26676 | F84: =ROUND(E84/$E$5*[1]Assumptions!$D$14*[1]Assumptions!$D$29,0) -> 145257 | G84: =IFERROR(VLOOKUP($A84,[1]Census!$A$11:$I$344,8,FALSE),0) -> 2982 | H84: =ROUND(G84/$G$5*+[1]Assumptions!$D$14*[1]Assumptions!$D$30,0) -> 592355 | J84: 737612 | L84: 0 | M84: =IFERROR(VLOOKUP(A84,[1]ENROLLMENT!$A$5:$B$349,2,FALSE),0)*0 -> 0 | N84: =IFERROR(GETPIVOTDATA("Total W/O Preschool",'[1]Private 19-20'!$O$3,"District Code",A84),0)*0 -> 0 | P84: 737612 | Q84: 0 | R84: 737612 | T84: 0 | U84: 737612 | W84: =IFERROR(VLOOKUP($A84,'[1]Allocation 2020-21 Final'!$A$7:$U$317,18,FALSE),0) -> 875400 | Y84: -137788 | Z84: -0.1574000457 | AA84: 313 | AB84: 0 | AD84: 17210 | AE84: FEDERAL WAY
A85: 37502 | B85: FERNDALE | C85: 0 | D85: 0 | E85: =IFERROR(VLOOKUP($A85,[1]Census!$A$11:$I$344,7,FALSE),0) -> 6226 | F85: =ROUND(E85/$E$5*[1]Assumptions!$D$14*[1]Assumptions!$D$29,0) -> 33902 | G85: =IFERROR(VLOOKUP($A85,[1]Census!$A$11:$I$344,8,FALSE),0) -> 685 | H85: =ROUND(G85/$G$5*+[1]Assumptions!$D$14*[1]Assumptions!$D$30,0) -> 136071 | J85: 169973 | L85: 0 | M85: =IFERROR(VLOOKUP(A85,[1]ENROLLMENT!$A$5:$B$349,2,FALSE),0)*0 -> 0 | N85: =IFERROR(GETPIVOTDATA("Total W/O Preschool",'[1]Private 19-20'!$O$3,"District Code",A85),0)*0 -> 0 | P85: 169973 | Q85: 0 | R85: 169973 | T85: 0 | U85: 169973 | W85: =IFERROR(VLOOKUP($A85,'[1]Allocation 2020-21 Final'!$A$7:$U$317,18,FALSE),0) -> 177548 | Y85: -7575 | Z85: -0.04266451889 | AA85: 275 | AB85: 0 | AD85: 37502 | AE85: FERNDALE
A86: 27417 | B86: FIFE | C86: 0 | D86: 0 | E86: =IFERROR(VLOOKUP($A86,[1]Census!$A$11:$I$344,7,FALSE),0) -> 3876 | F86: =ROUND(E86/$E$5*[1]Assumptions!$D$14*[1]Assumptions!$D$29,0) -> 21106 | G86: =IFERROR(VLOOKUP($A86,[1]Census!$A$11:$I$344,8,FALSE),0) -> 394 | H86: =ROUND(G86/$G$5*+[1]Assumptions!$D$14*[1]Assumptions!$D$30,0) -> 78266 | J86: 99372 | L86: 0 | M86: =IFERROR(VLOOKUP(A86,[1]ENROLLMENT!$A$5:$B$349,2,FALSE),0)*0 -> 0 | N86: =IFERROR(GETPIVOTDATA("Total W/O Preschool",'[1]Private 19-20'!$O$3,"District Code",A86),0)*0 -> 0 | P86: 99372 | Q86: 0 | R86: 99372 | T86: 0 | U86: 99372 | W86: =IFERROR(VLOOKUP($A86,'[1]Allocation 2020-21 Final'!$A$7:$U$317,18,FALSE),0) -> 100031 | Y86: -659 | Z86: -0.006587957733 | AA86: 208 | AB86: 0 | AD86: 27417 | AE86: FIFE
A87: 03053 | B87: FINLEY | C87: 0 | D87: 0 | E87: =IFERROR(VLOOKUP($A87,[1]Census!$A$11:$I$344,7,FALSE),0) -> 1178 | F87: =ROUND(E87/$E$5*[1]Assumptions!$D$14*[1]Assumptions!$D$29,0) -> 6414 | G87: =IFERROR(VLOOKUP($A87,[1]Census!$A$11:$I$344,8,FALSE),0) -> 216 | H87: =ROUND(G87/$G$5*+[1]Assumptions!$D$14*[1]Assumptions!$D$30,0) -> 42907 | J87: 49321 | L87: 0 | M87: =IFERROR(VLOOKUP(A87,[1]ENROLLMENT!$A$5:$B$349,2,FALSE),0)*0 -> 0 | N87: =IFERROR(GETPIVOTDATA("Total W/O Preschool",'[1]Private 19-20'!$O$3,"District Code",A87),0)*0 -> 0 | P87: 49321 | Q87: 0 | R87: 49321 | T87: 0 | U87: 49321 | W87: =IFERROR(VLOOKUP($A87,'[1]Allocation 2020-21 Final'!$A$7:$U$317,18,FALSE),0) -> 28476 | Y87: 20845 | Z87: 0.7320199466 | AA87: 29 | AB87: 0 | AD87: 03053 | AE87: FINLEY
A88: 27402 | B88: FRANKLIN PIERCE | C88: 0 | D88: 0 | E88: =IFERROR(VLOOKUP($A88,[1]Census!$A$11:$I$344,7,FALSE),0) -> 8916 | F88: =ROUND(E88/$E$5*[1]Assumptions!$D$14*[1]Assumptions!$D$29,0) -> 48550 | G88: =IFERROR(VLOOKUP($A88,[1]Census!$A$11:$I$344,8,FALSE),0) -> 1515 | H88: =ROUND(G88/$G$5*+[1]Assumptions!$D$14*[1]Assumptions!$D$30,0) -> 300945 | J88: 349495 | L88: 0 | M88: =IFERROR(VLOOKUP(A88,[1]ENROLLMENT!$A$5:$B$349,2,FALSE),0)*0 -> 0 | N88: =IFERROR(GETPIVOTDATA("Total W/O Preschool",'[1]Private 19-20'!$O$3,"District Code",A88),0)*0 -> 0 | P88: 349495 | Q88: 0 | R88: 349495 | T88: 0 | U88: 349495 | W88: =IFERROR(VLOOKUP($A88,'[1]Allocation 2020-21 Final'!$A$7:$U$317,18,FALSE),0) -> 296289 | Y88: 53206 | Z88: 0.179574672 | AA88: 12 | AB88: 0 | AD88: 27402 | AE88: FRANKLIN PIERCE
A89: 32358 | B89: FREEMAN | C89: 0 | D89: 0 | E89: =IFERROR(VLOOKUP($A89,[1]Census!$A$11:$I$344,7,FALSE),0) -> 902 | F89: =ROUND(E89/$E$5*[1]Assumptions!$D$14*[1]Assumptions!$D$29,0) -> 4912 | G89: =IFERROR(VLOOKUP($A89,[1]Census!$A$11:$I$344,8,FALSE),0) -> 46 | H89: =ROUND(G89/$G$5*+[1]Assumptions!$D$14*[1]Assumptions!$D$30,0) -> 9138 | J89: 14050 | L89: 0 | M89: =IFERROR(VLOOKUP(A89,[1]ENROLLMENT!$A$5:$B$349,2,FALSE),0)*0 -> 0 | N89: =IFERROR(GETPIVOTDATA("Total W/O Preschool",'[1]Private 19-20'!$O$3,"District Code",A89),0)*0 -> 0 | P89: 14050 | Q89: 0 | R89: 14050 | T89: 0 | U89: 14050 | W89: =IFERROR(VLOOKUP($A89,'[1]Allocation 2020-21 Final'!$A$7:$U$317,18,FALSE),0) -> 15626 | Y89: -1576 | Z89: -0.1008575451 | AA89: 226 | AB89: 0 | AD89: 32358 | AE89: FREEMAN
A90: 38302 | B90: GARFIELD | C90: 0 | D90: 0 | E90: =IFERROR(VLOOKUP($A90,[1]Census!$A$11:$I$344,7,FALSE),0) -> 132 | F90: =ROUND(E90/$E$5*[1]Assumptions!$D$14*[1]Assumptions!$D$29,0) -> 719 | G90: =IFERROR(VLOOKUP($A90,[1]Census!$A$11:$I$344,8,FALSE),0) -> 32 | H90: =ROUND(G90/$G$5*+[1]Assumptions!$D$14*[1]Assumptions!$D$30,0) -> 6357 | J90: 7076 | L90: 0 | M90: =IFERROR(VLOOKUP(A90,[1]ENROLLMENT!$A$5:$B$349,2,FALSE),0)*0 -> 0 | N90: =IFERROR(GETPIVOTDATA("Total W/O Preschool",'[1]Private 19-20'!$O$3,"District Code",A90),0)*0 -> 0 | P90: 7076 | Q90: 0 | R90: 7076 | T90: 0 | U90: 7076 | W90: =IFERROR(VLOOKUP($A90,'[1]Allocation 2020-21 Final'!$A$7:$U$317,18,FALSE),0) -> 7052 | Y90: 24 | Z90: 0.003403289847 | AA90: 178 | AB90: 0 | AD90: 38302 | AE90: GARFIELD
A91: 20401 | B91: GLENWOOD | C91: 0 | D91: 0 | E91: =IFERROR(VLOOKUP($A91,[1]Census!$A$11:$I$344,7,FALSE),0) -> 60 | F91: =ROUND(E91/$E$5*[1]Assumptions!$D$14*[1]Assumptions!$D$29,0) -> 327 | G91: =IFERROR(VLOOKUP($A91,[1]Census!$A$11:$I$344,8,FALSE),0) -> 6 | H91: =ROUND(G91/$G$5*+[1]Assumptions!$D$14*[1]Assumptions!$D$30,0) -> 1192 | J91: 1519 | L91: 0 | M91: =IFERROR(VLOOKUP(A91,[1]ENROLLMENT!$A$5:$B$349,2,FALSE),0)*0 -> 0 | N91: =IFERROR(GETPIVOTDATA("Total W/O Preschool",'[1]Private 19-20'!$O$3,"District Code",A91),0)*0 -> 0 | P91: 1519 | Q91: 0 | R91: 1519 | T91: 0 | U91: 1519 | W91: =IFERROR(VLOOKUP($A91,'[1]Allocation 2020-21 Final'!$A$7:$U$317,18,FALSE),0) -> 1256 | Y91: 263 | Z91: 0.2093949045 | AA91: 165 | AB91: 0 | AD91: 20401 | AE91: GLENWOOD
A92: 20404 | B92: GOLDENDALE | C92: 0 | D92: 0 | E92: =IFERROR(VLOOKUP($A92,[1]Census!$A$11:$I$344,7,FALSE),0) -> 1063 | F92: =ROUND(E92/$E$5*[1]Assumptions!$D$14*[1]Assumptions!$D$29,0) -> 5788 | G92: =IFERROR(VLOOKUP($A92,[1]Census!$A$11:$I$344,8,FALSE),0) -> 205 | H92: =ROUND(G92/$G$5*+[1]Assumptions!$D$14*[1]Assumptions!$D$30,0) -> 40722 | J92: 46510 | L92: 0 | M92: =IFERROR(VLOOKUP(A92,[1]ENROLLMENT!$A$5:$B$349,2,FALSE),0)*0 -> 0 | N92: =IFERROR(GETPIVOTDATA("Total W/O Preschool",'[1]Private 19-20'!$O$3,"District Code",A92),0)*0 -> 0 | P92: 46510 | Q92: 0 | R92: 46510 | T92: 0 | U92: 46510 | W92: =IFERROR(VLOOKUP($A92,'[1]Allocation 2020-21 Final'!$A$7:$U$317,18,FALSE),0) -> 42722 | Y92: 3788 | Z92: 0.08866626094 | AA92: 93 | AB92: 0 | AD92: 20404 | AE92: GOLDENDALE
A93: 13301 | B93: GRAND COULEE | C93: 0 | D93: 0 | E93: =IFERROR(VLOOKUP($A93,[1]Census!$A$11:$I$344,7,FALSE),0) -> 646 | F93: =ROUND(E93/$E$5*[1]Assumptions!$D$14*[1]Assumptions!$D$29,0) -> 3518 | G93: =IFERROR(VLOOKUP($A93,[1]Census!$A$11:$I$344,8,FALSE),0) -> 110 | H93: =ROUND(G93/$G$5*+[1]Assumptions!$D$14*[1]Assumptions!$D$30,0) -> 21851 | J93: 25369 | L93: 0 | M93: =IFERROR(VLOOKUP(A93,[1]ENROLLMENT!$A$5:$B$349,2,FALSE),0)*0 -> 0 | N93: =IFERROR(GETPIVOTDATA("Total W/O Preschool",'[1]Private 19-20'!$O$3,"District Code",A93),0)*0 -> 0 | P93: 25369 | Q93: 0 | R93: 25369 | T93: 0 | U93: 25369 | W93: =IFERROR(VLOOKUP($A93,'[1]Allocation 2020-21 Final'!$A$7:$U$317,18,FALSE),0) -> 25676 | Y93: -307 | Z93: -0.01195669107 | AA93: 198 | AB93: 0 | AD93: 13301 | AE93: GRAND COULEE
A94: 39200 | B94: GRANDVIEW | C94: 0 | D94: 0 | E94: =IFERROR(VLOOKUP($A94,[1]Census!$A$11:$I$344,7,FALSE),0) -> 3812 | F94: =ROUND(E94/$E$5*[1]Assumptions!$D$14*[1]Assumptions!$D$29,0) -> 20757 | G94: =IFERROR(VLOOKUP($A94,[1]Census!$A$11:$I$344,8,FALSE),0) -> 745 | H94: =ROUND(G94/$G$5*+[1]Assumptions!$D$14*[1]Assumptions!$D$30,0) -> 147989 | J94: 168746 | L94: 0 | M94: =IFERROR(VLOOKUP(A94,[1]ENROLLMENT!$A$5:$B$349,2,FALSE),0)*0 -> 0 | N94: =IFERROR(GETPIVOTDATA("Total W/O Preschool",'[1]Private 19-20'!$O$3,"District Code",A94),0)*0 -> 0 | P94: 168746 | Q94: 0 | R94: 168746 | T94: 0 | U94: 168746 | W94: =IFERROR(VLOOKUP($A94,'[1]Allocation 2020-21 Final'!$A$7:$U$317,18,FALSE),0) -> 142267 | Y94: 26479 | Z94: 0.1861218694 | AA94: 23 | AB94: 0 | AD94: 39200 | AE94: GRANDVIEW
A95: 39204 | B95: GRANGER | C95: 0 | D95: 0 | E95: =IFERROR(VLOOKUP($A95,[1]Census!$A$11:$I$344,7,FALSE),0) -> 1625 | F95: =ROUND(E95/$E$5*[1]Assumptions!$D$14*[1]Assumptions!$D$29,0) -> 8848 | G95: =IFERROR(VLOOKUP($A95,[1]Census!$A$11:$I$344,8,FALSE),0) -> 475 | H95: =ROUND(G95/$G$5*+[1]Assumptions!$D$14*[1]Assumptions!$D$30,0) -> 94356 | J95: 103204 | L95: 0 | M95: =IFERROR(VLOOKUP(A95,[1]ENROLLMENT!$A$5:$B$349,2,FALSE),0)*0 -> 0 | N95: =IFERROR(GETPIVOTDATA("Total W/O Preschool",'[1]Private 19-20'!$O$3,"District Code",A95),0)*0 -> 0 | P95: 103204 | Q95: 0 | R95: 103204 | T95: 0 | U95: 103204 | W95: =IFERROR(VLOOKUP($A95,'[1]Allocation 2020-21 Final'!$A$7:$U$317,18,FALSE),0) -> 90360 | Y95: 12844 | Z95: 0.1421425409 | AA95: 41 | AB95: 0 | AD95: 39204 | AE95: GRANGER
A96: 31332 | B96: GRANITE FALLS | C96: 0 | D96: 0 | E96: =IFERROR(VLOOKUP($A96,[1]Census!$A$11:$I$344,7,FALSE),0) -> 2678 | F96: =ROUND(E96/$E$5*[1]Assumptions!$D$14*[1]Assumptions!$D$29,0) -> 14582 | G96: =IFERROR(VLOOKUP($A96,[1]Census!$A$11:$I$344,8,FALSE),0) -> 172 | H96: =ROUND(G96/$G$5*+[1]Assumptions!$D$14*[1]Assumptions!$D$30,0) -> 34167 | J96: 48749 | L96: 0 | M96: =IFERROR(VLOOKUP(A96,[1]ENROLLMENT!$A$5:$B$349,2,FALSE),0)*0 -> 0 | N96: =IFERROR(GETPIVOTDATA("Total W/O Preschool",'[1]Private 19-20'!$O$3,"District Code",A96),0)*0 -> 0 | P96: 48749 | Q96: 0 | R96: 48749 | T96: 0 | U96: 48749 | W96: =IFERROR(VLOOKUP($A96,'[1]Allocation 2020-21 Final'!$A$7:$U$317,18,FALSE),0) -> 44321 | Y96: 4428 | Z96: 0.09990749306 | AA96: 84 | AB96: 0 | AD96: 31332 | AE96: GRANITE FALLS
A97: 23054 | B97: GRAPEVIEW | C97: 0 | D97: 0 | E97: =IFERROR(VLOOKUP($A97,[1]Census!$A$11:$I$344,7,FALSE),0) -> 309 | F97: =ROUND(E97/$E$5*[1]Assumptions!$D$14*[1]Assumptions!$D$29,0) -> 1683 | G97: =IFERROR(VLOOKUP($A97,[1]Census!$A$11:$I$344,8,FALSE),0) -> 50 | H97: =ROUND(G97/$G$5*+[1]Assumptions!$D$14*[1]Assumptions!$D$30,0) -> 9932 | J97: 11615 | L97: 0 | M97: =IFERROR(VLOOKUP(A97,[1]ENROLLMENT!$A$5:$B$349,2,FALSE),0)*0 -> 0 | N97: =IFERROR(GETPIVOTDATA("Total W/O Preschool",'[1]Private 19-20'!$O$3,"District Code",A97),0)*0 -> 0 | P97: 11615 | Q97: 0 | R97: 11615 | T97: 0 | U97: 11615 | W97: =IFERROR(VLOOKUP($A97,'[1]Allocation 2020-21 Final'!$A$7:$U$317,18,FALSE),0) -> 7229 | Y97: 4386 | Z97: 0.6067229216 | AA97: 85 | AB97: 0 | AD97: 23054 | AE97: GRAPEVIEW
A98: 32312 | B98: GREAT NORTHERN | C98: 0 | D98: 0 | E98: =IFERROR(VLOOKUP($A98,[1]Census!$A$11:$I$344,7,FALSE),0) -> 135 | F98: =ROUND(E98/$E$5*[1]Assumptions!$D$14*[1]Assumptions!$D$29,0) -> 735 | G98: =IFERROR(VLOOKUP($A98,[1]Census!$A$11:$I$344,8,FALSE),0) -> 16 | H98: =ROUND(G98/$G$5*+[1]Assumptions!$D$14*[1]Assumptions!$D$30,0) -> 3178 | J98: 3913 | L98: 0 | M98: =IFERROR(VLOOKUP(A98,[1]ENROLLMENT!$A$5:$B$349,2,FALSE),0)*0 -> 0 | N98: =IFERROR(GETPIVOTDATA("Total W/O Preschool",'[1]Private 19-20'!$O$3,"District Code",A98),0)*0 -> 0 | P98: 3913 | Q98: 0 | R98: 3913 | T98: 0 | U98: 3913 | W98: =IFERROR(VLOOKUP($A98,'[1]Allocation 2020-21 Final'!$A$7:$U$317,18,FALSE),0) -> 2771 | Y98: 1142 | Z98: 0.4121255864 | AA98: 132 | AB98: 0 | AD98: 32312 | AE98: GREAT NORTHERN
A99: 17910 | B99: RAINIER VALLEY CHARTER | C99: 0 | D99: 0 | E99: =IFERROR(VLOOKUP($A99,[1]Census!$A$11:$I$344,7,FALSE),0) -> 429.4651441 | F99: =ROUND(E99/$E$5*[1]Assumptions!$D$14*[1]Assumptions!$D$29,0) -> 2339 | G99: =IFERROR(VLOOKUP($A99,[1]Census!$A$11:$I$344,8,FALSE),0) -> 31.15046108 | H99: =ROUND(G99/$G$5*+[1]Assumptions!$D$14*[1]Assumptions!$D$30,0) -> 6188 | J99: 8527 | L99: 0 | M99: =IFERROR(VLOOKUP(A99,[1]ENROLLMENT!$A$5:$B$349,2,FALSE),0)*0 -> 0 | N99: =IFERROR(GETPIVOTDATA("Total W/O Preschool",'[1]Private 19-20'!$O$3,"District Code",A99),0)*0 -> 0 | P99: 8527 | Q99: 0 | R99: 8527 | T99: 0 | U99: 8527 | W99: =IFERROR(VLOOKUP($A99,'[1]Allocation 2020-21 Final'!$A$7:$U$317,18,FALSE),0) -> 16745 | Y99: -8218 | Z99: -0.4907733652 | AA99: 277 | AB99: 0 | AD99: 17910 | AE99: RAINIER VALLEY CHARTER
A100: 06103 | B100: GREEN MOUNTAIN | C100: 0 | D100: 0 | E100: =IFERROR(VLOOKUP($A100,[1]Census!$A$11:$I$344,7,FALSE),0) -> 179 | F100: =ROUND(E100/$E$5*[1]Assumptions!$D$14*[1]Assumptions!$D$29,0) -> 975 | G100: =IFERROR(VLOOKUP($A100,[1]Census!$A$11:$I$344,8,FALSE),0) -> 14 | H100: =ROUND(G100/$G$5*+[1]Assumptions!$D$14*[1]Assumptions!$D$30,0) -> 2781 | J100: 3756 | L100: 0 | M100: =IFERROR(VLOOKUP(A100,[1]ENROLLMENT!$A$5:$B$349,2,FALSE),0)*0 -> 0 | N100: =IFERROR(GETPIVOTDATA("Total W/O Preschool",'[1]Private 19-20'!$O$3,"District Code",A100),0)*0 -> 0 | P100: 3756 | Q100: 0 | R100: 3756 | T100: 0 | U100: 3756 | W100: =IFERROR(VLOOKUP($A100,'[1]Allocation 2020-21 Final'!$A$7:$U$317,18,FALSE),0) -> 3023 | Y100: 733 | Z100: 0.2424743632 | AA100: 143 | AB100: 0 | AD100: 06103 | AE100: GREEN MOUNTAIN
A101: 34324 | B101: GRIFFIN | C101: 0 | D101: 0 | E101: =IFERROR(VLOOKUP($A101,[1]Census!$A$11:$I$344,7,FALSE),0) -> 943 | F101: =ROUND(E101/$E$5*[1]Assumptions!$D$14*[1]Assumptions!$D$29,0) -> 5135 | G101: =IFERROR(VLOOKUP($A101,[1]Census!$A$11:$I$344,8,FALSE),0) -> 44 | H101: =ROUND(G101/$G$5*+[1]Assumptions!$D$14*[1]Assumptions!$D$30,0) -> 8740 | J101: 13875 | L101: 0 | M101: =IFERROR(VLOOKUP(A101,[1]ENROLLMENT!$A$5:$B$349,2,FALSE),0)*0 -> 0 | N101: =IFERROR(GETPIVOTDATA("Total W/O Preschool",'[1]Private 19-20'!$O$3,"District Code",A101),0)*0 -> 0 | P101: 13875 | Q101: 0 | R101: 13875 | T101: 0 | U101: 13875 | W101: =IFERROR(VLOOKUP($A101,'[1]Allocation 2020-21 Final'!$A$7:$U$317,18,FALSE),0) -> 12318 | Y101: 1557 | Z101: 0.1264003897 | AA101: 121 | AB101: 0 | AD101: 34324 | AE101: GRIFFIN
A102: 22204 | B102: HARRINGTON | C102: 0 | D102: 0 | E102: =IFERROR(VLOOKUP($A102,[1]Census!$A$11:$I$344,7,FALSE),0) -> 127 | F102: =ROUND(E102/$E$5*[1]Assumptions!$D$14*[1]Assumptions!$D$29,0) -> 692 | G102: =IFERROR(VLOOKUP($A102,[1]Census!$A$11:$I$344,8,FALSE),0) -> 30 | H102: =ROUND(G102/$G$5*+[1]Assumptions!$D$14*[1]Assumptions!$D$30,0) -> 5959 | J102: 6651 | L102: 0 | M102: =IFERROR(VLOOKUP(A102,[1]ENROLLMENT!$A$5:$B$349,2,FALSE),0)*0 -> 0 | N102: =IFERROR(GETPIVOTDATA("Total W/O Preschool",'[1]Private 19-20'!$O$3,"District Code",A102),0)*0 -> 0 | P102: 6651 | Q102: 0 | R102: 6651 | T102: 0 | U102: 6651 | W102: =IFERROR(VLOOKUP($A102,'[1]Allocation 2020-21 Final'!$A$7:$U$317,18,FALSE),0) -> 5354 | Y102: 1297 | Z102: 0.242248786 | AA102: 128 | AB102: 0 | AD102: 22204 | AE102: HARRINGTON
A103: 39203 | B103: HIGHLAND | C103: 0 | D103: 0 | E103: =IFERROR(VLOOKUP($A103,[1]Census!$A$11:$I$344,7,FALSE),0) -> 1327 | F103: =ROUND(E103/$E$5*[1]Assumptions!$D$14*[1]Assumptions!$D$29,0) -> 7226 | G103: =IFERROR(VLOOKUP($A103,[1]Census!$A$11:$I$344,8,FALSE),0) -> 192 | H103: =ROUND(G103/$G$5*+[1]Assumptions!$D$14*[1]Assumptions!$D$30,0) -> 38140 | J103: 45366 | L103: 0 | M103: =IFERROR(VLOOKUP(A103,[1]ENROLLMENT!$A$5:$B$349,2,FALSE),0)*0 -> 0 | N103: =IFERROR(GETPIVOTDATA("Total W/O Preschool",'[1]Private 19-20'!$O$3,"District Code",A103),0)*0 -> 0 | P103: 45366 | Q103: 0 | R103: 45366 | T103: 0 | U103: 45366 | W103: =IFERROR(VLOOKUP($A103,'[1]Allocation 2020-21 Final'!$A$7:$U$317,18,FALSE),0) -> 38321 | Y103: 7045 | Z103: 0.1838417578 | AA103: 65 | AB103: 0 | AD103: 39203 | AE103: HIGHLAND
A104: 17401 | B104: HIGHLINE | C104: 0 | D104: 0 | E104: =IFERROR(VLOOKUP($A104,[1]Census!$A$11:$I$344,7,FALSE),0) -> 21602.12724 | F104: =ROUND(E104/$E$5*[1]Assumptions!$D$14*[1]Assumptions!$D$29,0) -> 117628 | G104: =IFERROR(VLOOKUP($A104,[1]Census!$A$11:$I$344,8,FALSE),0) -> 2898.144441 | H104: =ROUND(G104/$G$5*+[1]Assumptions!$D$14*[1]Assumptions!$D$30,0) -> 575698 | J104: 693326 | L104: 0 | M104: =IFERROR(VLOOKUP(A104,[1]ENROLLMENT!$A$5:$B$349,2,FALSE),0)*0 -> 0 | N104: =IFERROR(GETPIVOTDATA("Total W/O Preschool",'[1]Private 19-20'!$O$3,"District Code",A104),0)*0 -> 0 | P104: 693326 | Q104: 0 | R104: 693326 | T104: 0 | U104: 693326 | W104: =IFERROR(VLOOKUP($A104,'[1]Allocation 2020-21 Final'!$A$7:$U$317,18,FALSE),0) -> 822817 | Y104: -129491 | Z104: -0.1573752122 | AA104: 312 | AB104: 0 | AD104: 17401 | AE104: HIGHLINE
A105: 06098 | B105: HOCKINSON | C105: 0 | D105: 0 | E105: =IFERROR(VLOOKUP($A105,[1]Census!$A$11:$I$344,7,FALSE),0) -> 2082 | F105: =ROUND(E105/$E$5*[1]Assumptions!$D$14*[1]Assumptions!$D$29,0) -> 11337 | G105: =IFERROR(VLOOKUP($A105,[1]Census!$A$11:$I$344,8,FALSE),0) -> 118 | H105: =ROUND(G105/$G$5*+[1]Assumptions!$D$14*[1]Assumptions!$D$30,0) -> 23440 | J105: 34777 | L105: 0 | M105: =IFERROR(VLOOKUP(A105,[1]ENROLLMENT!$A$5:$B$349,2,FALSE),0)*0 -> 0 | N105: =IFERROR(GETPIVOTDATA("Total W/O Preschool",'[1]Private 19-20'!$O$3,"District Code",A105),0)*0 -> 0 | P105: 34777 | Q105: 0 | R105: 34777 | T105: 0 | U105: 34777 | W105: =IFERROR(VLOOKUP($A105,'[1]Allocation 2020-21 Final'!$A$7:$U$317,18,FALSE),0) -> 28429 | Y105: 6348 | Z105: 0.2232931162 | AA105: 69 | AB105: 0 | AD105: 06098 | AE105: HOCKINSON
A106: 23404 | B106: HOOD CANAL | C106: 0 | D106: 0 | E106: =IFERROR(VLOOKUP($A106,[1]Census!$A$11:$I$344,7,FALSE),0) -> 706 | F106: =ROUND(E106/$E$5*[1]Assumptions!$D$14*[1]Assumptions!$D$29,0) -> 3844 | G106: =IFERROR(VLOOKUP($A106,[1]Census!$A$11:$I$344,8,FALSE),0) -> 125 | H106: =ROUND(G106/$G$5*+[1]Assumptions!$D$14*[1]Assumptions!$D$30,0) -> 24830 | J106: 28674 | L106: 0 | M106: =IFERROR(VLOOKUP(A106,[1]ENROLLMENT!$A$5:$B$349,2,FALSE),0)*0 -> 0 | N106: =IFERROR(GETPIVOTDATA("Total W/O Preschool",'[1]Private 19-20'!$O$3,"District Code",A106),0)*0 -> 0 | P106: 28674 | Q106: 0 | R106: 28674 | T106: 0 | U106: 28674 | W106: =IFERROR(VLOOKUP($A106,'[1]Allocation 2020-21 Final'!$A$7:$U$317,18,FALSE),0) -> 22213 | Y106: 6461 | Z106: 0.2908657093 | AA106: 68 | AB106: 0 | AD106: 23404 | AE106: HOOD CANAL
A107: 14028 | B107: HOQUIAM | C107: 0 | D107: 0 | E107: =IFERROR(VLOOKUP($A107,[1]Census!$A$11:$I$344,7,FALSE),0) -> 1827 | F107: =ROUND(E107/$E$5*[1]Assumptions!$D$14*[1]Assumptions!$D$29,0) -> 9948 | G107: =IFERROR(VLOOKUP($A107,[1]Census!$A$11:$I$344,8,FALSE),0) -> 349 | H107: =ROUND(G107/$G$5*+[1]Assumptions!$D$14*[1]Assumptions!$D$30,0) -> 69327 | J107: 79275 | L107: 0 | M107: =IFERROR(VLOOKUP(A107,[1]ENROLLMENT!$A$5:$B$349,2,FALSE),0)*0 -> 0 | N107: =IFERROR(GETPIVOTDATA("Total W/O Preschool",'[1]Private 19-20'!$O$3,"District Code",A107),0)*0 -> 0 | P107: 79275 | Q107: 0 | R107: 79275 | T107: 0 | U107: 79275 | W107: =IFERROR(VLOOKUP($A107,'[1]Allocation 2020-21 Final'!$A$7:$U$317,18,FALSE),0) -> 90601 | Y107: -11326 | Z107: -0.1250096577 | AA107: 281 | AB107: 0 | AD107: 14028 | AE107: HOQUIAM
A108: 27902 | B108: IMPACT COMMENCEMENT BAY CHARTER | C108: 0 | D108: 0 | E108: =IFERROR(VLOOKUP($A108,[1]Census!$A$11:$I$344,7,FALSE),0) -> 315.7868463 | F108: =ROUND(E108/$E$5*[1]Assumptions!$D$14*[1]Assumptions!$D$29,0) -> 1720 | G108: =IFERROR(VLOOKUP($A108,[1]Census!$A$11:$I$344,8,FALSE),0) -> 45.7988362 | H108: =ROUND(G108/$G$5*+[1]Assumptions!$D$14*[1]Assumptions!$D$30,0) -> 9098 | J108: 10818 | L108: 0 | M108: =IFERROR(VLOOKUP(A108,[1]ENROLLMENT!$A$5:$B$349,2,FALSE),0)*0 -> 0 | N108: =IFERROR(GETPIVOTDATA("Total W/O Preschool",'[1]Private 19-20'!$O$3,"District Code",A108),0)*0 -> 0 | P108: 10818 | Q108: 0 | R108: 10818 | T108: 0 | U108: 10818 | W108: =IFERROR(VLOOKUP($A108,'[1]Allocation 2020-21 Final'!$A$7:$U$317,18,FALSE),0) -> 0 | Y108: 10818 | Z108: 0 | AA108: 43 | AB108: 0 | AD108: 27902 | AE108: IMPACT COMMENCEMENT BAY CHARTER
A109: 17911 | B109: IMPACT PUGET SOUND CHARTER | C109: 0 | D109: 0 | E109: =IFERROR(VLOOKUP($A109,[1]Census!$A$11:$I$344,7,FALSE),0) -> 385.6724368 | F109: =ROUND(E109/$E$5*[1]Assumptions!$D$14*[1]Assumptions!$D$29,0) -> 2100 | G109: =IFERROR(VLOOKUP($A109,[1]Census!$A$11:$I$344,8,FALSE),0) -> 80.3195739 | H109: =ROUND(G109/$G$5*+[1]Assumptions!$D$14*[1]Assumptions!$D$30,0) -> 15955 | J109: 18055 | L109: 0 | M109: =IFERROR(VLOOKUP(A109,[1]ENROLLMENT!$A$5:$B$349,2,FALSE),0)*0 -> 0 | N109: =IFERROR(GETPIVOTDATA("Total W/O Preschool",'[1]Private 19-20'!$O$3,"District Code",A109),0)*0 -> 0 | P109: 18055 | Q109: 0 | R109: 18055 | T109: 0 | U109: 18055 | W109: =IFERROR(VLOOKUP($A109,'[1]Allocation 2020-21 Final'!$A$7:$U$317,18,FALSE),0) -> 9511 | Y109: 8544 | Z109: 0.8983282515 | AA109: 55 | AB109: 0 | AD109: 17911 | AE109: IMPACT PUGET SOUND CHARTER
A110: 17916 | B110: IMPACT SALISH SEA CHARTER | C110: 0 | D110: 0 | E110: =IFERROR(VLOOKUP($A110,[1]Census!$A$11:$I$344,7,FALSE),0) -> 77.13448735 | F110: =ROUND(E110/$E$5*[1]Assumptions!$D$14*[1]Assumptions!$D$29,0) -> 420 | G110: =IFERROR(VLOOKUP($A110,[1]Census!$A$11:$I$344,8,FALSE),0) -> 16.06391478 | H110: =ROUND(G110/$G$5*+[1]Assumptions!$D$14*[1]Assumptions!$D$30,0) -> 3191 | J110: 3611 | L110: 0 | M110: =IFERROR(VLOOKUP(A110,[1]ENROLLMENT!$A$5:$B$349,2,FALSE),0)*0 -> 0 | N110: =IFERROR(GETPIVOTDATA("Total W/O Preschool",'[1]Private 19-20'!$O$3,"District Code",A110),0)*0 -> 0 | P110: 3611 | Q110: 0 | R110: 3611 | T110: 0 | U110: 3611 | W110: =IFERROR(VLOOKUP($A110,'[1]Allocation 2020-21 Final'!$A$7:$U$317,18,FALSE),0) -> 9827 | Y110: -6216 | Z110: -0.6325429938 | AA110: 271 | AB110: 0 | AD110: 17916 | AE110: IMPACT SALISH SEA CHARTER
A111: 10070 | B111: INCHELIUM | C111: 0 | D111: 0 | E111: =IFERROR(VLOOKUP($A111,[1]Census!$A$11:$I$344,7,FALSE),0) -> 188 | F111: =ROUND(E111/$E$5*[1]Assumptions!$D$14*[1]Assumptions!$D$29,0) -> 1024 | G111: =IFERROR(VLOOKUP($A111,[1]Census!$A$11:$I$344,8,FALSE),0) -> 59 | H111: =ROUND(G111/$G$5*+[1]Assumptions!$D$14*[1]Assumptions!$D$30,0) -> 11720 | J111: 12744 | L111: 0 | M111: =IFERROR(VLOOKUP(A111,[1]ENROLLMENT!$A$5:$B$349,2,FALSE),0)*0 -> 0 | N111: =IFERROR(GETPIVOTDATA("Total W/O Preschool",'[1]Private 19-20'!$O$3,"District Code",A111),0)*0 -> 0 | P111: 12744 | Q111: 0 | R111: 12744 | T111: 0 | U111: 12744 | W111: =IFERROR(VLOOKUP($A111,'[1]Allocation 2020-21 Final'!$A$7:$U$317,18,FALSE),0) -> 10781 | Y111: 1963 | Z111: 0.1820795845 | AA111: 115 | AB111: 0 | AD111: 10070 | AE111: INCHELIUM
A112: 31063 | B112: INDEX | C112: 0 | D112: 0 | E112: =IFERROR(VLOOKUP($A112,[1]Census!$A$11:$I$344,7,FALSE),0) -> 43 | F112: =ROUND(E112/$E$5*[1]Assumptions!$D$14*[1]Assumptions!$D$29,0) -> 234 | G112: =IFERROR(VLOOKUP($A112,[1]Census!$A$11:$I$344,8,FALSE),0) -> 12 | H112: =ROUND(G112/$G$5*+[1]Assumptions!$D$14*[1]Assumptions!$D$30,0) -> 2384 | J112: 2618 | L112: 0 | M112: =IFERROR(VLOOKUP(A112,[1]ENROLLMENT!$A$5:$B$349,2,FALSE),0)*0 -> 0 | N112: =IFERROR(GETPIVOTDATA("Total W/O Preschool",'[1]Private 19-20'!$O$3,"District Code",A112),0)*0 -> 0 | P112: 2618 | Q112: 0 | R112: 2618 | T112: 0 | U112: 2618 | W112: =IFERROR(VLOOKUP($A112,'[1]Allocation 2020-21 Final'!$A$7:$U$317,18,FALSE),0) -> 418 | Y112: 2200 | Z112: 5.263157895 | AA112: 110 | AB112: 0 | AD112: 31063 | AE112: INDEX
A113: 17411 | B113: ISSAQUAH | C113: 0 | D113: 0 | E113: =IFERROR(VLOOKUP($A113,[1]Census!$A$11:$I$344,7,FALSE),0) -> 22110 | F113: =ROUND(E113/$E$5*[1]Assumptions!$D$14*[1]Assumptions!$D$29,0) -> 120394 | G113: =IFERROR(VLOOKUP($A113,[1]Census!$A$11:$I$344,8,FALSE),0) -> 738 | H113: =ROUND(G113/$G$5*+[1]Assumptions!$D$14*[1]Assumptions!$D$30,0) -> 146599 | J113: 266993 | L113: 0 | M113: =IFERROR(VLOOKUP(A113,[1]ENROLLMENT!$A$5:$B$349,2,FALSE),0)*0 -> 0 | N113: =IFERROR(GETPIVOTDATA("Total W/O Preschool",'[1]Private 19-20'!$O$3,"District Code",A113),0)*0 -> 0 | P113: 266993 | Q113: 0 | R113: 266993 | T113: 0 | U113: 266993 | W113: =IFERROR(VLOOKUP($A113,'[1]Allocation 2020-21 Final'!$A$7:$U$317,18,FALSE),0) -> 290260 | Y113: -23267 | Z113: -0.08015916764 | AA113: 297 | AB113: 0 | AD113: 17411 | AE113: ISSAQUAH
A114: 11056 | B114: KAHLOTUS | C114: 0 | D114: 0 | E114: =IFERROR(VLOOKUP($A114,[1]Census!$A$11:$I$344,7,FALSE),0) -> 88 | F114: =ROUND(E114/$E$5*[1]Assumptions!$D$14*[1]Assumptions!$D$29,0) -> 479 | G114: =IFERROR(VLOOKUP($A114,[1]Census!$A$11:$I$344,8,FALSE),0) -> 9 | H114: =ROUND(G114/$G$5*+[1]Assumptions!$D$14*[1]Assumptions!$D$30,0) -> 1788 | J114: 2267 | L114: 0 | M114: =IFERROR(VLOOKUP(A114,[1]ENROLLMENT!$A$5:$B$349,2,FALSE),0)*0 -> 0 | N114: =IFERROR(GETPIVOTDATA("Total W/O Preschool",'[1]Private 19-20'!$O$3,"District Code",A114),0)*0 -> 0 | P114: 2267 | Q114: 0 | R114: 2267 | T114: 0 | U114: 2267 | W114: =IFERROR(VLOOKUP($A114,'[1]Allocation 2020-21 Final'!$A$7:$U$317,18,FALSE),0) -> 1963 | Y114: 304 | Z114: 0.1548650025 | AA114: 162 | AB114: 0 | AD114: 11056 | AE114: KAHLOTUS
A115: 08402 | B115: KALAMA | C115: 0 | D115: 0 | E115: =IFERROR(VLOOKUP($A115,[1]Census!$A$11:$I$344,7,FALSE),0) -> 1158 | F115: =ROUND(E115/$E$5*[1]Assumptions!$D$14*[1]Assumptions!$D$29,0) -> 6306 | G115: =IFERROR(VLOOKUP($A115,[1]Census!$A$11:$I$344,8,FALSE),0) -> 79 | H115: =ROUND(G115/$G$5*+[1]Assumptions!$D$14*[1]Assumptions!$D$30,0) -> 15693 | J115: 21999 | L115: 0 | M115: =IFERROR(VLOOKUP(A115,[1]ENROLLMENT!$A$5:$B$349,2,FALSE),0)*0 -> 0 | N115: =IFERROR(GETPIVOTDATA("Total W/O Preschool",'[1]Private 19-20'!$O$3,"District Code",A115),0)*0 -> 0 | P115: 21999 | Q115: 0 | R115: 21999 | T115: 0 | U115: 21999 | W115: =IFERROR(VLOOKUP($A115,'[1]Allocation 2020-21 Final'!$A$7:$U$317,18,FALSE),0) -> 27477 | Y115: -5478 | Z115: -0.1993667431 | AA115: 267 | AB115: 0 | AD115: 08402 | AE115: KALAMA
A116: 10003 | B116: KELLER | C116: 0 | D116: 0 | E116: =IFERROR(VLOOKUP($A116,[1]Census!$A$11:$I$344,7,FALSE),0) -> 72 | F116: =ROUND(E116/$E$5*[1]Assumptions!$D$14*[1]Assumptions!$D$29,0) -> 392 | G116: =IFERROR(VLOOKUP($A116,[1]Census!$A$11:$I$344,8,FALSE),0) -> 30 | H116: =ROUND(G116/$G$5*+[1]Assumptions!$D$14*[1]Assumptions!$D$30,0) -> 5959 | J116: 6351 | L116: 0 | M116: =IFERROR(VLOOKUP(A116,[1]ENROLLMENT!$A$5:$B$349,2,FALSE),0)*0 -> 0 | N116: =IFERROR(GETPIVOTDATA("Total W/O Preschool",'[1]Private 19-20'!$O$3,"District Code",A116),0)*0 -> 0 | P116: 6351 | Q116: 0 | R116: 6351 | T116: 0 | U116: 6351 | W116: =IFERROR(VLOOKUP($A116,'[1]Allocation 2020-21 Final'!$A$7:$U$317,18,FALSE),0) -> 4519 | Y116: 1832 | Z116: 0.4053994247 | AA116: 116 | AB116: 0 | AD116: 10003 | AE116: KELLER
A117: 08458 | B117: KELSO | C117: 0 | D117: 0 | E117: =IFERROR(VLOOKUP($A117,[1]Census!$A$11:$I$344,7,FALSE),0) -> 5505 | F117: =ROUND(E117/$E$5*[1]Assumptions!$D$14*[1]Assumptions!$D$29,0) -> 29976 | G117: =IFERROR(VLOOKUP($A117,[1]Census!$A$11:$I$344,8,FALSE),0) -> 848 | H117: =ROUND(G117/$G$5*+[1]Assumptions!$D$14*[1]Assumptions!$D$30,0) -> 168450 | J117: 198426 | L117: 0 | M117: =IFERROR(VLOOKUP(A117,[1]ENROLLMENT!$A$5:$B$349,2,FALSE),0)*0 -> 0 | N117: =IFERROR(GETPIVOTDATA("Total W/O Preschool",'[1]Private 19-20'!$O$3,"District Code",A117),0)*0 -> 0 | P117: 198426 | Q117: 0 | R117: 198426 | T117: 0 | U117: 198426 | W117: =IFERROR(VLOOKUP($A117,'[1]Allocation 2020-21 Final'!$A$7:$U$317,18,FALSE),0) -> 190801 | Y117: 7625 | Z117: 0.03996310292 | AA117: 62 | AB117: 0 | AD117: 08458 | AE117: KELSO
A118: 03017 | B118: KENNEWICK | C118: 0 | D118: 0 | E118: =IFERROR(VLOOKUP($A118,[1]Census!$A$11:$I$344,7,FALSE),0) -> 19653 | F118: =ROUND(E118/$E$5*[1]Assumptions!$D$14*[1]Assumptions!$D$29,0) -> 107015 | G118: =IFERROR(VLOOKUP($A118,[1]Census!$A$11:$I$344,8,FALSE),0) -> 3452 | H118: =ROUND(G118/$G$5*+[1]Assumptions!$D$14*[1]Assumptions!$D$30,0) -> 685718 | J118: 792733 | L118: 0 | M118: =IFERROR(VLOOKUP(A118,[1]ENROLLMENT!$A$5:$B$349,2,FALSE),0)*0 -> 0 | N118: =IFERROR(GETPIVOTDATA("Total W/O Preschool",'[1]Private 19-20'!$O$3,"District Code",A118),0)*0 -> 0 | P118: 792733 | Q118: 0 | R118: 792733 | T118: 0 | U118: 792733 | W118: =IFERROR(VLOOKUP($A118,'[1]Allocation 2020-21 Final'!$A$7:$U$317,18,FALSE),0) -> 650548 | Y118: 142185 | Z118: 0.2185618894 | AA118: 3 | AB118: 0 | AD118: 03017 | AE118: KENNEWICK
A119: 17415 | B119: KENT | C119: 0 | D119: 0 | E119: =IFERROR(VLOOKUP($A119,[1]Census!$A$11:$I$344,7,FALSE),0) -> 32956 | F119: =ROUND(E119/$E$5*[1]Assumptions!$D$14*[1]Assumptions!$D$29,0) -> 179453 | G119: =IFERROR(VLOOKUP($A119,[1]Census!$A$11:$I$344,8,FALSE),0) -> 3583 | H119: =ROUND(G119/$G$5*+[1]Assumptions!$D$14*[1]Assumptions!$D$30,0) -> 711740 | J119: 891193 | L119: 0 | M119: =IFERROR(VLOOKUP(A119,[1]ENROLLMENT!$A$5:$B$349,2,FALSE),0)*0 -> 0 | N119: =IFERROR(GETPIVOTDATA("Total W/O Preschool",'[1]Private 19-20'!$O$3,"District Code",A119),0)*0 -> 0 | P119: 891193 | Q119: 0 | R119: 891193 | T119: 0 | U119: 891193 | W119: =IFERROR(VLOOKUP($A119,'[1]Allocation 2020-21 Final'!$A$7:$U$317,18,FALSE),0) -> 1065665 | Y119: -174472 | Z119: -0.1637212445 | AA119: 314 | AB119: 0 | AD119: 17415 | AE119: KENT
A120: 33212 | B120: KETTLE FALLS | C120: 0 | D120: 0 | E120: =IFERROR(VLOOKUP($A120,[1]Census!$A$11:$I$344,7,FALSE),0) -> 776 | F120: =ROUND(E120/$E$5*[1]Assumptions!$D$14*[1]Assumptions!$D$29,0) -> 4225 | G120: =IFERROR(VLOOKUP($A120,[1]Census!$A$11:$I$344,8,FALSE),0) -> 129 | H120: =ROUND(G120/$G$5*+[1]Assumptions!$D$14*[1]Assumptions!$D$30,0) -> 25625 | J120: 29850 | L120: 0 | M120: =IFERROR(VLOOKUP(A120,[1]ENROLLMENT!$A$5:$B$349,2,FALSE),0)*0 -> 0 | N120: =IFERROR(GETPIVOTDATA("Total W/O Preschool",'[1]Private 19-20'!$O$3,"District Code",A120),0)*0 -> 0 | P120: 29850 | Q120: 0 | R120: 29850 | T120: 0 | U120: 29850 | W120: =IFERROR(VLOOKUP($A120,'[1]Allocation 2020-21 Final'!$A$7:$U$317,18,FALSE),0) -> 29237 | Y120: 613 | Z120: 0.02096658344 | AA120: 147 | AB120: 0 | AD120: 33212 | AE120: KETTLE FALLS
A121: 03052 | B121: KIONA-BENTON | C121: 0 | D121: 0 | E121: =IFERROR(VLOOKUP($A121,[1]Census!$A$11:$I$344,7,FALSE),0) -> 1938 | F121: =ROUND(E121/$E$5*[1]Assumptions!$D$14*[1]Assumptions!$D$29,0) -> 10553 | G121: =IFERROR(VLOOKUP($A121,[1]Census!$A$11:$I$344,8,FALSE),0) -> 229 | H121: =ROUND(G121/$G$5*+[1]Assumptions!$D$14*[1]Assumptions!$D$30,0) -> 45489 | J121: 56042 | L121: 0 | M121: =IFERROR(VLOOKUP(A121,[1]ENROLLMENT!$A$5:$B$349,2,FALSE),0)*0 -> 0 | N121: =IFERROR(GETPIVOTDATA("Total W/O Preschool",'[1]Private 19-20'!$O$3,"District Code",A121),0)*0 -> 0 | P121: 56042 | Q121: 0 | R121: 56042 | T121: 0 | U121: 56042 | W121: =IFERROR(VLOOKUP($A121,'[1]Allocation 2020-21 Final'!$A$7:$U$317,18,FALSE),0) -> 51748 | Y121: 4294 | Z121: 0.08297905233 | AA121: 86 | AB121: 0 | AD121: 03052 | AE121: KIONA-BENTON
A122: 19403 | B122: KITTITAS | C122: 0 | D122: 0 | E122: =IFERROR(VLOOKUP($A122,[1]Census!$A$11:$I$344,7,FALSE),0) -> 783 | F122: =ROUND(E122/$E$5*[1]Assumptions!$D$14*[1]Assumptions!$D$29,0) -> 4264 | G122: =IFERROR(VLOOKUP($A122,[1]Census!$A$11:$I$344,8,FALSE),0) -> 60 | H122: =ROUND(G122/$G$5*+[1]Assumptions!$D$14*[1]Assumptions!$D$30,0) -> 11919 | J122: 16183 | L122: 0 | M122: =IFERROR(VLOOKUP(A122,[1]ENROLLMENT!$A$5:$B$349,2,FALSE),0)*0 -> 0 | N122: =IFERROR(GETPIVOTDATA("Total W/O Preschool",'[1]Private 19-20'!$O$3,"District Code",A122),0)*0 -> 0 | P122: 16183 | Q122: 0 | R122: 16183 | T122: 0 | U122: 16183 | W122: =IFERROR(VLOOKUP($A122,'[1]Allocation 2020-21 Final'!$A$7:$U$317,18,FALSE),0) -> 18624 | Y122: -2441 | Z122: -0.1310674399 | AA122: 240 | AB122: 0 | AD122: 19403 | AE122: KITTITAS
A123: 20402 | B123: KLICKITAT | C123: 0 | D123: 0 | E123: =IFERROR(VLOOKUP($A123,[1]Census!$A$11:$I$344,7,FALSE),0) -> 78 | F123: =ROUND(E123/$E$5*[1]Assumptions!$D$14*[1]Assumptions!$D$29,0) -> 425 | G123: =IFERROR(VLOOKUP($A123,[1]Census!$A$11:$I$344,8,FALSE),0) -> 16 | H123: =ROUND(G123/$G$5*+[1]Assumptions!$D$14*[1]Assumptions!$D$30,0) -> 3178 | J123: 3603 | L123: 0 | M123: =IFERROR(VLOOKUP(A123,[1]ENROLLMENT!$A$5:$B$349,2,FALSE),0)*0 -> 0 | N123: =IFERROR(GETPIVOTDATA("Total W/O Preschool",'[1]Private 19-20'!$O$3,"District Code",A123),0)*0 -> 0 | P123: 3603 | Q123: 0 | R123: 3603 | T123: 0 | U123: 3603 | W123: =IFERROR(VLOOKUP($A123,'[1]Allocation 2020-21 Final'!$A$7:$U$317,18,FALSE),0) -> 2101 | Y123: 1502 | Z123: 0.7148976678 | AA123: 123 | AB123: 0 | AD123: 20402 | AE123: KLICKITAT
A124: 06101 | B124: LA CENTER | C124: 0 | D124: 0 | E124: =IFERROR(VLOOKUP($A124,[1]Census!$A$11:$I$344,7,FALSE),0) -> 1834 | F124: =ROUND(E124/$E$5*[1]Assumptions!$D$14*[1]Assumptions!$D$29,0) -> 9987 | G124: =IFERROR(VLOOKUP($A124,[1]Census!$A$11:$I$344,8,FALSE),0) -> 82 | H124: =ROUND(G124/$G$5*+[1]Assumptions!$D$14*[1]Assumptions!$D$30,0) -> 16289 | J124: 26276 | L124: 0 | M124: =IFERROR(VLOOKUP(A124,[1]ENROLLMENT!$A$5:$B$349,2,FALSE),0)*0 -> 0 | N124: =IFERROR(GETPIVOTDATA("Total W/O Preschool",'[1]Private 19-20'!$O$3,"District Code",A124),0)*0 -> 0 | P124: 26276 | Q124: 0 | R124: 26276 | T124: 0 | U124: 26276 | W124: =IFERROR(VLOOKUP($A124,'[1]Allocation 2020-21 Final'!$A$7:$U$317,18,FALSE),0) -> 24287 | Y124: 1989 | Z124: 0.08189566435 | AA124: 114 | AB124: 0 | AD124: 06101 | AE124: LA CENTER
A125: 29311 | B125: LA CONNER | C125: 0 | D125: 0 | E125: =IFERROR(VLOOKUP($A125,[1]Census!$A$11:$I$344,7,FALSE),0) -> 615 | F125: =ROUND(E125/$E$5*[1]Assumptions!$D$14*[1]Assumptions!$D$29,0) -> 3349 | G125: =IFERROR(VLOOKUP($A125,[1]Census!$A$11:$I$344,8,FALSE),0) -> 86 | H125: =ROUND(G125/$G$5*+[1]Assumptions!$D$14*[1]Assumptions!$D$30,0) -> 17083 | J125: 20432 | L125: 0 | M125: =IFERROR(VLOOKUP(A125,[1]ENROLLMENT!$A$5:$B$349,2,FALSE),0)*0 -> 0 | N125: =IFERROR(GETPIVOTDATA("Total W/O Preschool",'[1]Private 19-20'!$O$3,"District Code",A125),0)*0 -> 0 | P125: 20432 | Q125: 0 | R125: 20432 | T125: 0 | U125: 20432 | W125: =IFERROR(VLOOKUP($A125,'[1]Allocation 2020-21 Final'!$A$7:$U$317,18,FALSE),0) -> 14319 | Y125: 6113 | Z125: 0.4269152874 | AA125: 70 | AB125: 0 | AD125: 29311 | AE125: LA CONNER
A126: 38126 | B126: LACROSSE | C126: 0 | D126: 0 | E126: =IFERROR(VLOOKUP($A126,[1]Census!$A$11:$I$344,7,FALSE),0) -> 113 | F126: =ROUND(E126/$E$5*[1]Assumptions!$D$14*[1]Assumptions!$D$29,0) -> 615 | G126: =IFERROR(VLOOKUP($A126,[1]Census!$A$11:$I$344,8,FALSE),0) -> 26 | H126: =ROUND(G126/$G$5*+[1]Assumptions!$D$14*[1]Assumptions!$D$30,0) -> 5165 | J126: 5780 | L126: 0 | M126: =IFERROR(VLOOKUP(A126,[1]ENROLLMENT!$A$5:$B$349,2,FALSE),0)*0 -> 0 | N126: =IFERROR(GETPIVOTDATA("Total W/O Preschool",'[1]Private 19-20'!$O$3,"District Code",A126),0)*0 -> 0 | P126: 5780 | Q126: 0 | R126: 5780 | T126: 0 | U126: 5780 | W126: =IFERROR(VLOOKUP($A126,'[1]Allocation 2020-21 Final'!$A$7:$U$317,18,FALSE),0) -> 3586 | Y126: 2194 | Z126: 0.6118237591 | AA126: 111 | AB126: 0 | AD126: 38126 | AE126: LACROSSE
A127: 04129 | B127: LAKE CHELAN | C127: 0 | D127: 0 | E127: =IFERROR(VLOOKUP($A127,[1]Census!$A$11:$I$344,7,FALSE),0) -> 1244 | F127: =ROUND(E127/$E$5*[1]Assumptions!$D$14*[1]Assumptions!$D$29,0) -> 6774 | G127: =IFERROR(VLOOKUP($A127,[1]Census!$A$11:$I$344,8,FALSE),0) -> 127 | H127: =ROUND(G127/$G$5*+[1]Assumptions!$D$14*[1]Assumptions!$D$30,0) -> 25228 | J127: 32002 | L127: 0 | M127: =IFERROR(VLOOKUP(A127,[1]ENROLLMENT!$A$5:$B$349,2,FALSE),0)*0 -> 0 | N127: =IFERROR(GETPIVOTDATA("Total W/O Preschool",'[1]Private 19-20'!$O$3,"District Code",A127),0)*0 -> 0 | P127: 32002 | Q127: 0 | R127: 32002 | T127: 0 | U127: 32002 | W127: =IFERROR(VLOOKUP($A127,'[1]Allocation 2020-21 Final'!$A$7:$U$317,18,FALSE),0) -> 23695 | Y127: 8307 | Z127: 0.3505802912 | AA127: 58 | AB127: 0 | AD127: 04129 | AE127: LAKE CHELAN
A128: 14097 | B128: QUINAULT | C128: 0 | D128: 0 | E128: =IFERROR(VLOOKUP($A128,[1]Census!$A$11:$I$344,7,FALSE),0) -> 203 | F128: =ROUND(E128/$E$5*[1]Assumptions!$D$14*[1]Assumptions!$D$29,0) -> 1105 | G128: =IFERROR(VLOOKUP($A128,[1]Census!$A$11:$I$344,8,FALSE),0) -> 35 | H128: =ROUND(G128/$G$5*+[1]Assumptions!$D$14*[1]Assumptions!$D$30,0) -> 6953 | J128: 8058 | L128: 0 | M128: =IFERROR(VLOOKUP(A128,[1]ENROLLMENT!$A$5:$B$349,2,FALSE),0)*0 -> 0 | N128: =IFERROR(GETPIVOTDATA("Total W/O Preschool",'[1]Private 19-20'!$O$3,"District Code",A128),0)*0 -> 0 | P128: 8058 | Q128: 0 | R128: 8058 | T128: 0 | U128: 8058 | W128: =IFERROR(VLOOKUP($A128,'[1]Allocation 2020-21 Final'!$A$7:$U$317,18,FALSE),0) -> 9484 | Y128: -1426 | Z128: -0.1503584985 | AA128: 224 | AB128: 0 | AD128: 14097 | AE128: QUINAULT
A129: 31004 | B129: LAKE STEVENS | C129: 0 | D129: 0 | E129: =IFERROR(VLOOKUP($A129,[1]Census!$A$11:$I$344,7,FALSE),0) -> 9044 | F129: =ROUND(E129/$E$5*[1]Assumptions!$D$14*[1]Assumptions!$D$29,0) -> 49247 | G129: =IFERROR(VLOOKUP($A129,[1]Census!$A$11:$I$344,8,FALSE),0) -> 495 | H129: =ROUND(G129/$G$5*+[1]Assumptions!$D$14*[1]Assumptions!$D$30,0) -> 98329 | J129: 147576 | L129: 0 | M129: =IFERROR(VLOOKUP(A129,[1]ENROLLMENT!$A$5:$B$349,2,FALSE),0)*0 -> 0 | N129: =IFERROR(GETPIVOTDATA("Total W/O Preschool",'[1]Private 19-20'!$O$3,"District Code",A129),0)*0 -> 0 | P129: 147576 | Q129: 0 | R129: 147576 | T129: 0 | U129: 147576 | W129: =IFERROR(VLOOKUP($A129,'[1]Allocation 2020-21 Final'!$A$7:$U$317,18,FALSE),0) -> 164344 | Y129: -16768 | Z129: -0.1020298885 | AA129: 290 | AB129: 0 | AD129: 31004 | AE129: LAKE STEVENS
A130: 17414 | B130: LAKE WASHINGTON | C130: 0 | D130: 0 | E130: =IFERROR(VLOOKUP($A130,[1]Census!$A$11:$I$344,7,FALSE),0) -> 32317 | F130: =ROUND(E130/$E$5*[1]Assumptions!$D$14*[1]Assumptions!$D$29,0) -> 175973 | G130: =IFERROR(VLOOKUP($A130,[1]Census!$A$11:$I$344,8,FALSE),0) -> 1043 | H130: =ROUND(G130/$G$5*+[1]Assumptions!$D$14*[1]Assumptions!$D$30,0) -> 207185 | J130: 383158 | L130: 0 | M130: =IFERROR(VLOOKUP(A130,[1]ENROLLMENT!$A$5:$B$349,2,FALSE),0)*0 -> 0 | N130: =IFERROR(GETPIVOTDATA("Total W/O Preschool",'[1]Private 19-20'!$O$3,"District Code",A130),0)*0 -> 0 | P130: 383158 | Q130: 0 | R130: 383158 | T130: 0 | U130: 383158 | W130: =IFERROR(VLOOKUP($A130,'[1]Allocation 2020-21 Final'!$A$7:$U$317,18,FALSE),0) -> 432065 | Y130: -48907 | Z130: -0.1131936167 | AA130: 307 | AB130: 0 | AD130: 17414 | AE130: LAKE WASHINGTON
A131: 31306 | B131: LAKEWOOD | C131: 0 | D131: 0 | E131: =IFERROR(VLOOKUP($A131,[1]Census!$A$11:$I$344,7,FALSE),0) -> 2707 | F131: =ROUND(E131/$E$5*[1]Assumptions!$D$14*[1]Assumptions!$D$29,0) -> 14740 | G131: =IFERROR(VLOOKUP($A131,[1]Census!$A$11:$I$344,8,FALSE),0) -> 221 | H131: =ROUND(G131/$G$5*+[1]Assumptions!$D$14*[1]Assumptions!$D$30,0) -> 43900 | J131: 58640 | L131: 0 | M131: =IFERROR(VLOOKUP(A131,[1]ENROLLMENT!$A$5:$B$349,2,FALSE),0)*0 -> 0 | N131: =IFERROR(GETPIVOTDATA("Total W/O Preschool",'[1]Private 19-20'!$O$3,"District Code",A131),0)*0 -> 0 | P131: 58640 | Q131: 0 | R131: 58640 | T131: 0 | U131: 58640 | W131: =IFERROR(VLOOKUP($A131,'[1]Allocation 2020-21 Final'!$A$7:$U$317,18,FALSE),0) -> 57002 | Y131: 1638 | Z131: 0.02873583383 | AA131: 119 | AB131: 0 | AD131: 31306 | AE131: LAKEWOOD
A132: 38264 | B132: LAMONT | C132: 0 | D132: 0 | E132: =IFERROR(VLOOKUP($A132,[1]Census!$A$11:$I$344,7,FALSE),0) -> 32 | F132: =ROUND(E132/$E$5*[1]Assumptions!$D$14*[1]Assumptions!$D$29,0) -> 174 | G132: =IFERROR(VLOOKUP($A132,[1]Census!$A$11:$I$344,8,FALSE),0) -> 8 | H132: =ROUND(G132/$G$5*+[1]Assumptions!$D$14*[1]Assumptions!$D$30,0) -> 1589 | J132: 1763 | L132: 0 | M132: =IFERROR(VLOOKUP(A132,[1]ENROLLMENT!$A$5:$B$349,2,FALSE),0)*0 -> 0 | N132: =IFERROR(GETPIVOTDATA("Total W/O Preschool",'[1]Private 19-20'!$O$3,"District Code",A132),0)*0 -> 0 | P132: 1763 | Q132: 0 | R132: 1763 | T132: 0 | U132: 1763 | W132: =IFERROR(VLOOKUP($A132,'[1]Allocation 2020-21 Final'!$A$7:$U$317,18,FALSE),0) -> 1849 | Y132: -86 | Z132: -0.04651162791 | AA132: 183 | AB132: 0 | AD132: 38264 | AE132: LAMONT
A133: 32362 | B133: LIBERTY | C133: 0 | D133: 0 | E133: =IFERROR(VLOOKUP($A133,[1]Census!$A$11:$I$344,7,FALSE),0) -> 805 | F133: =ROUND(E133/$E$5*[1]Assumptions!$D$14*[1]Assumptions!$D$29,0) -> 4383 | G133: =IFERROR(VLOOKUP($A133,[1]Census!$A$11:$I$344,8,FALSE),0) -> 56 | H133: =ROUND(G133/$G$5*+[1]Assumptions!$D$14*[1]Assumptions!$D$30,0) -> 11124 | J133: 15507 | L133: 0 | M133: =IFERROR(VLOOKUP(A133,[1]ENROLLMENT!$A$5:$B$349,2,FALSE),0)*0 -> 0 | N133: =IFERROR(GETPIVOTDATA("Total W/O Preschool",'[1]Private 19-20'!$O$3,"District Code",A133),0)*0 -> 0 | P133: 15507 | Q133: 0 | R133: 15507 | T133: 0 | U133: 15507 | W133: =IFERROR(VLOOKUP($A133,'[1]Allocation 2020-21 Final'!$A$7:$U$317,18,FALSE),0) -> 18672 | Y133: -3165 | Z133: -0.1695051414 | AA133: 249 | AB133: 0 | AD133: 32362 | AE133: LIBERTY
A134: 01158 | B134: LIND | C134: 0 | D134: 0 | E134: =IFERROR(VLOOKUP($A134,[1]Census!$A$11:$I$344,7,FALSE),0) -> 293 | F134: =ROUND(E134/$E$5*[1]Assumptions!$D$14*[1]Assumptions!$D$29,0) -> 1595 | G134: =IFERROR(VLOOKUP($A134,[1]Census!$A$11:$I$344,8,FALSE),0) -> 41 | H134: =ROUND(G134/$G$5*+[1]Assumptions!$D$14*[1]Assumptions!$D$30,0) -> 8144 | J134: 9739 | L134: 0 | M134: =IFERROR(VLOOKUP(A134,[1]ENROLLMENT!$A$5:$B$349,2,FALSE),0)*0 -> 0 | N134: =IFERROR(GETPIVOTDATA("Total W/O Preschool",'[1]Private 19-20'!$O$3,"District Code",A134),0)*0 -> 0 | P134: 9739 | Q134: 0 | R134: 9739 | T134: 0 | U134: 9739 | W134: =IFERROR(VLOOKUP($A134,'[1]Allocation 2020-21 Final'!$A$7:$U$317,18,FALSE),0) -> 8253 | Y134: 1486 | Z134: 0.1800557373 | AA134: 124 | AB134: 0 | AD134: 01158 | AE134: LIND
A135: 08122 | B135: LONGVIEW | C135: 0 | D135: 0 | E135: =IFERROR(VLOOKUP($A135,[1]Census!$A$11:$I$344,7,FALSE),0) -> 7648 | F135: =ROUND(E135/$E$5*[1]Assumptions!$D$14*[1]Assumptions!$D$29,0) -> 41645 | G135: =IFERROR(VLOOKUP($A135,[1]Census!$A$11:$I$344,8,FALSE),0) -> 1324 | H135: =ROUND(G135/$G$5*+[1]Assumptions!$D$14*[1]Assumptions!$D$30,0) -> 263004 | J135: =ROUNDDOWN(+H135+F135+D135+C135+I135,0) -> 304649 | L135: =IF((M135+N135=0),0,+J135/(+M135+N135)) -> 0 | M135: =IFERROR(VLOOKUP(A135,[1]ENROLLMENT!$A$5:$B$349,2,FALSE),0)*0 -> 0 | N135: =IFERROR(GETPIVOTDATA("Total W/O Preschool",'[1]Private 19-20'!$O$3,"District Code",A135),0)*0 -> 0 | P135: =J135 -> 304649 | Q135: =-ROUND(P135/$P$5*$O$5,0) -> 0 | R135: =+J135+Q135+O135 -> 304649 | T135: =IF(S135>0,-ROUND((R135*(0.9-S135)),0),0) -> 0 | U135: =+R135+T135 -> 304649 | W135: =IFERROR(VLOOKUP($A135,'[1]Allocation 2020-21 Final'!$A$7:$U$317,18,FALSE),0) -> 290075 | Y135: =+U135-W135 -> 14574 | Z135: =IF(W135>0,Y135/W135,0) -> 0.05024217875 | AA135: =RANK(Y135,$Y$7:$Y$321,0) -> 36 | AB135: =(SUM(C135:D135)/U135) -> 0 | AD135: =+A135 -> 08122 | AE135: =+B135 -> LONGVIEW
A136: 33183 | B136: LOON LAKE | C136: 0 | D136: 0 | E136: =IFERROR(VLOOKUP($A136,[1]Census!$A$11:$I$344,7,FALSE),0) -> 241 | F136: =ROUND(E136/$E$5*[1]Assumptions!$D$14*[1]Assumptions!$D$29,0) -> 1312 | G136: =IFERROR(VLOOKUP($A136,[1]Census!$A$11:$I$344,8,FALSE),0) -> 45 | H136: =ROUND(G136/$G$5*+[1]Assumptions!$D$14*[1]Assumptions!$D$30,0) -> 8939 | J136: 10251 | L136: 0 | M136: =IFERROR(VLOOKUP(A136,[1]ENROLLMENT!$A$5:$B$349,2,FALSE),0)*0 -> 0 | N136: =IFERROR(GETPIVOTDATA("Total W/O Preschool",'[1]Private 19-20'!$O$3,"District Code",A136),0)*0 -> 0 | P136: 10251 | Q136: 0 | R136: 10251 | T136: 0 | U136: 10251 | W136: =IFERROR(VLOOKUP($A136,'[1]Allocation 2020-21 Final'!$A$7:$U$317,18,FALSE),0) -> 9148 | Y136: 1103 | Z136: 0.1205728028 | AA136: 135 | AB136: 0 | AD136: 33183 | AE136: LOON LAKE
A137: 28144 | B137: LOPEZ | C137: 0 | D137: 0 | E137: =IFERROR(VLOOKUP($A137,[1]Census!$A$11:$I$344,7,FALSE),0) -> 218 | F137: =ROUND(E137/$E$5*[1]Assumptions!$D$14*[1]Assumptions!$D$29,0) -> 1187 | G137: =IFERROR(VLOOKUP($A137,[1]Census!$A$11:$I$344,8,FALSE),0) -> 39 | H137: =ROUND(G137/$G$5*+[1]Assumptions!$D$14*[1]Assumptions!$D$30,0) -> 7747 | J137: 8934 | L137: 0 | M137: =IFERROR(VLOOKUP(A137,[1]ENROLLMENT!$A$5:$B$349,2,FALSE),0)*0 -> 0 | N137: =IFERROR(GETPIVOTDATA("Total W/O Preschool",'[1]Private 19-20'!$O$3,"District Code",A137),0)*0 -> 0 | P137: 8934 | Q137: 0 | R137: 8934 | T137: 0 | U137: 8934 | W137: =IFERROR(VLOOKUP($A137,'[1]Allocation 2020-21 Final'!$A$7:$U$317,18,FALSE),0) -> 11449 | Y137: -2515 | Z137: -0.2196698402 | AA137: 242 | AB137: 0 | AD137: 28144 | AE137: LOPEZ
A138: 32903 | B138: LUMEN CHARTER | C138: 0 | D138: 0 | E138: =IFERROR(VLOOKUP($A138,[1]Census!$A$11:$I$344,7,FALSE),0) -> 57.19862938 | F138: =ROUND(E138/$E$5*[1]Assumptions!$D$14*[1]Assumptions!$D$29,0) -> 311 | G138: =IFERROR(VLOOKUP($A138,[1]Census!$A$11:$I$344,8,FALSE),0) -> 8.481706643 | H138: =ROUND(G138/$G$5*+[1]Assumptions!$D$14*[1]Assumptions!$D$30,0) -> 1685 | J138: 1996 | L138: 0 | M138: =IFERROR(VLOOKUP(A138,[1]ENROLLMENT!$A$5:$B$349,2,FALSE),0)*0 -> 0 | N138: =IFERROR(GETPIVOTDATA("Total W/O Preschool",'[1]Private 19-20'!$O$3,"District Code",A138),0)*0 -> 0 | P138: 1996 | Q138: 0 | R138: 1996 | T138: 0 | U138: 1996 | W138: =IFERROR(VLOOKUP($A138,'[1]Allocation 2020-21 Final'!$A$7:$U$317,18,FALSE),0) -> 2397 | Y138: -401 | Z138: -0.1672924489 | AA138: 201 | AB138: 0 | AD138: 32903 | AE138: LUMEN CHARTER
A139: 20406 | B139: LYLE | C139: 0 | D139: 0 | E139: =IFERROR(VLOOKUP($A139,[1]Census!$A$11:$I$344,7,FALSE),0) -> 397 | F139: =ROUND(E139/$E$5*[1]Assumptions!$D$14*[1]Assumptions!$D$29,0) -> 2162 | G139: =IFERROR(VLOOKUP($A139,[1]Census!$A$11:$I$344,8,FALSE),0) -> 115 | H139: =ROUND(G139/$G$5*+[1]Assumptions!$D$14*[1]Assumptions!$D$30,0) -> 22844 | J139: 25006 | L139: 0 | M139: =IFERROR(VLOOKUP(A139,[1]ENROLLMENT!$A$5:$B$349,2,FALSE),0)*0 -> 0 | N139: =IFERROR(GETPIVOTDATA("Total W/O Preschool",'[1]Private 19-20'!$O$3,"District Code",A139),0)*0 -> 0 | P139: 25006 | Q139: 0 | R139: 25006 | T139: 0 | U139: 25006 | W139: =IFERROR(VLOOKUP($A139,'[1]Allocation 2020-21 Final'!$A$7:$U$317,18,FALSE),0) -> 21947 | Y139: 3059 | Z139: 0.1393812366 | AA139: 100 | AB139: 0 | AD139: 20406 | AE139: LYLE
A140: 37504 | B140: LYNDEN | C140: 0 | D140: 0 | E140: =IFERROR(VLOOKUP($A140,[1]Census!$A$11:$I$344,7,FALSE),0) -> 3821 | F140: =ROUND(E140/$E$5*[1]Assumptions!$D$14*[1]Assumptions!$D$29,0) -> 20806 | G140: =IFERROR(VLOOKUP($A140,[1]Census!$A$11:$I$344,8,FALSE),0) -> 267 | H140: =ROUND(G140/$G$5*+[1]Assumptions!$D$14*[1]Assumptions!$D$30,0) -> 53038 | J140: 73844 | L140: 0 | M140: =IFERROR(VLOOKUP(A140,[1]ENROLLMENT!$A$5:$B$349,2,FALSE),0)*0 -> 0 | N140: =IFERROR(GETPIVOTDATA("Total W/O Preschool",'[1]Private 19-20'!$O$3,"District Code",A140),0)*0 -> 0 | P140: 73844 | Q140: 0 | R140: 73844 | T140: 0 | U140: 73844 | W140: =IFERROR(VLOOKUP($A140,'[1]Allocation 2020-21 Final'!$A$7:$U$317,18,FALSE),0) -> 76751 | Y140: -2907 | Z140: -0.037875728 | AA140: 246 | AB140: 0 | AD140: 37504 | AE140: LYNDEN
A141: 39120 | B141: MABTON | C141: 0 | D141: 0 | E141: =IFERROR(VLOOKUP($A141,[1]Census!$A$11:$I$344,7,FALSE),0) -> 976 | F141: =ROUND(E141/$E$5*[1]Assumptions!$D$14*[1]Assumptions!$D$29,0) -> 5315 | G141: =IFERROR(VLOOKUP($A141,[1]Census!$A$11:$I$344,8,FALSE),0) -> 199 | H141: =ROUND(G141/$G$5*+[1]Assumptions!$D$14*[1]Assumptions!$D$30,0) -> 39530 | J141: 44845 | L141: 0 | M141: =IFERROR(VLOOKUP(A141,[1]ENROLLMENT!$A$5:$B$349,2,FALSE),0)*0 -> 0 | N141: =IFERROR(GETPIVOTDATA("Total W/O Preschool",'[1]Private 19-20'!$O$3,"District Code",A141),0)*0 -> 0 | P141: 44845 | Q141: 0 | R141: 44845 | T141: 0 | U141: 44845 | W141: =IFERROR(VLOOKUP($A141,'[1]Allocation 2020-21 Final'!$A$7:$U$317,18,FALSE),0) -> 45036 | Y141: -191 | Z141: -0.004241051603 | AA141: 191 | AB141: 0 | AD141: 39120 | AE141: MABTON
A142: 09207 | B142: MANSFIELD | C142: 0 | D142: 0 | E142: =IFERROR(VLOOKUP($A142,[1]Census!$A$11:$I$344,7,FALSE),0) -> 77 | F142: =ROUND(E142/$E$5*[1]Assumptions!$D$14*[1]Assumptions!$D$29,0) -> 419 | G142: =IFERROR(VLOOKUP($A142,[1]Census!$A$11:$I$344,8,FALSE),0) -> 23 | H142: =ROUND(G142/$G$5*+[1]Assumptions!$D$14*[1]Assumptions!$D$30,0) -> 4569 | J142: 4988 | L142: 0 | M142: =IFERROR(VLOOKUP(A142,[1]ENROLLMENT!$A$5:$B$349,2,FALSE),0)*0 -> 0 | N142: =IFERROR(GETPIVOTDATA("Total W/O Preschool",'[1]Private 19-20'!$O$3,"District Code",A142),0)*0 -> 0 | P142: 4988 | Q142: 0 | R142: 4988 | T142: 0 | U142: 4988 | W142: =IFERROR(VLOOKUP($A142,'[1]Allocation 2020-21 Final'!$A$7:$U$317,18,FALSE),0) -> 3585 | Y142: 1403 | Z142: 0.3913528591 | AA142: 125 | AB142: 0 | AD142: 09207 | AE142: MANSFIELD
A143: 04019 | B143: MANSON | C143: 0 | D143: 0 | E143: =IFERROR(VLOOKUP($A143,[1]Census!$A$11:$I$344,7,FALSE),0) -> 730 | F143: =ROUND(E143/$E$5*[1]Assumptions!$D$14*[1]Assumptions!$D$29,0) -> 3975 | G143: =IFERROR(VLOOKUP($A143,[1]Census!$A$11:$I$344,8,FALSE),0) -> 46 | H143: =ROUND(G143/$G$5*+[1]Assumptions!$D$14*[1]Assumptions!$D$30,0) -> 9138 | J143: 13113 | L143: 0 | M143: =IFERROR(VLOOKUP(A143,[1]ENROLLMENT!$A$5:$B$349,2,FALSE),0)*0 -> 0 | N143: =IFERROR(GETPIVOTDATA("Total W/O Preschool",'[1]Private 19-20'!$O$3,"District Code",A143),0)*0 -> 0 | P143: 13113 | Q143: 0 | R143: 13113 | T143: 0 | U143: 13113 | W143: =IFERROR(VLOOKUP($A143,'[1]Allocation 2020-21 Final'!$A$7:$U$317,18,FALSE),0) -> 12717 | Y143: 396 | Z143: 0.03113941967 | AA143: 156 | AB143: 0 | AD143: 04019 | AE143: MANSON
A144: 23311 | B144: MARY M KNIGHT | C144: 0 | D144: 0 | E144: =IFERROR(VLOOKUP($A144,[1]Census!$A$11:$I$344,7,FALSE),0) -> 266 | F144: =ROUND(E144/$E$5*[1]Assumptions!$D$14*[1]Assumptions!$D$29,0) -> 1448 | G144: =IFERROR(VLOOKUP($A144,[1]Census!$A$11:$I$344,8,FALSE),0) -> 67 | H144: =ROUND(G144/$G$5*+[1]Assumptions!$D$14*[1]Assumptions!$D$30,0) -> 13309 | J144: 14757 | L144: 0 | M144: =IFERROR(VLOOKUP(A144,[1]ENROLLMENT!$A$5:$B$349,2,FALSE),0)*0 -> 0 | N144: =IFERROR(GETPIVOTDATA("Total W/O Preschool",'[1]Private 19-20'!$O$3,"District Code",A144),0)*0 -> 0 | P144: 14757 | Q144: 0 | R144: 14757 | T144: 0 | U144: 14757 | W144: =IFERROR(VLOOKUP($A144,'[1]Allocation 2020-21 Final'!$A$7:$U$317,18,FALSE),0) -> 12235 | Y144: 2522 | Z144: 0.206129955 | AA144: 106 | AB144: 0 | AD144: 23311 | AE144: MARY M KNIGHT
A145: 33207 | B145: MARY WALKER | C145: 0 | D145: 0 | E145: =IFERROR(VLOOKUP($A145,[1]Census!$A$11:$I$344,7,FALSE),0) -> 579 | F145: =ROUND(E145/$E$5*[1]Assumptions!$D$14*[1]Assumptions!$D$29,0) -> 3153 | G145: =IFERROR(VLOOKUP($A145,[1]Census!$A$11:$I$344,8,FALSE),0) -> 151 | H145: =ROUND(G145/$G$5*+[1]Assumptions!$D$14*[1]Assumptions!$D$30,0) -> 29995 | J145: 33148 | L145: 0 | M145: =IFERROR(VLOOKUP(A145,[1]ENROLLMENT!$A$5:$B$349,2,FALSE),0)*0 -> 0 | N145: =IFERROR(GETPIVOTDATA("Total W/O Preschool",'[1]Private 19-20'!$O$3,"District Code",A145),0)*0 -> 0 | P145: 33148 | Q145: 0 | R145: 33148 | T145: 0 | U145: 33148 | W145: =IFERROR(VLOOKUP($A145,'[1]Allocation 2020-21 Final'!$A$7:$U$317,18,FALSE),0) -> 25365 | Y145: 7783 | Z145: 0.306840134 | AA145: 60 | AB145: 0 | AD145: 33207 | AE145: MARY WALKER
A146: 31025 | B146: MARYSVILLE | C146: 0 | D146: 0 | E146: =IFERROR(VLOOKUP($A146,[1]Census!$A$11:$I$344,7,FALSE),0) -> 13832 | F146: =ROUND(E146/$E$5*[1]Assumptions!$D$14*[1]Assumptions!$D$29,0) -> 75318 | G146: =IFERROR(VLOOKUP($A146,[1]Census!$A$11:$I$344,8,FALSE),0) -> 1184 | H146: =ROUND(G146/$G$5*+[1]Assumptions!$D$14*[1]Assumptions!$D$30,0) -> 235194 | J146: 310512 | L146: 0 | M146: =IFERROR(VLOOKUP(A146,[1]ENROLLMENT!$A$5:$B$349,2,FALSE),0)*0 -> 0 | N146: =IFERROR(GETPIVOTDATA("Total W/O Preschool",'[1]Private 19-20'!$O$3,"District Code",A146),0)*0 -> 0 | P146: 310512 | Q146: 0 | R146: 310512 | T146: 0 | U146: 310512 | W146: =IFERROR(VLOOKUP($A146,'[1]Allocation 2020-21 Final'!$A$7:$U$317,18,FALSE),0) -> 284057 | Y146: 26455 | Z146: 0.09313271632 | AA146: 25 | AB146: 0 | AD146: 31025 | AE146: MARYSVILLE
A147: 14065 | B147: MCCLEARY | C147: 0 | D147: 0 | E147: =IFERROR(VLOOKUP($A147,[1]Census!$A$11:$I$344,7,FALSE),0) -> 513 | F147: =ROUND(E147/$E$5*[1]Assumptions!$D$14*[1]Assumptions!$D$29,0) -> 2793 | G147: =IFERROR(VLOOKUP($A147,[1]Census!$A$11:$I$344,8,FALSE),0) -> 50 | H147: =ROUND(G147/$G$5*+[1]Assumptions!$D$14*[1]Assumptions!$D$30,0) -> 9932 | J147: 12725 | L147: 0 | M147: =IFERROR(VLOOKUP(A147,[1]ENROLLMENT!$A$5:$B$349,2,FALSE),0)*0 -> 0 | N147: =IFERROR(GETPIVOTDATA("Total W/O Preschool",'[1]Private 19-20'!$O$3,"District Code",A147),0)*0 -> 0 | P147: 12725 | Q147: 0 | R147: 12725 | T147: 0 | U147: 12725 | W147: =IFERROR(VLOOKUP($A147,'[1]Allocation 2020-21 Final'!$A$7:$U$317,18,FALSE),0) -> 15800 | Y147: -3075 | Z147: -0.1946202532 | AA147: 248 | AB147: 0 | AD147: 14065 | AE147: MCCLEARY
A148: 32354 | B148: MEAD | C148: 0 | D148: 0 | E148: =IFERROR(VLOOKUP($A148,[1]Census!$A$11:$I$344,7,FALSE),0) -> 11042 | F148: =ROUND(E148/$E$5*[1]Assumptions!$D$14*[1]Assumptions!$D$29,0) -> 60126 | G148: =IFERROR(VLOOKUP($A148,[1]Census!$A$11:$I$344,8,FALSE),0) -> 848 | H148: =ROUND(G148/$G$5*+[1]Assumptions!$D$14*[1]Assumptions!$D$30,0) -> 168450 | J148: 228576 | L148: 0 | M148: =IFERROR(VLOOKUP(A148,[1]ENROLLMENT!$A$5:$B$349,2,FALSE),0)*0 -> 0 | N148: =IFERROR(GETPIVOTDATA("Total W/O Preschool",'[1]Private 19-20'!$O$3,"District Code",A148),0)*0 -> 0 | P148: 228576 | Q148: 0 | R148: 228576 | T148: 0 | U148: 228576 | W148: =IFERROR(VLOOKUP($A148,'[1]Allocation 2020-21 Final'!$A$7:$U$317,18,FALSE),0) -> 222705 | Y148: 5871 | Z148: 0.02636222806 | AA148: 72 | AB148: 0 | AD148: 32354 | AE148: MEAD
A149: 32326 | B149: MEDICAL LAKE | C149: 0 | D149: 0 | E149: =IFERROR(VLOOKUP($A149,[1]Census!$A$11:$I$344,7,FALSE),0) -> 2099 | F149: =ROUND(E149/$E$5*[1]Assumptions!$D$14*[1]Assumptions!$D$29,0) -> 11430 | G149: =IFERROR(VLOOKUP($A149,[1]Census!$A$11:$I$344,8,FALSE),0) -> 180 | H149: =ROUND(G149/$G$5*+[1]Assumptions!$D$14*[1]Assumptions!$D$30,0) -> 35756 | J149: 47186 | L149: 0 | M149: =IFERROR(VLOOKUP(A149,[1]ENROLLMENT!$A$5:$B$349,2,FALSE),0)*0 -> 0 | N149: =IFERROR(GETPIVOTDATA("Total W/O Preschool",'[1]Private 19-20'!$O$3,"District Code",A149),0)*0 -> 0 | P149: 47186 | Q149: 0 | R149: 47186 | T149: 0 | U149: 47186 | W149: =IFERROR(VLOOKUP($A149,'[1]Allocation 2020-21 Final'!$A$7:$U$317,18,FALSE),0) -> 41417 | Y149: 5769 | Z149: 0.1392906295 | AA149: 74 | AB149: 0 | AD149: 32326 | AE149: MEDICAL LAKE
A150: 17400 | B150: MERCER ISLAND | C150: 0 | D150: 0 | E150: =IFERROR(VLOOKUP($A150,[1]Census!$A$11:$I$344,7,FALSE),0) -> 5047 | F150: =ROUND(E150/$E$5*[1]Assumptions!$D$14*[1]Assumptions!$D$29,0) -> 27482 | G150: =IFERROR(VLOOKUP($A150,[1]Census!$A$11:$I$344,8,FALSE),0) -> 153 | H150: =ROUND(G150/$G$5*+[1]Assumptions!$D$14*[1]Assumptions!$D$30,0) -> 30392 | J150: 57874 | L150: 0 | M150: =IFERROR(VLOOKUP(A150,[1]ENROLLMENT!$A$5:$B$349,2,FALSE),0)*0 -> 0 | N150: =IFERROR(GETPIVOTDATA("Total W/O Preschool",'[1]Private 19-20'!$O$3,"District Code",A150),0)*0 -> 0 | P150: 57874 | Q150: 0 | R150: 57874 | T150: 0 | U150: 57874 | W150: =IFERROR(VLOOKUP($A150,'[1]Allocation 2020-21 Final'!$A$7:$U$317,18,FALSE),0) -> 51284 | Y150: 6590 | Z150: 0.128500117 | AA150: 67 | AB150: 0 | AD150: 17400 | AE150: MERCER ISLAND
A151: 37505 | B151: MERIDIAN | C151: 0 | D151: 0 | E151: =IFERROR(VLOOKUP($A151,[1]Census!$A$11:$I$344,7,FALSE),0) -> 1725 | F151: =ROUND(E151/$E$5*[1]Assumptions!$D$14*[1]Assumptions!$D$29,0) -> 9393 | G151: =IFERROR(VLOOKUP($A151,[1]Census!$A$11:$I$344,8,FALSE),0) -> 191 | H151: =ROUND(G151/$G$5*+[1]Assumptions!$D$14*[1]Assumptions!$D$30,0) -> 37941 | J151: 47334 | L151: 0 | M151: =IFERROR(VLOOKUP(A151,[1]ENROLLMENT!$A$5:$B$349,2,FALSE),0)*0 -> 0 | N151: =IFERROR(GETPIVOTDATA("Total W/O Preschool",'[1]Private 19-20'!$O$3,"District Code",A151),0)*0 -> 0 | P151: 47334 | Q151: 0 | R151: 47334 | T151: 0 | U151: 47334 | W151: =IFERROR(VLOOKUP($A151,'[1]Allocation 2020-21 Final'!$A$7:$U$317,18,FALSE),0) -> 53081 | Y151: -5747 | Z151: -0.1082684953 | AA151: 269 | AB151: 0 | AD151: 37505 | AE151: MERIDIAN
A152: 24350 | B152: METHOW VALLEY | C152: 0 | D152: 0 | E152: =IFERROR(VLOOKUP($A152,[1]Census!$A$11:$I$344,7,FALSE),0) -> 656 | F152: =ROUND(E152/$E$5*[1]Assumptions!$D$14*[1]Assumptions!$D$29,0) -> 3572 | G152: =IFERROR(VLOOKUP($A152,[1]Census!$A$11:$I$344,8,FALSE),0) -> 104 | H152: =ROUND(G152/$G$5*+[1]Assumptions!$D$14*[1]Assumptions!$D$30,0) -> 20659 | J152: 24231 | L152: 0 | M152: =IFERROR(VLOOKUP(A152,[1]ENROLLMENT!$A$5:$B$349,2,FALSE),0)*0 -> 0 | N152: =IFERROR(GETPIVOTDATA("Total W/O Preschool",'[1]Private 19-20'!$O$3,"District Code",A152),0)*0 -> 0 | P152: 24231 | Q152: 0 | R152: 24231 | T152: 0 | U152: 24231 | W152: =IFERROR(VLOOKUP($A152,'[1]Allocation 2020-21 Final'!$A$7:$U$317,18,FALSE),0) -> 29803 | Y152: -5572 | Z152: -0.1869610442 | AA152: 268 | AB152: 0 | AD152: 24350 | AE152: METHOW VALLEY
A153: 30031 | B153: MILL A | C153: 0 | D153: 0 | E153: =IFERROR(VLOOKUP($A153,[1]Census!$A$11:$I$344,7,FALSE),0) -> 59 | F153: =ROUND(E153/$E$5*[1]Assumptions!$D$14*[1]Assumptions!$D$29,0) -> 321 | G153: =IFERROR(VLOOKUP($A153,[1]Census!$A$11:$I$344,8,FALSE),0) -> 7 | H153: =ROUND(G153/$G$5*+[1]Assumptions!$D$14*[1]Assumptions!$D$30,0) -> 1391 | J153: 1712 | L153: 0 | M153: =IFERROR(VLOOKUP(A153,[1]ENROLLMENT!$A$5:$B$349,2,FALSE),0)*0 -> 0 | N153: =IFERROR(GETPIVOTDATA("Total W/O Preschool",'[1]Private 19-20'!$O$3,"District Code",A153),0)*0 -> 0 | P153: 1712 | Q153: 0 | R153: 1712 | T153: 0 | U153: 1712 | W153: =IFERROR(VLOOKUP($A153,'[1]Allocation 2020-21 Final'!$A$7:$U$317,18,FALSE),0) -> 2186 | Y153: -474 | Z153: -0.2168344007 | AA153: 203 | AB153: 0 | AD153: 30031 | AE153: MILL A
A154: 31103 | B154: MONROE | C154: 0 | D154: 0 | E154: =IFERROR(VLOOKUP($A154,[1]Census!$A$11:$I$344,7,FALSE),0) -> 7445 | F154: =ROUND(E154/$E$5*[1]Assumptions!$D$14*[1]Assumptions!$D$29,0) -> 40540 | G154: =IFERROR(VLOOKUP($A154,[1]Census!$A$11:$I$344,8,FALSE),0) -> 362 | H154: =ROUND(G154/$G$5*+[1]Assumptions!$D$14*[1]Assumptions!$D$30,0) -> 71909 | J154: 112449 | L154: 0 | M154: =IFERROR(VLOOKUP(A154,[1]ENROLLMENT!$A$5:$B$349,2,FALSE),0)*0 -> 0 | N154: =IFERROR(GETPIVOTDATA("Total W/O Preschool",'[1]Private 19-20'!$O$3,"District Code",A154),0)*0 -> 0 | P154: 112449 | Q154: 0 | R154: 112449 | T154: 0 | U154: 112449 | W154: =IFERROR(VLOOKUP($A154,'[1]Allocation 2020-21 Final'!$A$7:$U$317,18,FALSE),0) -> 114219 | Y154: -1770 | Z154: -0.01549654611 | AA154: 229 | AB154: 0 | AD154: 31103 | AE154: MONROE
A155: 14066 | B155: MONTESANO | C155: 0 | D155: 0 | E155: =IFERROR(VLOOKUP($A155,[1]Census!$A$11:$I$344,7,FALSE),0) -> 1305 | F155: =ROUND(E155/$E$5*[1]Assumptions!$D$14*[1]Assumptions!$D$29,0) -> 7106 | G155: =IFERROR(VLOOKUP($A155,[1]Census!$A$11:$I$344,8,FALSE),0) -> 193 | H155: =ROUND(G155/$G$5*+[1]Assumptions!$D$14*[1]Assumptions!$D$30,0) -> 38338 | J155: 45444 | L155: 0 | M155: =IFERROR(VLOOKUP(A155,[1]ENROLLMENT!$A$5:$B$349,2,FALSE),0)*0 -> 0 | N155: =IFERROR(GETPIVOTDATA("Total W/O Preschool",'[1]Private 19-20'!$O$3,"District Code",A155),0)*0 -> 0 | P155: 45444 | Q155: 0 | R155: 45444 | T155: 0 | U155: 45444 | W155: =IFERROR(VLOOKUP($A155,'[1]Allocation 2020-21 Final'!$A$7:$U$317,18,FALSE),0) -> 52148 | Y155: -6704 | Z155: -0.1285571834 | AA155: 273 | AB155: 0 | AD155: 14066 | AE155: MONTESANO
A156: 21214 | B156: MORTON | C156: 0 | D156: 0 | E156: =IFERROR(VLOOKUP($A156,[1]Census!$A$11:$I$344,7,FALSE),0) -> 333 | F156: =ROUND(E156/$E$5*[1]Assumptions!$D$14*[1]Assumptions!$D$29,0) -> 1813 | G156: =IFERROR(VLOOKUP($A156,[1]Census!$A$11:$I$344,8,FALSE),0) -> 47 | H156: =ROUND(G156/$G$5*+[1]Assumptions!$D$14*[1]Assumptions!$D$30,0) -> 9336 | J156: 11149 | L156: 0 | M156: =IFERROR(VLOOKUP(A156,[1]ENROLLMENT!$A$5:$B$349,2,FALSE),0)*0 -> 0 | N156: =IFERROR(GETPIVOTDATA("Total W/O Preschool",'[1]Private 19-20'!$O$3,"District Code",A156),0)*0 -> 0 | P156: 11149 | Q156: 0 | R156: 11149 | T156: 0 | U156: 11149 | W156: =IFERROR(VLOOKUP($A156,'[1]Allocation 2020-21 Final'!$A$7:$U$317,18,FALSE),0) -> 11111 | Y156: 38 | Z156: 0.0034200342 | AA156: 175 | AB156: 0 | AD156: 21214 | AE156: MORTON
A157: 13161 | B157: MOSES LAKE | C157: 0 | D157: 0 | E157: =IFERROR(VLOOKUP($A157,[1]Census!$A$11:$I$344,7,FALSE),0) -> 9142 | F157: =ROUND(E157/$E$5*[1]Assumptions!$D$14*[1]Assumptions!$D$29,0) -> 49780 | G157: =IFERROR(VLOOKUP($A157,[1]Census!$A$11:$I$344,8,FALSE),0) -> 1384 | H157: =ROUND(G157/$G$5*+[1]Assumptions!$D$14*[1]Assumptions!$D$30,0) -> 274923 | J157: 324703 | L157: 0 | M157: =IFERROR(VLOOKUP(A157,[1]ENROLLMENT!$A$5:$B$349,2,FALSE),0)*0 -> 0 | N157: =IFERROR(GETPIVOTDATA("Total W/O Preschool",'[1]Private 19-20'!$O$3,"District Code",A157),0)*0 -> 0 | P157: 324703 | Q157: 0 | R157: 324703 | T157: 0 | U157: 324703 | W157: =IFERROR(VLOOKUP($A157,'[1]Allocation 2020-21 Final'!$A$7:$U$317,18,FALSE),0) -> 271122 | Y157: 53581 | Z157: 0.1976268986 | AA157: 11 | AB157: 0 | AD157: 13161 | AE157: MOSES LAKE
A158: 21206 | B158: MOSSYROCK | C158: 0 | D158: 0 | E158: =IFERROR(VLOOKUP($A158,[1]Census!$A$11:$I$344,7,FALSE),0) -> 617 | F158: =ROUND(E158/$E$5*[1]Assumptions!$D$14*[1]Assumptions!$D$29,0) -> 3360 | G158: =IFERROR(VLOOKUP($A158,[1]Census!$A$11:$I$344,8,FALSE),0) -> 103 | H158: =ROUND(G158/$G$5*+[1]Assumptions!$D$14*[1]Assumptions!$D$30,0) -> 20460 | J158: 23820 | L158: 0 | M158: =IFERROR(VLOOKUP(A158,[1]ENROLLMENT!$A$5:$B$349,2,FALSE),0)*0 -> 0 | N158: =IFERROR(GETPIVOTDATA("Total W/O Preschool",'[1]Private 19-20'!$O$3,"District Code",A158),0)*0 -> 0 | P158: 23820 | Q158: 0 | R158: 23820 | T158: 0 | U158: 23820 | W158: =IFERROR(VLOOKUP($A158,'[1]Allocation 2020-21 Final'!$A$7:$U$317,18,FALSE),0) -> 18959 | Y158: 4861 | Z158: 0.2563953795 | AA158: 83 | AB158: 0 | AD158: 21206 | AE158: MOSSYROCK
A159: 39209 | B159: MOUNT ADAMS | C159: 0 | D159: 0 | E159: =IFERROR(VLOOKUP($A159,[1]Census!$A$11:$I$344,7,FALSE),0) -> 1155 | F159: =ROUND(E159/$E$5*[1]Assumptions!$D$14*[1]Assumptions!$D$29,0) -> 6289 | G159: =IFERROR(VLOOKUP($A159,[1]Census!$A$11:$I$344,8,FALSE),0) -> 223 | H159: =ROUND(G159/$G$5*+[1]Assumptions!$D$14*[1]Assumptions!$D$30,0) -> 44298 | J159: 50587 | L159: 0 | M159: =IFERROR(VLOOKUP(A159,[1]ENROLLMENT!$A$5:$B$349,2,FALSE),0)*0 -> 0 | N159: =IFERROR(GETPIVOTDATA("Total W/O Preschool",'[1]Private 19-20'!$O$3,"District Code",A159),0)*0 -> 0 | P159: 50587 | Q159: 0 | R159: 50587 | T159: 0 | U159: 50587 | W159: =IFERROR(VLOOKUP($A159,'[1]Allocation 2020-21 Final'!$A$7:$U$317,18,FALSE),0) -> 53846 | Y159: -3259 | Z159: -0.06052445864 | AA159: 252 | AB159: 0 | AD159: 39209 | AE159: MOUNT ADAMS
